Workbook

Sheet Introduction
A1: Comprehensive Stock Price and Economic Series Database
B3: Sometimes it is best to re-start your computer before a new run
B5: Website Link Describing How to Use the Database | N5: Copy tickers
N6: Adjust the start and end tickers
B7: Video Describing Operation of the Stock Price Database
B9: Video Describing Use of the Database and Finding Tickers
B11: Video Describing Analysis with Database
B13: Powerpoint Slides Reference
B15: Link to Relevant Part of this Workbook
B18: General Information

Sheet Read Stocks
M1: Final Applied | N1: Final Applied | O1: Column | P1: Source | S1: Finance.yahoo Index | X1: FRED Index | AF1: Google Index | AN1: FRED Commodities | AV1: Yahoo Stock Prices | BD1: Google Stock Prices | BL1: FRED Exonomic Data
G2: Start Row | H2: Number | I2: Column | J2: Source | M2: Sheet Name | N2: Stock or Index Name | Q2: Counter | R2: Accum | S2: Sheet | T2: Name | U2: Column | V2: Source | X2: Counter | Y2: Counter 1 | Z2: Sheet | AA2: Re-ordered | AB2: Name | AC2: Re-ordered | AD2: Column | AE2: Source | AF2: Counter | AG2: Counter | AH2: Sheet | AI2: Re-ordered | AJ2: Name | AK2: Re-ordered | AL2: Column | AM2: Source | AN2: counter | AO2: Accum | AP2: Sheet | AQ2: Re-ordered | AR2: Name | AS2: Re-ordered | AT2: Column | AU2: Source | AV2: Counter | AW2: Counter 1 | AX2: Sheet | AY2: Re-ordered | AZ2: Name | BA2: Re-ordered | BB2: Column | BC2: Source | BD2: Counter | BE2: Counter 1 | BF2: Sheet | BG2: Re-ordered | BH2: Name | BI2: Re-ordered | BJ2: Column | BK2: Source | BL2: Counter | BM2: Counter 1 | BN2: Sheet | BO2: Re-ordered | BP2: Name | BQ2: Re-ordered | BR2: Column | BS2: Source
F3: TRUE | G3: 1 | H3: ='Yahoo Index'!Total_Tickers*F3 -> 8 | I3: F | J3: yahoo | L3: 1 | M3: =S3&AA3&AI3&AQ3&AY3&BG3&BO3 -> S&P 500 | N3: =T3&AC3&AK3&AS3&BA3&BI3&BQ3 -> US S&P 500 | O3: =U3&AD3&AL3&AT3&BB3&BJ3&BR3 -> F | P3: =V3&AE3&AM3&AU3&BC3&BK3&BS3 -> yahoo | Q3: =G3 -> 1 | R3: =IF(AND($F$3,Q3<=$H$3),Q3,0) -> 1 | S3: =IF(R3,'Yahoo Index'!E53,"") -> S&P 500 | T3: =IF(R3,'Yahoo Index'!F53,"") -> US S&P 500 | U3: =IF(R3,$I$3,"") -> F | V3: =IF(R3,$J$3,"") -> yahoo | X3: =G17 -> 9 | Y3: =IF(AND($F$17,X3<=$H$17),X3) -> 9 | Z3: =IF($F$17,'FRED Indicies'!E16) -> NASDAQ100 | AA3: =IFERROR(INDEX(Z:Z,MATCH(L3,Y:Y,0)),"") ->  | AB3: =IF($F$17,'FRED Indicies'!D16) -> Nasdaq 100 Index | AC3: =IFERROR(INDEX(AB:AB,MATCH(L3,Y:Y,0)),"") ->  | AD3: =IF(AA3<>"",$I$17,"") ->  | AE3: =IF(AA3<>"",$J$17,"") ->  | AF3: =G20 -> 14 | AG3: =IF(AND($F$20,AF3<=$H$20),AF3) -> FALSE | AH3: =IF(AG3,'Google Index'!E30) -> FALSE | AI3: =IFERROR(INDEX(AH:AH,MATCH(Q3,AG:AG,0)),"") ->  | AJ3: =IF(AF3,'Google Index'!F30) -> HT Media | AK3: =IFERROR(INDEX(AJ:AJ,MATCH(Q3,AG:AG,0)),"") ->  | AL3: =IF(AI3<>"",$I$17,"") ->  | AM3: =IF(AK3<>"",$J$17,"") ->  | AN3: =G11 -> 14 | AO3: =IF(AND($F$11,AN3<=$H$11),AN3) -> 14 | AP3: =IF(AO3,'Commodity Prices'!C16) -> DCOILBRENTEU | AQ3: =IFERROR(INDEX(AP:AP,MATCH(L3,AO:AO,0)),"") ->  | AR3: =IF(AO3,'Commodity Prices'!D16) -> Crude Oil Prices: Brent - Europe (DCOILBRENTEU) | AS3: =IFERROR(INDEX(AR:AR,MATCH(L3,AO:AO,0)),"") ->  | AT3: =IF(AQ3<>"",$I$11,"") ->  | AU3: =IF(AS3<>"",$J$11,"") ->  | AV3: =G5 -> 20 | AW3: =IF(AND($F$5,AV3<=$H$5),AV3) -> 20 | AX3: =IF(AW3,'Yahoo Stocks'!D30) -> AAPL | AY3: =IFERROR(INDEX(AX:AX,MATCH(L3,AW:AW,0)),"") ->  | AZ3: =IF(AW3,'Yahoo Stocks'!E30) -> Apple | BA3: =IFERROR(INDEX(AZ:AZ,MATCH(L3,AW:AW,0)),"") ->  | BB3: =IF(AY3<>"",$I$5,"") ->  | BC3: =IF(BA3<>"",$J$5,"") ->  | BD3: =G14 -> 30 | BE3: =IF(AND($F$14,BD3<=$H$14),BD3) -> FALSE | BF3: =IF(BE3,'Google Finance Stocks'!D27) -> FALSE | BG3: =IFERROR(INDEX(BF:BF,MATCH(Q3,BE:BE,0)),"") ->  | BH3: =IF(BE3,'Google Finance Stocks'!E27) -> FALSE | BI3: =IFERROR(INDEX(BH:BH,MATCH(Q3,BE:BE,0)),"") ->  | BJ3: =IF(BI3<>"",$I$14,"") ->  | BK3: =IF(BI3<>"",$J$14,"") ->  | BL3: =G8 -> 30 | BM3: =IF(AND($F$8,BL3<=$H$8),BL3) -> FALSE | BN3: ='Exchange Rates'!D13 -> GDP Inf | BO3: =IFERROR(INDEX(BN:BN,MATCH(L3,BM:BM,0)),"") ->  | BP3: =IF(BM3,'Exchange Rates'!E13) -> FALSE | BQ3: =IFERROR(INDEX(BP:BP,MATCH(L3,BM:BM,0)),"") ->  | BR3: =IF(BQ3<>"",$I$8,"") ->  | BS3: =IF(BQ3<>"",$J$8,"") -> 
L4: 2 | M4: =S4&AA4&AI4&AQ4&AY4&BG4&BO4 -> DAX | N4: =T4&AC4&AK4&AS4&BA4&BI4&BQ4 -> DAX in Euro | O4: =U4&AD4&AL4&AT4&BB4&BJ4&BR4 -> F | P4: =V4&AE4&AM4&AU4&BC4&BK4&BS4 -> yahoo | Q4: =Q3+1 -> 2 | R4: =IF(AND($F$3,Q4<=$H$3),Q4) -> 2 | S4: =IF(R4,'Yahoo Index'!E54,"") -> DAX | T4: =IF(R4,'Yahoo Index'!F54,"") -> DAX in Euro | U4: =IF(R4,$I$3,"") -> F | V4: =IF(R4,$J$3,"") -> yahoo | X4: =X3+1 -> 10 | Y4: 10 | Z4: =IF($F$17,'FRED Indicies'!E17) -> WILL5000INDFC | AB4: =IF($F$17,'FRED Indicies'!D17) -> Wilshire 5000 Index | AF4: =AF3+1 -> 15 | AG4: FALSE | AH4: =IF(AG4,'Google Index'!E31) -> FALSE | AJ4: =IF(AF4,'Google Index'!F31) -> 0 | AN4: =AN3+1 -> 15 | AO4: 15 | AP4: =IF(AO4,'Commodity Prices'!C17) -> PCOPPUSDM | AQ4: =IFERROR(INDEX(AP:AP,MATCH(L4,AO:AO,0)),"") ->  | AR4: =IF(AO4,'Commodity Prices'!D17) -> Global price of Copper© (PCOPPUSDM) | AV4: =AV3+1 -> 21 | AW4: 21 | AX4: =IF(AW4,'Yahoo Stocks'!D31) -> GOOG | AY4: =IFERROR(INDEX(AX:AX,MATCH(L4,AW:AW,0)),"") ->  | AZ4: =IF(AW4,'Yahoo Stocks'!E31) -> Google | BA4: =IFERROR(INDEX(AZ:AZ,MATCH(L4,AW:AW,0)),"") ->  | BD4: =BD3+1 -> 31 | BE4: FALSE | BF4: =IF(BE4,'Google Finance Stocks'!D28) -> FALSE | BG4: =IFERROR(INDEX(BF:BF,MATCH(Q4,BE:BE,0)),"") ->  | BH4: =IF(BE4,'Google Finance Stocks'!E28) -> FALSE | BI4: =IFERROR(INDEX(BH:BH,MATCH(Q4,BE:BE,0)),"") ->  | BL4: =BL3+1 -> 31 | BM4: FALSE | BN4: ='Exchange Rates'!D14 -> CPI US | BO4: =IFERROR(INDEX(BN:BN,MATCH(L4,BM:BM,0)),"") ->  | BP4: =IF(BM4,'Exchange Rates'!E14) -> FALSE | BQ4: =IFERROR(INDEX(BP:BP,MATCH(L4,BM:BM,0)),"") -> 
F5: TRUE | G5: =H11+1 -> 20 | H5: =Yahoo_Stock_Tickers*F5+G5-1 -> 29 | I5: F | J5: Yahoo | L5: 3 | M5: Milan | N5: =T5&AC5&AK5&AS5&BA5&BI5&BQ5 -> Italy Milan | O5: F | P5: yahoo | Q5: =Q4+1 -> 3 | R5: 3 | S5: =IF(R5,'Yahoo Index'!E55,"") -> Milan | T5: =IF(R5,'Yahoo Index'!F55,"") -> Italy Milan | U5: F | V5: yahoo | X5: =X4+1 -> 11 | Y5: 11 | Z5: =IF($F$17,'FRED Indicies'!E18) -> WILL5000PRFC | AB5: =IF($F$17,'FRED Indicies'!D18) -> Wilshire 5000 Large Cap | AF5: =AF4+1 -> 16 | AG5: FALSE | AH5: =IF(AG5,'Google Index'!E32) -> FALSE | AJ5: =IF(AF5,'Google Index'!F32) -> 0 | AN5: =AN4+1 -> 16 | AO5: 16 | AP5: =IF(AO5,'Commodity Prices'!C18) -> MHHNGSP | AR5: =IF(AO5,'Commodity Prices'!D18) -> Henry Hub Natural Gas Spot Price (MHHNGSP) | AV5: =AV4+1 -> 22 | AW5: 22 | AX5: =IF(AW5,'Yahoo Stocks'!D32) -> AMZN | AZ5: =IF(AW5,'Yahoo Stocks'!E32) -> Amazon | BD5: =BD4+1 -> 32 | BE5: FALSE | BF5: =IF(BE5,'Google Finance Stocks'!D29) -> FALSE | BH5: =IF(BE5,'Google Finance Stocks'!E29) -> FALSE | BL5: =BL4+1 -> 32 | BM5: FALSE | BN5: ='Exchange Rates'!D15 -> Euro | BP5: =IF(BM5,'Exchange Rates'!E15) -> FALSE
L6: 4 | M6: CAC 40 | N6: France CAC 40 | O6: F | P6: yahoo | Q6: 4 | R6: 4 | S6: =IF(R6,'Yahoo Index'!E56,"") -> CAC 40 | T6: =IF(R6,'Yahoo Index'!F56,"") -> France CAC 40 | U6: F | V6: yahoo | X6: 12 | Y6: 12 | Z6: =IF($F$17,'FRED Indicies'!E19) -> RU2000PR | AB6: =IF($F$17,'FRED Indicies'!D19) -> Russel 2000 Index | AF6: 17 | AG6: FALSE | AH6: =IF(AG6,'Google Index'!E33) -> FALSE | AJ6: =IF(AF6,'Google Index'!F33) -> 0 | AN6: 17 | AO6: 17 | AP6: =IF(AO6,'Commodity Prices'!C19) -> PRAWMINDEXM | AR6: =IF(AO6,'Commodity Prices'!D19) -> Global price of Agr. Raw Material Index© (PRAWMINDEXM) | AV6: 23 | AW6: 23 | AX6: =IF(AW6,'Yahoo Stocks'!D33) -> GE | AZ6: =IF(AW6,'Yahoo Stocks'!E33) -> General Electric | BD6: 33 | BE6: FALSE | BF6: =IF(BE6,'Google Finance Stocks'!D30) -> FALSE | BH6: =IF(BE6,'Google Finance Stocks'!E30) -> FALSE | BL6: 33 | BM6: FALSE | BN6: ='Exchange Rates'!D16 -> INR | BP6: =IF(BM6,'Exchange Rates'!E16) -> FALSE
L7: 5 | M7: Nasdaq 100 | N7: Nasdaq 100 | O7: F | P7: yahoo | Q7: 5 | R7: 5 | S7: =IF(R7,'Yahoo Index'!E57,"") -> Nasdaq 100 | T7: =IF(R7,'Yahoo Index'!F57,"") -> Nasdaq 100 | U7: F | V7: yahoo | X7: 13 | Y7: 13 | Z7: =IF($F$17,'FRED Indicies'!E20) -> WILLREITIND | AB7: =IF($F$17,'FRED Indicies'!D20) -> Wilshire REIT Index | AF7: 18 | AG7: FALSE | AH7: =IF(AG7,'Google Index'!E34) -> FALSE | AJ7: =IF(AF7,'Google Index'!F34) -> 0 | AN7: 18 | AO7: 18 | AP7: =IF(AO7,'Commodity Prices'!C20) -> PPOILUSDM | AR7: =IF(AO7,'Commodity Prices'!D20) -> Global price of Palm Oil© (PPOILUSDM) | AV7: 24 | AW7: 24 | AX7: =IF(AW7,'Yahoo Stocks'!D34) -> NSC | AZ7: =IF(AW7,'Yahoo Stocks'!E34) -> Norfolk and Souther | BD7: 34 | BE7: FALSE | BF7: =IF(BE7,'Google Finance Stocks'!D31) -> FALSE | BH7: =IF(BE7,'Google Finance Stocks'!E31) -> FALSE | BL7: 34 | BM7: FALSE | BN7: ='Exchange Rates'!D17 -> UK | BP7: =IF(BM7,'Exchange Rates'!E17) -> FALSE
F8: FALSE | G8: =H14+1 -> 30 | H8: ='Exchange Rates'!D5*'Read Stocks'!F8+G8-1 -> 29 | I8: B | J8: FRED | L8: 6 | M8: 30 Industrials | N8: Dow Jones 30 Industrials | O8: F | P8: yahoo | Q8: 6 | R8: 6 | S8: =IF(R8,'Yahoo Index'!E58,"") -> 30 Industrials | T8: =IF(R8,'Yahoo Index'!F58,"") -> Dow Jones 30 Industrials | U8: F | V8: yahoo | X8: 14 | Y8: FALSE | Z8: =IF($F$17,'FRED Indicies'!E21) -> 0 | AB8: =IF($F$17,'FRED Indicies'!D21) -> 0 | AF8: 19 | AG8: FALSE | AH8: =IF(AG8,'Google Index'!E35) -> FALSE | AJ8: =IF(AF8,'Google Index'!F35) -> 0 | AN8: 19 | AO8: 19 | AP8: =IF(AO8,'Commodity Prices'!C21) -> PFOODINDEXM | AR8: =IF(AO8,'Commodity Prices'!D21) -> Global price of Food index© (PFOODINDEXM) | AV8: 25 | AW8: 25 | AX8: =IF(AW8,'Yahoo Stocks'!D35) -> CNR.TO | AZ8: =IF(AW8,'Yahoo Stocks'!E35) -> Canadian National | BD8: 35 | BE8: FALSE | BF8: =IF(BE8,'Google Finance Stocks'!D32) -> FALSE | BH8: =IF(BE8,'Google Finance Stocks'!E32) -> FALSE | BL8: 35 | BM8: FALSE | BN8: ='Exchange Rates'!D18 -> PKR | BP8: =IF(BM8,'Exchange Rates'!E18) -> FALSE
L9: 7 | M9: Swiss | N9: Swiss SMI | O9: F | P9: yahoo | Q9: 7 | R9: 7 | S9: =IF(R9,'Yahoo Index'!E59,"") -> Swiss | T9: =IF(R9,'Yahoo Index'!F59,"") -> Swiss SMI | U9: F | V9: yahoo | X9: 15 | Y9: FALSE | Z9: =IF($F$17,'FRED Indicies'!E22) -> 0 | AB9: =IF($F$17,'FRED Indicies'!D22) -> 0 | AF9: 20 | AG9: FALSE | AH9: =IF(AG9,'Google Index'!E36) -> FALSE | AJ9: =IF(AF9,'Google Index'!F36) -> 0 | AN9: 20 | AO9: FALSE | AP9: =IF(AO9,'Commodity Prices'!C22) -> FALSE | AR9: =IF(AO9,'Commodity Prices'!D22) -> FALSE | AV9: 26 | AW9: 26 | AX9: =IF(AW9,'Yahoo Stocks'!D36) -> CP.TO | AZ9: =IF(AW9,'Yahoo Stocks'!E36) -> Canadian Pacific | BD9: 36 | BE9: FALSE | BF9: =IF(BE9,'Google Finance Stocks'!D33) -> FALSE | BH9: =IF(BE9,'Google Finance Stocks'!E33) -> FALSE | BL9: 36 | BM9: FALSE | BN9: ='Exchange Rates'!D19 -> US NOM GNP | BP9: =IF(BM9,'Exchange Rates'!E19) -> FALSE
L10: 8 | M10: Malaysia | N10: Malaysia | O10: F | P10: yahoo | Q10: 8 | R10: 8 | S10: =IF(R10,'Yahoo Index'!E60,"") -> Malaysia | T10: =IF(R10,'Yahoo Index'!F60,"") -> Malaysia | U10: F | V10: yahoo | X10: 16 | Y10: FALSE | Z10: =IF($F$17,'FRED Indicies'!E23) -> 0 | AB10: =IF($F$17,'FRED Indicies'!D23) -> 0 | AF10: 21 | AG10: FALSE | AH10: =IF(AG10,'Google Index'!E37) -> FALSE | AJ10: =IF(AF10,'Google Index'!F37) -> 0 | AN10: 21 | AO10: FALSE | AP10: =IF(AO10,'Commodity Prices'!C23) -> FALSE | AR10: =IF(AO10,'Commodity Prices'!D23) -> FALSE | AV10: 27 | AW10: 27 | AX10: =IF(AW10,'Yahoo Stocks'!D37) -> UNP | AZ10: =IF(AW10,'Yahoo Stocks'!E37) -> Union Pacific | BD10: 37 | BE10: FALSE | BF10: =IF(BE10,'Google Finance Stocks'!D34) -> FALSE | BH10: =IF(BE10,'Google Finance Stocks'!E34) -> FALSE | BL10: 37 | BM10: FALSE | BN10: ='Exchange Rates'!D20 -> India Disc Rate | BP10: =IF(BM10,'Exchange Rates'!E20) -> FALSE
F11: TRUE | G11: =H20+1 -> 14 | H11: =Total_Com*F11+G11-1 -> 19 | I11: B | J11: FRED | L11: 9 | M11: NASDAQ100 | N11: Nasdaq 100 Index | O11: B | P11: FRED | Q11: 9 | R11: FALSE | S11: =IF(R11,'Yahoo Index'!E61,"") ->  | T11: =IF(R11,'Yahoo Index'!F61,"") ->  | X11: 17 | Y11: FALSE | Z11: =IF($F$17,'FRED Indicies'!E24) -> 0 | AA11: NASDAQ100 | AB11: =IF($F$17,'FRED Indicies'!D24) -> 0 | AC11: Nasdaq 100 Index | AD11: B | AE11: FRED | AF11: 22 | AG11: FALSE | AH11: =IF(AG11,'Google Index'!E38) -> FALSE | AJ11: =IF(AF11,'Google Index'!F38) -> 0 | AN11: 22 | AO11: FALSE | AP11: =IF(AO11,'Commodity Prices'!C24) -> FALSE | AR11: =IF(AO11,'Commodity Prices'!D24) -> FALSE | AV11: 28 | AW11: 28 | AX11: =IF(AW11,'Yahoo Stocks'!D38) -> IBM | AZ11: =IF(AW11,'Yahoo Stocks'!E38) -> IBM | BD11: 38 | BE11: FALSE | BF11: =IF(BE11,'Google Finance Stocks'!D35) -> FALSE | BH11: =IF(BE11,'Google Finance Stocks'!E35) -> FALSE | BL11: 38 | BM11: FALSE | BN11: ='Exchange Rates'!D21 -> India Gvt Bonds | BP11: =IF(BM11,'Exchange Rates'!E21) -> FALSE
L12: 10 | M12: WILL5000INDFC | N12: Wilshire 5000 Index | O12: B | P12: FRED | Q12: 10 | R12: FALSE | S12: =IF(R12,'Yahoo Index'!E62,"") ->  | T12: =IF(R12,'Yahoo Index'!F62,"") ->  | X12: 18 | Y12: FALSE | Z12: =IF($F$17,'FRED Indicies'!E25) -> 0 | AA12: WILL5000INDFC | AB12: =IF($F$17,'FRED Indicies'!D25) -> 0 | AC12: Wilshire 5000 Index | AD12: B | AE12: FRED | AF12: 23 | AG12: FALSE | AH12: =IF(AG12,'Google Index'!E39) -> FALSE | AJ12: =IF(AF12,'Google Index'!F39) -> 0 | AN12: 23 | AO12: FALSE | AP12: =IF(AO12,'Commodity Prices'!C25) -> FALSE | AR12: =IF(AO12,'Commodity Prices'!D25) -> FALSE | AV12: 29 | AW12: 29 | AX12: =IF(AW12,'Yahoo Stocks'!D39) -> MSFT | AZ12: =IF(AW12,'Yahoo Stocks'!E39) -> Microsoft | BD12: 39 | BE12: FALSE | BF12: =IF(BE12,'Google Finance Stocks'!D36) -> FALSE | BH12: =IF(BE12,'Google Finance Stocks'!E36) -> FALSE | BL12: 39 | BM12: FALSE | BN12: ='Exchange Rates'!D22 -> India 10 Yr Main | BP12: =IF(BM12,'Exchange Rates'!E22) -> FALSE
L13: 11 | M13: WILL5000PRFC | N13: Wilshire 5000 Large Cap | O13: B | P13: FRED | Q13: 11 | R13: FALSE | S13: =IF(R13,'Yahoo Index'!E63,"") ->  | T13: =IF(R13,'Yahoo Index'!F63,"") ->  | X13: 19 | Y13: FALSE | Z13: =IF($F$17,'FRED Indicies'!E26) -> 0 | AA13: WILL5000PRFC | AB13: =IF($F$17,'FRED Indicies'!D26) -> 0 | AC13: Wilshire 5000 Large Cap | AD13: B | AE13: FRED | AF13: 24 | AG13: FALSE | AH13: =IF(AG13,'Google Index'!E40) -> FALSE | AJ13: =IF(AF13,'Google Index'!F40) -> 0 | AN13: 24 | AO13: FALSE | AP13: =IF(AO13,'Commodity Prices'!C26) -> FALSE | AR13: =IF(AO13,'Commodity Prices'!D26) -> FALSE | AV13: 30 | AW13: FALSE | AX13: =IF(AW13,'Yahoo Stocks'!D40) -> FALSE | AZ13: =IF(AW13,'Yahoo Stocks'!E40) -> FALSE | BD13: 40 | BE13: FALSE | BF13: =IF(BE13,'Google Finance Stocks'!D37) -> FALSE | BH13: =IF(BE13,'Google Finance Stocks'!E37) -> FALSE | BL13: 40 | BM13: FALSE | BN13: ='Exchange Rates'!D23 -> India Inflation | BP13: =IF(BM13,'Exchange Rates'!E23) -> FALSE
F14: FALSE | G14: =H5+1 -> 30 | H14: =Google_Tickers*F14+G14-1 -> 29 | I14: D | J14: Google | L14: 12 | M14: RU2000PR | N14: Russel 2000 Index | O14: B | P14: FRED | Q14: 12 | R14: FALSE | S14: =IF(R14,'Yahoo Index'!E64,"") ->  | T14: =IF(R14,'Yahoo Index'!F64,"") ->  | X14: 20 | Y14: FALSE | Z14: =IF($F$17,'FRED Indicies'!E27) -> 0 | AA14: RU2000PR | AB14: =IF($F$17,'FRED Indicies'!D27) -> 0 | AC14: Russel 2000 Index | AD14: B | AE14: FRED | AF14: 25 | AG14: FALSE | AH14: =IF(AG14,'Google Index'!E41) -> FALSE | AJ14: =IF(AF14,'Google Index'!F41) -> 0 | AN14: 25 | AO14: FALSE | AP14: =IF(AO14,'Commodity Prices'!C27) -> FALSE | AR14: =IF(AO14,'Commodity Prices'!D27) -> FALSE | AV14: 31 | AW14: FALSE | AX14: =IF(AW14,'Yahoo Stocks'!D41) -> FALSE | AZ14: =IF(AW14,'Yahoo Stocks'!E41) -> FALSE | BD14: 41 | BE14: FALSE | BF14: =IF(BE14,'Google Finance Stocks'!D38) -> FALSE | BH14: =IF(BE14,'Google Finance Stocks'!E38) -> FALSE | BL14: 41 | BM14: FALSE | BN14: ='Exchange Rates'!D24 -> 5 yr treasury | BP14: =IF(BM14,'Exchange Rates'!E24) -> FALSE
L15: 13 | M15: WILLREITIND | N15: Wilshire REIT Index | O15: B | P15: FRED | Q15: 13 | R15: FALSE | S15: =IF(R15,'Yahoo Index'!E65,"") ->  | T15: =IF(R15,'Yahoo Index'!F65,"") ->  | X15: 21 | Y15: FALSE | Z15: =IF($F$17,'FRED Indicies'!E28) -> 0 | AA15: WILLREITIND | AB15: =IF($F$17,'FRED Indicies'!D28) -> 0 | AC15: Wilshire REIT Index | AD15: B | AE15: FRED | AF15: 26 | AG15: FALSE | AH15: =IF(AG15,'Google Index'!E42) -> FALSE | AJ15: =IF(AF15,'Google Index'!F42) -> 0 | AN15: 26 | AO15: FALSE | AP15: =IF(AO15,'Commodity Prices'!C28) -> FALSE | AR15: =IF(AO15,'Commodity Prices'!D28) -> FALSE | AV15: 32 | AW15: FALSE | AX15: =IF(AW15,'Yahoo Stocks'!D42) -> FALSE | AZ15: =IF(AW15,'Yahoo Stocks'!E42) -> FALSE | BD15: 42 | BE15: FALSE | BF15: =IF(BE15,'Google Finance Stocks'!D39) -> FALSE | BH15: =IF(BE15,'Google Finance Stocks'!E39) -> FALSE | BL15: 42 | BM15: FALSE | BN15: ='Exchange Rates'!D25 -> 10 year treasury | BP15: =IF(BM15,'Exchange Rates'!E25) -> FALSE
L16: 14 | M16: DCOILBRENTEU | N16: Crude Oil Prices: Brent - Europe (DCOILBRENTEU) | O16: B | P16: FRED | Q16: 14 | R16: FALSE | S16: =IF(R16,'Yahoo Index'!E66,"") ->  | T16: =IF(R16,'Yahoo Index'!F66,"") ->  | X16: 22 | Y16: FALSE | Z16: =IF($F$17,'FRED Indicies'!E29) -> 0 | AB16: =IF($F$17,'FRED Indicies'!D29) -> 0 | AF16: 27 | AG16: FALSE | AH16: =IF(AG16,'Google Index'!E43) -> FALSE | AJ16: =IF(AF16,'Google Index'!F43) -> 0 | AN16: 27 | AO16: FALSE | AP16: =IF(AO16,'Commodity Prices'!C29) -> FALSE | AQ16: DCOILBRENTEU | AR16: =IF(AO16,'Commodity Prices'!D29) -> FALSE | AS16: Crude Oil Prices: Brent - Europe (DCOILBRENTEU) | AT16: B | AU16: FRED | AV16: 33 | AW16: FALSE | AX16: =IF(AW16,'Yahoo Stocks'!D43) -> FALSE | AZ16: =IF(AW16,'Yahoo Stocks'!E43) -> FALSE | BD16: 43 | BE16: FALSE | BF16: =IF(BE16,'Google Finance Stocks'!D40) -> FALSE | BH16: =IF(BE16,'Google Finance Stocks'!E40) -> FALSE | BL16: 43 | BM16: FALSE | BN16: ='Exchange Rates'!D26 -> US Med Inc Nom | BP16: =IF(BM16,'Exchange Rates'!E26) -> FALSE
F17: TRUE | G17: =H3+1 -> 9 | H17: ='FRED Indicies'!Total_Index*F17+G17-1 -> 13 | I17: B | J17: FRED | L17: 15 | M17: PCOPPUSDM | N17: Global price of Copper© (PCOPPUSDM) | O17: B | P17: FRED | Q17: 15 | R17: FALSE | S17: =IF(R17,'Yahoo Index'!E67,"") ->  | T17: =IF(R17,'Yahoo Index'!F67,"") ->  | X17: 23 | Y17: FALSE | Z17: =IF($F$17,'FRED Indicies'!E30) -> 0 | AB17: =IF($F$17,'FRED Indicies'!D30) -> 0 | AF17: 28 | AG17: FALSE | AH17: =IF(AG17,'Google Index'!E44) -> FALSE | AJ17: =IF(AF17,'Google Index'!F44) -> 0 | AN17: 28 | AO17: FALSE | AP17: =IF(AO17,'Commodity Prices'!C30) -> FALSE | AQ17: PCOPPUSDM | AR17: =IF(AO17,'Commodity Prices'!D30) -> FALSE | AS17: Global price of Copper© (PCOPPUSDM) | AT17: B | AU17: FRED | AV17: 34 | AW17: FALSE | AX17: =IF(AW17,'Yahoo Stocks'!D44) -> FALSE | AZ17: =IF(AW17,'Yahoo Stocks'!E44) -> FALSE | BD17: 44 | BE17: FALSE | BF17: =IF(BE17,'Google Finance Stocks'!D41) -> FALSE | BH17: =IF(BE17,'Google Finance Stocks'!E41) -> FALSE | BL17: 44 | BM17: FALSE | BN17: ='Exchange Rates'!D27 -> Median Income | BP17: =IF(BM17,'Exchange Rates'!E27) -> FALSE
L18: 16 | M18: MHHNGSP | N18: Henry Hub Natural Gas Spot Price (MHHNGSP) | O18: B | P18: FRED | Q18: 16 | R18: FALSE | S18: =IF(R18,'Yahoo Index'!E68,"") ->  | T18: =IF(R18,'Yahoo Index'!F68,"") ->  | X18: 24 | Y18: FALSE | Z18: =IF($F$17,'FRED Indicies'!E31) -> 0 | AB18: =IF($F$17,'FRED Indicies'!D31) -> 0 | AF18: 29 | AG18: FALSE | AH18: =IF(AG18,'Google Index'!E45) -> FALSE | AJ18: =IF(AF18,'Google Index'!F45) -> 0 | AN18: 29 | AO18: FALSE | AP18: =IF(AO18,'Commodity Prices'!C31) -> FALSE | AQ18: MHHNGSP | AR18: =IF(AO18,'Commodity Prices'!D31) -> FALSE | AS18: Henry Hub Natural Gas Spot Price (MHHNGSP) | AT18: B | AU18: FRED | AV18: 35 | AW18: FALSE | AX18: =IF(AW18,'Yahoo Stocks'!D45) -> FALSE | AZ18: =IF(AW18,'Yahoo Stocks'!E45) -> FALSE | BD18: 45 | BE18: FALSE | BF18: =IF(BE18,'Google Finance Stocks'!D42) -> FALSE | BH18: =IF(BE18,'Google Finance Stocks'!E42) -> FALSE | BL18: 45 | BM18: FALSE | BN18: ='Exchange Rates'!D28 -> Corp Profit | BP18: =IF(BM18,'Exchange Rates'!E28) -> FALSE
L19: 17 | M19: PRAWMINDEXM | N19: Global price of Agr. Raw Material Index© (PRAWMINDEXM) | O19: B | P19: FRED | Q19: 17 | R19: FALSE | S19: =IF(R19,'Yahoo Index'!E69,"") ->  | T19: =IF(R19,'Yahoo Index'!F69,"") ->  | X19: 25 | Y19: FALSE | Z19: =IF($F$17,'FRED Indicies'!E32) -> 0 | AB19: =IF($F$17,'FRED Indicies'!D32) -> 0 | AF19: 30 | AG19: FALSE | AH19: =IF(AG19,'Google Index'!E46) -> FALSE | AJ19: =IF(AF19,'Google Index'!F46) -> 0 | AN19: 30 | AO19: FALSE | AP19: =IF(AO19,'Commodity Prices'!C32) -> FALSE | AQ19: PRAWMINDEXM | AR19: =IF(AO19,'Commodity Prices'!D32) -> FALSE | AS19: Global price of Agr. Raw Material Index© (PRAWMINDEXM) | AT19: B | AU19: FRED | AV19: 36 | AW19: FALSE | AX19: =IF(AW19,'Yahoo Stocks'!D46) -> FALSE | AZ19: =IF(AW19,'Yahoo Stocks'!E46) -> FALSE | BD19: 46 | BE19: FALSE | BF19: =IF(BE19,'Google Finance Stocks'!D43) -> FALSE | BH19: =IF(BE19,'Google Finance Stocks'!E43) -> FALSE | BL19: 46 | BM19: FALSE | BN19: ='Exchange Rates'!D29 -> Corp Nonfin | BP19: =IF(BM19,'Exchange Rates'!E29) -> FALSE
F20: FALSE | G20: =H17+1 -> 14 | H20: ='Google Index'!D20*F20+G20-1 -> 13 | I20: D | J20: Google | L20: 18 | M20: PPOILUSDM | N20: Global price of Palm Oil© (PPOILUSDM) | O20: B | P20: FRED | Q20: 18 | R20: FALSE | S20: =IF(R20,'Yahoo Index'!E70,"") ->  | T20: =IF(R20,'Yahoo Index'!F70,"") ->  | X20: 26 | Y20: FALSE | Z20: =IF($F$17,'FRED Indicies'!E33) -> 0 | AB20: =IF($F$17,'FRED Indicies'!D33) -> 0 | AF20: 31 | AG20: FALSE | AH20: =IF(AG20,'Google Index'!E47) -> FALSE | AJ20: =IF(AF20,'Google Index'!F47) -> 0 | AN20: 31 | AO20: FALSE | AP20: =IF(AO20,'Commodity Prices'!C33) -> FALSE | AQ20: PPOILUSDM | AR20: =IF(AO20,'Commodity Prices'!D33) -> FALSE | AS20: Global price of Palm Oil© (PPOILUSDM) | AT20: B | AU20: FRED | AV20: 37 | AW20: FALSE | AX20: =IF(AW20,'Yahoo Stocks'!D47) -> FALSE | AZ20: =IF(AW20,'Yahoo Stocks'!E47) -> FALSE | BD20: 47 | BE20: FALSE | BF20: =IF(BE20,'Google Finance Stocks'!D44) -> FALSE | BH20: =IF(BE20,'Google Finance Stocks'!E44) -> FALSE | BL20: 47 | BM20: FALSE | BN20: ='Exchange Rates'!D30 -> Corp Aft Tax | BP20: =IF(BM20,'Exchange Rates'!E30) -> FALSE
L21: 19 | M21: PFOODINDEXM | N21: Global price of Food index© (PFOODINDEXM) | O21: B | P21: FRED | Q21: 19 | R21: FALSE | S21: =IF(R21,'Yahoo Index'!E71,"") ->  | T21: =IF(R21,'Yahoo Index'!F71,"") ->  | X21: 27 | Y21: FALSE | Z21: =IF($F$17,'FRED Indicies'!E34) -> 0 | AB21: =IF($F$17,'FRED Indicies'!D34) -> 0 | AF21: 32 | AG21: FALSE | AH21: =IF(AG21,'Google Index'!E48) -> FALSE | AJ21: =IF(AF21,'Google Index'!F48) -> 0 | AN21: 32 | AO21: FALSE | AP21: =IF(AO21,'Commodity Prices'!C34) -> FALSE | AQ21: PFOODINDEXM | AR21: =IF(AO21,'Commodity Prices'!D34) -> FALSE | AS21: Global price of Food index© (PFOODINDEXM) | AT21: B | AU21: FRED | AV21: 38 | AW21: FALSE | AX21: =IF(AW21,'Yahoo Stocks'!D48) -> FALSE | AZ21: =IF(AW21,'Yahoo Stocks'!E48) -> FALSE | BD21: 48 | BE21: FALSE | BF21: =IF(BE21,'Google Finance Stocks'!D45) -> FALSE | BH21: =IF(BE21,'Google Finance Stocks'!E45) -> FALSE | BL21: 48 | BM21: FALSE | BN21: ='Exchange Rates'!D31 -> Corp Inf Adjusted | BP21: =IF(BM21,'Exchange Rates'!E31) -> FALSE
L22: 20 | M22: AAPL | N22: Apple | O22: F | P22: Yahoo | Q22: 20 | R22: FALSE | S22: =IF(R22,'Yahoo Index'!E72,"") ->  | T22: =IF(R22,'Yahoo Index'!F72,"") ->  | X22: 28 | Y22: FALSE | Z22: =IF($F$17,'FRED Indicies'!E35) -> 0 | AB22: =IF($F$17,'FRED Indicies'!D35) -> 0 | AF22: 33 | AG22: FALSE | AH22: =IF(AG22,'Google Index'!E49) -> FALSE | AJ22: =IF(AF22,'Google Index'!F49) -> 0 | AN22: 33 | AO22: FALSE | AP22: =IF(AO22,'Commodity Prices'!C35) -> FALSE | AR22: =IF(AO22,'Commodity Prices'!D35) -> FALSE | AV22: 39 | AW22: FALSE | AX22: =IF(AW22,'Yahoo Stocks'!D49) -> FALSE | AY22: AAPL | AZ22: =IF(AW22,'Yahoo Stocks'!E49) -> FALSE | BA22: Apple | BB22: F | BC22: Yahoo | BD22: 49 | BE22: FALSE | BF22: =IF(BE22,'Google Finance Stocks'!D46) -> FALSE | BH22: =IF(BE22,'Google Finance Stocks'!E46) -> FALSE | BL22: 49 | BM22: FALSE | BN22: ='Exchange Rates'!D32 -> GDP Inflation Index | BP22: =IF(BM22,'Exchange Rates'!E32) -> FALSE
L23: 21 | M23: GOOG | N23: Google | O23: F | P23: Yahoo | Q23: 21 | R23: FALSE | S23: =IF(R23,'Yahoo Index'!E73,"") ->  | T23: =IF(R23,'Yahoo Index'!F73,"") ->  | X23: 29 | Y23: FALSE | Z23: =IF($F$17,'FRED Indicies'!E36) -> 0 | AB23: =IF($F$17,'FRED Indicies'!D36) -> 0 | AF23: 34 | AG23: FALSE | AH23: =IF(AG23,'Google Index'!E50) -> FALSE | AJ23: =IF(AF23,'Google Index'!F50) -> 0 | AN23: 34 | AO23: FALSE | AP23: =IF(AO23,'Commodity Prices'!C36) -> FALSE | AR23: =IF(AO23,'Commodity Prices'!D36) -> FALSE | AV23: 40 | AW23: FALSE | AX23: =IF(AW23,'Yahoo Stocks'!D50) -> FALSE | AY23: GOOG | AZ23: =IF(AW23,'Yahoo Stocks'!E50) -> FALSE | BA23: Google | BB23: F | BC23: Yahoo | BD23: 50 | BE23: FALSE | BF23: =IF(BE23,'Google Finance Stocks'!D47) -> FALSE | BH23: =IF(BE23,'Google Finance Stocks'!E47) -> FALSE | BL23: 50 | BM23: FALSE | BN23: ='Exchange Rates'!D33 -> CPI US Index | BP23: =IF(BM23,'Exchange Rates'!E33) -> FALSE
L24: 22 | M24: AMZN | N24: Amazon | O24: F | P24: Yahoo | Q24: 22 | R24: FALSE | S24: =IF(R24,'Yahoo Index'!E74,"") ->  | T24: =IF(R24,'Yahoo Index'!F74,"") ->  | X24: 30 | Y24: FALSE | Z24: =IF($F$17,'FRED Indicies'!E37) -> 0 | AB24: =IF($F$17,'FRED Indicies'!D37) -> 0 | AF24: 35 | AG24: FALSE | AH24: =IF(AG24,'Google Index'!E51) -> FALSE | AJ24: =IF(AF24,'Google Index'!F51) -> 0 | AN24: 35 | AO24: FALSE | AP24: =IF(AO24,'Commodity Prices'!C37) -> FALSE | AR24: =IF(AO24,'Commodity Prices'!D37) -> FALSE | AV24: 41 | AW24: FALSE | AX24: =IF(AW24,'Yahoo Stocks'!D51) -> FALSE | AY24: AMZN | AZ24: =IF(AW24,'Yahoo Stocks'!E51) -> FALSE | BA24: Amazon | BB24: F | BC24: Yahoo | BD24: 51 | BE24: FALSE | BF24: =IF(BE24,'Google Finance Stocks'!D48) -> FALSE | BH24: =IF(BE24,'Google Finance Stocks'!E48) -> FALSE | BL24: 51 | BM24: FALSE | BN24: ='Exchange Rates'!D34 -> US GDP | BP24: =IF(BM24,'Exchange Rates'!E34) -> FALSE
L25: 23 | M25: GE | N25: General Electric | O25: F | P25: Yahoo | Q25: 23 | R25: FALSE | S25: =IF(R25,'Yahoo Index'!E75,"") ->  | T25: =IF(R25,'Yahoo Index'!F75,"") ->  | X25: 31 | Y25: FALSE | Z25: =IF($F$17,'FRED Indicies'!E38) -> 0 | AB25: =IF($F$17,'FRED Indicies'!D38) -> 0 | AF25: 36 | AG25: FALSE | AH25: =IF(AG25,'Google Index'!E52) -> FALSE | AJ25: =IF(AF25,'Google Index'!F52) -> 0 | AN25: 36 | AO25: FALSE | AP25: =IF(AO25,'Commodity Prices'!C38) -> FALSE | AR25: =IF(AO25,'Commodity Prices'!D38) -> FALSE | AV25: 42 | AW25: FALSE | AX25: =IF(AW25,'Yahoo Stocks'!D52) -> FALSE | AY25: GE | AZ25: =IF(AW25,'Yahoo Stocks'!E52) -> FALSE | BA25: General Electric | BB25: F | BC25: Yahoo | BD25: 52 | BE25: FALSE | BF25: =IF(BE25,'Google Finance Stocks'!D49) -> FALSE | BH25: =IF(BE25,'Google Finance Stocks'!E49) -> FALSE | BL25: 52 | BM25: FALSE | BN25: ='Exchange Rates'!D35 -> Median Family Income | BP25: =IF(BM25,'Exchange Rates'!E35) -> FALSE
L26: 24 | M26: NSC | N26: Norfolk and Souther | O26: F | P26: Yahoo | Q26: 24 | R26: FALSE | S26: =IF(R26,'Yahoo Index'!E76,"") ->  | T26: =IF(R26,'Yahoo Index'!F76,"") ->  | X26: 32 | Y26: FALSE | Z26: =IF($F$17,'FRED Indicies'!E39) -> 0 | AB26: =IF($F$17,'FRED Indicies'!D39) -> 0 | AF26: 37 | AG26: FALSE | AH26: =IF(AG26,'Google Index'!E53) -> FALSE | AJ26: =IF(AF26,'Google Index'!F53) -> 0 | AN26: 37 | AO26: FALSE | AP26: =IF(AO26,'Commodity Prices'!C39) -> FALSE | AR26: =IF(AO26,'Commodity Prices'!D39) -> FALSE | AV26: 43 | AW26: FALSE | AX26: =IF(AW26,'Yahoo Stocks'!D53) -> FALSE | AY26: NSC | AZ26: =IF(AW26,'Yahoo Stocks'!E53) -> FALSE | BA26: Norfolk and Souther | BB26: F | BC26: Yahoo | BD26: 53 | BE26: FALSE | BF26: =IF(BE26,'Google Finance Stocks'!D50) -> FALSE | BH26: =IF(BE26,'Google Finance Stocks'!E50) -> FALSE | BL26: 53 | BM26: FALSE | BN26: ='Exchange Rates'!D36 -> 0 | BP26: =IF(BM26,'Exchange Rates'!E36) -> FALSE
L27: 25 | M27: CNR.TO | N27: Canadian National | O27: F | P27: Yahoo | Q27: 25 | R27: FALSE | S27: =IF(R27,'Yahoo Index'!E77,"") ->  | T27: =IF(R27,'Yahoo Index'!F77,"") ->  | X27: 33 | Y27: FALSE | Z27: =IF($F$17,'FRED Indicies'!E40) -> 0 | AB27: =IF($F$17,'FRED Indicies'!D40) -> 0 | AF27: 38 | AG27: FALSE | AH27: =IF(AG27,'Google Index'!E54) -> FALSE | AJ27: =IF(AF27,'Google Index'!F54) -> 0 | AN27: 38 | AO27: FALSE | AP27: =IF(AO27,'Commodity Prices'!C40) -> FALSE | AR27: =IF(AO27,'Commodity Prices'!D40) -> FALSE | AV27: 44 | AW27: FALSE | AX27: =IF(AW27,'Yahoo Stocks'!D54) -> FALSE | AY27: =IFERROR(INDEX(AX:AX,MATCH(L27,AW:AW,0)),"") -> CNR.TO | AZ27: =IF(AW27,'Yahoo Stocks'!E54) -> FALSE | BA27: =IFERROR(INDEX(AZ:AZ,MATCH(L27,AW:AW,0)),"") -> Canadian National | BB27: F | BC27: Yahoo | BD27: 54 | BE27: FALSE | BF27: =IF(BE27,'Google Finance Stocks'!D51) -> FALSE | BH27: =IF(BE27,'Google Finance Stocks'!E51) -> FALSE | BL27: 54 | BM27: FALSE | BN27: ='Exchange Rates'!D37 -> 0 | BP27: =IF(BM27,'Exchange Rates'!E37) -> FALSE
L28: 26 | M28: CP.TO | N28: Canadian Pacific | O28: F | P28: Yahoo | Q28: 26 | R28: FALSE | S28: =IF(R28,'Yahoo Index'!E78,"") ->  | T28: =IF(R28,'Yahoo Index'!F78,"") ->  | X28: 34 | Y28: FALSE | Z28: =IF($F$17,'FRED Indicies'!E41) -> 0 | AB28: =IF($F$17,'FRED Indicies'!D41) -> 0 | AF28: 39 | AG28: FALSE | AH28: =IF(AG28,'Google Index'!E55) -> FALSE | AJ28: =IF(AF28,'Google Index'!F55) -> 0 | AN28: 39 | AO28: FALSE | AP28: =IF(AO28,'Commodity Prices'!C41) -> FALSE | AR28: =IF(AO28,'Commodity Prices'!D41) -> FALSE | AV28: 45 | AW28: FALSE | AX28: =IF(AW28,'Yahoo Stocks'!D55) -> FALSE | AY28: CP.TO | AZ28: =IF(AW28,'Yahoo Stocks'!E55) -> FALSE | BA28: Canadian Pacific | BB28: F | BC28: Yahoo | BD28: 55 | BE28: FALSE | BF28: =IF(BE28,'Google Finance Stocks'!D52) -> FALSE | BH28: =IF(BE28,'Google Finance Stocks'!E52) -> FALSE | BL28: 55 | BM28: FALSE | BN28: ='Exchange Rates'!D38 -> 0 | BP28: =IF(BM28,'Exchange Rates'!E38) -> FALSE
L29: 27 | M29: UNP | N29: Union Pacific | O29: F | P29: Yahoo | Q29: 27 | R29: FALSE | S29: =IF(R29,'Yahoo Index'!E79,"") ->  | T29: =IF(R29,'Yahoo Index'!F79,"") ->  | X29: 35 | Y29: FALSE | Z29: =IF($F$17,'FRED Indicies'!E42) -> 0 | AB29: =IF($F$17,'FRED Indicies'!D42) -> 0 | AF29: 40 | AG29: FALSE | AH29: =IF(AG29,'Google Index'!E56) -> FALSE | AJ29: =IF(AF29,'Google Index'!F56) -> 0 | AN29: 40 | AO29: FALSE | AP29: =IF(AO29,'Commodity Prices'!C42) -> FALSE | AR29: =IF(AO29,'Commodity Prices'!D42) -> FALSE | AV29: 46 | AW29: FALSE | AX29: =IF(AW29,'Yahoo Stocks'!D56) -> FALSE | AY29: UNP | AZ29: =IF(AW29,'Yahoo Stocks'!E56) -> FALSE | BA29: Union Pacific | BB29: F | BC29: Yahoo | BD29: 56 | BE29: FALSE | BF29: =IF(BE29,'Google Finance Stocks'!D53) -> FALSE | BH29: =IF(BE29,'Google Finance Stocks'!E53) -> FALSE | BL29: 56 | BM29: FALSE | BN29: ='Exchange Rates'!D39 -> 0 | BP29: =IF(BM29,'Exchange Rates'!E39) -> FALSE
L30: 28 | M30: IBM | N30: IBM | O30: F | P30: Yahoo | Q30: 28 | R30: FALSE | S30: =IF(R30,'Yahoo Index'!E80,"") ->  | T30: =IF(R30,'Yahoo Index'!F80,"") ->  | X30: 36 | Y30: FALSE | Z30: =IF($F$17,'FRED Indicies'!E43) -> 0 | AB30: =IF($F$17,'FRED Indicies'!D43) -> 0 | AF30: 41 | AG30: FALSE | AH30: =IF(AG30,'Google Index'!E57) -> FALSE | AJ30: =IF(AF30,'Google Index'!F57) -> 0 | AN30: 41 | AO30: FALSE | AP30: =IF(AO30,'Commodity Prices'!C43) -> FALSE | AR30: =IF(AO30,'Commodity Prices'!D43) -> FALSE | AV30: 47 | AW30: FALSE | AX30: =IF(AW30,'Yahoo Stocks'!D57) -> FALSE | AY30: IBM | AZ30: =IF(AW30,'Yahoo Stocks'!E57) -> FALSE | BA30: IBM | BB30: F | BC30: Yahoo | BD30: 57 | BE30: FALSE | BF30: =IF(BE30,'Google Finance Stocks'!D54) -> FALSE | BH30: =IF(BE30,'Google Finance Stocks'!E54) -> FALSE | BL30: 57 | BM30: FALSE | BN30: ='Exchange Rates'!D40 -> 0 | BP30: =IF(BM30,'Exchange Rates'!E40) -> FALSE
L31: 29 | M31: MSFT | N31: Microsoft | O31: F | P31: Yahoo | Q31: 29 | R31: FALSE | S31: =IF(R31,'Yahoo Index'!E81,"") ->  | T31: =IF(R31,'Yahoo Index'!F81,"") ->  | X31: 37 | Y31: FALSE | Z31: =IF($F$17,'FRED Indicies'!E44) -> 0 | AB31: =IF($F$17,'FRED Indicies'!D44) -> 0 | AF31: 42 | AG31: FALSE | AH31: =IF(AG31,'Google Index'!E58) -> FALSE | AJ31: =IF(AF31,'Google Index'!F58) -> 0 | AN31: 42 | AO31: FALSE | AP31: =IF(AO31,'Commodity Prices'!C44) -> FALSE | AR31: =IF(AO31,'Commodity Prices'!D44) -> FALSE | AV31: 48 | AW31: FALSE | AX31: =IF(AW31,'Yahoo Stocks'!D58) -> FALSE | AY31: MSFT | AZ31: =IF(AW31,'Yahoo Stocks'!E58) -> FALSE | BA31: Microsoft | BB31: F | BC31: Yahoo | BD31: 58 | BE31: FALSE | BF31: =IF(BE31,'Google Finance Stocks'!D55) -> FALSE | BH31: =IF(BE31,'Google Finance Stocks'!E55) -> FALSE | BL31: 58 | BM31: FALSE | BN31: ='Exchange Rates'!D41 -> 0 | BP31: =IF(BM31,'Exchange Rates'!E41) -> FALSE
L32: 30 | Q32: 30 | R32: FALSE | S32: =IF(R32,'Yahoo Index'!E82,"") ->  | T32: =IF(R32,'Yahoo Index'!F82,"") ->  | X32: 38 | Y32: FALSE | Z32: =IF($F$17,'FRED Indicies'!E45) -> 0 | AB32: =IF($F$17,'FRED Indicies'!D45) -> 0 | AF32: 43 | AG32: FALSE | AH32: =IF(AG32,'Google Index'!E59) -> FALSE | AJ32: =IF(AF32,'Google Index'!F59) -> 0 | AN32: 43 | AO32: FALSE | AP32: =IF(AO32,'Commodity Prices'!C45) -> FALSE | AR32: =IF(AO32,'Commodity Prices'!D45) -> FALSE | AV32: 49 | AW32: FALSE | AX32: =IF(AW32,'Yahoo Stocks'!D59) -> FALSE | AZ32: =IF(AW32,'Yahoo Stocks'!E59) -> FALSE | BD32: 59 | BE32: FALSE | BF32: =IF(BE32,'Google Finance Stocks'!D56) -> FALSE | BH32: =IF(BE32,'Google Finance Stocks'!E56) -> FALSE | BL32: 59 | BM32: FALSE | BN32: ='Exchange Rates'!D42 -> 0 | BP32: =IF(BM32,'Exchange Rates'!E42) -> FALSE
L33: 31 | Q33: 31 | R33: FALSE | S33: =IF(R33,'Yahoo Index'!E83,"") ->  | T33: =IF(R33,'Yahoo Index'!F83,"") ->  | X33: 39 | Y33: FALSE | Z33: =IF($F$17,'FRED Indicies'!E46) -> 0 | AB33: =IF($F$17,'FRED Indicies'!D46) -> 0 | AF33: 44 | AG33: FALSE | AH33: =IF(AG33,'Google Index'!E60) -> FALSE | AJ33: =IF(AF33,'Google Index'!F60) -> 0 | AN33: 44 | AO33: FALSE | AP33: =IF(AO33,'Commodity Prices'!C46) -> FALSE | AR33: =IF(AO33,'Commodity Prices'!D46) -> FALSE | AV33: 50 | AW33: FALSE | AX33: =IF(AW33,'Yahoo Stocks'!D60) -> FALSE | AZ33: =IF(AW33,'Yahoo Stocks'!E60) -> FALSE | BD33: 60 | BE33: FALSE | BF33: =IF(BE33,'Google Finance Stocks'!D57) -> FALSE | BH33: =IF(BE33,'Google Finance Stocks'!E57) -> FALSE | BL33: 60 | BM33: FALSE | BN33: ='Exchange Rates'!D43 -> 0 | BP33: =IF(BM33,'Exchange Rates'!E43) -> FALSE
L34: 32 | Q34: 32 | R34: FALSE | S34: =IF(R34,'Yahoo Index'!E84,"") ->  | T34: =IF(R34,'Yahoo Index'!F84,"") ->  | X34: 40 | Y34: FALSE | Z34: =IF($F$17,'FRED Indicies'!E47) -> 0 | AB34: =IF($F$17,'FRED Indicies'!D47) -> 0 | AF34: 45 | AG34: FALSE | AH34: =IF(AG34,'Google Index'!E61) -> FALSE | AJ34: =IF(AF34,'Google Index'!F61) -> 0 | AN34: 45 | AO34: FALSE | AP34: =IF(AO34,'Commodity Prices'!C47) -> FALSE | AR34: =IF(AO34,'Commodity Prices'!D47) -> FALSE | AV34: 51 | AW34: FALSE | AX34: =IF(AW34,'Yahoo Stocks'!D61) -> FALSE | AZ34: =IF(AW34,'Yahoo Stocks'!E61) -> FALSE | BD34: 61 | BE34: FALSE | BF34: =IF(BE34,'Google Finance Stocks'!D58) -> FALSE | BH34: =IF(BE34,'Google Finance Stocks'!E58) -> FALSE | BL34: 61 | BM34: FALSE | BN34: ='Exchange Rates'!D44 -> 0 | BP34: =IF(BM34,'Exchange Rates'!E44) -> FALSE
L35: 33 | Q35: 33 | R35: FALSE | S35: =IF(R35,'Yahoo Index'!E85,"") ->  | T35: =IF(R35,'Yahoo Index'!F85,"") ->  | X35: 41 | Y35: =IF(AND($F$17,X35<=$H$17),X35) -> FALSE | Z35: =IF($F$17,'FRED Indicies'!E48) -> 0 | AA35: =IFERROR(INDEX(Z:Z,MATCH(L35,Y:Y,0)),"") ->  | AB35: =IF($F$17,'FRED Indicies'!D48) -> 0 | AC35: =IFERROR(INDEX(AB:AB,MATCH(L35,Y:Y,0)),"") ->  | AD35: =IF(AA35<>"",$I$17,"") ->  | AE35: =IF(AA35<>"",$J$17,"") ->  | AF35: 46 | AG35: =IF(AND($F$20,AF35<=$H$20),AF35) -> FALSE | AH35: =IF(AG35,'Google Index'!E62) -> FALSE | AI35: =IFERROR(INDEX(AH:AH,MATCH(Q35,AG:AG,0)),"") ->  | AJ35: =IF(AF35,'Google Index'!F62) -> 0 | AK35: =IFERROR(INDEX(AJ:AJ,MATCH(Q35,AG:AG,0)),"") ->  | AL35: =IF(AI35<>"",$I$17,"") ->  | AM35: =IF(AK35<>"",$J$17,"") ->  | AN35: 46 | AO35: =IF(AND($F$11,AN35<=$H$11),AN35) -> FALSE | AP35: =IF(AO35,'Commodity Prices'!C48) -> FALSE | AQ35: =IFERROR(INDEX(AP:AP,MATCH(L35,AO:AO,0)),"") ->  | AR35: =IF(AO35,'Commodity Prices'!D48) -> FALSE | AS35: =IFERROR(INDEX(AR:AR,MATCH(L35,AO:AO,0)),"") ->  | AT35: =IF(AQ35<>"",$I$11,"") ->  | AU35: =IF(AS35<>"",$J$11,"") ->  | AV35: 52 | AW35: =IF(AND($F$5,AV35<=$H$5),AV35) -> FALSE | AX35: =IF(AW35,'Yahoo Stocks'!D62) -> FALSE | AZ35: =IF(AW35,'Yahoo Stocks'!E62) -> FALSE | BB35: =IF(AY35<>"",$I$5,"") ->  | BC35: =IF(BA35<>"",$J$5,"") ->  | BD35: 62 | BE35: FALSE | BF35: =IF(BE35,'Google Finance Stocks'!D59) -> FALSE | BH35: =IF(BE35,'Google Finance Stocks'!E59) -> FALSE | BL35: 62 | BM35: FALSE | BN35: ='Exchange Rates'!D45 -> 0 | BP35: =IF(BM35,'Exchange Rates'!E45) -> FALSE
L36: 34 | Q36: 34 | R36: FALSE | S36: =IF(R36,'Yahoo Index'!E86,"") ->  | T36: =IF(R36,'Yahoo Index'!F86,"") ->  | X36: 42 | Y36: FALSE | Z36: =IF($F$17,'FRED Indicies'!E49) -> 0 | AB36: =IF($F$17,'FRED Indicies'!D49) -> 0 | AF36: 47 | AG36: FALSE | AH36: =IF(AG36,'Google Index'!E63) -> FALSE | AJ36: =IF(AF36,'Google Index'!F63) -> 0 | AN36: 47 | AO36: FALSE | AP36: =IF(AO36,'Commodity Prices'!C49) -> FALSE | AR36: =IF(AO36,'Commodity Prices'!D49) -> FALSE | AV36: 53 | AW36: FALSE | AX36: =IF(AW36,'Yahoo Stocks'!D63) -> FALSE | AZ36: =IF(AW36,'Yahoo Stocks'!E63) -> FALSE | BD36: 63 | BE36: FALSE | BF36: =IF(BE36,'Google Finance Stocks'!D60) -> FALSE | BH36: =IF(BE36,'Google Finance Stocks'!E60) -> FALSE | BL36: 63 | BM36: FALSE | BN36: ='Exchange Rates'!D46 -> 0 | BP36: =IF(BM36,'Exchange Rates'!E46) -> FALSE
L37: 35 | Q37: 35 | R37: FALSE | S37: =IF(R37,'Yahoo Index'!E87,"") ->  | T37: =IF(R37,'Yahoo Index'!F87,"") ->  | X37: 43 | Y37: FALSE | Z37: =IF($F$17,'FRED Indicies'!E50) -> 0 | AB37: =IF($F$17,'FRED Indicies'!D50) -> 0 | AF37: 48 | AG37: FALSE | AH37: =IF(AG37,'Google Index'!E64) -> FALSE | AJ37: =IF(AF37,'Google Index'!F64) -> 0 | AN37: 48 | AO37: FALSE | AP37: =IF(AO37,'Commodity Prices'!C50) -> FALSE | AR37: =IF(AO37,'Commodity Prices'!D50) -> FALSE | AV37: 54 | AW37: FALSE | AX37: =IF(AW37,'Yahoo Stocks'!D64) -> FALSE | AZ37: =IF(AW37,'Yahoo Stocks'!E64) -> FALSE | BD37: 64 | BE37: FALSE | BF37: =IF(BE37,'Google Finance Stocks'!D61) -> FALSE | BH37: =IF(BE37,'Google Finance Stocks'!E61) -> FALSE | BL37: 64 | BM37: FALSE | BN37: ='Exchange Rates'!D47 -> 0 | BP37: =IF(BM37,'Exchange Rates'!E47) -> FALSE
L38: 36 | Q38: 36 | R38: FALSE | S38: =IF(R38,'Yahoo Index'!E88,"") ->  | T38: =IF(R38,'Yahoo Index'!F88,"") ->  | X38: 44 | Y38: FALSE | Z38: =IF($F$17,'FRED Indicies'!E51) -> 0 | AB38: =IF($F$17,'FRED Indicies'!D51) -> 0 | AF38: 49 | AG38: FALSE | AH38: =IF(AG38,'Google Index'!E65) -> FALSE | AJ38: =IF(AF38,'Google Index'!F65) -> 0 | AN38: 49 | AO38: FALSE | AP38: =IF(AO38,'Commodity Prices'!C51) -> FALSE | AR38: =IF(AO38,'Commodity Prices'!D51) -> FALSE | AV38: 55 | AW38: FALSE | AX38: =IF(AW38,'Yahoo Stocks'!D65) -> FALSE | AZ38: =IF(AW38,'Yahoo Stocks'!E65) -> FALSE | BD38: 65 | BE38: FALSE | BF38: =IF(BE38,'Google Finance Stocks'!D62) -> FALSE | BH38: =IF(BE38,'Google Finance Stocks'!E62) -> FALSE | BL38: 65 | BM38: FALSE | BN38: ='Exchange Rates'!D48 -> 0 | BP38: =IF(BM38,'Exchange Rates'!E48) -> FALSE
L39: 37 | Q39: 37 | R39: FALSE | S39: =IF(R39,'Yahoo Index'!E89,"") ->  | T39: =IF(R39,'Yahoo Index'!F89,"") ->  | X39: 45 | Y39: FALSE | Z39: =IF($F$17,'FRED Indicies'!E52) -> 0 | AB39: =IF($F$17,'FRED Indicies'!D52) -> 0 | AF39: 50 | AG39: FALSE | AH39: =IF(AG39,'Google Index'!E66) -> FALSE | AJ39: =IF(AF39,'Google Index'!F66) -> 0 | AN39: 50 | AO39: FALSE | AP39: =IF(AO39,'Commodity Prices'!C52) -> FALSE | AR39: =IF(AO39,'Commodity Prices'!D52) -> FALSE | AV39: 56 | AW39: FALSE | AX39: =IF(AW39,'Yahoo Stocks'!D66) -> FALSE | AZ39: =IF(AW39,'Yahoo Stocks'!E66) -> FALSE | BD39: 66 | BE39: FALSE | BF39: =IF(BE39,'Google Finance Stocks'!D63) -> FALSE | BH39: =IF(BE39,'Google Finance Stocks'!E63) -> FALSE | BL39: 66 | BM39: FALSE | BN39: ='Exchange Rates'!D49 -> 0 | BP39: =IF(BM39,'Exchange Rates'!E49) -> FALSE
L40: 38 | Q40: 38 | R40: FALSE | S40: =IF(R40,'Yahoo Index'!E90,"") ->  | T40: =IF(R40,'Yahoo Index'!F90,"") ->  | X40: 46 | Y40: FALSE | Z40: =IF($F$17,'FRED Indicies'!E53) -> 0 | AB40: =IF($F$17,'FRED Indicies'!D53) -> 0 | AF40: 51 | AG40: FALSE | AH40: =IF(AG40,'Google Index'!E67) -> FALSE | AJ40: =IF(AF40,'Google Index'!F67) -> 0 | AN40: 51 | AO40: FALSE | AP40: =IF(AO40,'Commodity Prices'!C53) -> FALSE | AR40: =IF(AO40,'Commodity Prices'!D53) -> FALSE | AV40: 57 | AW40: FALSE | AX40: =IF(AW40,'Yahoo Stocks'!D67) -> FALSE | AZ40: =IF(AW40,'Yahoo Stocks'!E67) -> FALSE | BD40: 67 | BE40: FALSE | BF40: =IF(BE40,'Google Finance Stocks'!D64) -> FALSE | BH40: =IF(BE40,'Google Finance Stocks'!E64) -> FALSE | BL40: 67 | BM40: FALSE | BN40: ='Exchange Rates'!D50 -> 0 | BP40: =IF(BM40,'Exchange Rates'!E50) -> FALSE
L41: 39 | Q41: 39 | R41: FALSE | S41: =IF(R41,'Yahoo Index'!E91,"") ->  | T41: =IF(R41,'Yahoo Index'!F91,"") ->  | X41: 47 | Y41: FALSE | Z41: =IF($F$17,'FRED Indicies'!E54) -> 0 | AB41: =IF($F$17,'FRED Indicies'!D54) -> 0 | AF41: 52 | AG41: FALSE | AH41: =IF(AG41,'Google Index'!E68) -> FALSE | AJ41: =IF(AF41,'Google Index'!F68) -> 0 | AN41: 52 | AO41: FALSE | AP41: =IF(AO41,'Commodity Prices'!C54) -> FALSE | AR41: =IF(AO41,'Commodity Prices'!D54) -> FALSE | AV41: 58 | AW41: FALSE | AX41: =IF(AW41,'Yahoo Stocks'!D68) -> FALSE | AZ41: =IF(AW41,'Yahoo Stocks'!E68) -> FALSE | BD41: 68 | BE41: FALSE | BF41: =IF(BE41,'Google Finance Stocks'!D65) -> FALSE | BH41: =IF(BE41,'Google Finance Stocks'!E65) -> FALSE | BL41: 68 | BM41: FALSE | BN41: ='Exchange Rates'!D51 -> 0 | BP41: =IF(BM41,'Exchange Rates'!E51) -> FALSE
L42: 40 | Q42: 40 | R42: FALSE | S42: =IF(R42,'Yahoo Index'!E92,"") ->  | T42: =IF(R42,'Yahoo Index'!F92,"") ->  | X42: 48 | Y42: FALSE | Z42: =IF($F$17,'FRED Indicies'!E55) -> 0 | AB42: =IF($F$17,'FRED Indicies'!D55) -> 0 | AF42: 53 | AG42: FALSE | AH42: =IF(AG42,'Google Index'!E69) -> FALSE | AJ42: =IF(AF42,'Google Index'!F69) -> 0 | AN42: 53 | AO42: FALSE | AP42: =IF(AO42,'Commodity Prices'!C55) -> FALSE | AR42: =IF(AO42,'Commodity Prices'!D55) -> FALSE | AV42: 59 | AW42: FALSE | AX42: =IF(AW42,'Yahoo Stocks'!D69) -> FALSE | AZ42: =IF(AW42,'Yahoo Stocks'!E69) -> FALSE | BD42: 69 | BE42: FALSE | BF42: =IF(BE42,'Google Finance Stocks'!D66) -> FALSE | BH42: =IF(BE42,'Google Finance Stocks'!E66) -> FALSE | BL42: 69 | BM42: FALSE | BN42: ='Exchange Rates'!D52 -> 0 | BP42: =IF(BM42,'Exchange Rates'!E52) -> FALSE
L43: 41 | Q43: 41 | R43: FALSE | S43: =IF(R43,'Yahoo Index'!E93,"") ->  | T43: =IF(R43,'Yahoo Index'!F93,"") ->  | X43: 49 | Y43: FALSE | Z43: =IF($F$17,'FRED Indicies'!E56) -> 0 | AB43: =IF($F$17,'FRED Indicies'!D56) -> 0 | AF43: 54 | AG43: FALSE | AH43: =IF(AG43,'Google Index'!E70) -> FALSE | AJ43: =IF(AF43,'Google Index'!F70) -> 0 | AN43: 54 | AO43: FALSE | AP43: =IF(AO43,'Commodity Prices'!C56) -> FALSE | AR43: =IF(AO43,'Commodity Prices'!D56) -> FALSE | AV43: 60 | AW43: FALSE | AX43: =IF(AW43,'Yahoo Stocks'!D70) -> FALSE | AZ43: =IF(AW43,'Yahoo Stocks'!E70) -> FALSE | BD43: 70 | BE43: FALSE | BF43: =IF(BE43,'Google Finance Stocks'!D67) -> FALSE | BH43: =IF(BE43,'Google Finance Stocks'!E67) -> FALSE | BL43: 70 | BM43: FALSE | BN43: ='Exchange Rates'!D53 -> 0 | BP43: =IF(BM43,'Exchange Rates'!E53) -> FALSE
L44: 42 | Q44: 42 | R44: FALSE | S44: =IF(R44,'Yahoo Index'!E94,"") ->  | T44: =IF(R44,'Yahoo Index'!F94,"") ->  | X44: 50 | Y44: FALSE | Z44: =IF($F$17,'FRED Indicies'!E57) -> 0 | AB44: =IF($F$17,'FRED Indicies'!D57) -> 0 | AF44: 55 | AG44: FALSE | AH44: =IF(AG44,'Google Index'!E71) -> FALSE | AJ44: =IF(AF44,'Google Index'!F71) -> 0 | AN44: 55 | AO44: FALSE | AP44: =IF(AO44,'Commodity Prices'!C57) -> FALSE | AR44: =IF(AO44,'Commodity Prices'!D57) -> FALSE | AV44: 61 | AW44: FALSE | AX44: =IF(AW44,'Yahoo Stocks'!D71) -> FALSE | AZ44: =IF(AW44,'Yahoo Stocks'!E71) -> FALSE | BD44: 71 | BE44: FALSE | BF44: =IF(BE44,'Google Finance Stocks'!D68) -> FALSE | BH44: =IF(BE44,'Google Finance Stocks'!E68) -> FALSE | BL44: 71 | BM44: FALSE | BN44: ='Exchange Rates'!D54 -> 0 | BP44: =IF(BM44,'Exchange Rates'!E54) -> FALSE
L45: 43 | Q45: 43 | R45: FALSE | S45: =IF(R45,'Yahoo Index'!E95,"") ->  | T45: =IF(R45,'Yahoo Index'!F95,"") ->  | X45: 51 | Y45: FALSE | Z45: =IF($F$17,'FRED Indicies'!E58) -> 0 | AB45: =IF($F$17,'FRED Indicies'!D58) -> 0 | AF45: 56 | AG45: FALSE | AH45: =IF(AG45,'Google Index'!E72) -> FALSE | AJ45: =IF(AF45,'Google Index'!F72) -> 0 | AN45: 56 | AO45: FALSE | AP45: =IF(AO45,'Commodity Prices'!C58) -> FALSE | AR45: =IF(AO45,'Commodity Prices'!D58) -> FALSE | AV45: 62 | AW45: FALSE | AX45: =IF(AW45,'Yahoo Stocks'!D72) -> FALSE | AZ45: =IF(AW45,'Yahoo Stocks'!E72) -> FALSE | BD45: 72 | BE45: FALSE | BF45: =IF(BE45,'Google Finance Stocks'!D69) -> FALSE | BH45: =IF(BE45,'Google Finance Stocks'!E69) -> FALSE | BL45: 72 | BM45: FALSE | BN45: ='Exchange Rates'!D55 -> 0 | BP45: =IF(BM45,'Exchange Rates'!E55) -> FALSE
L46: 44 | Q46: 44 | R46: FALSE | S46: =IF(R46,'Yahoo Index'!E96,"") ->  | T46: =IF(R46,'Yahoo Index'!F96,"") ->  | X46: 52 | Y46: FALSE | Z46: =IF($F$17,'FRED Indicies'!E59) -> 0 | AB46: =IF($F$17,'FRED Indicies'!D59) -> 0 | AF46: 57 | AG46: FALSE | AH46: =IF(AG46,'Google Index'!E73) -> FALSE | AJ46: =IF(AF46,'Google Index'!F73) -> 0 | AN46: 57 | AO46: FALSE | AP46: =IF(AO46,'Commodity Prices'!C59) -> FALSE | AR46: =IF(AO46,'Commodity Prices'!D59) -> FALSE | AV46: 63 | AW46: FALSE | AX46: =IF(AW46,'Yahoo Stocks'!D73) -> FALSE | AZ46: =IF(AW46,'Yahoo Stocks'!E73) -> FALSE | BD46: 73 | BE46: FALSE | BF46: =IF(BE46,'Google Finance Stocks'!D70) -> FALSE | BH46: =IF(BE46,'Google Finance Stocks'!E70) -> FALSE | BL46: 73 | BM46: FALSE | BN46: ='Exchange Rates'!D56 -> 0 | BP46: =IF(BM46,'Exchange Rates'!E56) -> FALSE
L47: 45 | Q47: 45 | R47: FALSE | S47: =IF(R47,'Yahoo Index'!E97,"") ->  | T47: =IF(R47,'Yahoo Index'!F97,"") ->  | X47: 53 | Y47: FALSE | Z47: =IF($F$17,'FRED Indicies'!E60) -> 0 | AB47: =IF($F$17,'FRED Indicies'!D60) -> 0 | AF47: 58 | AG47: FALSE | AH47: =IF(AG47,'Google Index'!E74) -> FALSE | AJ47: =IF(AF47,'Google Index'!F74) -> 0 | AN47: 58 | AO47: FALSE | AP47: =IF(AO47,'Commodity Prices'!C60) -> FALSE | AR47: =IF(AO47,'Commodity Prices'!D60) -> FALSE | AV47: 64 | AW47: FALSE | AX47: =IF(AW47,'Yahoo Stocks'!D74) -> FALSE | AZ47: =IF(AW47,'Yahoo Stocks'!E74) -> FALSE | BD47: 74 | BE47: FALSE | BF47: =IF(BE47,'Google Finance Stocks'!D71) -> FALSE | BH47: =IF(BE47,'Google Finance Stocks'!E71) -> FALSE | BL47: 74 | BM47: FALSE | BN47: ='Exchange Rates'!D57 -> 0 | BP47: =IF(BM47,'Exchange Rates'!E57) -> FALSE
L48: 46 | Q48: 46 | R48: FALSE | S48: =IF(R48,'Yahoo Index'!E98,"") ->  | T48: =IF(R48,'Yahoo Index'!F98,"") ->  | X48: 54 | Y48: FALSE | Z48: =IF($F$17,'FRED Indicies'!E61) -> 0 | AB48: =IF($F$17,'FRED Indicies'!D61) -> 0 | AF48: 59 | AG48: FALSE | AH48: =IF(AG48,'Google Index'!E75) -> FALSE | AJ48: =IF(AF48,'Google Index'!F75) -> 0 | AN48: 59 | AO48: FALSE | AP48: =IF(AO48,'Commodity Prices'!C61) -> FALSE | AR48: =IF(AO48,'Commodity Prices'!D61) -> FALSE | AV48: 65 | AW48: FALSE | AX48: =IF(AW48,'Yahoo Stocks'!D75) -> FALSE | AZ48: =IF(AW48,'Yahoo Stocks'!E75) -> FALSE | BD48: 75 | BE48: FALSE | BF48: =IF(BE48,'Google Finance Stocks'!D72) -> FALSE | BH48: =IF(BE48,'Google Finance Stocks'!E72) -> FALSE | BL48: 75 | BM48: FALSE | BN48: ='Exchange Rates'!D58 -> 0 | BP48: =IF(BM48,'Exchange Rates'!E58) -> FALSE
L49: 47 | Q49: 47 | R49: FALSE | S49: =IF(R49,'Yahoo Index'!E99,"") ->  | T49: =IF(R49,'Yahoo Index'!F99,"") ->  | X49: 55 | Y49: FALSE | Z49: =IF($F$17,'FRED Indicies'!E62) -> 0 | AB49: =IF($F$17,'FRED Indicies'!D62) -> 0 | AF49: 60 | AG49: FALSE | AH49: =IF(AG49,'Google Index'!E76) -> FALSE | AJ49: =IF(AF49,'Google Index'!F76) -> 0 | AN49: 60 | AO49: FALSE | AP49: =IF(AO49,'Commodity Prices'!C62) -> FALSE | AR49: =IF(AO49,'Commodity Prices'!D62) -> FALSE | AV49: 66 | AW49: FALSE | AX49: =IF(AW49,'Yahoo Stocks'!D76) -> FALSE | AZ49: =IF(AW49,'Yahoo Stocks'!E76) -> FALSE | BD49: 76 | BE49: FALSE | BF49: =IF(BE49,'Google Finance Stocks'!D73) -> FALSE | BH49: =IF(BE49,'Google Finance Stocks'!E73) -> FALSE | BL49: 76 | BM49: FALSE | BN49: ='Exchange Rates'!D59 -> 0 | BP49: =IF(BM49,'Exchange Rates'!E59) -> FALSE
L50: 48 | Q50: 48 | R50: FALSE | S50: =IF(R50,'Yahoo Index'!E100,"") ->  | T50: =IF(R50,'Yahoo Index'!F100,"") ->  | X50: 56 | Y50: FALSE | Z50: =IF($F$17,'FRED Indicies'!E63) -> 0 | AB50: =IF($F$17,'FRED Indicies'!D63) -> 0 | AF50: 61 | AG50: FALSE | AH50: =IF(AG50,'Google Index'!E77) -> FALSE | AJ50: =IF(AF50,'Google Index'!F77) -> 0 | AN50: 61 | AO50: FALSE | AP50: =IF(AO50,'Commodity Prices'!C63) -> FALSE | AR50: =IF(AO50,'Commodity Prices'!D63) -> FALSE | AV50: 67 | AW50: FALSE | AX50: =IF(AW50,'Yahoo Stocks'!D77) -> FALSE | AZ50: =IF(AW50,'Yahoo Stocks'!E77) -> FALSE | BD50: 77 | BE50: FALSE | BF50: =IF(BE50,'Google Finance Stocks'!D74) -> FALSE | BH50: =IF(BE50,'Google Finance Stocks'!E74) -> FALSE | BL50: 77 | BM50: FALSE | BN50: ='Exchange Rates'!D60 -> 0 | BP50: =IF(BM50,'Exchange Rates'!E60) -> FALSE
L51: 49 | Q51: 49 | R51: FALSE | S51: =IF(R51,'Yahoo Index'!E101,"") ->  | T51: =IF(R51,'Yahoo Index'!F101,"") ->  | X51: 57 | Y51: FALSE | Z51: =IF($F$17,'FRED Indicies'!E64) -> 0 | AB51: =IF($F$17,'FRED Indicies'!D64) -> 0 | AF51: 62 | AG51: FALSE | AH51: =IF(AG51,'Google Index'!E78) -> FALSE | AJ51: =IF(AF51,'Google Index'!F78) -> 0 | AN51: 62 | AO51: FALSE | AP51: =IF(AO51,'Commodity Prices'!C64) -> FALSE | AR51: =IF(AO51,'Commodity Prices'!D64) -> FALSE | AV51: 68 | AW51: FALSE | AX51: =IF(AW51,'Yahoo Stocks'!D78) -> FALSE | AZ51: =IF(AW51,'Yahoo Stocks'!E78) -> FALSE | BD51: 78 | BE51: FALSE | BF51: =IF(BE51,'Google Finance Stocks'!D75) -> FALSE | BH51: =IF(BE51,'Google Finance Stocks'!E75) -> FALSE | BL51: 78 | BM51: FALSE | BN51: ='Exchange Rates'!D61 -> 0 | BP51: =IF(BM51,'Exchange Rates'!E61) -> FALSE
L52: 50 | Q52: 50 | R52: FALSE | S52: =IF(R52,'Yahoo Index'!E102,"") ->  | T52: =IF(R52,'Yahoo Index'!F102,"") ->  | X52: 58 | Y52: FALSE | Z52: =IF($F$17,'FRED Indicies'!E65) -> 0 | AB52: =IF($F$17,'FRED Indicies'!D65) -> 0 | AF52: 63 | AG52: FALSE | AH52: =IF(AG52,'Google Index'!E79) -> FALSE | AJ52: =IF(AF52,'Google Index'!F79) -> 0 | AN52: 63 | AO52: FALSE | AP52: =IF(AO52,'Commodity Prices'!C65) -> FALSE | AR52: =IF(AO52,'Commodity Prices'!D65) -> FALSE | AV52: 69 | AW52: FALSE | AX52: =IF(AW52,'Yahoo Stocks'!D79) -> FALSE | AZ52: =IF(AW52,'Yahoo Stocks'!E79) -> FALSE | BD52: 79 | BE52: FALSE | BF52: =IF(BE52,'Google Finance Stocks'!D76) -> FALSE | BH52: =IF(BE52,'Google Finance Stocks'!E76) -> FALSE | BL52: 79 | BM52: FALSE | BN52: ='Exchange Rates'!D62 -> 0 | BP52: =IF(BM52,'Exchange Rates'!E62) -> FALSE
L53: 51 | M53: =S53&AA53&AI53&AQ53&AY53&BG53&BO53 ->  | N53: =T53&AC53&AK53&AS53&BA53&BI53&BQ53 ->  | O53: =U53&AD53&AL53&AT53&BB53&BJ53&BR53 ->  | P53: =V53&AE53&AM53&AU53&BC53&BK53&BS53 ->  | Q53: 51 | R53: =IF(AND($F$3,Q53<=$H$3),Q53) -> FALSE | S53: =IF(R53,'Yahoo Index'!E103,"") ->  | T53: =IF(R53,'Yahoo Index'!F103,"") ->  | U53: =IF(R53,$I$3,"") ->  | V53: =IF(R53,$J$3,"") ->  | X53: 59 | Y53: FALSE | Z53: =IF($F$17,'FRED Indicies'!E66) -> 0 | AA53: =IFERROR(INDEX(Z:Z,MATCH(L53,Y:Y,0)),"") ->  | AB53: =IF($F$17,'FRED Indicies'!D66) -> 0 | AC53: =IFERROR(INDEX(AB:AB,MATCH(L53,Y:Y,0)),"") ->  | AF53: 64 | AG53: FALSE | AH53: =IF(AG53,'Google Index'!E80) -> FALSE | AI53: =IFERROR(INDEX(AH:AH,MATCH(Q53,AG:AG,0)),"") ->  | AJ53: =IF(AF53,'Google Index'!F80) -> 0 | AK53: =IFERROR(INDEX(AJ:AJ,MATCH(Q53,AG:AG,0)),"") ->  | AN53: 64 | AO53: FALSE | AP53: =IF(AO53,'Commodity Prices'!C66) -> FALSE | AQ53: =IFERROR(INDEX(AP:AP,MATCH(L53,AO:AO,0)),"") ->  | AR53: =IF(AO53,'Commodity Prices'!D66) -> FALSE | AS53: =IFERROR(INDEX(AR:AR,MATCH(L53,AO:AO,0)),"") ->  | AV53: 70 | AW53: FALSE | AX53: =IF(AW53,'Yahoo Stocks'!D80) -> FALSE | AZ53: =IF(AW53,'Yahoo Stocks'!E80) -> FALSE | BD53: 80 | BE53: FALSE | BF53: =IF(BE53,'Google Finance Stocks'!D77) -> FALSE | BG53: =IFERROR(INDEX(BF:BF,MATCH(Q53,BE:BE,0)),"") ->  | BH53: =IF(BE53,'Google Finance Stocks'!E77) -> FALSE | BI53: =IFERROR(INDEX(BH:BH,MATCH(Q53,BE:BE,0)),"") ->  | BL53: 80 | BM53: FALSE | BN53: ='Exchange Rates'!D63 -> 0 | BO53: =IFERROR(INDEX(BN:BN,MATCH(L53,BM:BM,0)),"") ->  | BP53: =IF(BM53,'Exchange Rates'!E63) -> FALSE | BQ53: =IFERROR(INDEX(BP:BP,MATCH(L53,BM:BM,0)),"") -> 
L54: 52 | Q54: 52 | R54: FALSE | S54: =IF(R54,'Yahoo Index'!E104,"") ->  | T54: =IF(R54,'Yahoo Index'!F104,"") ->  | X54: 60 | Y54: FALSE | Z54: =IF($F$17,'FRED Indicies'!E67) -> 0 | AB54: =IF($F$17,'FRED Indicies'!D67) -> 0 | AF54: 65 | AG54: FALSE | AH54: =IF(AG54,'Google Index'!E81) -> FALSE | AJ54: =IF(AF54,'Google Index'!F81) -> 0 | AN54: 65 | AO54: FALSE | AP54: =IF(AO54,'Commodity Prices'!C67) -> FALSE | AR54: =IF(AO54,'Commodity Prices'!D67) -> FALSE | AV54: 71 | AW54: FALSE | AX54: =IF(AW54,'Yahoo Stocks'!D81) -> FALSE | AZ54: =IF(AW54,'Yahoo Stocks'!E81) -> FALSE | BD54: 81 | BE54: FALSE | BF54: =IF(BE54,'Google Finance Stocks'!D78) -> FALSE | BH54: =IF(BE54,'Google Finance Stocks'!E78) -> FALSE | BL54: 81 | BM54: FALSE | BN54: ='Exchange Rates'!D64 -> 0 | BP54: =IF(BM54,'Exchange Rates'!E64) -> FALSE
L55: 53 | Q55: 53 | R55: FALSE | S55: =IF(R55,'Yahoo Index'!E105,"") ->  | T55: =IF(R55,'Yahoo Index'!F105,"") ->  | X55: 61 | Y55: FALSE | Z55: =IF($F$17,'FRED Indicies'!E68) -> 0 | AB55: =IF($F$17,'FRED Indicies'!D68) -> 0 | AF55: 66 | AG55: FALSE | AH55: =IF(AG55,'Google Index'!E82) -> FALSE | AJ55: =IF(AF55,'Google Index'!F82) -> 0 | AN55: 66 | AO55: FALSE | AP55: =IF(AO55,'Commodity Prices'!C68) -> FALSE | AR55: =IF(AO55,'Commodity Prices'!D68) -> FALSE | AV55: 72 | AW55: FALSE | AX55: =IF(AW55,'Yahoo Stocks'!D82) -> FALSE | AZ55: =IF(AW55,'Yahoo Stocks'!E82) -> FALSE | BD55: 82 | BE55: FALSE | BF55: =IF(BE55,'Google Finance Stocks'!D79) -> FALSE | BH55: =IF(BE55,'Google Finance Stocks'!E79) -> FALSE | BL55: 82 | BM55: FALSE | BN55: ='Exchange Rates'!D65 -> 0 | BP55: =IF(BM55,'Exchange Rates'!E65) -> FALSE
L56: 54 | Q56: 54 | R56: FALSE | S56: =IF(R56,'Yahoo Index'!E106,"") ->  | T56: =IF(R56,'Yahoo Index'!F106,"") ->  | X56: 62 | Y56: FALSE | Z56: =IF($F$17,'FRED Indicies'!E69) -> 0 | AB56: =IF($F$17,'FRED Indicies'!D69) -> 0 | AF56: 67 | AG56: FALSE | AH56: =IF(AG56,'Google Index'!E83) -> FALSE | AJ56: =IF(AF56,'Google Index'!F83) -> 0 | AN56: 67 | AO56: FALSE | AP56: =IF(AO56,'Commodity Prices'!C69) -> FALSE | AR56: =IF(AO56,'Commodity Prices'!D69) -> FALSE | AV56: 73 | AW56: FALSE | AX56: =IF(AW56,'Yahoo Stocks'!D83) -> FALSE | AZ56: =IF(AW56,'Yahoo Stocks'!E83) -> FALSE | BD56: 83 | BE56: FALSE | BF56: =IF(BE56,'Google Finance Stocks'!D80) -> FALSE | BH56: =IF(BE56,'Google Finance Stocks'!E80) -> FALSE | BL56: 83 | BM56: FALSE | BN56: ='Exchange Rates'!D79 -> 0 | BP56: =IF(BM56,'Exchange Rates'!E79) -> FALSE
L57: 55 | Q57: 55 | R57: FALSE | S57: =IF(R57,'Yahoo Index'!E107,"") ->  | T57: =IF(R57,'Yahoo Index'!F107,"") ->  | X57: 63 | Y57: FALSE | Z57: =IF($F$17,'FRED Indicies'!E70) -> 0 | AB57: =IF($F$17,'FRED Indicies'!D70) -> 0 | AF57: 68 | AG57: FALSE | AH57: =IF(AG57,'Google Index'!E84) -> FALSE | AJ57: =IF(AF57,'Google Index'!F84) -> 0 | AN57: 68 | AO57: FALSE | AP57: =IF(AO57,'Commodity Prices'!C70) -> FALSE | AR57: =IF(AO57,'Commodity Prices'!D70) -> FALSE | AV57: 74 | AW57: FALSE | AX57: =IF(AW57,'Yahoo Stocks'!D84) -> FALSE | AZ57: =IF(AW57,'Yahoo Stocks'!E84) -> FALSE | BD57: 84 | BE57: FALSE | BF57: =IF(BE57,'Google Finance Stocks'!D81) -> FALSE | BH57: =IF(BE57,'Google Finance Stocks'!E81) -> FALSE | BL57: 84 | BM57: FALSE | BN57: ='Exchange Rates'!D80 -> 0 | BP57: =IF(BM57,'Exchange Rates'!E80) -> FALSE
L58: 56 | Q58: 56 | R58: FALSE | S58: =IF(R58,'Yahoo Index'!E108,"") ->  | T58: =IF(R58,'Yahoo Index'!F108,"") ->  | X58: 64 | Y58: FALSE | Z58: =IF($F$17,'FRED Indicies'!E71) -> 0 | AB58: =IF($F$17,'FRED Indicies'!D71) -> 0 | AF58: 69 | AG58: FALSE | AH58: =IF(AG58,'Google Index'!E85) -> FALSE | AJ58: =IF(AF58,'Google Index'!F85) -> 0 | AN58: 69 | AO58: FALSE | AP58: =IF(AO58,'Commodity Prices'!C71) -> FALSE | AR58: =IF(AO58,'Commodity Prices'!D71) -> FALSE | AV58: 75 | AW58: FALSE | AX58: =IF(AW58,'Yahoo Stocks'!D85) -> FALSE | AZ58: =IF(AW58,'Yahoo Stocks'!E85) -> FALSE | BD58: 85 | BE58: FALSE | BF58: =IF(BE58,'Google Finance Stocks'!D82) -> FALSE | BH58: =IF(BE58,'Google Finance Stocks'!E82) -> FALSE | BL58: 85 | BM58: FALSE | BN58: ='Exchange Rates'!D81 -> 0 | BP58: =IF(BM58,'Exchange Rates'!E81) -> FALSE
L59: 57 | Q59: 57 | R59: FALSE | S59: =IF(R59,'Yahoo Index'!E109,"") ->  | T59: =IF(R59,'Yahoo Index'!F109,"") ->  | X59: 65 | Y59: FALSE | Z59: =IF($F$17,'FRED Indicies'!E72) -> 0 | AB59: =IF($F$17,'FRED Indicies'!D72) -> 0 | AF59: 70 | AG59: FALSE | AH59: =IF(AG59,'Google Index'!E86) -> FALSE | AJ59: =IF(AF59,'Google Index'!F86) -> 0 | AN59: 70 | AO59: FALSE | AP59: =IF(AO59,'Commodity Prices'!C72) -> FALSE | AR59: =IF(AO59,'Commodity Prices'!D72) -> FALSE | AV59: 76 | AW59: FALSE | AX59: =IF(AW59,'Yahoo Stocks'!D86) -> FALSE | AZ59: =IF(AW59,'Yahoo Stocks'!E86) -> FALSE | BD59: 86 | BE59: FALSE | BF59: =IF(BE59,'Google Finance Stocks'!D83) -> FALSE | BH59: =IF(BE59,'Google Finance Stocks'!E83) -> FALSE | BL59: 86 | BM59: FALSE | BN59: ='Exchange Rates'!D82 -> 0 | BP59: =IF(BM59,'Exchange Rates'!E82) -> FALSE
L60: 58 | Q60: 58 | R60: FALSE | S60: =IF(R60,'Yahoo Index'!E110,"") ->  | T60: =IF(R60,'Yahoo Index'!F110,"") ->  | X60: 66 | Y60: FALSE | Z60: =IF($F$17,'FRED Indicies'!E73) -> 0 | AB60: =IF($F$17,'FRED Indicies'!D73) -> 0 | AF60: 71 | AG60: FALSE | AH60: =IF(AG60,'Google Index'!E87) -> FALSE | AJ60: =IF(AF60,'Google Index'!F87) -> 0 | AN60: 71 | AO60: FALSE | AP60: =IF(AO60,'Commodity Prices'!C73) -> FALSE | AR60: =IF(AO60,'Commodity Prices'!D73) -> FALSE | AV60: 77 | AW60: FALSE | AX60: =IF(AW60,'Yahoo Stocks'!D87) -> FALSE | AZ60: =IF(AW60,'Yahoo Stocks'!E87) -> FALSE | BD60: 87 | BE60: FALSE | BF60: =IF(BE60,'Google Finance Stocks'!D84) -> FALSE | BH60: =IF(BE60,'Google Finance Stocks'!E84) -> FALSE | BL60: 87 | BM60: FALSE | BN60: ='Exchange Rates'!D83 -> 0 | BP60: =IF(BM60,'Exchange Rates'!E83) -> FALSE
L61: 59 | Q61: 59 | R61: FALSE | S61: =IF(R61,'Yahoo Index'!E111,"") ->  | T61: =IF(R61,'Yahoo Index'!F111,"") ->  | X61: 67 | Y61: FALSE | Z61: =IF($F$17,'FRED Indicies'!E74) -> 0 | AB61: =IF($F$17,'FRED Indicies'!D74) -> 0 | AF61: 72 | AG61: FALSE | AH61: =IF(AG61,'Google Index'!E88) -> FALSE | AJ61: =IF(AF61,'Google Index'!F88) -> 0 | AN61: 72 | AO61: FALSE | AP61: =IF(AO61,'Commodity Prices'!C74) -> FALSE | AR61: =IF(AO61,'Commodity Prices'!D74) -> FALSE | AV61: 78 | AW61: FALSE | AX61: =IF(AW61,'Yahoo Stocks'!D88) -> FALSE | AZ61: =IF(AW61,'Yahoo Stocks'!E88) -> FALSE | BD61: 88 | BE61: FALSE | BF61: =IF(BE61,'Google Finance Stocks'!D85) -> FALSE | BH61: =IF(BE61,'Google Finance Stocks'!E85) -> FALSE | BL61: 88 | BM61: FALSE | BN61: ='Exchange Rates'!D84 -> 0 | BP61: =IF(BM61,'Exchange Rates'!E84) -> FALSE
L62: 60 | Q62: 60 | R62: FALSE | S62: =IF(R62,'Yahoo Index'!E112,"") ->  | T62: =IF(R62,'Yahoo Index'!F112,"") ->  | X62: 68 | Y62: FALSE | Z62: =IF($F$17,'FRED Indicies'!E75) -> 0 | AB62: =IF($F$17,'FRED Indicies'!D75) -> 0 | AF62: 73 | AG62: FALSE | AH62: =IF(AG62,'Google Index'!E89) -> FALSE | AJ62: =IF(AF62,'Google Index'!F89) -> 0 | AN62: 73 | AO62: FALSE | AP62: =IF(AO62,'Commodity Prices'!C75) -> FALSE | AR62: =IF(AO62,'Commodity Prices'!D75) -> FALSE | AV62: 79 | AW62: FALSE | AX62: =IF(AW62,'Yahoo Stocks'!D89) -> FALSE | AZ62: =IF(AW62,'Yahoo Stocks'!E89) -> FALSE | BD62: 89 | BE62: FALSE | BF62: =IF(BE62,'Google Finance Stocks'!D86) -> FALSE | BH62: =IF(BE62,'Google Finance Stocks'!E86) -> FALSE | BL62: 89 | BM62: FALSE | BN62: ='Exchange Rates'!D85 -> 0 | BP62: =IF(BM62,'Exchange Rates'!E85) -> FALSE
L63: 61 | Q63: 61 | R63: FALSE | S63: =IF(R63,'Yahoo Index'!E113,"") ->  | T63: =IF(R63,'Yahoo Index'!F113,"") ->  | X63: 69 | Y63: FALSE | Z63: =IF($F$17,'FRED Indicies'!E76) -> 0 | AB63: =IF($F$17,'FRED Indicies'!D76) -> 0 | AF63: 74 | AG63: FALSE | AH63: =IF(AG63,'Google Index'!E90) -> FALSE | AJ63: =IF(AF63,'Google Index'!F90) -> 0 | AN63: 74 | AO63: FALSE | AP63: =IF(AO63,'Commodity Prices'!C76) -> FALSE | AR63: =IF(AO63,'Commodity Prices'!D76) -> FALSE | AV63: 80 | AW63: FALSE | AX63: =IF(AW63,'Yahoo Stocks'!D90) -> FALSE | AZ63: =IF(AW63,'Yahoo Stocks'!E90) -> FALSE | BD63: 90 | BE63: FALSE | BF63: =IF(BE63,'Google Finance Stocks'!D87) -> FALSE | BH63: =IF(BE63,'Google Finance Stocks'!E87) -> FALSE | BL63: 90 | BM63: FALSE | BN63: ='Exchange Rates'!D86 -> 0 | BP63: =IF(BM63,'Exchange Rates'!E86) -> FALSE
L64: 62 | Q64: 62 | R64: FALSE | S64: =IF(R64,'Yahoo Index'!E114,"") ->  | T64: =IF(R64,'Yahoo Index'!F114,"") ->  | X64: 70 | Y64: FALSE | Z64: =IF($F$17,'FRED Indicies'!E77) -> 0 | AB64: =IF($F$17,'FRED Indicies'!D77) -> 0 | AF64: 75 | AG64: FALSE | AH64: =IF(AG64,'Google Index'!E91) -> FALSE | AJ64: =IF(AF64,'Google Index'!F91) -> 0 | AN64: 75 | AO64: FALSE | AP64: =IF(AO64,'Commodity Prices'!C77) -> FALSE | AR64: =IF(AO64,'Commodity Prices'!D77) -> FALSE | AV64: 81 | AW64: FALSE | AX64: =IF(AW64,'Yahoo Stocks'!D91) -> FALSE | AZ64: =IF(AW64,'Yahoo Stocks'!E91) -> FALSE | BD64: 91 | BE64: FALSE | BF64: =IF(BE64,'Google Finance Stocks'!D88) -> FALSE | BH64: =IF(BE64,'Google Finance Stocks'!E88) -> FALSE | BL64: 91 | BM64: FALSE | BN64: ='Exchange Rates'!D87 -> 0 | BP64: =IF(BM64,'Exchange Rates'!E87) -> FALSE
L65: 63 | Q65: 63 | R65: FALSE | S65: =IF(R65,'Yahoo Index'!E115,"") ->  | T65: =IF(R65,'Yahoo Index'!F115,"") ->  | X65: 71 | Y65: FALSE | Z65: =IF($F$17,'FRED Indicies'!E78) -> 0 | AB65: =IF($F$17,'FRED Indicies'!D78) -> 0 | AF65: 76 | AG65: FALSE | AH65: =IF(AG65,'Google Index'!E92) -> FALSE | AJ65: =IF(AF65,'Google Index'!F92) -> 0 | AN65: 76 | AO65: FALSE | AP65: =IF(AO65,'Commodity Prices'!C78) -> FALSE | AR65: =IF(AO65,'Commodity Prices'!D78) -> FALSE | AV65: 82 | AW65: FALSE | AX65: =IF(AW65,'Yahoo Stocks'!D92) -> FALSE | AZ65: =IF(AW65,'Yahoo Stocks'!E92) -> FALSE | BD65: 92 | BE65: FALSE | BF65: =IF(BE65,'Google Finance Stocks'!D89) -> FALSE | BH65: =IF(BE65,'Google Finance Stocks'!E89) -> FALSE | BL65: 92 | BM65: FALSE | BN65: ='Exchange Rates'!D88 -> 0 | BP65: =IF(BM65,'Exchange Rates'!E88) -> FALSE
L66: 64 | Q66: 64 | R66: FALSE | S66: =IF(R66,'Yahoo Index'!E116,"") ->  | T66: =IF(R66,'Yahoo Index'!F116,"") ->  | X66: 72 | Y66: FALSE | Z66: =IF($F$17,'FRED Indicies'!E79) -> 0 | AB66: =IF($F$17,'FRED Indicies'!D79) -> 0 | AF66: 77 | AG66: FALSE | AH66: =IF(AG66,'Google Index'!E93) -> FALSE | AJ66: =IF(AF66,'Google Index'!F93) -> 0 | AN66: 77 | AO66: FALSE | AP66: =IF(AO66,'Commodity Prices'!C79) -> FALSE | AR66: =IF(AO66,'Commodity Prices'!D79) -> FALSE | AV66: 83 | AW66: FALSE | AX66: =IF(AW66,'Yahoo Stocks'!D93) -> FALSE | AZ66: =IF(AW66,'Yahoo Stocks'!E93) -> FALSE | BD66: 93 | BE66: FALSE | BF66: =IF(BE66,'Google Finance Stocks'!D90) -> FALSE | BH66: =IF(BE66,'Google Finance Stocks'!E90) -> FALSE | BL66: 93 | BM66: FALSE | BN66: ='Exchange Rates'!D89 -> 0 | BP66: =IF(BM66,'Exchange Rates'!E89) -> FALSE
L67: 65 | Q67: 65 | R67: FALSE | S67: =IF(R67,'Yahoo Index'!E117,"") ->  | T67: =IF(R67,'Yahoo Index'!F117,"") ->  | X67: 73 | Y67: =IF(AND($F$17,X67<=$H$17),X67) -> FALSE | Z67: =IF($F$17,'FRED Indicies'!E80) -> 0 | AB67: =IF($F$17,'FRED Indicies'!D80) -> 0 | AD67: =IF(AA67<>"",$I$17,"") ->  | AE67: =IF(AA67<>"",$J$17,"") ->  | AF67: 78 | AG67: =IF(AND($F$20,AF67<=$H$20),AF67) -> FALSE | AH67: =IF(AG67,'Google Index'!E94) -> FALSE | AJ67: =IF(AF67,'Google Index'!F94) -> 0 | AL67: =IF(AI67<>"",$I$17,"") ->  | AM67: =IF(AK67<>"",$J$17,"") ->  | AN67: 78 | AO67: =IF(AND($F$11,AN67<=$H$11),AN67) -> FALSE | AP67: =IF(AO67,'Commodity Prices'!C80) -> FALSE | AR67: =IF(AO67,'Commodity Prices'!D80) -> FALSE | AT67: =IF(AQ67<>"",$I$11,"") ->  | AU67: =IF(AS67<>"",$J$11,"") ->  | AV67: 84 | AW67: =IF(AND($F$5,AV67<=$H$5),AV67) -> FALSE | AX67: =IF(AW67,'Yahoo Stocks'!D94) -> FALSE | AZ67: =IF(AW67,'Yahoo Stocks'!E94) -> FALSE | BB67: =IF(AY67<>"",$I$5,"") ->  | BC67: =IF(BA67<>"",$J$5,"") ->  | BD67: 94 | BE67: =IF(AND($F$14,BD67<=$H$14),BD67) -> FALSE | BF67: =IF(BE67,'Google Finance Stocks'!D91) -> FALSE | BH67: =IF(BE67,'Google Finance Stocks'!E91) -> FALSE | BJ67: =IF(BI67<>"",$I$14,"") ->  | BK67: =IF(BI67<>"",$J$14,"") ->  | BL67: 94 | BM67: =IF(AND($F$8,BL67<=$H$8),BL67) -> FALSE | BN67: ='Exchange Rates'!D90 -> 0 | BP67: =IF(BM67,'Exchange Rates'!E90) -> FALSE | BR67: =IF(BQ67<>"",$I$8,"") ->  | BS67: =IF(BQ67<>"",$J$8,"") -> 
L68: 66 | Q68: 66 | R68: FALSE | S68: =IF(R68,'Yahoo Index'!E118,"") ->  | T68: =IF(R68,'Yahoo Index'!F118,"") ->  | X68: 74 | Y68: FALSE | Z68: =IF($F$17,'FRED Indicies'!E81) -> 0 | AB68: =IF($F$17,'FRED Indicies'!D81) -> 0 | AF68: 79 | AG68: FALSE | AH68: =IF(AG68,'Google Index'!E95) -> FALSE | AJ68: =IF(AF68,'Google Index'!F95) -> 0 | AN68: 79 | AO68: FALSE | AP68: =IF(AO68,'Commodity Prices'!C81) -> FALSE | AR68: =IF(AO68,'Commodity Prices'!D81) -> FALSE | AV68: 85 | AW68: FALSE | AX68: =IF(AW68,'Yahoo Stocks'!D95) -> FALSE | AZ68: =IF(AW68,'Yahoo Stocks'!E95) -> FALSE | BD68: 95 | BE68: FALSE | BF68: =IF(BE68,'Google Finance Stocks'!D92) -> FALSE | BH68: =IF(BE68,'Google Finance Stocks'!E92) -> FALSE | BL68: 95 | BM68: FALSE | BN68: ='Exchange Rates'!D91 -> 0 | BP68: =IF(BM68,'Exchange Rates'!E91) -> FALSE
L69: 67 | Q69: =Q68+1 -> 67 | R69: FALSE | S69: =IF(R69,'Yahoo Index'!E119,"") ->  | T69: =IF(R69,'Yahoo Index'!F119,"") ->  | X69: =X68+1 -> 75 | Y69: FALSE | Z69: =IF($F$17,'FRED Indicies'!E82) -> 0 | AB69: =IF($F$17,'FRED Indicies'!D82) -> 0 | AF69: =AF68+1 -> 80 | AG69: FALSE | AH69: =IF(AG69,'Google Index'!E96) -> FALSE | AJ69: =IF(AF69,'Google Index'!F96) -> 0 | AN69: =AN68+1 -> 80 | AO69: FALSE | AP69: =IF(AO69,'Commodity Prices'!C82) -> FALSE | AR69: =IF(AO69,'Commodity Prices'!D82) -> FALSE | AV69: =AV68+1 -> 86 | AW69: FALSE | AX69: =IF(AW69,'Yahoo Stocks'!D96) -> FALSE | AZ69: =IF(AW69,'Yahoo Stocks'!E96) -> FALSE | BD69: =BD68+1 -> 96 | BE69: FALSE | BF69: =IF(BE69,'Google Finance Stocks'!D93) -> FALSE | BH69: =IF(BE69,'Google Finance Stocks'!E93) -> FALSE | BL69: =BL68+1 -> 96 | BM69: FALSE | BN69: ='Exchange Rates'!D92 -> 0 | BP69: =IF(BM69,'Exchange Rates'!E92) -> FALSE
L70: 68 | Q70: 68 | R70: FALSE | S70: =IF(R70,'Yahoo Index'!E120,"") ->  | T70: =IF(R70,'Yahoo Index'!F120,"") ->  | X70: 76 | Y70: FALSE | Z70: =IF($F$17,'FRED Indicies'!E83) -> 0 | AB70: =IF($F$17,'FRED Indicies'!D83) -> 0 | AF70: 81 | AG70: FALSE | AH70: =IF(AG70,'Google Index'!E97) -> FALSE | AJ70: =IF(AF70,'Google Index'!F97) -> 0 | AN70: 81 | AO70: FALSE | AP70: =IF(AO70,'Commodity Prices'!C83) -> FALSE | AR70: =IF(AO70,'Commodity Prices'!D83) -> FALSE | AV70: 87 | AW70: FALSE | AX70: =IF(AW70,'Yahoo Stocks'!D97) -> FALSE | AZ70: =IF(AW70,'Yahoo Stocks'!E97) -> FALSE | BD70: 97 | BE70: FALSE | BF70: =IF(BE70,'Google Finance Stocks'!D94) -> FALSE | BH70: =IF(BE70,'Google Finance Stocks'!E94) -> FALSE | BL70: 97 | BM70: FALSE | BN70: ='Exchange Rates'!D93 -> 0 | BP70: =IF(BM70,'Exchange Rates'!E93) -> FALSE
L71: 69 | Q71: 69 | R71: FALSE | S71: =IF(R71,'Yahoo Index'!E121,"") ->  | T71: =IF(R71,'Yahoo Index'!F121,"") ->  | X71: 77 | Y71: FALSE | Z71: =IF($F$17,'FRED Indicies'!E84) -> 0 | AB71: =IF($F$17,'FRED Indicies'!D84) -> 0 | AF71: 82 | AG71: FALSE | AH71: =IF(AG71,'Google Index'!E98) -> FALSE | AJ71: =IF(AF71,'Google Index'!F98) -> 0 | AN71: 82 | AO71: FALSE | AP71: =IF(AO71,'Commodity Prices'!C84) -> FALSE | AR71: =IF(AO71,'Commodity Prices'!D84) -> FALSE | AV71: 88 | AW71: FALSE | AX71: =IF(AW71,'Yahoo Stocks'!D98) -> FALSE | AZ71: =IF(AW71,'Yahoo Stocks'!E98) -> FALSE | BD71: 98 | BE71: FALSE | BF71: =IF(BE71,'Google Finance Stocks'!D95) -> FALSE | BH71: =IF(BE71,'Google Finance Stocks'!E95) -> FALSE | BL71: 98 | BM71: FALSE | BN71: ='Exchange Rates'!D94 -> 0 | BP71: =IF(BM71,'Exchange Rates'!E94) -> FALSE
L72: 70 | Q72: 70 | R72: FALSE | S72: =IF(R72,'Yahoo Index'!E122,"") ->  | T72: =IF(R72,'Yahoo Index'!F122,"") ->  | X72: 78 | Y72: FALSE | Z72: =IF($F$17,'FRED Indicies'!E85) -> 0 | AB72: =IF($F$17,'FRED Indicies'!D85) -> 0 | AF72: 83 | AG72: FALSE | AH72: =IF(AG72,'Google Index'!E99) -> FALSE | AJ72: =IF(AF72,'Google Index'!F99) -> 0 | AN72: 83 | AO72: FALSE | AP72: =IF(AO72,'Commodity Prices'!C85) -> FALSE | AR72: =IF(AO72,'Commodity Prices'!D85) -> FALSE | AV72: 89 | AW72: FALSE | AX72: =IF(AW72,'Yahoo Stocks'!D99) -> FALSE | AZ72: =IF(AW72,'Yahoo Stocks'!E99) -> FALSE | BD72: 99 | BE72: FALSE | BF72: =IF(BE72,'Google Finance Stocks'!D96) -> FALSE | BH72: =IF(BE72,'Google Finance Stocks'!E96) -> FALSE | BL72: 99 | BM72: FALSE | BN72: ='Exchange Rates'!D95 -> 0 | BP72: =IF(BM72,'Exchange Rates'!E95) -> FALSE
L73: 71 | Q73: 71 | R73: FALSE | S73: =IF(R73,'Yahoo Index'!E123,"") ->  | T73: =IF(R73,'Yahoo Index'!F123,"") ->  | X73: 79 | Y73: FALSE | Z73: =IF($F$17,'FRED Indicies'!E86) -> 0 | AB73: =IF($F$17,'FRED Indicies'!D86) -> 0 | AF73: 84 | AG73: FALSE | AH73: =IF(AG73,'Google Index'!E100) -> FALSE | AJ73: =IF(AF73,'Google Index'!F100) -> 0 | AN73: 84 | AO73: FALSE | AP73: =IF(AO73,'Commodity Prices'!C86) -> FALSE | AR73: =IF(AO73,'Commodity Prices'!D86) -> FALSE | AV73: 90 | AW73: FALSE | AX73: =IF(AW73,'Yahoo Stocks'!D100) -> FALSE | AZ73: =IF(AW73,'Yahoo Stocks'!E100) -> FALSE | BD73: 100 | BE73: FALSE | BF73: =IF(BE73,'Google Finance Stocks'!D97) -> FALSE | BH73: =IF(BE73,'Google Finance Stocks'!E97) -> FALSE | BL73: 100 | BM73: FALSE | BN73: ='Exchange Rates'!D96 -> 0 | BP73: =IF(BM73,'Exchange Rates'!E96) -> FALSE
L74: 72 | Q74: 72 | R74: FALSE | S74: =IF(R74,'Yahoo Index'!E124,"") ->  | T74: =IF(R74,'Yahoo Index'!F124,"") ->  | X74: 80 | Y74: FALSE | Z74: =IF($F$17,'FRED Indicies'!E87) -> 0 | AB74: =IF($F$17,'FRED Indicies'!D87) -> 0 | AF74: 85 | AG74: FALSE | AH74: =IF(AG74,'Google Index'!E101) -> FALSE | AJ74: =IF(AF74,'Google Index'!F101) -> 0 | AN74: 85 | AO74: FALSE | AP74: =IF(AO74,'Commodity Prices'!C87) -> FALSE | AR74: =IF(AO74,'Commodity Prices'!D87) -> FALSE | AV74: 91 | AW74: FALSE | AX74: =IF(AW74,'Yahoo Stocks'!D101) -> FALSE | AZ74: =IF(AW74,'Yahoo Stocks'!E101) -> FALSE | BD74: 101 | BE74: FALSE | BF74: =IF(BE74,'Google Finance Stocks'!D98) -> FALSE | BH74: =IF(BE74,'Google Finance Stocks'!E98) -> FALSE | BL74: 101 | BM74: FALSE | BN74: ='Exchange Rates'!D97 -> 0 | BP74: =IF(BM74,'Exchange Rates'!E97) -> FALSE
L75: 73 | Q75: 73 | R75: FALSE | S75: =IF(R75,'Yahoo Index'!E125,"") ->  | T75: =IF(R75,'Yahoo Index'!F125,"") ->  | X75: 81 | Y75: FALSE | Z75: =IF($F$17,'FRED Indicies'!E88) -> 0 | AB75: =IF($F$17,'FRED Indicies'!D88) -> 0 | AF75: 86 | AG75: FALSE | AH75: =IF(AG75,'Google Index'!E102) -> FALSE | AJ75: =IF(AF75,'Google Index'!F102) -> 0 | AN75: 86 | AO75: FALSE | AP75: =IF(AO75,'Commodity Prices'!C88) -> FALSE | AR75: =IF(AO75,'Commodity Prices'!D88) -> FALSE | AV75: 92 | AW75: FALSE | AX75: =IF(AW75,'Yahoo Stocks'!D102) -> FALSE | AZ75: =IF(AW75,'Yahoo Stocks'!E102) -> FALSE | BD75: 102 | BE75: FALSE | BF75: =IF(BE75,'Google Finance Stocks'!D99) -> FALSE | BH75: =IF(BE75,'Google Finance Stocks'!E99) -> FALSE | BL75: 102 | BM75: FALSE | BN75: ='Exchange Rates'!D98 -> 0 | BP75: =IF(BM75,'Exchange Rates'!E98) -> FALSE
L76: 74 | Q76: 74 | R76: FALSE | S76: =IF(R76,'Yahoo Index'!E126,"") ->  | T76: =IF(R76,'Yahoo Index'!F126,"") ->  | X76: 82 | Y76: FALSE | Z76: =IF($F$17,'FRED Indicies'!E89) -> 0 | AB76: =IF($F$17,'FRED Indicies'!D89) -> 0 | AF76: 87 | AG76: FALSE | AH76: =IF(AG76,'Google Index'!E103) -> FALSE | AJ76: =IF(AF76,'Google Index'!F103) -> 0 | AN76: 87 | AO76: FALSE | AP76: =IF(AO76,'Commodity Prices'!C89) -> FALSE | AR76: =IF(AO76,'Commodity Prices'!D89) -> FALSE | AV76: 93 | AW76: FALSE | AX76: =IF(AW76,'Yahoo Stocks'!D103) -> FALSE | AZ76: =IF(AW76,'Yahoo Stocks'!E103) -> FALSE | BD76: 103 | BE76: FALSE | BF76: =IF(BE76,'Google Finance Stocks'!D100) -> FALSE | BH76: =IF(BE76,'Google Finance Stocks'!E100) -> FALSE | BL76: 103 | BM76: FALSE | BN76: ='Exchange Rates'!D99 -> 0 | BP76: =IF(BM76,'Exchange Rates'!E99) -> FALSE
L77: 75 | Q77: 75 | R77: FALSE | S77: =IF(R77,'Yahoo Index'!E127,"") ->  | T77: =IF(R77,'Yahoo Index'!F127,"") ->  | X77: 83 | Y77: FALSE | Z77: =IF($F$17,'FRED Indicies'!E90) -> 0 | AB77: =IF($F$17,'FRED Indicies'!D90) -> 0 | AF77: 88 | AG77: FALSE | AH77: =IF(AG77,'Google Index'!E104) -> FALSE | AJ77: =IF(AF77,'Google Index'!F104) -> 0 | AN77: 88 | AO77: FALSE | AP77: =IF(AO77,'Commodity Prices'!C90) -> FALSE | AR77: =IF(AO77,'Commodity Prices'!D90) -> FALSE | AV77: 94 | AW77: FALSE | AX77: =IF(AW77,'Yahoo Stocks'!D104) -> FALSE | AZ77: =IF(AW77,'Yahoo Stocks'!E104) -> FALSE | BD77: 104 | BE77: FALSE | BF77: =IF(BE77,'Google Finance Stocks'!D101) -> FALSE | BH77: =IF(BE77,'Google Finance Stocks'!E101) -> FALSE | BL77: 104 | BM77: FALSE | BN77: ='Exchange Rates'!D100 -> 0 | BP77: =IF(BM77,'Exchange Rates'!E100) -> FALSE
L78: 76 | Q78: 76 | R78: FALSE | S78: =IF(R78,'Yahoo Index'!E128,"") ->  | T78: =IF(R78,'Yahoo Index'!F128,"") ->  | X78: 84 | Y78: FALSE | Z78: =IF($F$17,'FRED Indicies'!E91) -> 0 | AB78: =IF($F$17,'FRED Indicies'!D91) -> 0 | AF78: 89 | AG78: FALSE | AH78: =IF(AG78,'Google Index'!E105) -> FALSE | AJ78: =IF(AF78,'Google Index'!F105) -> 0 | AN78: 89 | AO78: FALSE | AP78: =IF(AO78,'Commodity Prices'!C91) -> FALSE | AR78: =IF(AO78,'Commodity Prices'!D91) -> FALSE | AV78: 95 | AW78: FALSE | AX78: =IF(AW78,'Yahoo Stocks'!D105) -> FALSE | AZ78: =IF(AW78,'Yahoo Stocks'!E105) -> FALSE | BD78: 105 | BE78: FALSE | BF78: =IF(BE78,'Google Finance Stocks'!D102) -> FALSE | BH78: =IF(BE78,'Google Finance Stocks'!E102) -> FALSE | BL78: 105 | BM78: FALSE | BN78: ='Exchange Rates'!D101 -> 0 | BP78: =IF(BM78,'Exchange Rates'!E101) -> FALSE
L79: 77 | Q79: 77 | R79: FALSE | S79: =IF(R79,'Yahoo Index'!E129,"") ->  | T79: =IF(R79,'Yahoo Index'!F129,"") ->  | X79: 85 | Y79: FALSE | Z79: =IF($F$17,'FRED Indicies'!E92) -> 0 | AB79: =IF($F$17,'FRED Indicies'!D92) -> 0 | AF79: 90 | AG79: FALSE | AH79: =IF(AG79,'Google Index'!E106) -> FALSE | AJ79: =IF(AF79,'Google Index'!F106) -> 0 | AN79: 90 | AO79: FALSE | AP79: =IF(AO79,'Commodity Prices'!C92) -> FALSE | AR79: =IF(AO79,'Commodity Prices'!D92) -> FALSE | AV79: 96 | AW79: FALSE | AX79: =IF(AW79,'Yahoo Stocks'!D106) -> FALSE | AZ79: =IF(AW79,'Yahoo Stocks'!E106) -> FALSE | BD79: 106 | BE79: FALSE | BF79: =IF(BE79,'Google Finance Stocks'!D103) -> FALSE | BH79: =IF(BE79,'Google Finance Stocks'!E103) -> FALSE | BL79: 106 | BM79: FALSE | BN79: ='Exchange Rates'!D102 -> 0 | BP79: =IF(BM79,'Exchange Rates'!E102) -> FALSE
L80: 78 | Q80: 78 | R80: FALSE | S80: =IF(R80,'Yahoo Index'!E130,"") ->  | T80: =IF(R80,'Yahoo Index'!F130,"") ->  | X80: 86 | Y80: FALSE | Z80: =IF($F$17,'FRED Indicies'!E93) -> 0 | AB80: =IF($F$17,'FRED Indicies'!D93) -> 0 | AF80: 91 | AG80: FALSE | AH80: =IF(AG80,'Google Index'!E107) -> FALSE | AJ80: =IF(AF80,'Google Index'!F107) -> 0 | AN80: 91 | AO80: FALSE | AP80: =IF(AO80,'Commodity Prices'!C93) -> FALSE | AR80: =IF(AO80,'Commodity Prices'!D93) -> FALSE | AV80: 97 | AW80: FALSE | AX80: =IF(AW80,'Yahoo Stocks'!D107) -> FALSE | AZ80: =IF(AW80,'Yahoo Stocks'!E107) -> FALSE | BD80: 107 | BE80: FALSE | BF80: =IF(BE80,'Google Finance Stocks'!D104) -> FALSE | BH80: =IF(BE80,'Google Finance Stocks'!E104) -> FALSE | BL80: 107 | BM80: FALSE | BN80: ='Exchange Rates'!D103 -> 0 | BP80: =IF(BM80,'Exchange Rates'!E103) -> FALSE
L81: 79 | Q81: 79 | R81: FALSE | S81: =IF(R81,'Yahoo Index'!E131,"") ->  | T81: =IF(R81,'Yahoo Index'!F131,"") ->  | X81: 87 | Y81: FALSE | Z81: =IF($F$17,'FRED Indicies'!E94) -> 0 | AB81: =IF($F$17,'FRED Indicies'!D94) -> 0 | AF81: 92 | AG81: FALSE | AH81: =IF(AG81,'Google Index'!E108) -> FALSE | AJ81: =IF(AF81,'Google Index'!F108) -> 0 | AN81: 92 | AO81: FALSE | AP81: =IF(AO81,'Commodity Prices'!C94) -> FALSE | AR81: =IF(AO81,'Commodity Prices'!D94) -> FALSE | AV81: 98 | AW81: FALSE | AX81: =IF(AW81,'Yahoo Stocks'!D108) -> FALSE | AZ81: =IF(AW81,'Yahoo Stocks'!E108) -> FALSE | BD81: 108 | BE81: FALSE | BF81: =IF(BE81,'Google Finance Stocks'!D105) -> FALSE | BH81: =IF(BE81,'Google Finance Stocks'!E105) -> FALSE | BL81: 108 | BM81: FALSE | BN81: ='Exchange Rates'!D104 -> 0 | BP81: =IF(BM81,'Exchange Rates'!E104) -> FALSE
L82: 80 | Q82: 80 | R82: FALSE | S82: =IF(R82,'Yahoo Index'!E132,"") ->  | T82: =IF(R82,'Yahoo Index'!F132,"") ->  | X82: 88 | Y82: FALSE | Z82: =IF($F$17,'FRED Indicies'!E95) -> 0 | AB82: =IF($F$17,'FRED Indicies'!D95) -> 0 | AF82: 93 | AG82: FALSE | AH82: =IF(AG82,'Google Index'!E109) -> FALSE | AJ82: =IF(AF82,'Google Index'!F109) -> 0 | AN82: 93 | AO82: FALSE | AP82: =IF(AO82,'Commodity Prices'!C95) -> FALSE | AR82: =IF(AO82,'Commodity Prices'!D95) -> FALSE | AV82: 99 | AW82: FALSE | AX82: =IF(AW82,'Yahoo Stocks'!D109) -> FALSE | AZ82: =IF(AW82,'Yahoo Stocks'!E109) -> FALSE | BD82: 109 | BE82: FALSE | BF82: =IF(BE82,'Google Finance Stocks'!D106) -> FALSE | BH82: =IF(BE82,'Google Finance Stocks'!E106) -> FALSE | BL82: 109 | BM82: FALSE | BN82: ='Exchange Rates'!D105 -> 0 | BP82: =IF(BM82,'Exchange Rates'!E105) -> FALSE
L83: 81 | Q83: 81 | R83: FALSE | S83: =IF(R83,'Yahoo Index'!E133,"") ->  | T83: =IF(R83,'Yahoo Index'!F133,"") ->  | X83: 89 | Y83: FALSE | Z83: =IF($F$17,'FRED Indicies'!E96) -> 0 | AB83: =IF($F$17,'FRED Indicies'!D96) -> 0 | AF83: 94 | AG83: FALSE | AH83: =IF(AG83,'Google Index'!E110) -> FALSE | AJ83: =IF(AF83,'Google Index'!F110) -> 0 | AN83: 94 | AO83: FALSE | AP83: =IF(AO83,'Commodity Prices'!C96) -> FALSE | AR83: =IF(AO83,'Commodity Prices'!D96) -> FALSE | AV83: 100 | AW83: FALSE | AX83: =IF(AW83,'Yahoo Stocks'!D110) -> FALSE | AZ83: =IF(AW83,'Yahoo Stocks'!E110) -> FALSE | BD83: 110 | BE83: FALSE | BF83: =IF(BE83,'Google Finance Stocks'!D107) -> FALSE | BH83: =IF(BE83,'Google Finance Stocks'!E107) -> FALSE | BL83: 110 | BM83: FALSE | BN83: ='Exchange Rates'!D106 -> 0 | BP83: =IF(BM83,'Exchange Rates'!E106) -> FALSE
L84: 82 | Q84: 82 | R84: FALSE | S84: =IF(R84,'Yahoo Index'!E134,"") ->  | T84: =IF(R84,'Yahoo Index'!F134,"") ->  | X84: 90 | Y84: FALSE | Z84: =IF($F$17,'FRED Indicies'!E97) -> 0 | AB84: =IF($F$17,'FRED Indicies'!D97) -> 0 | AF84: 95 | AG84: FALSE | AH84: =IF(AG84,'Google Index'!E111) -> FALSE | AJ84: =IF(AF84,'Google Index'!F111) -> 0 | AN84: 95 | AO84: FALSE | AP84: =IF(AO84,'Commodity Prices'!C97) -> FALSE | AR84: =IF(AO84,'Commodity Prices'!D97) -> FALSE | AV84: 101 | AW84: FALSE | AX84: =IF(AW84,'Yahoo Stocks'!D111) -> FALSE | AZ84: =IF(AW84,'Yahoo Stocks'!E111) -> FALSE | BD84: 111 | BE84: FALSE | BF84: =IF(BE84,'Google Finance Stocks'!D108) -> FALSE | BH84: =IF(BE84,'Google Finance Stocks'!E108) -> FALSE | BL84: 111 | BM84: FALSE | BN84: ='Exchange Rates'!D107 -> 0 | BP84: =IF(BM84,'Exchange Rates'!E107) -> FALSE
L85: 83 | Q85: 83 | R85: FALSE | S85: =IF(R85,'Yahoo Index'!E135,"") ->  | T85: =IF(R85,'Yahoo Index'!F135,"") ->  | X85: 91 | Y85: FALSE | Z85: =IF($F$17,'FRED Indicies'!E98) -> 0 | AB85: =IF($F$17,'FRED Indicies'!D98) -> 0 | AF85: 96 | AG85: FALSE | AH85: =IF(AG85,'Google Index'!E112) -> FALSE | AJ85: =IF(AF85,'Google Index'!F112) -> 0 | AN85: 96 | AO85: FALSE | AP85: =IF(AO85,'Commodity Prices'!C98) -> FALSE | AR85: =IF(AO85,'Commodity Prices'!D98) -> FALSE | AV85: 102 | AW85: FALSE | AX85: =IF(AW85,'Yahoo Stocks'!D112) -> FALSE | AZ85: =IF(AW85,'Yahoo Stocks'!E112) -> FALSE | BD85: 112 | BE85: FALSE | BF85: =IF(BE85,'Google Finance Stocks'!D109) -> FALSE | BH85: =IF(BE85,'Google Finance Stocks'!E109) -> FALSE | BL85: 112 | BM85: FALSE | BN85: ='Exchange Rates'!D108 -> 0 | BP85: =IF(BM85,'Exchange Rates'!E108) -> FALSE
L86: 84 | Q86: 84 | R86: FALSE | S86: =IF(R86,'Yahoo Index'!E136,"") ->  | T86: =IF(R86,'Yahoo Index'!F136,"") ->  | X86: 92 | Y86: FALSE | Z86: =IF($F$17,'FRED Indicies'!E99) -> 0 | AB86: =IF($F$17,'FRED Indicies'!D99) -> 0 | AF86: 97 | AG86: FALSE | AH86: =IF(AG86,'Google Index'!E113) -> FALSE | AJ86: =IF(AF86,'Google Index'!F113) -> 0 | AN86: 97 | AO86: FALSE | AP86: =IF(AO86,'Commodity Prices'!C99) -> FALSE | AR86: =IF(AO86,'Commodity Prices'!D99) -> FALSE | AV86: 103 | AW86: FALSE | AX86: =IF(AW86,'Yahoo Stocks'!D113) -> FALSE | AZ86: =IF(AW86,'Yahoo Stocks'!E113) -> FALSE | BD86: 113 | BE86: FALSE | BF86: =IF(BE86,'Google Finance Stocks'!D110) -> FALSE | BH86: =IF(BE86,'Google Finance Stocks'!E110) -> FALSE | BL86: 113 | BM86: FALSE | BN86: ='Exchange Rates'!D109 -> 0 | BP86: =IF(BM86,'Exchange Rates'!E109) -> FALSE
L87: 85 | Q87: 85 | R87: FALSE | S87: =IF(R87,'Yahoo Index'!E137,"") ->  | T87: =IF(R87,'Yahoo Index'!F137,"") ->  | X87: 93 | Y87: FALSE | Z87: =IF($F$17,'FRED Indicies'!E100) -> 0 | AB87: =IF($F$17,'FRED Indicies'!D100) -> 0 | AF87: 98 | AG87: FALSE | AH87: =IF(AG87,'Google Index'!E114) -> FALSE | AJ87: =IF(AF87,'Google Index'!F114) -> 0 | AN87: 98 | AO87: FALSE | AP87: =IF(AO87,'Commodity Prices'!C100) -> FALSE | AR87: =IF(AO87,'Commodity Prices'!D100) -> FALSE | AV87: 104 | AW87: FALSE | AX87: =IF(AW87,'Yahoo Stocks'!D114) -> FALSE | AZ87: =IF(AW87,'Yahoo Stocks'!E114) -> FALSE | BD87: 114 | BE87: FALSE | BF87: =IF(BE87,'Google Finance Stocks'!D111) -> FALSE | BH87: =IF(BE87,'Google Finance Stocks'!E111) -> FALSE | BL87: 114 | BM87: FALSE | BN87: ='Exchange Rates'!D110 -> 0 | BP87: =IF(BM87,'Exchange Rates'!E110) -> FALSE
L88: 86 | Q88: 86 | R88: FALSE | S88: =IF(R88,'Yahoo Index'!E138,"") ->  | T88: =IF(R88,'Yahoo Index'!F138,"") ->  | X88: 94 | Y88: FALSE | Z88: =IF($F$17,'FRED Indicies'!E101) -> 0 | AB88: =IF($F$17,'FRED Indicies'!D101) -> 0 | AF88: 99 | AG88: FALSE | AH88: =IF(AG88,'Google Index'!E115) -> FALSE | AJ88: =IF(AF88,'Google Index'!F115) -> 0 | AN88: 99 | AO88: FALSE | AP88: =IF(AO88,'Commodity Prices'!C101) -> FALSE | AR88: =IF(AO88,'Commodity Prices'!D101) -> FALSE | AV88: 105 | AW88: FALSE | AX88: =IF(AW88,'Yahoo Stocks'!D115) -> FALSE | AZ88: =IF(AW88,'Yahoo Stocks'!E115) -> FALSE | BD88: 115 | BE88: FALSE | BF88: =IF(BE88,'Google Finance Stocks'!D112) -> FALSE | BH88: =IF(BE88,'Google Finance Stocks'!E112) -> FALSE | BL88: 115 | BM88: FALSE | BN88: ='Exchange Rates'!D111 -> 0 | BP88: =IF(BM88,'Exchange Rates'!E111) -> FALSE
L89: 87 | Q89: 87 | R89: FALSE | S89: =IF(R89,'Yahoo Index'!E139,"") ->  | T89: =IF(R89,'Yahoo Index'!F139,"") ->  | X89: 95 | Y89: FALSE | Z89: =IF($F$17,'FRED Indicies'!E102) -> 0 | AB89: =IF($F$17,'FRED Indicies'!D102) -> 0 | AF89: 100 | AG89: FALSE | AH89: =IF(AG89,'Google Index'!E116) -> FALSE | AJ89: =IF(AF89,'Google Index'!F116) -> 0 | AN89: 100 | AO89: FALSE | AP89: =IF(AO89,'Commodity Prices'!C102) -> FALSE | AR89: =IF(AO89,'Commodity Prices'!D102) -> FALSE | AV89: 106 | AW89: FALSE | AX89: =IF(AW89,'Yahoo Stocks'!D116) -> FALSE | AZ89: =IF(AW89,'Yahoo Stocks'!E116) -> FALSE | BD89: 116 | BE89: FALSE | BF89: =IF(BE89,'Google Finance Stocks'!D113) -> FALSE | BH89: =IF(BE89,'Google Finance Stocks'!E113) -> FALSE | BL89: 116 | BM89: FALSE | BN89: ='Exchange Rates'!D112 -> 0 | BP89: =IF(BM89,'Exchange Rates'!E112) -> FALSE
L90: 88 | Q90: 88 | R90: FALSE | S90: =IF(R90,'Yahoo Index'!E140,"") ->  | T90: =IF(R90,'Yahoo Index'!F140,"") ->  | X90: 96 | Y90: FALSE | Z90: =IF($F$17,'FRED Indicies'!E103) -> 0 | AB90: =IF($F$17,'FRED Indicies'!D103) -> 0 | AF90: 101 | AG90: FALSE | AH90: =IF(AG90,'Google Index'!E117) -> FALSE | AJ90: =IF(AF90,'Google Index'!F117) -> 0 | AN90: 101 | AO90: FALSE | AP90: =IF(AO90,'Commodity Prices'!C103) -> FALSE | AR90: =IF(AO90,'Commodity Prices'!D103) -> FALSE | AV90: 107 | AW90: FALSE | AX90: =IF(AW90,'Yahoo Stocks'!D117) -> FALSE | AZ90: =IF(AW90,'Yahoo Stocks'!E117) -> FALSE | BD90: 117 | BE90: FALSE | BF90: =IF(BE90,'Google Finance Stocks'!D114) -> FALSE | BH90: =IF(BE90,'Google Finance Stocks'!E114) -> FALSE | BL90: 117 | BM90: FALSE | BN90: ='Exchange Rates'!D113 -> 0 | BP90: =IF(BM90,'Exchange Rates'!E113) -> FALSE
L91: 89 | Q91: 89 | R91: FALSE | S91: =IF(R91,'Yahoo Index'!E141,"") ->  | T91: =IF(R91,'Yahoo Index'!F141,"") ->  | X91: 97 | Y91: FALSE | Z91: =IF($F$17,'FRED Indicies'!E104) -> 0 | AB91: =IF($F$17,'FRED Indicies'!D104) -> 0 | AF91: 102 | AG91: FALSE | AH91: =IF(AG91,'Google Index'!E118) -> FALSE | AJ91: =IF(AF91,'Google Index'!F118) -> 0 | AN91: 102 | AO91: FALSE | AP91: =IF(AO91,'Commodity Prices'!C104) -> FALSE | AR91: =IF(AO91,'Commodity Prices'!D104) -> FALSE | AV91: 108 | AW91: FALSE | AX91: =IF(AW91,'Yahoo Stocks'!D118) -> FALSE | AY91: =IFERROR(INDEX(AX:AX,MATCH(L91,AW:AW,0)),"") ->  | AZ91: =IF(AW91,'Yahoo Stocks'!E118) -> FALSE | BA91: =IFERROR(INDEX(AZ:AZ,MATCH(L91,AW:AW,0)),"") ->  | BD91: 118 | BE91: FALSE | BF91: =IF(BE91,'Google Finance Stocks'!D115) -> FALSE | BH91: =IF(BE91,'Google Finance Stocks'!E115) -> FALSE | BL91: 118 | BM91: FALSE | BN91: ='Exchange Rates'!D114 -> 0 | BP91: =IF(BM91,'Exchange Rates'!E114) -> FALSE
L92: 90 | Q92: 90 | R92: FALSE | S92: =IF(R92,'Yahoo Index'!E142,"") ->  | T92: =IF(R92,'Yahoo Index'!F142,"") ->  | X92: 98 | Y92: FALSE | Z92: =IF($F$17,'FRED Indicies'!E105) -> 0 | AB92: =IF($F$17,'FRED Indicies'!D105) -> 0 | AF92: 103 | AG92: FALSE | AH92: =IF(AG92,'Google Index'!E119) -> FALSE | AJ92: =IF(AF92,'Google Index'!F119) -> 0 | AN92: 103 | AO92: FALSE | AP92: =IF(AO92,'Commodity Prices'!C105) -> FALSE | AR92: =IF(AO92,'Commodity Prices'!D105) -> FALSE | AV92: 109 | AW92: FALSE | AX92: =IF(AW92,'Yahoo Stocks'!D119) -> FALSE | AZ92: =IF(AW92,'Yahoo Stocks'!E119) -> FALSE | BD92: 119 | BE92: FALSE | BF92: =IF(BE92,'Google Finance Stocks'!D116) -> FALSE | BH92: =IF(BE92,'Google Finance Stocks'!E116) -> FALSE | BL92: 119 | BM92: FALSE | BN92: ='Exchange Rates'!D115 -> 0 | BP92: =IF(BM92,'Exchange Rates'!E115) -> FALSE
L93: 91 | Q93: 91 | R93: FALSE | S93: =IF(R93,'Yahoo Index'!E143,"") ->  | T93: =IF(R93,'Yahoo Index'!F143,"") ->  | X93: 99 | Y93: FALSE | Z93: =IF($F$17,'FRED Indicies'!E106) -> 0 | AB93: =IF($F$17,'FRED Indicies'!D106) -> 0 | AF93: 104 | AG93: FALSE | AH93: =IF(AG93,'Google Index'!E120) -> FALSE | AJ93: =IF(AF93,'Google Index'!F120) -> 0 | AN93: 104 | AO93: FALSE | AP93: =IF(AO93,'Commodity Prices'!C106) -> FALSE | AR93: =IF(AO93,'Commodity Prices'!D106) -> FALSE | AV93: 110 | AW93: FALSE | AX93: =IF(AW93,'Yahoo Stocks'!D120) -> FALSE | AZ93: =IF(AW93,'Yahoo Stocks'!E120) -> FALSE | BD93: 120 | BE93: FALSE | BF93: =IF(BE93,'Google Finance Stocks'!D117) -> FALSE | BH93: =IF(BE93,'Google Finance Stocks'!E117) -> FALSE | BL93: 120 | BM93: FALSE | BN93: ='Exchange Rates'!D116 -> 0 | BP93: =IF(BM93,'Exchange Rates'!E116) -> FALSE
L94: 92 | Q94: 92 | R94: FALSE | S94: =IF(R94,'Yahoo Index'!E144,"") ->  | T94: =IF(R94,'Yahoo Index'!F144,"") ->  | X94: 100 | Y94: FALSE | Z94: =IF($F$17,'FRED Indicies'!E107) -> 0 | AB94: =IF($F$17,'FRED Indicies'!D107) -> 0 | AF94: 105 | AG94: FALSE | AH94: =IF(AG94,'Google Index'!E121) -> FALSE | AJ94: =IF(AF94,'Google Index'!F121) -> 0 | AN94: 105 | AO94: FALSE | AP94: =IF(AO94,'Commodity Prices'!C107) -> FALSE | AR94: =IF(AO94,'Commodity Prices'!D107) -> FALSE | AV94: 111 | AW94: FALSE | AX94: =IF(AW94,'Yahoo Stocks'!D121) -> FALSE | AZ94: =IF(AW94,'Yahoo Stocks'!E121) -> FALSE | BD94: 121 | BE94: FALSE | BF94: =IF(BE94,'Google Finance Stocks'!D118) -> FALSE | BH94: =IF(BE94,'Google Finance Stocks'!E118) -> FALSE | BL94: 121 | BM94: FALSE | BN94: ='Exchange Rates'!D117 -> 0 | BP94: =IF(BM94,'Exchange Rates'!E117) -> FALSE
L95: 93 | Q95: 93 | R95: FALSE | S95: =IF(R95,'Yahoo Index'!E145,"") ->  | T95: =IF(R95,'Yahoo Index'!F145,"") ->  | X95: 101 | Y95: FALSE | Z95: =IF($F$17,'FRED Indicies'!E108) -> 0 | AB95: =IF($F$17,'FRED Indicies'!D108) -> 0 | AF95: 106 | AG95: FALSE | AH95: =IF(AG95,'Google Index'!E122) -> FALSE | AJ95: =IF(AF95,'Google Index'!F122) -> 0 | AN95: 106 | AO95: FALSE | AP95: =IF(AO95,'Commodity Prices'!C108) -> FALSE | AR95: =IF(AO95,'Commodity Prices'!D108) -> FALSE | AV95: 112 | AW95: FALSE | AX95: =IF(AW95,'Yahoo Stocks'!D122) -> FALSE | AZ95: =IF(AW95,'Yahoo Stocks'!E122) -> FALSE | BD95: 122 | BE95: FALSE | BF95: =IF(BE95,'Google Finance Stocks'!D119) -> FALSE | BH95: =IF(BE95,'Google Finance Stocks'!E119) -> FALSE | BL95: 122 | BM95: FALSE | BN95: ='Exchange Rates'!D118 -> 0 | BP95: =IF(BM95,'Exchange Rates'!E118) -> FALSE
L96: 94 | Q96: 94 | R96: FALSE | S96: =IF(R96,'Yahoo Index'!E146,"") ->  | T96: =IF(R96,'Yahoo Index'!F146,"") ->  | X96: 102 | Y96: FALSE | Z96: =IF($F$17,'FRED Indicies'!E109) -> 0 | AB96: =IF($F$17,'FRED Indicies'!D109) -> 0 | AF96: 107 | AG96: FALSE | AH96: =IF(AG96,'Google Index'!E123) -> FALSE | AJ96: =IF(AF96,'Google Index'!F123) -> 0 | AN96: 107 | AO96: FALSE | AP96: =IF(AO96,'Commodity Prices'!C109) -> FALSE | AR96: =IF(AO96,'Commodity Prices'!D109) -> FALSE | AV96: 113 | AW96: FALSE | AX96: =IF(AW96,'Yahoo Stocks'!D123) -> FALSE | AZ96: =IF(AW96,'Yahoo Stocks'!E123) -> FALSE | BD96: 123 | BE96: FALSE | BF96: =IF(BE96,'Google Finance Stocks'!D120) -> FALSE | BH96: =IF(BE96,'Google Finance Stocks'!E120) -> FALSE | BL96: 123 | BM96: FALSE | BN96: ='Exchange Rates'!D119 -> 0 | BP96: =IF(BM96,'Exchange Rates'!E119) -> FALSE
L97: 95 | Q97: 95 | R97: FALSE | S97: =IF(R97,'Yahoo Index'!E147,"") ->  | T97: =IF(R97,'Yahoo Index'!F147,"") ->  | X97: 103 | Y97: FALSE | Z97: =IF($F$17,'FRED Indicies'!E110) -> 0 | AB97: =IF($F$17,'FRED Indicies'!D110) -> 0 | AF97: 108 | AG97: FALSE | AH97: =IF(AG97,'Google Index'!E124) -> FALSE | AJ97: =IF(AF97,'Google Index'!F124) -> 0 | AN97: 108 | AO97: FALSE | AP97: =IF(AO97,'Commodity Prices'!C110) -> FALSE | AR97: =IF(AO97,'Commodity Prices'!D110) -> FALSE | AV97: 114 | AW97: FALSE | AX97: =IF(AW97,'Yahoo Stocks'!D124) -> FALSE | AZ97: =IF(AW97,'Yahoo Stocks'!E124) -> FALSE | BD97: 124 | BE97: FALSE | BF97: =IF(BE97,'Google Finance Stocks'!D121) -> FALSE | BH97: =IF(BE97,'Google Finance Stocks'!E121) -> FALSE | BL97: 124 | BM97: FALSE | BN97: ='Exchange Rates'!D120 -> 0 | BP97: =IF(BM97,'Exchange Rates'!E120) -> FALSE
L98: 96 | Q98: 96 | R98: FALSE | S98: =IF(R98,'Yahoo Index'!E148,"") ->  | T98: =IF(R98,'Yahoo Index'!F148,"") ->  | X98: 104 | Y98: FALSE | Z98: =IF($F$17,'FRED Indicies'!E111) -> 0 | AB98: =IF($F$17,'FRED Indicies'!D111) -> 0 | AF98: 109 | AG98: FALSE | AH98: =IF(AG98,'Google Index'!E125) -> FALSE | AJ98: =IF(AF98,'Google Index'!F125) -> 0 | AN98: 109 | AO98: FALSE | AP98: =IF(AO98,'Commodity Prices'!C111) -> FALSE | AR98: =IF(AO98,'Commodity Prices'!D111) -> FALSE | AV98: 115 | AW98: FALSE | AX98: =IF(AW98,'Yahoo Stocks'!D125) -> FALSE | AZ98: =IF(AW98,'Yahoo Stocks'!E125) -> FALSE | BD98: 125 | BE98: FALSE | BF98: =IF(BE98,'Google Finance Stocks'!D122) -> FALSE | BH98: =IF(BE98,'Google Finance Stocks'!E122) -> FALSE | BL98: 125 | BM98: FALSE | BN98: ='Exchange Rates'!D121 -> 0 | BP98: =IF(BM98,'Exchange Rates'!E121) -> FALSE
L99: 97 | Q99: 97 | R99: FALSE | S99: =IF(R99,'Yahoo Index'!E149,"") ->  | T99: =IF(R99,'Yahoo Index'!F149,"") ->  | X99: 105 | Y99: =IF(AND($F$17,X99<=$H$17),X99) -> FALSE | Z99: =IF($F$17,'FRED Indicies'!E112) -> 0 | AB99: =IF($F$17,'FRED Indicies'!D112) -> 0 | AD99: =IF(AA99<>"",$I$17,"") ->  | AE99: =IF(AA99<>"",$J$17,"") ->  | AF99: 110 | AG99: =IF(AND($F$20,AF99<=$H$20),AF99) -> FALSE | AH99: =IF(AG99,'Google Index'!E126) -> FALSE | AJ99: =IF(AF99,'Google Index'!F126) -> 0 | AL99: =IF(AI99<>"",$I$17,"") ->  | AM99: =IF(AK99<>"",$J$17,"") ->  | AN99: 110 | AO99: =IF(AND($F$11,AN99<=$H$11),AN99) -> FALSE | AP99: =IF(AO99,'Commodity Prices'!C112) -> FALSE | AR99: =IF(AO99,'Commodity Prices'!D112) -> FALSE | AT99: =IF(AQ99<>"",$I$11,"") ->  | AU99: =IF(AS99<>"",$J$11,"") ->  | AV99: 116 | AW99: =IF(AND($F$5,AV99<=$H$5),AV99) -> FALSE | AX99: =IF(AW99,'Yahoo Stocks'!D126) -> FALSE | AZ99: =IF(AW99,'Yahoo Stocks'!E126) -> FALSE | BB99: =IF(AY99<>"",$I$5,"") ->  | BC99: =IF(BA99<>"",$J$5,"") ->  | BD99: 126 | BE99: FALSE | BF99: =IF(BE99,'Google Finance Stocks'!D123) -> FALSE | BH99: =IF(BE99,'Google Finance Stocks'!E123) -> FALSE | BL99: 126 | BM99: FALSE | BN99: ='Exchange Rates'!D122 -> 0 | BP99: =IF(BM99,'Exchange Rates'!E122) -> FALSE
L100: 98 | Q100: 98 | R100: FALSE | S100: =IF(R100,'Yahoo Index'!E150,"") ->  | T100: =IF(R100,'Yahoo Index'!F150,"") ->  | X100: 106 | Y100: FALSE | Z100: =IF($F$17,'FRED Indicies'!E113) -> 0 | AB100: =IF($F$17,'FRED Indicies'!D113) -> 0 | AF100: 111 | AG100: FALSE | AH100: =IF(AG100,'Google Index'!E127) -> FALSE | AJ100: =IF(AF100,'Google Index'!F127) -> 0 | AN100: 111 | AO100: FALSE | AP100: =IF(AO100,'Commodity Prices'!C113) -> FALSE | AR100: =IF(AO100,'Commodity Prices'!D113) -> FALSE | AV100: 117 | AW100: FALSE | AX100: =IF(AW100,'Yahoo Stocks'!D127) -> FALSE | AZ100: =IF(AW100,'Yahoo Stocks'!E127) -> FALSE | BD100: 127 | BE100: FALSE | BF100: =IF(BE100,'Google Finance Stocks'!D124) -> FALSE | BH100: =IF(BE100,'Google Finance Stocks'!E124) -> FALSE | BL100: 127 | BM100: FALSE | BN100: ='Exchange Rates'!D123 -> 0 | BP100: =IF(BM100,'Exchange Rates'!E123) -> FALSE
L101: 99 | Q101: 99 | R101: FALSE | S101: =IF(R101,'Yahoo Index'!E151,"") ->  | T101: =IF(R101,'Yahoo Index'!F151,"") ->  | X101: 107 | Y101: FALSE | Z101: =IF($F$17,'FRED Indicies'!E114) -> 0 | AB101: =IF($F$17,'FRED Indicies'!D114) -> 0 | AF101: 112 | AG101: FALSE | AH101: =IF(AG101,'Google Index'!E128) -> FALSE | AJ101: =IF(AF101,'Google Index'!F128) -> 0 | AN101: 112 | AO101: FALSE | AP101: =IF(AO101,'Commodity Prices'!C114) -> FALSE | AR101: =IF(AO101,'Commodity Prices'!D114) -> FALSE | AV101: 118 | AW101: FALSE | AX101: =IF(AW101,'Yahoo Stocks'!D128) -> FALSE | AZ101: =IF(AW101,'Yahoo Stocks'!E128) -> FALSE | BD101: 128 | BE101: FALSE | BF101: =IF(BE101,'Google Finance Stocks'!D125) -> FALSE | BH101: =IF(BE101,'Google Finance Stocks'!E125) -> FALSE | BL101: 128 | BM101: FALSE | BN101: ='Exchange Rates'!D124 -> 0 | BP101: =IF(BM101,'Exchange Rates'!E124) -> FALSE
L102: 100 | Q102: 100 | R102: FALSE | S102: =IF(R102,'Yahoo Index'!E152,"") ->  | T102: =IF(R102,'Yahoo Index'!F152,"") ->  | X102: 108 | Y102: FALSE | Z102: =IF($F$17,'FRED Indicies'!E115) -> 0 | AB102: =IF($F$17,'FRED Indicies'!D115) -> 0 | AF102: 113 | AG102: FALSE | AH102: =IF(AG102,'Google Index'!E129) -> FALSE | AJ102: =IF(AF102,'Google Index'!F129) -> 0 | AN102: 113 | AO102: FALSE | AP102: =IF(AO102,'Commodity Prices'!C115) -> FALSE | AR102: =IF(AO102,'Commodity Prices'!D115) -> FALSE | AV102: 119 | AW102: FALSE | AX102: =IF(AW102,'Yahoo Stocks'!D129) -> FALSE | AZ102: =IF(AW102,'Yahoo Stocks'!E129) -> FALSE | BD102: 129 | BE102: FALSE | BF102: =IF(BE102,'Google Finance Stocks'!D126) -> FALSE | BH102: =IF(BE102,'Google Finance Stocks'!E126) -> FALSE | BL102: 129 | BM102: FALSE | BN102: ='Exchange Rates'!D125 -> 0 | BP102: =IF(BM102,'Exchange Rates'!E125) -> FALSE
L103: 101 | Q103: 101 | R103: FALSE | S103: =IF(R103,'Yahoo Index'!E153,"") ->  | T103: =IF(R103,'Yahoo Index'!F153,"") ->  | X103: 109 | Y103: FALSE | Z103: =IF($F$17,'FRED Indicies'!E116) -> 0 | AB103: =IF($F$17,'FRED Indicies'!D116) -> 0 | AF103: 114 | AG103: FALSE | AH103: =IF(AG103,'Google Index'!E130) -> FALSE | AJ103: =IF(AF103,'Google Index'!F130) -> 0 | AN103: 114 | AO103: FALSE | AP103: =IF(AO103,'Commodity Prices'!C116) -> FALSE | AR103: =IF(AO103,'Commodity Prices'!D116) -> FALSE | AV103: 120 | AW103: FALSE | AX103: =IF(AW103,'Yahoo Stocks'!D130) -> FALSE | AZ103: =IF(AW103,'Yahoo Stocks'!E130) -> FALSE | BD103: 130 | BE103: FALSE | BF103: =IF(BE103,'Google Finance Stocks'!D127) -> FALSE | BH103: =IF(BE103,'Google Finance Stocks'!E127) -> FALSE | BL103: 130 | BM103: FALSE | BN103: ='Exchange Rates'!D126 -> 0 | BP103: =IF(BM103,'Exchange Rates'!E126) -> FALSE
L104: 102 | Q104: 102 | R104: FALSE | S104: =IF(R104,'Yahoo Index'!E154,"") ->  | T104: =IF(R104,'Yahoo Index'!F154,"") ->  | X104: 110 | Y104: FALSE | Z104: =IF($F$17,'FRED Indicies'!E117) -> 0 | AB104: =IF($F$17,'FRED Indicies'!D117) -> 0 | AF104: 115 | AG104: FALSE | AH104: =IF(AG104,'Google Index'!E131) -> FALSE | AJ104: =IF(AF104,'Google Index'!F131) -> 0 | AN104: 115 | AO104: FALSE | AP104: =IF(AO104,'Commodity Prices'!C117) -> FALSE | AR104: =IF(AO104,'Commodity Prices'!D117) -> FALSE | AV104: 121 | AW104: FALSE | AX104: =IF(AW104,'Yahoo Stocks'!D131) -> FALSE | AZ104: =IF(AW104,'Yahoo Stocks'!E131) -> FALSE | BD104: 131 | BE104: FALSE | BF104: =IF(BE104,'Google Finance Stocks'!D128) -> FALSE | BH104: =IF(BE104,'Google Finance Stocks'!E128) -> FALSE | BL104: 131 | BM104: FALSE | BN104: ='Exchange Rates'!D127 -> 0 | BP104: =IF(BM104,'Exchange Rates'!E127) -> FALSE
L105: 103 | Q105: 103 | R105: FALSE | S105: =IF(R105,'Yahoo Index'!E155,"") ->  | T105: =IF(R105,'Yahoo Index'!F155,"") ->  | X105: 111 | Y105: FALSE | Z105: =IF($F$17,'FRED Indicies'!E118) -> 0 | AB105: =IF($F$17,'FRED Indicies'!D118) -> 0 | AF105: 116 | AG105: FALSE | AH105: =IF(AG105,'Google Index'!E132) -> FALSE | AJ105: =IF(AF105,'Google Index'!F132) -> 0 | AN105: 116 | AO105: FALSE | AP105: =IF(AO105,'Commodity Prices'!C118) -> FALSE | AR105: =IF(AO105,'Commodity Prices'!D118) -> FALSE | AV105: 122 | AW105: FALSE | AX105: =IF(AW105,'Yahoo Stocks'!D132) -> FALSE | AZ105: =IF(AW105,'Yahoo Stocks'!E132) -> FALSE | BD105: 132 | BE105: FALSE | BF105: =IF(BE105,'Google Finance Stocks'!D129) -> FALSE | BH105: =IF(BE105,'Google Finance Stocks'!E129) -> FALSE | BL105: 132 | BM105: FALSE | BN105: ='Exchange Rates'!D128 -> 0 | BP105: =IF(BM105,'Exchange Rates'!E128) -> FALSE
L106: 104 | Q106: 104 | R106: FALSE | S106: =IF(R106,'Yahoo Index'!E156,"") ->  | T106: =IF(R106,'Yahoo Index'!F156,"") ->  | X106: 112 | Y106: FALSE | Z106: =IF($F$17,'FRED Indicies'!E119) -> 0 | AB106: =IF($F$17,'FRED Indicies'!D119) -> 0 | AF106: 117 | AG106: FALSE | AH106: =IF(AG106,'Google Index'!E133) -> FALSE | AJ106: =IF(AF106,'Google Index'!F133) -> 0 | AN106: 117 | AO106: FALSE | AP106: =IF(AO106,'Commodity Prices'!C119) -> FALSE | AR106: =IF(AO106,'Commodity Prices'!D119) -> FALSE | AV106: 123 | AW106: FALSE | AX106: =IF(AW106,'Yahoo Stocks'!D133) -> FALSE | AZ106: =IF(AW106,'Yahoo Stocks'!E133) -> FALSE | BD106: 133 | BE106: FALSE | BF106: =IF(BE106,'Google Finance Stocks'!D130) -> FALSE | BH106: =IF(BE106,'Google Finance Stocks'!E130) -> FALSE | BL106: 133 | BM106: FALSE | BN106: ='Exchange Rates'!D129 -> 0 | BP106: =IF(BM106,'Exchange Rates'!E129) -> FALSE
L107: 105 | Q107: 105 | R107: FALSE | S107: =IF(R107,'Yahoo Index'!E157,"") ->  | T107: =IF(R107,'Yahoo Index'!F157,"") ->  | X107: 113 | Y107: FALSE | Z107: =IF($F$17,'FRED Indicies'!E120) -> 0 | AB107: =IF($F$17,'FRED Indicies'!D120) -> 0 | AF107: 118 | AG107: FALSE | AH107: =IF(AG107,'Google Index'!E134) -> FALSE | AJ107: =IF(AF107,'Google Index'!F134) -> 0 | AN107: 118 | AO107: FALSE | AP107: =IF(AO107,'Commodity Prices'!C120) -> FALSE | AR107: =IF(AO107,'Commodity Prices'!D120) -> FALSE | AV107: 124 | AW107: FALSE | AX107: =IF(AW107,'Yahoo Stocks'!D134) -> FALSE | AZ107: =IF(AW107,'Yahoo Stocks'!E134) -> FALSE | BD107: 134 | BE107: FALSE | BF107: =IF(BE107,'Google Finance Stocks'!D131) -> FALSE | BH107: =IF(BE107,'Google Finance Stocks'!E131) -> FALSE | BL107: 134 | BM107: FALSE | BN107: ='Exchange Rates'!D130 -> 0 | BP107: =IF(BM107,'Exchange Rates'!E130) -> FALSE
L108: 106 | Q108: 106 | R108: FALSE | S108: =IF(R108,'Yahoo Index'!E158,"") ->  | T108: =IF(R108,'Yahoo Index'!F158,"") ->  | X108: 114 | Y108: FALSE | Z108: =IF($F$17,'FRED Indicies'!E121) -> 0 | AB108: =IF($F$17,'FRED Indicies'!D121) -> 0 | AF108: 119 | AG108: FALSE | AH108: =IF(AG108,'Google Index'!E135) -> FALSE | AJ108: =IF(AF108,'Google Index'!F135) -> 0 | AN108: 119 | AO108: FALSE | AP108: =IF(AO108,'Commodity Prices'!C121) -> FALSE | AR108: =IF(AO108,'Commodity Prices'!D121) -> FALSE | AV108: 125 | AW108: FALSE | AX108: =IF(AW108,'Yahoo Stocks'!D135) -> FALSE | AZ108: =IF(AW108,'Yahoo Stocks'!E135) -> FALSE | BD108: 135 | BE108: FALSE | BF108: =IF(BE108,'Google Finance Stocks'!D132) -> FALSE | BH108: =IF(BE108,'Google Finance Stocks'!E132) -> FALSE | BL108: 135 | BM108: FALSE | BN108: ='Exchange Rates'!D131 -> 0 | BP108: =IF(BM108,'Exchange Rates'!E131) -> FALSE
L109: 107 | Q109: 107 | R109: FALSE | S109: =IF(R109,'Yahoo Index'!E159,"") ->  | T109: =IF(R109,'Yahoo Index'!F159,"") ->  | X109: 115 | Y109: FALSE | Z109: =IF($F$17,'FRED Indicies'!E122) -> 0 | AB109: =IF($F$17,'FRED Indicies'!D122) -> 0 | AF109: 120 | AG109: FALSE | AH109: =IF(AG109,'Google Index'!E136) -> FALSE | AJ109: =IF(AF109,'Google Index'!F136) -> 0 | AN109: 120 | AO109: FALSE | AP109: =IF(AO109,'Commodity Prices'!C122) -> FALSE | AR109: =IF(AO109,'Commodity Prices'!D122) -> FALSE | AV109: 126 | AW109: FALSE | AX109: =IF(AW109,'Yahoo Stocks'!D136) -> FALSE | AZ109: =IF(AW109,'Yahoo Stocks'!E136) -> FALSE | BD109: 136 | BE109: FALSE | BF109: =IF(BE109,'Google Finance Stocks'!D133) -> FALSE | BH109: =IF(BE109,'Google Finance Stocks'!E133) -> FALSE | BL109: 136 | BM109: FALSE | BN109: ='Exchange Rates'!D132 -> 0 | BP109: =IF(BM109,'Exchange Rates'!E132) -> FALSE
L110: 108 | Q110: 108 | R110: FALSE | S110: =IF(R110,'Yahoo Index'!E160,"") ->  | T110: =IF(R110,'Yahoo Index'!F160,"") ->  | X110: 116 | Y110: FALSE | Z110: =IF($F$17,'FRED Indicies'!E123) -> 0 | AB110: =IF($F$17,'FRED Indicies'!D123) -> 0 | AF110: 121 | AG110: FALSE | AH110: =IF(AG110,'Google Index'!E137) -> FALSE | AJ110: =IF(AF110,'Google Index'!F137) -> 0 | AN110: 121 | AO110: FALSE | AP110: =IF(AO110,'Commodity Prices'!C123) -> FALSE | AR110: =IF(AO110,'Commodity Prices'!D123) -> FALSE | AV110: 127 | AW110: FALSE | AX110: =IF(AW110,'Yahoo Stocks'!D137) -> FALSE | AZ110: =IF(AW110,'Yahoo Stocks'!E137) -> FALSE | BD110: 137 | BE110: FALSE | BF110: =IF(BE110,'Google Finance Stocks'!D134) -> FALSE | BH110: =IF(BE110,'Google Finance Stocks'!E134) -> FALSE | BL110: 137 | BM110: FALSE | BN110: ='Exchange Rates'!D133 -> 0 | BP110: =IF(BM110,'Exchange Rates'!E133) -> FALSE
L111: 109 | Q111: 109 | R111: FALSE | S111: =IF(R111,'Yahoo Index'!E161,"") ->  | T111: =IF(R111,'Yahoo Index'!F161,"") ->  | X111: 117 | Y111: FALSE | Z111: =IF($F$17,'FRED Indicies'!E124) -> 0 | AB111: =IF($F$17,'FRED Indicies'!D124) -> 0 | AF111: 122 | AG111: FALSE | AH111: =IF(AG111,'Google Index'!E138) -> FALSE | AJ111: =IF(AF111,'Google Index'!F138) -> 0 | AN111: 122 | AO111: FALSE | AP111: =IF(AO111,'Commodity Prices'!C124) -> FALSE | AR111: =IF(AO111,'Commodity Prices'!D124) -> FALSE | AV111: 128 | AW111: FALSE | AX111: =IF(AW111,'Yahoo Stocks'!D138) -> FALSE | AZ111: =IF(AW111,'Yahoo Stocks'!E138) -> FALSE | BD111: 138 | BE111: FALSE | BF111: =IF(BE111,'Google Finance Stocks'!D135) -> FALSE | BH111: =IF(BE111,'Google Finance Stocks'!E135) -> FALSE | BL111: 138 | BM111: FALSE | BN111: ='Exchange Rates'!D134 -> 0 | BP111: =IF(BM111,'Exchange Rates'!E134) -> FALSE
L112: 110 | Q112: 110 | R112: FALSE | S112: =IF(R112,'Yahoo Index'!E162,"") ->  | T112: =IF(R112,'Yahoo Index'!F162,"") ->  | X112: 118 | Y112: FALSE | Z112: =IF($F$17,'FRED Indicies'!E125) -> 0 | AB112: =IF($F$17,'FRED Indicies'!D125) -> 0 | AF112: 123 | AG112: FALSE | AH112: =IF(AG112,'Google Index'!E139) -> FALSE | AJ112: =IF(AF112,'Google Index'!F139) -> 0 | AN112: 123 | AO112: FALSE | AP112: =IF(AO112,'Commodity Prices'!C125) -> FALSE | AR112: =IF(AO112,'Commodity Prices'!D125) -> FALSE | AV112: 129 | AW112: FALSE | AX112: =IF(AW112,'Yahoo Stocks'!D139) -> FALSE | AZ112: =IF(AW112,'Yahoo Stocks'!E139) -> FALSE | BD112: 139 | BE112: FALSE | BF112: =IF(BE112,'Google Finance Stocks'!D136) -> FALSE | BH112: =IF(BE112,'Google Finance Stocks'!E136) -> FALSE | BL112: 139 | BM112: FALSE | BN112: ='Exchange Rates'!D135 -> 0 | BP112: =IF(BM112,'Exchange Rates'!E135) -> FALSE
L113: 111 | Q113: 111 | R113: FALSE | S113: =IF(R113,'Yahoo Index'!E163,"") ->  | T113: =IF(R113,'Yahoo Index'!F163,"") ->  | X113: 119 | Y113: FALSE | Z113: =IF($F$17,'FRED Indicies'!E126) -> 0 | AB113: =IF($F$17,'FRED Indicies'!D126) -> 0 | AF113: 124 | AG113: FALSE | AH113: =IF(AG113,'Google Index'!E140) -> FALSE | AJ113: =IF(AF113,'Google Index'!F140) -> 0 | AN113: 124 | AO113: FALSE | AP113: =IF(AO113,'Commodity Prices'!C126) -> FALSE | AR113: =IF(AO113,'Commodity Prices'!D126) -> FALSE | AV113: 130 | AW113: FALSE | AX113: =IF(AW113,'Yahoo Stocks'!D140) -> FALSE | AZ113: =IF(AW113,'Yahoo Stocks'!E140) -> FALSE | BD113: 140 | BE113: FALSE | BF113: =IF(BE113,'Google Finance Stocks'!D137) -> FALSE | BH113: =IF(BE113,'Google Finance Stocks'!E137) -> FALSE | BL113: 140 | BM113: FALSE | BN113: ='Exchange Rates'!D136 -> 0 | BP113: =IF(BM113,'Exchange Rates'!E136) -> FALSE
L114: 112 | Q114: 112 | R114: FALSE | S114: =IF(R114,'Yahoo Index'!E164,"") ->  | T114: =IF(R114,'Yahoo Index'!F164,"") ->  | X114: 120 | Y114: FALSE | Z114: =IF($F$17,'FRED Indicies'!E127) -> 0 | AB114: =IF($F$17,'FRED Indicies'!D127) -> 0 | AF114: 125 | AG114: FALSE | AH114: =IF(AG114,'Google Index'!E141) -> FALSE | AJ114: =IF(AF114,'Google Index'!F141) -> 0 | AN114: 125 | AO114: FALSE | AP114: =IF(AO114,'Commodity Prices'!C127) -> FALSE | AR114: =IF(AO114,'Commodity Prices'!D127) -> FALSE | AV114: 131 | AW114: FALSE | AX114: =IF(AW114,'Yahoo Stocks'!D141) -> FALSE | AZ114: =IF(AW114,'Yahoo Stocks'!E141) -> FALSE | BD114: 141 | BE114: FALSE | BF114: =IF(BE114,'Google Finance Stocks'!D138) -> FALSE | BH114: =IF(BE114,'Google Finance Stocks'!E138) -> FALSE | BL114: 141 | BM114: FALSE | BN114: ='Exchange Rates'!D137 -> 0 | BP114: =IF(BM114,'Exchange Rates'!E137) -> FALSE
L115: 113 | Q115: 113 | R115: FALSE | S115: =IF(R115,'Yahoo Index'!E165,"") ->  | T115: =IF(R115,'Yahoo Index'!F165,"") ->  | X115: 121 | Y115: FALSE | Z115: =IF($F$17,'FRED Indicies'!E128) -> 0 | AB115: =IF($F$17,'FRED Indicies'!D128) -> 0 | AF115: 126 | AG115: FALSE | AH115: =IF(AG115,'Google Index'!E142) -> FALSE | AJ115: =IF(AF115,'Google Index'!F142) -> 0 | AN115: 126 | AO115: FALSE | AP115: =IF(AO115,'Commodity Prices'!C128) -> FALSE | AR115: =IF(AO115,'Commodity Prices'!D128) -> FALSE | AV115: 132 | AW115: FALSE | AX115: =IF(AW115,'Yahoo Stocks'!D142) -> FALSE | AZ115: =IF(AW115,'Yahoo Stocks'!E142) -> FALSE | BD115: 142 | BE115: FALSE | BF115: =IF(BE115,'Google Finance Stocks'!D139) -> FALSE | BH115: =IF(BE115,'Google Finance Stocks'!E139) -> FALSE | BL115: 142 | BM115: FALSE | BN115: ='Exchange Rates'!D138 -> 0 | BP115: =IF(BM115,'Exchange Rates'!E138) -> FALSE
L116: 114 | Q116: 114 | R116: FALSE | S116: =IF(R116,'Yahoo Index'!E166,"") ->  | T116: =IF(R116,'Yahoo Index'!F166,"") ->  | X116: 122 | Y116: FALSE | Z116: =IF($F$17,'FRED Indicies'!E129) -> 0 | AB116: =IF($F$17,'FRED Indicies'!D129) -> 0 | AF116: 127 | AG116: FALSE | AH116: =IF(AG116,'Google Index'!E143) -> FALSE | AJ116: =IF(AF116,'Google Index'!F143) -> 0 | AN116: 127 | AO116: FALSE | AP116: =IF(AO116,'Commodity Prices'!C129) -> FALSE | AR116: =IF(AO116,'Commodity Prices'!D129) -> FALSE | AV116: 133 | AW116: FALSE | AX116: =IF(AW116,'Yahoo Stocks'!D143) -> FALSE | AZ116: =IF(AW116,'Yahoo Stocks'!E143) -> FALSE | BD116: 143 | BE116: FALSE | BF116: =IF(BE116,'Google Finance Stocks'!D140) -> FALSE | BH116: =IF(BE116,'Google Finance Stocks'!E140) -> FALSE | BL116: 143 | BM116: FALSE | BN116: ='Exchange Rates'!D139 -> 0 | BP116: =IF(BM116,'Exchange Rates'!E139) -> FALSE
L117: 115 | M117: =S117&AA117&AI117&AQ117&AY117&BG117&BO117 ->  | N117: =T117&AC117&AK117&AS117&BA117&BI117&BQ117 ->  | O117: =U117&AD117&AL117&AT117&BB117&BJ117&BR117 ->  | P117: =V117&AE117&AM117&AU117&BC117&BK117&BS117 ->  | Q117: 115 | R117: =IF(AND($F$3,Q117<=$H$3),Q117) -> FALSE | S117: =IF(R117,'Yahoo Index'!E167,"") ->  | T117: =IF(R117,'Yahoo Index'!F167,"") ->  | U117: =IF(R117,$I$3,"") ->  | V117: =IF(R117,$J$3,"") ->  | X117: 123 | Y117: FALSE | Z117: =IF($F$17,'FRED Indicies'!E130) -> 0 | AA117: =IFERROR(INDEX(Z:Z,MATCH(L117,Y:Y,0)),"") ->  | AB117: =IF($F$17,'FRED Indicies'!D130) -> 0 | AC117: =IFERROR(INDEX(AB:AB,MATCH(L117,Y:Y,0)),"") ->  | AF117: 128 | AG117: FALSE | AH117: =IF(AG117,'Google Index'!E144) -> FALSE | AI117: =IFERROR(INDEX(AH:AH,MATCH(Q117,AG:AG,0)),"") ->  | AJ117: =IF(AF117,'Google Index'!F144) -> 0 | AK117: =IFERROR(INDEX(AJ:AJ,MATCH(Q117,AG:AG,0)),"") ->  | AN117: 128 | AO117: FALSE | AP117: =IF(AO117,'Commodity Prices'!C130) -> FALSE | AQ117: =IFERROR(INDEX(AP:AP,MATCH(L117,AO:AO,0)),"") ->  | AR117: =IF(AO117,'Commodity Prices'!D130) -> FALSE | AS117: =IFERROR(INDEX(AR:AR,MATCH(L117,AO:AO,0)),"") ->  | AV117: 134 | AW117: FALSE | AX117: =IF(AW117,'Yahoo Stocks'!D144) -> FALSE | AZ117: =IF(AW117,'Yahoo Stocks'!E144) -> FALSE | BD117: 144 | BE117: FALSE | BF117: =IF(BE117,'Google Finance Stocks'!D141) -> FALSE | BG117: =IFERROR(INDEX(BF:BF,MATCH(Q117,BE:BE,0)),"") ->  | BH117: =IF(BE117,'Google Finance Stocks'!E141) -> FALSE | BI117: =IFERROR(INDEX(BH:BH,MATCH(Q117,BE:BE,0)),"") ->  | BL117: 144 | BM117: FALSE | BN117: ='Exchange Rates'!D140 -> 0 | BO117: =IFERROR(INDEX(BN:BN,MATCH(L117,BM:BM,0)),"") ->  | BP117: =IF(BM117,'Exchange Rates'!E140) -> FALSE | BQ117: =IFERROR(INDEX(BP:BP,MATCH(L117,BM:BM,0)),"") -> 
L118: 116 | Q118: 116 | R118: FALSE | S118: =IF(R118,'Yahoo Index'!E168,"") ->  | T118: =IF(R118,'Yahoo Index'!F168,"") ->  | X118: 124 | Y118: FALSE | Z118: =IF($F$17,'FRED Indicies'!E131) -> 0 | AB118: =IF($F$17,'FRED Indicies'!D131) -> 0 | AF118: 129 | AG118: FALSE | AH118: =IF(AG118,'Google Index'!E145) -> FALSE | AJ118: =IF(AF118,'Google Index'!F145) -> 0 | AN118: 129 | AO118: FALSE | AP118: =IF(AO118,'Commodity Prices'!C131) -> FALSE | AR118: =IF(AO118,'Commodity Prices'!D131) -> FALSE | AV118: 135 | AW118: FALSE | AX118: =IF(AW118,'Yahoo Stocks'!D145) -> FALSE | AZ118: =IF(AW118,'Yahoo Stocks'!E145) -> FALSE | BD118: 145 | BE118: FALSE | BF118: =IF(BE118,'Google Finance Stocks'!D142) -> FALSE | BH118: =IF(BE118,'Google Finance Stocks'!E142) -> FALSE | BL118: 145 | BM118: FALSE | BN118: ='Exchange Rates'!D141 -> 0 | BP118: =IF(BM118,'Exchange Rates'!E141) -> FALSE
L119: 117 | Q119: 117 | R119: FALSE | S119: =IF(R119,'Yahoo Index'!E169,"") ->  | T119: =IF(R119,'Yahoo Index'!F169,"") ->  | X119: 125 | Y119: FALSE | Z119: =IF($F$17,'FRED Indicies'!E132) -> 0 | AB119: =IF($F$17,'FRED Indicies'!D132) -> 0 | AF119: 130 | AG119: FALSE | AH119: =IF(AG119,'Google Index'!E146) -> FALSE | AJ119: =IF(AF119,'Google Index'!F146) -> 0 | AN119: 130 | AO119: FALSE | AP119: =IF(AO119,'Commodity Prices'!C132) -> FALSE | AR119: =IF(AO119,'Commodity Prices'!D132) -> FALSE | AV119: 136 | AW119: FALSE | AX119: =IF(AW119,'Yahoo Stocks'!D146) -> FALSE | AZ119: =IF(AW119,'Yahoo Stocks'!E146) -> FALSE | BD119: 146 | BE119: FALSE | BF119: =IF(BE119,'Google Finance Stocks'!D143) -> FALSE | BH119: =IF(BE119,'Google Finance Stocks'!E143) -> FALSE | BL119: 146 | BM119: FALSE | BN119: ='Exchange Rates'!D142 -> 0 | BP119: =IF(BM119,'Exchange Rates'!E142) -> FALSE
L120: 118 | Q120: 118 | R120: FALSE | S120: =IF(R120,'Yahoo Index'!E170,"") ->  | T120: =IF(R120,'Yahoo Index'!F170,"") ->  | X120: 126 | Y120: FALSE | Z120: =IF($F$17,'FRED Indicies'!E133) -> 0 | AB120: =IF($F$17,'FRED Indicies'!D133) -> 0 | AF120: 131 | AG120: FALSE | AH120: =IF(AG120,'Google Index'!E147) -> FALSE | AJ120: =IF(AF120,'Google Index'!F147) -> 0 | AN120: 131 | AO120: FALSE | AP120: =IF(AO120,'Commodity Prices'!C133) -> FALSE | AR120: =IF(AO120,'Commodity Prices'!D133) -> FALSE | AV120: 137 | AW120: FALSE | AX120: =IF(AW120,'Yahoo Stocks'!D147) -> FALSE | AZ120: =IF(AW120,'Yahoo Stocks'!E147) -> FALSE | BD120: 147 | BE120: FALSE | BF120: =IF(BE120,'Google Finance Stocks'!D144) -> FALSE | BH120: =IF(BE120,'Google Finance Stocks'!E144) -> FALSE | BL120: 147 | BM120: FALSE | BN120: ='Exchange Rates'!D143 -> 0 | BP120: =IF(BM120,'Exchange Rates'!E143) -> FALSE
L121: 119 | Q121: 119 | R121: FALSE | S121: =IF(R121,'Yahoo Index'!E171,"") ->  | T121: =IF(R121,'Yahoo Index'!F171,"") ->  | X121: 127 | Y121: FALSE | Z121: =IF($F$17,'FRED Indicies'!E134) -> 0 | AB121: =IF($F$17,'FRED Indicies'!D134) -> 0 | AF121: 132 | AG121: FALSE | AH121: =IF(AG121,'Google Index'!E148) -> FALSE | AJ121: =IF(AF121,'Google Index'!F148) -> 0 | AN121: 132 | AO121: FALSE | AP121: =IF(AO121,'Commodity Prices'!C134) -> FALSE | AR121: =IF(AO121,'Commodity Prices'!D134) -> FALSE | AV121: 138 | AW121: FALSE | AX121: =IF(AW121,'Yahoo Stocks'!D148) -> FALSE | AZ121: =IF(AW121,'Yahoo Stocks'!E148) -> FALSE | BD121: 148 | BE121: FALSE | BF121: =IF(BE121,'Google Finance Stocks'!D145) -> FALSE | BH121: =IF(BE121,'Google Finance Stocks'!E145) -> FALSE | BL121: 148 | BM121: FALSE | BN121: ='Exchange Rates'!D144 -> 0 | BP121: =IF(BM121,'Exchange Rates'!E144) -> FALSE
L122: 120 | Q122: 120 | R122: FALSE | S122: =IF(R122,'Yahoo Index'!E172,"") ->  | T122: =IF(R122,'Yahoo Index'!F172,"") ->  | X122: 128 | Y122: FALSE | Z122: =IF($F$17,'FRED Indicies'!E135) -> 0 | AB122: =IF($F$17,'FRED Indicies'!D135) -> 0 | AF122: 133 | AG122: FALSE | AH122: =IF(AG122,'Google Index'!E149) -> FALSE | AJ122: =IF(AF122,'Google Index'!F149) -> 0 | AN122: 133 | AO122: FALSE | AP122: =IF(AO122,'Commodity Prices'!C135) -> FALSE | AR122: =IF(AO122,'Commodity Prices'!D135) -> FALSE | AV122: 139 | AW122: FALSE | AX122: =IF(AW122,'Yahoo Stocks'!D149) -> FALSE | AZ122: =IF(AW122,'Yahoo Stocks'!E149) -> FALSE | BD122: 149 | BE122: FALSE | BF122: =IF(BE122,'Google Finance Stocks'!D146) -> FALSE | BH122: =IF(BE122,'Google Finance Stocks'!E146) -> FALSE | BL122: 149 | BM122: FALSE | BN122: ='Exchange Rates'!D145 -> 0 | BP122: =IF(BM122,'Exchange Rates'!E145) -> FALSE
L123: 121 | Q123: 121 | R123: FALSE | S123: =IF(R123,'Yahoo Index'!E173,"") ->  | T123: =IF(R123,'Yahoo Index'!F173,"") ->  | X123: 129 | Y123: FALSE | Z123: =IF($F$17,'FRED Indicies'!E136) -> 0 | AB123: =IF($F$17,'FRED Indicies'!D136) -> 0 | AF123: 134 | AG123: FALSE | AH123: =IF(AG123,'Google Index'!E150) -> FALSE | AJ123: =IF(AF123,'Google Index'!F150) -> 0 | AN123: 134 | AO123: FALSE | AP123: =IF(AO123,'Commodity Prices'!C136) -> FALSE | AR123: =IF(AO123,'Commodity Prices'!D136) -> FALSE | AV123: 140 | AW123: FALSE | AX123: =IF(AW123,'Yahoo Stocks'!D150) -> FALSE | AZ123: =IF(AW123,'Yahoo Stocks'!E150) -> FALSE | BD123: 150 | BE123: FALSE | BF123: =IF(BE123,'Google Finance Stocks'!D147) -> FALSE | BH123: =IF(BE123,'Google Finance Stocks'!E147) -> FALSE | BL123: 150 | BM123: FALSE | BN123: ='Exchange Rates'!D146 -> 0 | BP123: =IF(BM123,'Exchange Rates'!E146) -> FALSE
L124: 122 | Q124: 122 | R124: FALSE | S124: =IF(R124,'Yahoo Index'!E174,"") ->  | T124: =IF(R124,'Yahoo Index'!F174,"") ->  | X124: 130 | Y124: FALSE | Z124: =IF($F$17,'FRED Indicies'!E137) -> 0 | AB124: =IF($F$17,'FRED Indicies'!D137) -> 0 | AF124: 135 | AG124: FALSE | AH124: =IF(AG124,'Google Index'!E151) -> FALSE | AJ124: =IF(AF124,'Google Index'!F151) -> 0 | AN124: 135 | AO124: FALSE | AP124: =IF(AO124,'Commodity Prices'!C137) -> FALSE | AR124: =IF(AO124,'Commodity Prices'!D137) -> FALSE | AV124: 141 | AW124: FALSE | AX124: =IF(AW124,'Yahoo Stocks'!D151) -> FALSE | AZ124: =IF(AW124,'Yahoo Stocks'!E151) -> FALSE | BD124: 151 | BE124: FALSE | BF124: =IF(BE124,'Google Finance Stocks'!D148) -> FALSE | BH124: =IF(BE124,'Google Finance Stocks'!E148) -> FALSE | BL124: 151 | BM124: FALSE | BN124: ='Exchange Rates'!D147 -> 0 | BP124: =IF(BM124,'Exchange Rates'!E147) -> FALSE
L125: 123 | Q125: 123 | R125: FALSE | S125: =IF(R125,'Yahoo Index'!E175,"") ->  | T125: =IF(R125,'Yahoo Index'!F175,"") ->  | X125: 131 | Y125: FALSE | Z125: =IF($F$17,'FRED Indicies'!E138) -> 0 | AB125: =IF($F$17,'FRED Indicies'!D138) -> 0 | AF125: 136 | AG125: FALSE | AH125: =IF(AG125,'Google Index'!E152) -> FALSE | AJ125: =IF(AF125,'Google Index'!F152) -> 0 | AN125: 136 | AO125: FALSE | AP125: =IF(AO125,'Commodity Prices'!C138) -> FALSE | AR125: =IF(AO125,'Commodity Prices'!D138) -> FALSE | AV125: 142 | AW125: FALSE | AX125: =IF(AW125,'Yahoo Stocks'!D152) -> FALSE | AZ125: =IF(AW125,'Yahoo Stocks'!E152) -> FALSE | BD125: 152 | BE125: FALSE | BF125: =IF(BE125,'Google Finance Stocks'!D149) -> FALSE | BH125: =IF(BE125,'Google Finance Stocks'!E149) -> FALSE | BL125: 152 | BM125: FALSE | BN125: ='Exchange Rates'!D148 -> 0 | BP125: =IF(BM125,'Exchange Rates'!E148) -> FALSE
L126: 124 | Q126: 124 | R126: FALSE | S126: =IF(R126,'Yahoo Index'!E176,"") ->  | T126: =IF(R126,'Yahoo Index'!F176,"") ->  | X126: 132 | Y126: FALSE | Z126: =IF($F$17,'FRED Indicies'!E139) -> 0 | AB126: =IF($F$17,'FRED Indicies'!D139) -> 0 | AF126: 137 | AG126: FALSE | AH126: =IF(AG126,'Google Index'!E153) -> FALSE | AJ126: =IF(AF126,'Google Index'!F153) -> 0 | AN126: 137 | AO126: FALSE | AP126: =IF(AO126,'Commodity Prices'!C139) -> FALSE | AR126: =IF(AO126,'Commodity Prices'!D139) -> FALSE | AV126: 143 | AW126: FALSE | AX126: =IF(AW126,'Yahoo Stocks'!D153) -> FALSE | AZ126: =IF(AW126,'Yahoo Stocks'!E153) -> FALSE | BD126: 153 | BE126: FALSE | BF126: =IF(BE126,'Google Finance Stocks'!D150) -> FALSE | BH126: =IF(BE126,'Google Finance Stocks'!E150) -> FALSE | BL126: 153 | BM126: FALSE | BN126: ='Exchange Rates'!D149 -> 0 | BO126: =IFERROR(INDEX(BN:BN,MATCH(L126,BM:BM,0)),"") ->  | BP126: =IF(BM126,'Exchange Rates'!E149) -> FALSE
L127: 125 | Q127: 125 | R127: FALSE | S127: =IF(R127,'Yahoo Index'!E177,"") ->  | T127: =IF(R127,'Yahoo Index'!F177,"") ->  | X127: 133 | Y127: FALSE | Z127: =IF($F$17,'FRED Indicies'!E140) -> 0 | AB127: =IF($F$17,'FRED Indicies'!D140) -> 0 | AF127: 138 | AG127: FALSE | AH127: =IF(AG127,'Google Index'!E154) -> FALSE | AJ127: =IF(AF127,'Google Index'!F154) -> 0 | AN127: 138 | AO127: FALSE | AP127: =IF(AO127,'Commodity Prices'!C140) -> FALSE | AR127: =IF(AO127,'Commodity Prices'!D140) -> FALSE | AV127: 144 | AW127: FALSE | AX127: =IF(AW127,'Yahoo Stocks'!D154) -> FALSE | AZ127: =IF(AW127,'Yahoo Stocks'!E154) -> FALSE | BD127: 154 | BE127: FALSE | BF127: =IF(BE127,'Google Finance Stocks'!D151) -> FALSE | BH127: =IF(BE127,'Google Finance Stocks'!E151) -> FALSE | BL127: 154 | BM127: FALSE | BN127: ='Exchange Rates'!D150 -> 0 | BO127: =IFERROR(INDEX(BN:BN,MATCH(L127,BM:BM,0)),"") ->  | BP127: =IF(BM127,'Exchange Rates'!E150) -> FALSE
L128: 126 | M128: =S128&AA128&AI128&AQ128&AY128&BG128&BO128 ->  | N128: =T128&AC128&AK128&AS128&BA128&BI128&BQ128 ->  | O128: =U128&AD128&AL128&AT128&BB128&BJ128&BR128 ->  | P128: =V128&AE128&AM128&AU128&BC128&BK128&BS128 ->  | Q128: 126 | R128: =IF(AND($F$3,Q128<=$H$3),Q128) -> FALSE | X128: 134 | Y128: FALSE | Z128: =IF($F$17,'FRED Indicies'!E141) -> 0 | AA128: =IFERROR(INDEX(Z:Z,MATCH(L128,Y:Y,0)),"") ->  | AB128: =IF($F$17,'FRED Indicies'!D141) -> 0 | AC128: =IFERROR(INDEX(AB:AB,MATCH(L128,Y:Y,0)),"") ->  | AF128: 139 | AG128: FALSE | AH128: =IF(AG128,'Google Index'!E155) -> FALSE | AI128: =IFERROR(INDEX(AH:AH,MATCH(Q128,AG:AG,0)),"") ->  | AJ128: =IF(AF128,'Google Index'!F155) -> 0 | AK128: =IFERROR(INDEX(AJ:AJ,MATCH(Q128,AG:AG,0)),"") ->  | AN128: 139 | AO128: FALSE | AP128: =IF(AO128,'Commodity Prices'!C141) -> FALSE | AQ128: =IFERROR(INDEX(AP:AP,MATCH(L128,AO:AO,0)),"") ->  | AR128: =IF(AO128,'Commodity Prices'!D141) -> FALSE | AS128: =IFERROR(INDEX(AR:AR,MATCH(L128,AO:AO,0)),"") ->  | AV128: 145 | AW128: FALSE | AX128: =IF(AW128,'Yahoo Stocks'!D155) -> FALSE | AZ128: =IF(AW128,'Yahoo Stocks'!E155) -> FALSE | BD128: 155 | BE128: FALSE | BF128: =IF(BE128,'Google Finance Stocks'!D152) -> FALSE | BG128: =IFERROR(INDEX(BF:BF,MATCH(Q128,BE:BE,0)),"") ->  | BH128: =IF(BE128,'Google Finance Stocks'!E152) -> FALSE | BI128: =IFERROR(INDEX(BH:BH,MATCH(Q128,BE:BE,0)),"") ->  | BL128: 155 | BM128: FALSE | BN128: ='Exchange Rates'!D151 -> 0 | BO128: =IFERROR(INDEX(BN:BN,MATCH(L128,BM:BM,0)),"") ->  | BP128: =IF(BM128,'Exchange Rates'!E151) -> FALSE | BQ128: =IFERROR(INDEX(BP:BP,MATCH(L128,BM:BM,0)),"") -> 
L129: 127 | Q129: 127 | R129: FALSE | X129: 135 | Y129: FALSE | Z129: =IF($F$17,'FRED Indicies'!E142) -> 0 | AB129: =IF($F$17,'FRED Indicies'!D142) -> 0 | AF129: 140 | AG129: FALSE | AH129: =IF(AG129,'Google Index'!E156) -> FALSE | AJ129: =IF(AF129,'Google Index'!F156) -> 0 | AN129: 140 | AO129: FALSE | AP129: =IF(AO129,'Commodity Prices'!C142) -> FALSE | AR129: =IF(AO129,'Commodity Prices'!D142) -> FALSE | AV129: 146 | AW129: FALSE | AX129: =IF(AW129,'Yahoo Stocks'!D156) -> FALSE | AZ129: =IF(AW129,'Yahoo Stocks'!E156) -> FALSE | BD129: 156 | BE129: FALSE | BF129: =IF(BE129,'Google Finance Stocks'!D153) -> FALSE | BH129: =IF(BE129,'Google Finance Stocks'!E153) -> FALSE | BL129: 156 | BM129: FALSE | BN129: ='Exchange Rates'!D152 -> 0 | BO129: =IFERROR(INDEX(BN:BN,MATCH(L129,BM:BM,0)),"") ->  | BP129: =IF(BM129,'Exchange Rates'!E152) -> FALSE
L130: 128 | Q130: 128 | R130: FALSE | X130: 136 | Y130: FALSE | Z130: =IF($F$17,'FRED Indicies'!E143) -> 0 | AB130: =IF($F$17,'FRED Indicies'!D143) -> 0 | AF130: 141 | AG130: FALSE | AH130: =IF(AG130,'Google Index'!E157) -> FALSE | AJ130: =IF(AF130,'Google Index'!F157) -> 0 | AN130: 141 | AO130: FALSE | AP130: =IF(AO130,'Commodity Prices'!C143) -> FALSE | AR130: =IF(AO130,'Commodity Prices'!D143) -> FALSE | AV130: 147 | AW130: FALSE | AX130: =IF(AW130,'Yahoo Stocks'!D157) -> FALSE | AZ130: =IF(AW130,'Yahoo Stocks'!E157) -> FALSE | BD130: 157 | BE130: FALSE | BF130: =IF(BE130,'Google Finance Stocks'!D154) -> FALSE | BH130: =IF(BE130,'Google Finance Stocks'!E154) -> FALSE | BL130: 157 | BM130: FALSE | BN130: ='Exchange Rates'!D153 -> 0 | BP130: =IF(BM130,'Exchange Rates'!E153) -> FALSE
L131: 129 | Q131: 129 | R131: FALSE | X131: 137 | Y131: =IF(AND($F$17,X131<=$H$17),X131) -> FALSE | Z131: =IF($F$17,'FRED Indicies'!E144) -> 0 | AB131: =IF($F$17,'FRED Indicies'!D144) -> 0 | AD131: =IF(AA131<>"",$I$17,"") ->  | AE131: =IF(AA131<>"",$J$17,"") ->  | AF131: 142 | AG131: =IF(AND($F$20,AF131<=$H$20),AF131) -> FALSE | AH131: =IF(AG131,'Google Index'!E158) -> FALSE | AJ131: =IF(AF131,'Google Index'!F158) -> 0 | AL131: =IF(AI131<>"",$I$17,"") ->  | AM131: =IF(AK131<>"",$J$17,"") ->  | AN131: 142 | AO131: =IF(AND($F$11,AN131<=$H$11),AN131) -> FALSE | AP131: =IF(AO131,'Commodity Prices'!C144) -> FALSE | AR131: =IF(AO131,'Commodity Prices'!D144) -> FALSE | AT131: =IF(AQ131<>"",$I$11,"") ->  | AU131: =IF(AS131<>"",$J$11,"") ->  | AV131: 148 | AW131: =IF(AND($F$5,AV131<=$H$5),AV131) -> FALSE | AX131: =IF(AW131,'Yahoo Stocks'!D158) -> FALSE | AZ131: =IF(AW131,'Yahoo Stocks'!E158) -> FALSE | BB131: =IF(AY131<>"",$I$5,"") ->  | BC131: =IF(BA131<>"",$J$5,"") ->  | BD131: 158 | BE131: =IF(AND($F$14,BD131<=$H$14),BD131) -> FALSE | BF131: =IF(BE131,'Google Finance Stocks'!D155) -> FALSE | BH131: =IF(BE131,'Google Finance Stocks'!E155) -> FALSE | BJ131: =IF(BI131<>"",$I$14,"") ->  | BK131: =IF(BI131<>"",$J$14,"") ->  | BL131: 158 | BM131: =IF(AND($F$8,BL131<=$H$8),BL131) -> FALSE | BN131: ='Exchange Rates'!D154 -> 0 | BP131: =IF(BM131,'Exchange Rates'!E154) -> FALSE | BR131: =IF(BQ131<>"",$I$8,"") ->  | BS131: =IF(BQ131<>"",$J$8,"") -> 
L132: 130 | Q132: 130 | R132: FALSE | X132: 138 | Y132: FALSE | Z132: =IF($F$17,'FRED Indicies'!E145) -> 0 | AB132: =IF($F$17,'FRED Indicies'!D145) -> 0 | AF132: 143 | AG132: FALSE | AH132: =IF(AG132,'Google Index'!E159) -> FALSE | AJ132: =IF(AF132,'Google Index'!F159) -> 0 | AN132: 143 | AO132: FALSE | AP132: =IF(AO132,'Commodity Prices'!C145) -> FALSE | AR132: =IF(AO132,'Commodity Prices'!D145) -> FALSE | AV132: 149 | AW132: FALSE | AX132: =IF(AW132,'Yahoo Stocks'!D159) -> FALSE | AZ132: =IF(AW132,'Yahoo Stocks'!E159) -> FALSE | BD132: 159 | BE132: FALSE | BF132: =IF(BE132,'Google Finance Stocks'!D156) -> FALSE | BH132: =IF(BE132,'Google Finance Stocks'!E156) -> FALSE | BL132: 159 | BM132: FALSE | BN132: ='Exchange Rates'!D155 -> 0 | BP132: =IF(BM132,'Exchange Rates'!E155) -> FALSE
L133: 131 | Q133: =Q132+1 -> 131 | R133: FALSE | X133: =X132+1 -> 139 | Y133: FALSE | Z133: =IF($F$17,'FRED Indicies'!E146) -> 0 | AB133: =IF($F$17,'FRED Indicies'!D146) -> 0 | AF133: =AF132+1 -> 144 | AG133: FALSE | AH133: =IF(AG133,'Google Index'!E160) -> FALSE | AJ133: =IF(AF133,'Google Index'!F160) -> 0 | AN133: =AN132+1 -> 144 | AO133: FALSE | AP133: =IF(AO133,'Commodity Prices'!C146) -> FALSE | AR133: =IF(AO133,'Commodity Prices'!D146) -> FALSE | AV133: =AV132+1 -> 150 | AW133: FALSE | AX133: =IF(AW133,'Yahoo Stocks'!D160) -> FALSE | AZ133: =IF(AW133,'Yahoo Stocks'!E160) -> FALSE | BD133: =BD132+1 -> 160 | BE133: FALSE | BF133: =IF(BE133,'Google Finance Stocks'!D157) -> FALSE | BH133: =IF(BE133,'Google Finance Stocks'!E157) -> FALSE | BL133: =BL132+1 -> 160 | BM133: FALSE | BN133: ='Exchange Rates'!D156 -> 0 | BP133: =IF(BM133,'Exchange Rates'!E156) -> FALSE
L134: 132 | Q134: 132 | R134: FALSE | X134: 140 | Y134: FALSE | Z134: =IF($F$17,'FRED Indicies'!E147) -> 0 | AB134: =IF($F$17,'FRED Indicies'!D147) -> 0 | AF134: 145 | AG134: FALSE | AH134: =IF(AG134,'Google Index'!E161) -> FALSE | AJ134: =IF(AF134,'Google Index'!F161) -> 0 | AN134: 145 | AO134: FALSE | AP134: =IF(AO134,'Commodity Prices'!C147) -> FALSE | AR134: =IF(AO134,'Commodity Prices'!D147) -> FALSE | AV134: 151 | AW134: FALSE | AX134: =IF(AW134,'Yahoo Stocks'!D161) -> FALSE | AZ134: =IF(AW134,'Yahoo Stocks'!E161) -> FALSE | BD134: 161 | BE134: FALSE | BF134: =IF(BE134,'Google Finance Stocks'!D158) -> FALSE | BH134: =IF(BE134,'Google Finance Stocks'!E158) -> FALSE | BL134: 161 | BM134: FALSE | BN134: ='Exchange Rates'!D157 -> 0 | BP134: =IF(BM134,'Exchange Rates'!E157) -> FALSE
L135: 133 | M135: =S135&AA135&AI135&AQ135&AY135&BG135&BO135 ->  | N135: =T135&AC135&AK135&AS135&BA135&BI135&BQ135 ->  | O135: =U135&AD135&AL135&AT135&BB135&BJ135&BR135 ->  | P135: =V135&AE135&AM135&AU135&BC135&BK135&BS135 ->  | Q135: 133 | R135: =IF(AND($F$3,Q135<=$H$3),Q135) -> FALSE | X135: 141 | Y135: FALSE | Z135: =IF($F$17,'FRED Indicies'!E148) -> 0 | AB135: =IF($F$17,'FRED Indicies'!D148) -> 0 | AF135: 146 | AG135: FALSE | AH135: =IF(AG135,'Google Index'!E162) -> FALSE | AJ135: =IF(AF135,'Google Index'!F162) -> 0 | AN135: 146 | AO135: FALSE | AP135: =IF(AO135,'Commodity Prices'!C148) -> FALSE | AR135: =IF(AO135,'Commodity Prices'!D148) -> FALSE | AV135: 152 | AW135: FALSE | AX135: =IF(AW135,'Yahoo Stocks'!D162) -> FALSE | AZ135: =IF(AW135,'Yahoo Stocks'!E162) -> FALSE | BD135: 162 | BE135: FALSE | BF135: =IF(BE135,'Google Finance Stocks'!D159) -> FALSE | BH135: =IF(BE135,'Google Finance Stocks'!E159) -> FALSE | BL135: 162 | BM135: FALSE | BN135: ='Exchange Rates'!D158 -> 0 | BP135: =IF(BM135,'Exchange Rates'!E158) -> FALSE
L136: 134 | Q136: 134 | R136: FALSE | X136: 142 | Y136: FALSE | Z136: =IF($F$17,'FRED Indicies'!E149) -> 0 | AB136: =IF($F$17,'FRED Indicies'!D149) -> 0 | AF136: 147 | AG136: FALSE | AH136: =IF(AG136,'Google Index'!E163) -> FALSE | AJ136: =IF(AF136,'Google Index'!F163) -> 0 | AN136: 147 | AO136: FALSE | AP136: =IF(AO136,'Commodity Prices'!C149) -> FALSE | AR136: =IF(AO136,'Commodity Prices'!D149) -> FALSE | AV136: 153 | AW136: FALSE | AX136: =IF(AW136,'Yahoo Stocks'!D163) -> FALSE | AZ136: =IF(AW136,'Yahoo Stocks'!E163) -> FALSE | BD136: 163 | BE136: FALSE | BF136: =IF(BE136,'Google Finance Stocks'!D160) -> FALSE | BH136: =IF(BE136,'Google Finance Stocks'!E160) -> FALSE | BL136: 163 | BM136: FALSE | BN136: ='Exchange Rates'!D159 -> 0 | BP136: =IF(BM136,'Exchange Rates'!E159) -> FALSE
L137: 135 | Q137: 135 | R137: FALSE | X137: 143 | Y137: FALSE | Z137: =IF($F$17,'FRED Indicies'!E150) -> 0 | AB137: =IF($F$17,'FRED Indicies'!D150) -> 0 | AF137: 148 | AG137: FALSE | AH137: =IF(AG137,'Google Index'!E164) -> FALSE | AJ137: =IF(AF137,'Google Index'!F164) -> 0 | AN137: 148 | AO137: FALSE | AP137: =IF(AO137,'Commodity Prices'!C150) -> FALSE | AR137: =IF(AO137,'Commodity Prices'!D150) -> FALSE | AV137: 154 | AW137: FALSE | AX137: =IF(AW137,'Yahoo Stocks'!D164) -> FALSE | AZ137: =IF(AW137,'Yahoo Stocks'!E164) -> FALSE | BD137: 164 | BE137: FALSE | BF137: =IF(BE137,'Google Finance Stocks'!D161) -> FALSE | BH137: =IF(BE137,'Google Finance Stocks'!E161) -> FALSE | BL137: 164 | BM137: FALSE | BN137: ='Exchange Rates'!D160 -> 0 | BP137: =IF(BM137,'Exchange Rates'!E160) -> FALSE
L138: 136 | Q138: 136 | R138: FALSE | X138: 144 | Y138: FALSE | Z138: =IF($F$17,'FRED Indicies'!E151) -> 0 | AB138: =IF($F$17,'FRED Indicies'!D151) -> 0 | AF138: 149 | AG138: FALSE | AH138: =IF(AG138,'Google Index'!E165) -> FALSE | AJ138: =IF(AF138,'Google Index'!F165) -> 0 | AN138: 149 | AO138: FALSE | AP138: =IF(AO138,'Commodity Prices'!C151) -> FALSE | AR138: =IF(AO138,'Commodity Prices'!D151) -> FALSE | AV138: 155 | AW138: FALSE | AX138: =IF(AW138,'Yahoo Stocks'!D165) -> FALSE | AZ138: =IF(AW138,'Yahoo Stocks'!E165) -> FALSE | BD138: 165 | BE138: FALSE | BF138: =IF(BE138,'Google Finance Stocks'!D162) -> FALSE | BH138: =IF(BE138,'Google Finance Stocks'!E162) -> FALSE | BL138: 165 | BM138: FALSE | BN138: ='Exchange Rates'!D161 -> 0 | BP138: =IF(BM138,'Exchange Rates'!E161) -> FALSE
L139: 137 | Q139: 137 | R139: FALSE | X139: 145 | Y139: FALSE | Z139: =IF($F$17,'FRED Indicies'!E152) -> 0 | AB139: =IF($F$17,'FRED Indicies'!D152) -> 0 | AF139: 150 | AG139: FALSE | AH139: =IF(AG139,'Google Index'!E166) -> FALSE | AJ139: =IF(AF139,'Google Index'!F166) -> 0 | AN139: 150 | AO139: FALSE | AP139: =IF(AO139,'Commodity Prices'!C152) -> FALSE | AR139: =IF(AO139,'Commodity Prices'!D152) -> FALSE | AV139: 156 | AW139: FALSE | AX139: =IF(AW139,'Yahoo Stocks'!D166) -> FALSE | AZ139: =IF(AW139,'Yahoo Stocks'!E166) -> FALSE | BD139: 166 | BE139: FALSE | BF139: =IF(BE139,'Google Finance Stocks'!D163) -> FALSE | BH139: =IF(BE139,'Google Finance Stocks'!E163) -> FALSE | BL139: 166 | BM139: FALSE | BN139: ='Exchange Rates'!D162 -> 0 | BP139: =IF(BM139,'Exchange Rates'!E162) -> FALSE
L140: 138 | Q140: 138 | R140: FALSE | X140: 146 | Y140: FALSE | Z140: =IF($F$17,'FRED Indicies'!E153) -> 0 | AB140: =IF($F$17,'FRED Indicies'!D153) -> 0 | AF140: 151 | AG140: FALSE | AH140: =IF(AG140,'Google Index'!E167) -> FALSE | AJ140: =IF(AF140,'Google Index'!F167) -> 0 | AN140: 151 | AO140: FALSE | AP140: =IF(AO140,'Commodity Prices'!C153) -> FALSE | AR140: =IF(AO140,'Commodity Prices'!D153) -> FALSE | AV140: 157 | AW140: FALSE | AX140: =IF(AW140,'Yahoo Stocks'!D167) -> FALSE | AZ140: =IF(AW140,'Yahoo Stocks'!E167) -> FALSE | BD140: 167 | BE140: FALSE | BF140: =IF(BE140,'Google Finance Stocks'!D164) -> FALSE | BH140: =IF(BE140,'Google Finance Stocks'!E164) -> FALSE | BL140: 167 | BM140: FALSE | BN140: ='Exchange Rates'!D163 -> 0 | BP140: =IF(BM140,'Exchange Rates'!E163) -> FALSE
L141: 139 | M141: =S141&AA141&AI141&AQ141&AY141&BG141&BO141 ->  | N141: =T141&AC141&AK141&AS141&BA141&BI141&BQ141 ->  | O141: =U141&AD141&AL141&AT141&BB141&BJ141&BR141 ->  | P141: =V141&AE141&AM141&AU141&BC141&BK141&BS141 ->  | Q141: 139 | R141: FALSE | X141: 147 | Y141: FALSE | Z141: =IF($F$17,'FRED Indicies'!E154) -> 0 | AB141: =IF($F$17,'FRED Indicies'!D154) -> 0 | AF141: 152 | AG141: FALSE | AH141: =IF(AG141,'Google Index'!E168) -> FALSE | AJ141: =IF(AF141,'Google Index'!F168) -> 0 | AN141: 152 | AO141: FALSE | AP141: =IF(AO141,'Commodity Prices'!C154) -> FALSE | AR141: =IF(AO141,'Commodity Prices'!D154) -> FALSE | AV141: 158 | AW141: FALSE | AX141: =IF(AW141,'Yahoo Stocks'!D168) -> FALSE | AZ141: =IF(AW141,'Yahoo Stocks'!E168) -> FALSE | BD141: 168 | BE141: FALSE | BF141: =IF(BE141,'Google Finance Stocks'!D165) -> FALSE | BH141: =IF(BE141,'Google Finance Stocks'!E165) -> FALSE | BL141: 168 | BM141: FALSE | BN141: ='Exchange Rates'!D164 -> 0 | BP141: =IF(BM141,'Exchange Rates'!E164) -> FALSE
L142: 140 | Q142: 140 | R142: FALSE | X142: 148 | Y142: FALSE | Z142: =IF($F$17,'FRED Indicies'!E155) -> 0 | AB142: =IF($F$17,'FRED Indicies'!D155) -> 0 | AF142: 153 | AG142: FALSE | AH142: =IF(AG142,'Google Index'!E169) -> FALSE | AJ142: =IF(AF142,'Google Index'!F169) -> 0 | AN142: 153 | AO142: FALSE | AP142: =IF(AO142,'Commodity Prices'!C155) -> FALSE | AR142: =IF(AO142,'Commodity Prices'!D155) -> FALSE | AV142: 159 | AW142: FALSE | AX142: =IF(AW142,'Yahoo Stocks'!D169) -> FALSE | AZ142: =IF(AW142,'Yahoo Stocks'!E169) -> FALSE | BD142: 169 | BE142: FALSE | BF142: =IF(BE142,'Google Finance Stocks'!D166) -> FALSE | BH142: =IF(BE142,'Google Finance Stocks'!E166) -> FALSE | BL142: 169 | BM142: FALSE | BN142: ='Exchange Rates'!D165 -> 0 | BP142: =IF(BM142,'Exchange Rates'!E165) -> FALSE
L143: 141 | Q143: 141 | R143: FALSE | X143: 149 | Y143: FALSE | Z143: =IF($F$17,'FRED Indicies'!E156) -> 0 | AB143: =IF($F$17,'FRED Indicies'!D156) -> 0 | AF143: 154 | AG143: FALSE | AH143: =IF(AG143,'Google Index'!E170) -> FALSE | AJ143: =IF(AF143,'Google Index'!F170) -> 0 | AN143: 154 | AO143: FALSE | AP143: =IF(AO143,'Commodity Prices'!C156) -> FALSE | AR143: =IF(AO143,'Commodity Prices'!D156) -> FALSE | AV143: 160 | AW143: FALSE | AX143: =IF(AW143,'Yahoo Stocks'!D170) -> FALSE | AZ143: =IF(AW143,'Yahoo Stocks'!E170) -> FALSE | BD143: 170 | BE143: FALSE | BF143: =IF(BE143,'Google Finance Stocks'!D167) -> FALSE | BH143: =IF(BE143,'Google Finance Stocks'!E167) -> FALSE | BL143: 170 | BM143: FALSE | BN143: ='Exchange Rates'!D166 -> 0 | BP143: =IF(BM143,'Exchange Rates'!E166) -> FALSE
L144: 142 | Q144: 142 | R144: FALSE | X144: 150 | Y144: FALSE | Z144: =IF($F$17,'FRED Indicies'!E157) -> 0 | AB144: =IF($F$17,'FRED Indicies'!D157) -> 0 | AF144: 155 | AG144: FALSE | AH144: =IF(AG144,'Google Index'!E171) -> FALSE | AJ144: =IF(AF144,'Google Index'!F171) -> 0 | AN144: 155 | AO144: FALSE | AP144: =IF(AO144,'Commodity Prices'!C157) -> FALSE | AR144: =IF(AO144,'Commodity Prices'!D157) -> FALSE | AV144: 161 | AW144: FALSE | AX144: =IF(AW144,'Yahoo Stocks'!D171) -> FALSE | AZ144: =IF(AW144,'Yahoo Stocks'!E171) -> FALSE | BD144: 171 | BE144: FALSE | BF144: =IF(BE144,'Google Finance Stocks'!D168) -> FALSE | BH144: =IF(BE144,'Google Finance Stocks'!E168) -> FALSE | BL144: 171 | BM144: FALSE | BN144: ='Exchange Rates'!D167 -> 0 | BP144: =IF(BM144,'Exchange Rates'!E167) -> FALSE
L145: 143 | Q145: 143 | R145: FALSE | X145: 151 | Y145: FALSE | Z145: =IF($F$17,'FRED Indicies'!E158) -> 0 | AB145: =IF($F$17,'FRED Indicies'!D158) -> 0 | AF145: 156 | AG145: FALSE | AH145: =IF(AG145,'Google Index'!E172) -> FALSE | AJ145: =IF(AF145,'Google Index'!F172) -> 0 | AN145: 156 | AO145: FALSE | AP145: =IF(AO145,'Commodity Prices'!C158) -> FALSE | AR145: =IF(AO145,'Commodity Prices'!D158) -> FALSE | AV145: 162 | AW145: FALSE | AX145: =IF(AW145,'Yahoo Stocks'!D172) -> FALSE | AZ145: =IF(AW145,'Yahoo Stocks'!E172) -> FALSE | BD145: 172 | BE145: FALSE | BF145: =IF(BE145,'Google Finance Stocks'!D169) -> FALSE | BH145: =IF(BE145,'Google Finance Stocks'!E169) -> FALSE | BL145: 172 | BM145: FALSE | BN145: ='Exchange Rates'!D168 -> 0 | BP145: =IF(BM145,'Exchange Rates'!E168) -> FALSE
L146: 144 | Q146: 144 | R146: FALSE | X146: 152 | Y146: FALSE | Z146: =IF($F$17,'FRED Indicies'!E159) -> 0 | AB146: =IF($F$17,'FRED Indicies'!D159) -> 0 | AF146: 157 | AG146: FALSE | AH146: =IF(AG146,'Google Index'!E173) -> FALSE | AJ146: =IF(AF146,'Google Index'!F173) -> 0 | AN146: 157 | AO146: FALSE | AP146: =IF(AO146,'Commodity Prices'!C159) -> FALSE | AR146: =IF(AO146,'Commodity Prices'!D159) -> FALSE | AV146: 163 | AW146: FALSE | AX146: =IF(AW146,'Yahoo Stocks'!D173) -> FALSE | AZ146: =IF(AW146,'Yahoo Stocks'!E173) -> FALSE | BD146: 173 | BE146: FALSE | BF146: =IF(BE146,'Google Finance Stocks'!D170) -> FALSE | BH146: =IF(BE146,'Google Finance Stocks'!E170) -> FALSE | BL146: 173 | BM146: FALSE | BN146: ='Exchange Rates'!D169 -> 0 | BP146: =IF(BM146,'Exchange Rates'!E169) -> FALSE
L147: 145 | Q147: 145 | R147: FALSE | X147: 153 | Y147: FALSE | Z147: =IF($F$17,'FRED Indicies'!E160) -> 0 | AB147: =IF($F$17,'FRED Indicies'!D160) -> 0 | AF147: 158 | AG147: FALSE | AH147: =IF(AG147,'Google Index'!E174) -> FALSE | AJ147: =IF(AF147,'Google Index'!F174) -> 0 | AN147: 158 | AO147: FALSE | AP147: =IF(AO147,'Commodity Prices'!C160) -> FALSE | AR147: =IF(AO147,'Commodity Prices'!D160) -> FALSE | AV147: 164 | AW147: FALSE | AX147: =IF(AW147,'Yahoo Stocks'!D174) -> FALSE | AZ147: =IF(AW147,'Yahoo Stocks'!E174) -> FALSE | BD147: 174 | BE147: FALSE | BF147: =IF(BE147,'Google Finance Stocks'!D171) -> FALSE | BH147: =IF(BE147,'Google Finance Stocks'!E171) -> FALSE | BL147: 174 | BM147: FALSE | BN147: ='Exchange Rates'!D170 -> 0 | BP147: =IF(BM147,'Exchange Rates'!E170) -> FALSE
L148: 146 | Q148: 146 | R148: FALSE | X148: 154 | Y148: FALSE | Z148: =IF($F$17,'FRED Indicies'!E161) -> 0 | AB148: =IF($F$17,'FRED Indicies'!D161) -> 0 | AF148: 159 | AG148: FALSE | AH148: =IF(AG148,'Google Index'!E175) -> FALSE | AJ148: =IF(AF148,'Google Index'!F175) -> 0 | AN148: 159 | AO148: FALSE | AP148: =IF(AO148,'Commodity Prices'!C161) -> FALSE | AR148: =IF(AO148,'Commodity Prices'!D161) -> FALSE | AV148: 165 | AW148: FALSE | AX148: =IF(AW148,'Yahoo Stocks'!D175) -> FALSE | AZ148: =IF(AW148,'Yahoo Stocks'!E175) -> FALSE | BD148: 175 | BE148: FALSE | BF148: =IF(BE148,'Google Finance Stocks'!D172) -> FALSE | BH148: =IF(BE148,'Google Finance Stocks'!E172) -> FALSE | BL148: 175 | BM148: FALSE | BN148: ='Exchange Rates'!D171 -> 0 | BP148: =IF(BM148,'Exchange Rates'!E171) -> FALSE
L149: 147 | Q149: 147 | R149: FALSE | X149: 155 | Y149: FALSE | Z149: =IF($F$17,'FRED Indicies'!E162) -> 0 | AB149: =IF($F$17,'FRED Indicies'!D162) -> 0 | AF149: 160 | AG149: FALSE | AH149: =IF(AG149,'Google Index'!E176) -> FALSE | AJ149: =IF(AF149,'Google Index'!F176) -> 0 | AN149: 160 | AO149: FALSE | AP149: =IF(AO149,'Commodity Prices'!C162) -> FALSE | AR149: =IF(AO149,'Commodity Prices'!D162) -> FALSE | AV149: 166 | AW149: FALSE | AX149: =IF(AW149,'Yahoo Stocks'!D176) -> FALSE | AZ149: =IF(AW149,'Yahoo Stocks'!E176) -> FALSE | BD149: 176 | BE149: FALSE | BF149: =IF(BE149,'Google Finance Stocks'!D173) -> FALSE | BH149: =IF(BE149,'Google Finance Stocks'!E173) -> FALSE | BL149: 176 | BM149: FALSE | BN149: ='Exchange Rates'!D172 -> 0 | BP149: =IF(BM149,'Exchange Rates'!E172) -> FALSE
L150: 148 | Q150: 148 | R150: FALSE | X150: 156 | Y150: FALSE | Z150: =IF($F$17,'FRED Indicies'!E163) -> 0 | AB150: =IF($F$17,'FRED Indicies'!D163) -> 0 | AF150: 161 | AG150: FALSE | AH150: =IF(AG150,'Google Index'!E177) -> FALSE | AJ150: =IF(AF150,'Google Index'!F177) -> 0 | AN150: 161 | AO150: FALSE | AP150: =IF(AO150,'Commodity Prices'!C163) -> FALSE | AR150: =IF(AO150,'Commodity Prices'!D163) -> FALSE | AV150: 167 | AW150: FALSE | AX150: =IF(AW150,'Yahoo Stocks'!D177) -> FALSE | AZ150: =IF(AW150,'Yahoo Stocks'!E177) -> FALSE | BD150: 177 | BE150: FALSE | BF150: =IF(BE150,'Google Finance Stocks'!D174) -> FALSE | BH150: =IF(BE150,'Google Finance Stocks'!E174) -> FALSE | BL150: 177 | BM150: FALSE | BN150: ='Exchange Rates'!D173 -> 0 | BP150: =IF(BM150,'Exchange Rates'!E173) -> FALSE
L151: 149 | Q151: 149 | R151: FALSE | X151: 157 | Y151: FALSE | Z151: =IF($F$17,'FRED Indicies'!E164) -> 0 | AB151: =IF($F$17,'FRED Indicies'!D164) -> 0 | AF151: 162 | AG151: FALSE | AH151: =IF(AG151,'Google Index'!E178) -> FALSE | AJ151: =IF(AF151,'Google Index'!F178) -> 0 | AN151: 162 | AO151: FALSE | AP151: =IF(AO151,'Commodity Prices'!C164) -> FALSE | AR151: =IF(AO151,'Commodity Prices'!D164) -> FALSE | AV151: 168 | AW151: FALSE | AX151: =IF(AW151,'Yahoo Stocks'!D178) -> FALSE | AZ151: =IF(AW151,'Yahoo Stocks'!E178) -> FALSE | BD151: 178 | BE151: FALSE | BF151: =IF(BE151,'Google Finance Stocks'!D175) -> FALSE | BH151: =IF(BE151,'Google Finance Stocks'!E175) -> FALSE | BL151: 178 | BM151: FALSE | BN151: ='Exchange Rates'!D174 -> 0 | BP151: =IF(BM151,'Exchange Rates'!E174) -> FALSE
L152: 150 | Q152: 150 | R152: FALSE | X152: 158 | Y152: FALSE | Z152: =IF($F$17,'FRED Indicies'!E165) -> 0 | AB152: =IF($F$17,'FRED Indicies'!D165) -> 0 | AF152: 163 | AG152: FALSE | AH152: =IF(AG152,'Google Index'!E179) -> FALSE | AJ152: =IF(AF152,'Google Index'!F179) -> 0 | AN152: 163 | AO152: FALSE | AP152: =IF(AO152,'Commodity Prices'!C165) -> FALSE | AR152: =IF(AO152,'Commodity Prices'!D165) -> FALSE | AV152: 169 | AW152: FALSE | AX152: =IF(AW152,'Yahoo Stocks'!D179) -> FALSE | AZ152: =IF(AW152,'Yahoo Stocks'!E179) -> FALSE | BD152: 179 | BE152: FALSE | BF152: =IF(BE152,'Google Finance Stocks'!D176) -> FALSE | BH152: =IF(BE152,'Google Finance Stocks'!E176) -> FALSE | BL152: 179 | BM152: FALSE | BN152: ='Exchange Rates'!D175 -> 0 | BP152: =IF(BM152,'Exchange Rates'!E175) -> FALSE
L153: 151 | Q153: 151 | R153: FALSE | X153: 159 | Y153: FALSE | Z153: =IF($F$17,'FRED Indicies'!E166) -> 0 | AB153: =IF($F$17,'FRED Indicies'!D166) -> 0 | AF153: 164 | AG153: FALSE | AH153: =IF(AG153,'Google Index'!E180) -> FALSE | AJ153: =IF(AF153,'Google Index'!F180) -> 0 | AN153: 164 | AO153: FALSE | AP153: =IF(AO153,'Commodity Prices'!C166) -> FALSE | AR153: =IF(AO153,'Commodity Prices'!D166) -> FALSE | AV153: 170 | AW153: FALSE | AX153: =IF(AW153,'Yahoo Stocks'!D180) -> FALSE | AZ153: =IF(AW153,'Yahoo Stocks'!E180) -> FALSE | BD153: 180 | BE153: FALSE | BF153: =IF(BE153,'Google Finance Stocks'!D177) -> FALSE | BH153: =IF(BE153,'Google Finance Stocks'!E177) -> FALSE | BL153: 180 | BM153: FALSE | BN153: ='Exchange Rates'!D176 -> 0 | BP153: =IF(BM153,'Exchange Rates'!E176) -> FALSE
L154: 152 | X154: 160 | Y154: FALSE | Z154: =IF($F$17,'FRED Indicies'!E167) -> 0 | AB154: =IF($F$17,'FRED Indicies'!D167) -> 0 | AF154: 165 | AG154: FALSE | AH154: =IF(AG154,'Google Index'!E181) -> FALSE | AJ154: =IF(AF154,'Google Index'!F181) -> 0 | AN154: 165 | AO154: FALSE | AP154: =IF(AO154,'Commodity Prices'!C167) -> FALSE | AR154: =IF(AO154,'Commodity Prices'!D167) -> FALSE | AV154: 171 | AW154: FALSE | AX154: =IF(AW154,'Yahoo Stocks'!D181) -> FALSE | AZ154: =IF(AW154,'Yahoo Stocks'!E181) -> FALSE | BD154: 181 | BE154: FALSE | BF154: =IF(BE154,'Google Finance Stocks'!D178) -> FALSE | BH154: =IF(BE154,'Google Finance Stocks'!E178) -> FALSE | BL154: 181 | BM154: FALSE | BN154: ='Exchange Rates'!D177 -> 0 | BP154: =IF(BM154,'Exchange Rates'!E177) -> FALSE
L155: 153 | X155: 161 | Y155: FALSE | Z155: =IF($F$17,'FRED Indicies'!E168) -> 0 | AB155: =IF($F$17,'FRED Indicies'!D168) -> 0 | AF155: 166 | AG155: FALSE | AH155: =IF(AG155,'Google Index'!E182) -> FALSE | AJ155: =IF(AF155,'Google Index'!F182) -> 0 | AN155: 166 | AO155: FALSE | AP155: =IF(AO155,'Commodity Prices'!C168) -> FALSE | AR155: =IF(AO155,'Commodity Prices'!D168) -> FALSE | AV155: 172 | AW155: FALSE | AX155: =IF(AW155,'Yahoo Stocks'!D182) -> FALSE | AY155: =IFERROR(INDEX(AX:AX,MATCH(L155,AW:AW,0)),"") ->  | AZ155: =IF(AW155,'Yahoo Stocks'!E182) -> FALSE | BA155: =IFERROR(INDEX(AZ:AZ,MATCH(L155,AW:AW,0)),"") ->  | BD155: 182 | BE155: FALSE | BF155: =IF(BE155,'Google Finance Stocks'!D179) -> FALSE | BH155: =IF(BE155,'Google Finance Stocks'!E179) -> FALSE | BL155: 182 | BM155: FALSE | BN155: ='Exchange Rates'!D178 -> 0 | BP155: =IF(BM155,'Exchange Rates'!E178) -> FALSE
L156: 154 | X156: 162 | Y156: FALSE | Z156: =IF($F$17,'FRED Indicies'!E169) -> 0 | AB156: =IF($F$17,'FRED Indicies'!D169) -> 0 | AF156: 167 | AG156: FALSE | AH156: =IF(AG156,'Google Index'!E183) -> FALSE | AJ156: =IF(AF156,'Google Index'!F183) -> 0 | AN156: 167 | AO156: FALSE | AP156: =IF(AO156,'Commodity Prices'!C169) -> FALSE | AR156: =IF(AO156,'Commodity Prices'!D169) -> FALSE | AV156: 173 | AW156: FALSE | AX156: =IF(AW156,'Yahoo Stocks'!D183) -> FALSE | AZ156: =IF(AW156,'Yahoo Stocks'!E183) -> FALSE | BD156: 183 | BE156: FALSE | BF156: =IF(BE156,'Google Finance Stocks'!D180) -> FALSE | BH156: =IF(BE156,'Google Finance Stocks'!E180) -> FALSE | BL156: 183 | BM156: FALSE | BN156: ='Exchange Rates'!D179 -> 0 | BP156: =IF(BM156,'Exchange Rates'!E179) -> FALSE
L157: 155 | X157: 163 | Y157: FALSE | Z157: =IF($F$17,'FRED Indicies'!E170) -> 0 | AB157: =IF($F$17,'FRED Indicies'!D170) -> 0 | AF157: 168 | AG157: FALSE | AH157: =IF(AG157,'Google Index'!E184) -> FALSE | AJ157: =IF(AF157,'Google Index'!F184) -> 0 | AN157: 168 | AO157: FALSE | AP157: =IF(AO157,'Commodity Prices'!C170) -> FALSE | AR157: =IF(AO157,'Commodity Prices'!D170) -> FALSE | AV157: 174 | AW157: FALSE | AX157: =IF(AW157,'Yahoo Stocks'!D184) -> FALSE | AZ157: =IF(AW157,'Yahoo Stocks'!E184) -> FALSE | BD157: 184 | BE157: FALSE | BF157: =IF(BE157,'Google Finance Stocks'!D181) -> FALSE | BH157: =IF(BE157,'Google Finance Stocks'!E181) -> FALSE | BL157: 184 | BM157: FALSE | BN157: ='Exchange Rates'!D180 -> 0 | BP157: =IF(BM157,'Exchange Rates'!E180) -> FALSE
L158: 156 | X158: 164 | Y158: FALSE | Z158: =IF($F$17,'FRED Indicies'!E171) -> 0 | AB158: =IF($F$17,'FRED Indicies'!D171) -> 0 | AF158: 169 | AG158: FALSE | AH158: =IF(AG158,'Google Index'!E185) -> FALSE | AJ158: =IF(AF158,'Google Index'!F185) -> 0 | AN158: 169 | AO158: FALSE | AP158: =IF(AO158,'Commodity Prices'!C171) -> FALSE | AR158: =IF(AO158,'Commodity Prices'!D171) -> FALSE | AV158: 175 | AW158: FALSE | AX158: =IF(AW158,'Yahoo Stocks'!D185) -> FALSE | AZ158: =IF(AW158,'Yahoo Stocks'!E185) -> FALSE | BD158: 185 | BE158: FALSE | BF158: =IF(BE158,'Google Finance Stocks'!D182) -> FALSE | BH158: =IF(BE158,'Google Finance Stocks'!E182) -> FALSE | BL158: 185 | BM158: FALSE | BN158: ='Exchange Rates'!D181 -> 0 | BP158: =IF(BM158,'Exchange Rates'!E181) -> FALSE
L159: 157 | X159: 165 | Y159: FALSE | Z159: =IF($F$17,'FRED Indicies'!E172) -> 0 | AB159: =IF($F$17,'FRED Indicies'!D172) -> 0 | AF159: 170 | AG159: FALSE | AH159: =IF(AG159,'Google Index'!E186) -> FALSE | AJ159: =IF(AF159,'Google Index'!F186) -> 0 | AN159: 170 | AO159: FALSE | AP159: =IF(AO159,'Commodity Prices'!C172) -> FALSE | AR159: =IF(AO159,'Commodity Prices'!D172) -> FALSE | AV159: 176 | AW159: FALSE | AX159: =IF(AW159,'Yahoo Stocks'!D186) -> FALSE | AZ159: =IF(AW159,'Yahoo Stocks'!E186) -> FALSE | BD159: 186 | BE159: FALSE | BF159: =IF(BE159,'Google Finance Stocks'!D183) -> FALSE | BH159: =IF(BE159,'Google Finance Stocks'!E183) -> FALSE | BL159: 186 | BM159: FALSE | BN159: ='Exchange Rates'!D182 -> 0 | BP159: =IF(BM159,'Exchange Rates'!E182) -> FALSE
L160: 158 | X160: 166 | Y160: FALSE | Z160: =IF($F$17,'FRED Indicies'!E173) -> 0 | AB160: =IF($F$17,'FRED Indicies'!D173) -> 0 | AF160: 171 | AG160: FALSE | AH160: =IF(AG160,'Google Index'!E187) -> FALSE | AJ160: =IF(AF160,'Google Index'!F187) -> 0 | AN160: 171 | AO160: FALSE | AP160: =IF(AO160,'Commodity Prices'!C173) -> FALSE | AR160: =IF(AO160,'Commodity Prices'!D173) -> FALSE | AV160: 177 | AW160: FALSE | AX160: =IF(AW160,'Yahoo Stocks'!D187) -> FALSE | AZ160: =IF(AW160,'Yahoo Stocks'!E187) -> FALSE | BD160: 187 | BE160: FALSE | BF160: =IF(BE160,'Google Finance Stocks'!D184) -> FALSE | BH160: =IF(BE160,'Google Finance Stocks'!E184) -> FALSE | BL160: 187 | BM160: FALSE | BN160: ='Exchange Rates'!D183 -> 0 | BP160: =IF(BM160,'Exchange Rates'!E183) -> FALSE
L161: 159 | X161: 167 | Y161: FALSE | Z161: =IF($F$17,'FRED Indicies'!E174) -> 0 | AB161: =IF($F$17,'FRED Indicies'!D174) -> 0 | AF161: 172 | AG161: FALSE | AH161: =IF(AG161,'Google Index'!E188) -> FALSE | AJ161: =IF(AF161,'Google Index'!F188) -> 0 | AN161: 172 | AO161: FALSE | AP161: =IF(AO161,'Commodity Prices'!C174) -> FALSE | AR161: =IF(AO161,'Commodity Prices'!D174) -> FALSE | AV161: 178 | AW161: FALSE | AX161: =IF(AW161,'Yahoo Stocks'!D188) -> FALSE | AZ161: =IF(AW161,'Yahoo Stocks'!E188) -> FALSE | BD161: 188 | BE161: FALSE | BF161: =IF(BE161,'Google Finance Stocks'!D185) -> FALSE | BH161: =IF(BE161,'Google Finance Stocks'!E185) -> FALSE | BL161: 188 | BM161: FALSE | BN161: ='Exchange Rates'!D184 -> 0 | BP161: =IF(BM161,'Exchange Rates'!E184) -> FALSE
L162: 160 | X162: 168 | Y162: FALSE | Z162: =IF($F$17,'FRED Indicies'!E175) -> 0 | AB162: =IF($F$17,'FRED Indicies'!D175) -> 0 | AF162: 173 | AG162: FALSE | AH162: =IF(AG162,'Google Index'!E189) -> FALSE | AJ162: =IF(AF162,'Google Index'!F189) -> 0 | AN162: 173 | AO162: FALSE | AP162: =IF(AO162,'Commodity Prices'!C175) -> FALSE | AR162: =IF(AO162,'Commodity Prices'!D175) -> FALSE | AV162: 179 | AW162: FALSE | AX162: =IF(AW162,'Yahoo Stocks'!D189) -> FALSE | AZ162: =IF(AW162,'Yahoo Stocks'!E189) -> FALSE | BD162: 189 | BE162: FALSE | BF162: =IF(BE162,'Google Finance Stocks'!D186) -> FALSE | BH162: =IF(BE162,'Google Finance Stocks'!E186) -> FALSE | BL162: 189 | BM162: FALSE | BN162: ='Exchange Rates'!D185 -> 0 | BP162: =IF(BM162,'Exchange Rates'!E185) -> FALSE
L163: 161 | X163: 169 | Y163: =IF(AND($F$17,X163<=$H$17),X163) -> FALSE | Z163: =IF($F$17,'FRED Indicies'!E176) -> 0 | AB163: =IF($F$17,'FRED Indicies'!D176) -> 0 | AD163: =IF(AA163<>"",$I$17,"") ->  | AE163: =IF(AA163<>"",$J$17,"") ->  | AF163: 174 | AG163: =IF(AND($F$20,AF163<=$H$20),AF163) -> FALSE | AH163: =IF(AG163,'Google Index'!E190) -> FALSE | AJ163: =IF(AF163,'Google Index'!F190) -> 0 | AL163: =IF(AI163<>"",$I$17,"") ->  | AM163: =IF(AK163<>"",$J$17,"") ->  | AN163: 174 | AO163: =IF(AND($F$11,AN163<=$H$11),AN163) -> FALSE | AP163: =IF(AO163,'Commodity Prices'!C176) -> FALSE | AR163: =IF(AO163,'Commodity Prices'!D176) -> FALSE | AT163: =IF(AQ163<>"",$I$11,"") ->  | AU163: =IF(AS163<>"",$J$11,"") ->  | AV163: 180 | AW163: =IF(AND($F$5,AV163<=$H$5),AV163) -> FALSE | AX163: =IF(AW163,'Yahoo Stocks'!D190) -> FALSE | AZ163: =IF(AW163,'Yahoo Stocks'!E190) -> FALSE | BB163: =IF(AY163<>"",$I$5,"") ->  | BC163: =IF(BA163<>"",$J$5,"") ->  | BD163: 190 | BE163: FALSE | BF163: =IF(BE163,'Google Finance Stocks'!D187) -> FALSE | BH163: =IF(BE163,'Google Finance Stocks'!E187) -> FALSE | BL163: 190 | BM163: FALSE | BN163: ='Exchange Rates'!D186 -> 0 | BP163: =IF(BM163,'Exchange Rates'!E186) -> FALSE
L164: 162 | X164: 170 | Y164: FALSE | Z164: =IF($F$17,'FRED Indicies'!E177) -> 0 | AB164: =IF($F$17,'FRED Indicies'!D177) -> 0 | AF164: 175 | AG164: FALSE | AH164: =IF(AG164,'Google Index'!E191) -> FALSE | AJ164: =IF(AF164,'Google Index'!F191) -> 0 | AN164: 175 | AO164: FALSE | AP164: =IF(AO164,'Commodity Prices'!C177) -> FALSE | AR164: =IF(AO164,'Commodity Prices'!D177) -> FALSE | AV164: 181 | AW164: FALSE | AX164: =IF(AW164,'Yahoo Stocks'!D191) -> FALSE | AZ164: =IF(AW164,'Yahoo Stocks'!E191) -> FALSE | BD164: 191 | BE164: FALSE | BF164: =IF(BE164,'Google Finance Stocks'!D188) -> FALSE | BH164: =IF(BE164,'Google Finance Stocks'!E188) -> FALSE | BL164: 191 | BM164: FALSE | BN164: ='Exchange Rates'!D187 -> 0 | BP164: =IF(BM164,'Exchange Rates'!E187) -> FALSE
L165: 163 | X165: 171 | Y165: FALSE | Z165: =IF($F$17,'FRED Indicies'!E178) -> 0 | AB165: =IF($F$17,'FRED Indicies'!D178) -> 0 | AF165: 176 | AG165: FALSE | AH165: =IF(AG165,'Google Index'!E192) -> FALSE | AJ165: =IF(AF165,'Google Index'!F192) -> 0 | AN165: 176 | AO165: FALSE | AP165: =IF(AO165,'Commodity Prices'!C178) -> FALSE | AR165: =IF(AO165,'Commodity Prices'!D178) -> FALSE | AV165: 182 | AW165: FALSE | AX165: =IF(AW165,'Yahoo Stocks'!D192) -> FALSE | AZ165: =IF(AW165,'Yahoo Stocks'!E192) -> FALSE | BD165: 192 | BE165: FALSE | BF165: =IF(BE165,'Google Finance Stocks'!D189) -> FALSE | BH165: =IF(BE165,'Google Finance Stocks'!E189) -> FALSE | BL165: 192 | BM165: FALSE | BN165: ='Exchange Rates'!D188 -> 0 | BP165: =IF(BM165,'Exchange Rates'!E188) -> FALSE
L166: 164 | X166: 172 | Y166: FALSE | Z166: =IF($F$17,'FRED Indicies'!E179) -> 0 | AB166: =IF($F$17,'FRED Indicies'!D179) -> 0 | AF166: 177 | AG166: FALSE | AH166: =IF(AG166,'Google Index'!E193) -> FALSE | AJ166: =IF(AF166,'Google Index'!F193) -> 0 | AN166: 177 | AO166: FALSE | AP166: =IF(AO166,'Commodity Prices'!C179) -> FALSE | AR166: =IF(AO166,'Commodity Prices'!D179) -> FALSE | AV166: 183 | AW166: FALSE | AX166: =IF(AW166,'Yahoo Stocks'!D193) -> FALSE | AZ166: =IF(AW166,'Yahoo Stocks'!E193) -> FALSE | BD166: 193 | BE166: FALSE | BF166: =IF(BE166,'Google Finance Stocks'!D190) -> FALSE | BH166: =IF(BE166,'Google Finance Stocks'!E190) -> FALSE | BL166: 193 | BM166: FALSE | BN166: ='Exchange Rates'!D189 -> 0 | BP166: =IF(BM166,'Exchange Rates'!E189) -> FALSE
L167: 165 | X167: 173 | Y167: FALSE | Z167: =IF($F$17,'FRED Indicies'!E180) -> 0 | AB167: =IF($F$17,'FRED Indicies'!D180) -> 0 | AF167: 178 | AG167: FALSE | AH167: =IF(AG167,'Google Index'!E194) -> FALSE | AJ167: =IF(AF167,'Google Index'!F194) -> 0 | AN167: 178 | AO167: FALSE | AP167: =IF(AO167,'Commodity Prices'!C180) -> FALSE | AR167: =IF(AO167,'Commodity Prices'!D180) -> FALSE | AV167: 184 | AW167: FALSE | AX167: =IF(AW167,'Yahoo Stocks'!D194) -> FALSE | AZ167: =IF(AW167,'Yahoo Stocks'!E194) -> FALSE | BD167: 194 | BE167: FALSE | BF167: =IF(BE167,'Google Finance Stocks'!D191) -> FALSE | BH167: =IF(BE167,'Google Finance Stocks'!E191) -> FALSE | BL167: 194 | BM167: FALSE | BN167: ='Exchange Rates'!D190 -> 0 | BP167: =IF(BM167,'Exchange Rates'!E190) -> FALSE
L168: 166 | X168: 174 | Y168: FALSE | Z168: =IF($F$17,'FRED Indicies'!E181) -> 0 | AB168: =IF($F$17,'FRED Indicies'!D181) -> 0 | AF168: 179 | AG168: FALSE | AH168: =IF(AG168,'Google Index'!E195) -> FALSE | AJ168: =IF(AF168,'Google Index'!F195) -> 0 | AN168: 179 | AO168: FALSE | AP168: =IF(AO168,'Commodity Prices'!C181) -> FALSE | AR168: =IF(AO168,'Commodity Prices'!D181) -> FALSE | AV168: 185 | AW168: FALSE | AX168: =IF(AW168,'Yahoo Stocks'!D195) -> FALSE | AZ168: =IF(AW168,'Yahoo Stocks'!E195) -> FALSE | BD168: 195 | BE168: FALSE | BF168: =IF(BE168,'Google Finance Stocks'!D192) -> FALSE | BH168: =IF(BE168,'Google Finance Stocks'!E192) -> FALSE | BL168: 195 | BM168: FALSE | BN168: ='Exchange Rates'!D191 -> 0 | BP168: =IF(BM168,'Exchange Rates'!E191) -> FALSE
L169: 167 | X169: 175 | Y169: FALSE | Z169: =IF($F$17,'FRED Indicies'!E182) -> 0 | AB169: =IF($F$17,'FRED Indicies'!D182) -> 0 | AF169: 180 | AG169: FALSE | AH169: =IF(AG169,'Google Index'!E196) -> FALSE | AJ169: =IF(AF169,'Google Index'!F196) -> 0 | AN169: 180 | AO169: FALSE | AP169: =IF(AO169,'Commodity Prices'!C182) -> FALSE | AR169: =IF(AO169,'Commodity Prices'!D182) -> FALSE | AV169: 186 | AW169: FALSE | AX169: =IF(AW169,'Yahoo Stocks'!D196) -> FALSE | AZ169: =IF(AW169,'Yahoo Stocks'!E196) -> FALSE | BD169: 196 | BE169: FALSE | BF169: =IF(BE169,'Google Finance Stocks'!D193) -> FALSE | BH169: =IF(BE169,'Google Finance Stocks'!E193) -> FALSE | BL169: 196 | BM169: FALSE | BN169: ='Exchange Rates'!D192 -> 0 | BP169: =IF(BM169,'Exchange Rates'!E192) -> FALSE
L170: 168 | X170: 176 | Y170: FALSE | Z170: =IF($F$17,'FRED Indicies'!E183) -> 0 | AB170: =IF($F$17,'FRED Indicies'!D183) -> 0 | AF170: 181 | AG170: FALSE | AH170: =IF(AG170,'Google Index'!E197) -> FALSE | AJ170: =IF(AF170,'Google Index'!F197) -> 0 | AN170: 181 | AO170: FALSE | AP170: =IF(AO170,'Commodity Prices'!C183) -> FALSE | AR170: =IF(AO170,'Commodity Prices'!D183) -> FALSE | AV170: 187 | AW170: FALSE | AX170: =IF(AW170,'Yahoo Stocks'!D197) -> FALSE | AZ170: =IF(AW170,'Yahoo Stocks'!E197) -> FALSE | BD170: 197 | BE170: FALSE | BF170: =IF(BE170,'Google Finance Stocks'!D194) -> FALSE | BH170: =IF(BE170,'Google Finance Stocks'!E194) -> FALSE | BL170: 197 | BM170: FALSE | BN170: ='Exchange Rates'!D193 -> 0 | BP170: =IF(BM170,'Exchange Rates'!E193) -> FALSE
L171: 169 | X171: 177 | Y171: FALSE | Z171: =IF($F$17,'FRED Indicies'!E184) -> 0 | AB171: =IF($F$17,'FRED Indicies'!D184) -> 0 | AF171: 182 | AG171: FALSE | AH171: =IF(AG171,'Google Index'!E198) -> FALSE | AJ171: =IF(AF171,'Google Index'!F198) -> 0 | AN171: 182 | AO171: FALSE | AP171: =IF(AO171,'Commodity Prices'!C184) -> FALSE | AR171: =IF(AO171,'Commodity Prices'!D184) -> FALSE | AV171: 188 | AW171: FALSE | AX171: =IF(AW171,'Yahoo Stocks'!D198) -> FALSE | AZ171: =IF(AW171,'Yahoo Stocks'!E198) -> FALSE | BD171: 198 | BE171: FALSE | BF171: =IF(BE171,'Google Finance Stocks'!D195) -> FALSE | BH171: =IF(BE171,'Google Finance Stocks'!E195) -> FALSE | BL171: 198 | BM171: FALSE | BN171: ='Exchange Rates'!D194 -> 0 | BP171: =IF(BM171,'Exchange Rates'!E194) -> FALSE
L172: 170 | BD172: 199 | BE172: FALSE | BF172: =IF(BE172,'Google Finance Stocks'!D196) -> FALSE | BG172: =IFERROR(INDEX(BF:BF,MATCH(Q172,BE:BE,0)),"") ->  | BH172: =IF(BE172,'Google Finance Stocks'!E196) -> FALSE | BI172: =IFERROR(INDEX(BH:BH,MATCH(Q172,BE:BE,0)),"") ->  | BL172: 199 | BM172: FALSE | BN172: ='Exchange Rates'!D195 -> 0 | BO172: =IFERROR(INDEX(BN:BN,MATCH(L172,BM:BM,0)),"") ->  | BP172: =IF(BM172,'Exchange Rates'!E195) -> FALSE | BQ172: =IFERROR(INDEX(BP:BP,MATCH(L172,BM:BM,0)),"") -> 
L173: 171 | BD173: 200 | BE173: FALSE | BF173: =IF(BE173,'Google Finance Stocks'!D197) -> FALSE | BH173: =IF(BE173,'Google Finance Stocks'!E197) -> FALSE | BL173: 200 | BM173: FALSE | BN173: ='Exchange Rates'!D196 -> 0 | BP173: =IF(BM173,'Exchange Rates'!E196) -> FALSE
L174: 172 | BD174: 201 | BE174: FALSE | BF174: =IF(BE174,'Google Finance Stocks'!D198) -> FALSE | BH174: =IF(BE174,'Google Finance Stocks'!E198) -> FALSE | BL174: 201 | BM174: FALSE | BN174: ='Exchange Rates'!D197 -> 0 | BP174: =IF(BM174,'Exchange Rates'!E197) -> FALSE
L175: 173 | BD175: 202 | BE175: FALSE | BF175: =IF(BE175,'Google Finance Stocks'!D199) -> FALSE | BH175: =IF(BE175,'Google Finance Stocks'!E199) -> FALSE | BL175: 202 | BM175: FALSE | BN175: ='Exchange Rates'!D198 -> 0 | BP175: =IF(BM175,'Exchange Rates'!E198) -> FALSE
L176: 174 | BD176: 203 | BE176: FALSE | BF176: =IF(BE176,'Google Finance Stocks'!D200) -> FALSE | BH176: =IF(BE176,'Google Finance Stocks'!E200) -> FALSE | BL176: 203 | BM176: FALSE | BN176: ='Exchange Rates'!D199 -> 0 | BP176: =IF(BM176,'Exchange Rates'!E199) -> FALSE
BD177: 204 | BE177: FALSE | BF177: =IF(BE177,'Google Finance Stocks'!D201) -> FALSE | BH177: =IF(BE177,'Google Finance Stocks'!E201) -> FALSE | BL177: 204 | BM177: FALSE | BN177: ='Exchange Rates'!D200 -> 0 | BP177: =IF(BM177,'Exchange Rates'!E200) -> FALSE
BD178: 205 | BE178: FALSE | BF178: =IF(BE178,'Google Finance Stocks'!D202) -> FALSE | BH178: =IF(BE178,'Google Finance Stocks'!E202) -> FALSE | BL178: 205 | BM178: FALSE | BN178: ='Exchange Rates'!D201 -> 0 | BP178: =IF(BM178,'Exchange Rates'!E201) -> FALSE
BD179: 206 | BE179: FALSE | BF179: =IF(BE179,'Google Finance Stocks'!D203) -> FALSE | BH179: =IF(BE179,'Google Finance Stocks'!E203) -> FALSE | BL179: 206 | BM179: FALSE | BN179: ='Exchange Rates'!D202 -> 0 | BP179: =IF(BM179,'Exchange Rates'!E202) -> FALSE
BD180: 207 | BE180: FALSE | BF180: =IF(BE180,'Google Finance Stocks'!D204) -> FALSE | BH180: =IF(BE180,'Google Finance Stocks'!E204) -> FALSE | BL180: 207 | BM180: FALSE | BN180: ='Exchange Rates'!D203 -> 0 | BP180: =IF(BM180,'Exchange Rates'!E203) -> FALSE
BD181: 208 | BE181: FALSE | BF181: =IF(BE181,'Google Finance Stocks'!D205) -> FALSE | BH181: =IF(BE181,'Google Finance Stocks'!E205) -> FALSE | BL181: 208 | BM181: FALSE | BN181: ='Exchange Rates'!D204 -> 0 | BP181: =IF(BM181,'Exchange Rates'!E204) -> FALSE
BD182: 209 | BE182: FALSE | BF182: =IF(BE182,'Google Finance Stocks'!D206) -> FALSE | BH182: =IF(BE182,'Google Finance Stocks'!E206) -> FALSE | BL182: 209 | BM182: FALSE | BN182: ='Exchange Rates'!D205 -> 0 | BP182: =IF(BM182,'Exchange Rates'!E205) -> FALSE
BD183: 210 | BE183: FALSE | BF183: =IF(BE183,'Google Finance Stocks'!D207) -> FALSE | BH183: =IF(BE183,'Google Finance Stocks'!E207) -> FALSE | BL183: 210 | BM183: FALSE | BN183: ='Exchange Rates'!D206 -> 0 | BP183: =IF(BM183,'Exchange Rates'!E206) -> FALSE
BD184: 211 | BE184: FALSE | BF184: =IF(BE184,'Google Finance Stocks'!D208) -> FALSE | BH184: =IF(BE184,'Google Finance Stocks'!E208) -> FALSE | BL184: 211 | BM184: FALSE | BN184: ='Exchange Rates'!D207 -> 0 | BP184: =IF(BM184,'Exchange Rates'!E207) -> FALSE
BD185: 212 | BE185: FALSE | BF185: =IF(BE185,'Google Finance Stocks'!D209) -> FALSE | BH185: =IF(BE185,'Google Finance Stocks'!E209) -> FALSE | BL185: 212 | BM185: FALSE | BN185: ='Exchange Rates'!D208 -> 0 | BP185: =IF(BM185,'Exchange Rates'!E208) -> FALSE
BD186: 213 | BE186: FALSE | BF186: =IF(BE186,'Google Finance Stocks'!D210) -> FALSE | BH186: =IF(BE186,'Google Finance Stocks'!E210) -> FALSE | BL186: 213 | BM186: FALSE | BN186: ='Exchange Rates'!D209 -> 0 | BP186: =IF(BM186,'Exchange Rates'!E209) -> FALSE
BD187: 214 | BE187: FALSE | BF187: =IF(BE187,'Google Finance Stocks'!D211) -> FALSE | BH187: =IF(BE187,'Google Finance Stocks'!E211) -> FALSE | BL187: 214 | BM187: FALSE | BN187: ='Exchange Rates'!D210 -> 0 | BP187: =IF(BM187,'Exchange Rates'!E210) -> FALSE
BD188: 215 | BE188: FALSE | BF188: =IF(BE188,'Google Finance Stocks'!D212) -> FALSE | BH188: =IF(BE188,'Google Finance Stocks'!E212) -> FALSE | BL188: 215 | BM188: FALSE | BN188: ='Exchange Rates'!D211 -> 0 | BP188: =IF(BM188,'Exchange Rates'!E211) -> FALSE
BD189: 216 | BE189: FALSE | BF189: =IF(BE189,'Google Finance Stocks'!D213) -> FALSE | BH189: =IF(BE189,'Google Finance Stocks'!E213) -> FALSE | BL189: 216 | BM189: FALSE | BN189: ='Exchange Rates'!D212 -> 0 | BP189: =IF(BM189,'Exchange Rates'!E212) -> FALSE
BD190: 217 | BE190: FALSE | BF190: =IF(BE190,'Google Finance Stocks'!D214) -> FALSE | BH190: =IF(BE190,'Google Finance Stocks'!E214) -> FALSE | BL190: 217 | BM190: FALSE | BN190: ='Exchange Rates'!D213 -> 0 | BP190: =IF(BM190,'Exchange Rates'!E213) -> FALSE
BD191: 218 | BE191: FALSE | BF191: =IF(BE191,'Google Finance Stocks'!D215) -> FALSE | BH191: =IF(BE191,'Google Finance Stocks'!E215) -> FALSE | BL191: 218 | BM191: FALSE | BN191: ='Exchange Rates'!D214 -> 0 | BP191: =IF(BM191,'Exchange Rates'!E214) -> FALSE
BD192: 219 | BE192: FALSE | BF192: =IF(BE192,'Google Finance Stocks'!D216) -> FALSE | BH192: =IF(BE192,'Google Finance Stocks'!E216) -> FALSE | BL192: 219 | BM192: FALSE | BN192: ='Exchange Rates'!D215 -> 0 | BP192: =IF(BM192,'Exchange Rates'!E215) -> FALSE
BD193: 220 | BE193: FALSE | BF193: =IF(BE193,'Google Finance Stocks'!D217) -> FALSE | BH193: =IF(BE193,'Google Finance Stocks'!E217) -> FALSE | BL193: 220 | BM193: FALSE | BN193: ='Exchange Rates'!D216 -> 0 | BP193: =IF(BM193,'Exchange Rates'!E216) -> FALSE
BD194: 221 | BE194: FALSE | BF194: =IF(BE194,'Google Finance Stocks'!D218) -> FALSE | BH194: =IF(BE194,'Google Finance Stocks'!E218) -> FALSE | BL194: 221 | BM194: FALSE | BN194: ='Exchange Rates'!D217 -> 0 | BP194: =IF(BM194,'Exchange Rates'!E217) -> FALSE
BD195: 222 | BE195: =IF(AND($F$14,BD195<=$H$14),BD195) -> FALSE | BF195: =IF(BE195,'Google Finance Stocks'!D219) -> FALSE | BH195: =IF(BE195,'Google Finance Stocks'!E219) -> FALSE | BJ195: =IF(BI195<>"",$I$14,"") ->  | BK195: =IF(BI195<>"",$J$14,"") ->  | BL195: 222 | BM195: =IF(AND($F$8,BL195<=$H$8),BL195) -> FALSE | BN195: ='Exchange Rates'!D218 -> 0 | BP195: =IF(BM195,'Exchange Rates'!E218) -> FALSE | BR195: =IF(BQ195<>"",$I$8,"") ->  | BS195: =IF(BQ195<>"",$J$8,"") -> 
BD196: 223 | BE196: FALSE | BF196: =IF(BE196,'Google Finance Stocks'!D220) -> FALSE | BH196: =IF(BE196,'Google Finance Stocks'!E220) -> FALSE | BL196: 223 | BM196: FALSE | BN196: ='Exchange Rates'!D219 -> 0 | BP196: =IF(BM196,'Exchange Rates'!E219) -> FALSE
BD197: =BD196+1 -> 224 | BE197: FALSE | BF197: =IF(BE197,'Google Finance Stocks'!D221) -> FALSE | BH197: =IF(BE197,'Google Finance Stocks'!E221) -> FALSE | BL197: =BL196+1 -> 224 | BM197: FALSE | BN197: ='Exchange Rates'!D220 -> 0 | BP197: =IF(BM197,'Exchange Rates'!E220) -> FALSE
BD198: 225 | BE198: FALSE | BF198: =IF(BE198,'Google Finance Stocks'!D222) -> FALSE | BH198: =IF(BE198,'Google Finance Stocks'!E222) -> FALSE | BL198: 225 | BM198: FALSE | BN198: ='Exchange Rates'!D221 -> 0 | BP198: =IF(BM198,'Exchange Rates'!E221) -> FALSE
BD199: 226 | BE199: FALSE | BF199: =IF(BE199,'Google Finance Stocks'!D223) -> FALSE | BH199: =IF(BE199,'Google Finance Stocks'!E223) -> FALSE | BL199: 226 | BM199: FALSE | BN199: ='Exchange Rates'!D222 -> 0 | BP199: =IF(BM199,'Exchange Rates'!E222) -> FALSE
BD200: 227 | BE200: FALSE | BF200: =IF(BE200,'Google Finance Stocks'!D224) -> FALSE | BH200: =IF(BE200,'Google Finance Stocks'!E224) -> FALSE | BL200: 227 | BM200: FALSE | BN200: ='Exchange Rates'!D223 -> 0 | BP200: =IF(BM200,'Exchange Rates'!E223) -> FALSE
... 6 more rows

Sheet Errors
E9: https://research.stlouisfed.org/fred2/data/INTDSRINM193N.txt
E10: https://research.stlouisfed.org/fred2/data/INTGSBINM193N.txt
E11: https://research.stlouisfed.org/fred2/data/INDIRLTLT01STM.txt
E12: https://research.stlouisfed.org/fred2/data/CPALTT01INM659N.txt
E13: https://research.stlouisfed.org/fred2/data/GS5.txt
E14: https://research.stlouisfed.org/fred2/data/GS10.txt
E15: https://research.stlouisfed.org/fred2/data/GDPDEF.txt
E16: https://research.stlouisfed.org/fred2/data/CPIAUCSL.txt

Sheet Multiple Stock Graph
C1: Index | K1: IRR | L1: Vol | M1: Beta
J2: =O26 -> US S&P 500 | K2: =Summary!L3 -> 0.08846615158 | L2: =Summary!AU5 -> 0.1335267582 | M2: =Summary!AU3 -> 1 | Y2: =J2 -> US S&P 500 | AA2: 0 | AB2: =IF(AA2,INDEX('Read Stocks'!$BN$3:$BN$11,'Multiple Stock Graph'!AA2),"USD") -> USD
B3: Comparison vs Base | G3: Counter | H3: Match | I3: Selection | Y3: =J4 -> IBM | AA3: 0 | AB3: =IF(AA3,INDEX('Read Stocks'!$BN$3:$BN$11,'Multiple Stock Graph'!AA3),"USD") -> USD
A4: 1 | B4: ='Read Stocks'!M3 -> S&P 500 | C4: ='Read Stocks'!N3 -> US S&P 500 | D4: FALSE | F4: =D4*1 -> 0 | G4: 1 | H4: =MATCH(G4,F$1:F$555,0) -> 31 | I4: =INDEX(B:B,H4) -> IBM | J4: =IFERROR(INDEX($C:$C,H4),"") -> IBM | K4: =IFERROR(TRANSPOSE(Summary!BB4:BG4),"") -> 0.05913428569 | L4: =IFERROR(TRANSPOSE(Summary!AV5:BA5),"") -> 0.2063161187 | M4: =IFERROR(TRANSPOSE(Summary!AV3:BA3),"") -> 0.7893319741 | Y4: Microsoft | AA4: 0 | AB4: =IF(AA4,INDEX('Read Stocks'!$BN$3:$BN$11,'Multiple Stock Graph'!AA4),"USD") -> USD
A5: 2 | B5: ='Read Stocks'!M4 -> DAX | C5: ='Read Stocks'!N4 -> DAX in Euro | D5: FALSE | F5: =F4+D5 -> 0 | G5: 2 | H5: =MATCH(G5,F$1:F$555,0) -> 32 | I5: =INDEX(B:B,H5) -> MSFT | J5: =IFERROR(INDEX($C:$C,H5),"") -> Microsoft | K5: 0.1712252251 | L5: 0.2189561195 | M5: 0.9495360688 | AA5: 0 | AB5: =IF(AA5,INDEX('Read Stocks'!$BN$3:$BN$11,'Multiple Stock Graph'!AA5),"USD") -> USD
A6: 3 | B6: ='Read Stocks'!M5 -> Milan | C6: ='Read Stocks'!N5 -> Italy Milan | D6: FALSE | F6: 0 | G6: 3 | L6: 0 | M6: 0 | AA6: 0 | AB6: =IF(AA6,INDEX('Read Stocks'!$BN$3:$BN$11,'Multiple Stock Graph'!AA6),"USD") -> USD
A7: 4 | B7: ='Read Stocks'!M6 -> CAC 40 | C7: ='Read Stocks'!N6 -> France CAC 40 | D7: FALSE | F7: 0 | G7: 4 | H7: =MATCH(G7,F$1:F$555,0) ->  | I7: =INDEX(B:B,H7) ->  | L7: 0 | M7: 0 | AA7: 0 | AB7: =IF(AA7,INDEX('Read Stocks'!$BN$3:$BN$11,'Multiple Stock Graph'!AA7),"USD") -> USD
A8: 5 | B8: ='Read Stocks'!M7 -> Nasdaq 100 | C8: ='Read Stocks'!N7 -> Nasdaq 100 | D8: FALSE | F8: 0 | G8: 5 | L8: 0 | M8: 0 | AA8: 0 | AB8: =IF(AA8,INDEX('Read Stocks'!$BN$3:$BN$11,'Multiple Stock Graph'!AA8),"USD") -> USD
A9: 6 | B9: ='Read Stocks'!M8 -> 30 Industrials | C9: ='Read Stocks'!N8 -> Dow Jones 30 Industrials | D9: FALSE | F9: 0 | G9: 6 | H9: =MATCH(G9,F$1:F$555,0) ->  | I9: =INDEX(B:B,H9) ->  | L9: 0 | M9: 0
A10: 7 | B10: ='Read Stocks'!M9 -> Swiss | C10: ='Read Stocks'!N9 -> Swiss SMI | D10: FALSE | F10: 0 | G10: 7
A11: 8 | B11: ='Read Stocks'!M10 -> Malaysia | C11: ='Read Stocks'!N10 -> Malaysia | D11: FALSE | F11: 0 | G11: 8 | K11: Series Start | L11: Final | M11: Years
A12: 9 | B12: ='Read Stocks'!M11 -> NASDAQ100 | C12: ='Read Stocks'!N11 -> Nasdaq 100 Index | D12: FALSE | F12: 0 | G12: 9 | J12: =J2 -> US S&P 500 | K12: =Summary!F3 -> 1985-01-01 | L12: =Summary!L2 -> 4.826796752 | M12: =Summary!L4 -> 19.57015743
A13: 10 | B13: ='Read Stocks'!M12 -> WILL5000INDFC | C13: ='Read Stocks'!N12 -> Wilshire 5000 Index | D13: FALSE | F13: 0 | G13: 10 | J13: =J4 -> IBM | K13: =IFERROR(TRANSPOSE(Summary!AC2:AH2),"") -> 1962-02-01 | L13: =TRANSPOSE(Summary!BB3:BG3) -> 2.906327152
A14: 11 | B14: ='Read Stocks'!M13 -> WILL5000PRFC | C14: ='Read Stocks'!N13 -> Wilshire 5000 Large Cap | D14: FALSE | F14: 0 | G14: 11 | J14: =J5 -> Microsoft | K14: 1986-04-01 | L14: 18.82189542 | AA14: Indices used for Adjustment
A15: 12 | B15: ='Read Stocks'!M14 -> RU2000PR | C15: ='Read Stocks'!N14 -> Russel 2000 Index | D15: FALSE | F15: 0 | G15: 12 | J15: =J6 ->  | L15: 1
A16: 13 | B16: ='Read Stocks'!M15 -> WILLREITIND | C16: ='Read Stocks'!N15 -> Wilshire REIT Index | D16: FALSE | F16: 0 | G16: 13 | J16: =J7 ->  | L16: 1 | AA16: =TRANSPOSE(Summary!BO6:BU6) -> GDP Inf | AB16: Divide
A17: 14 | B17: ='Read Stocks'!M16 -> DCOILBRENTEU | C17: ='Read Stocks'!N16 -> Crude Oil Prices: Brent - Europe (DCOILBRENTEU) | D17: FALSE | F17: 0 | G17: 14 | J17: =J8 ->  | L17: 1 | AA17: CPI US | AB17: Divide
A18: 15 | B18: ='Read Stocks'!M17 -> PCOPPUSDM | C18: ='Read Stocks'!N17 -> Global price of Copper© (PCOPPUSDM) | D18: FALSE | F18: 0 | G18: 15 | L18: 1 | AA18: Euro | AB18: Multiply
A19: 16 | B19: ='Read Stocks'!M18 -> MHHNGSP | C19: ='Read Stocks'!N18 -> Henry Hub Natural Gas Spot Price (MHHNGSP) | D19: FALSE | F19: 0 | G19: 16 | AA19: INR | AB19: Divide
A20: 17 | B20: ='Read Stocks'!M19 -> PRAWMINDEXM | C20: ='Read Stocks'!N19 -> Global price of Agr. Raw Material Index© (PRAWMINDEXM) | D20: FALSE | F20: 0 | G20: 17 | J20: Graph Type | AA20: UK | AB20: Multiply
A21: 18 | B21: ='Read Stocks'!M20 -> PPOILUSDM | C21: ='Read Stocks'!N20 -> Global price of Palm Oil© (PPOILUSDM) | D21: FALSE | F21: 0 | G21: 18 | O21: Start Year | R21: End Year | AA21: PKR | AB21: Divide
A22: 19 | B22: ='Read Stocks'!M21 -> PFOODINDEXM | C22: ='Read Stocks'!N21 -> Global price of Food index© (PFOODINDEXM) | D22: FALSE | F22: 0 | G22: 19 | J22: Final Date | K22: =Summary!F2 -> 2022-07-29 | O22: =INDEX(C:C,H14) ->  | AA22: US NOM GNP | AB22: Divide
A23: 20 | B23: ='Read Stocks'!M22 -> AAPL | C23: ='Read Stocks'!N22 -> Apple | D23: FALSE | F23: 0 | G23: 20
A24: 21 | B24: ='Read Stocks'!M23 -> GOOG | C24: ='Read Stocks'!N23 -> Google | D24: FALSE | F24: 0 | G24: 21
A25: 22 | B25: ='Read Stocks'!M24 -> AMZN | C25: ='Read Stocks'!N24 -> Amazon | D25: FALSE | F25: 0 | G25: 22
A26: 23 | B26: ='Read Stocks'!M25 -> GE | C26: ='Read Stocks'!N25 -> General Electric | D26: FALSE | F26: 0 | G26: 23 | L26: Primary Stock | N26: =Forms!J4 -> 1 | O26: =INDEX(C4:C195,Forms!J4) -> US S&P 500
A27: 24 | B27: ='Read Stocks'!M26 -> NSC | C27: ='Read Stocks'!N26 -> Norfolk and Souther | D27: FALSE | F27: 0 | G27: 24 | L27: Use the Drop Down Box for Selecting the Index Value for the base and the date | W27: End Date | X27: =Summary!F2 -> 2022-07-29
A28: 25 | B28: ='Read Stocks'!M27 -> CNR.TO | C28: ='Read Stocks'!N27 -> Canadian National | D28: FALSE | F28: 0 | G28: 25 | L28: Use the check boxes for comparison
A29: 26 | B29: ='Read Stocks'!M28 -> CP.TO | C29: ='Read Stocks'!N28 -> Canadian Pacific | D29: FALSE | F29: 0 | G29: 26 | L29: Use the first check box for index in computing beta and other statistics
A30: 27 | B30: ='Read Stocks'!M29 -> UNP | C30: ='Read Stocks'!N29 -> Union Pacific | D30: FALSE | F30: 0 | G30: 27
A31: 28 | B31: ='Read Stocks'!M30 -> IBM | C31: ='Read Stocks'!N30 -> IBM | D31: TRUE | F31: 1 | G31: 28 | L31: When looking at FRED data in individual sheets, shift, CNTL F re-formats. | Y31: Instructions at www.edbodmer.com
A32: 29 | B32: ='Read Stocks'!M31 -> MSFT | C32: ='Read Stocks'!N31 -> Microsoft | D32: TRUE | F32: 2 | G32: 29 | Y32: Questions: e-mail edwardbodmer@gmail.com
A33: 30 | B33: ='Read Stocks'!M32 ->  | C33: ='Read Stocks'!N32 ->  | D33: FALSE | F33: 2 | G33: 30
A34: 31 | B34: ='Read Stocks'!M33 ->  | C34: ='Read Stocks'!N33 ->  | D34: FALSE | F34: 2 | G34: 31
A35: 32 | B35: ='Read Stocks'!M34 ->  | C35: ='Read Stocks'!N34 ->  | D35: FALSE | F35: 2 | G35: 32
A36: 33 | B36: ='Read Stocks'!M35 ->  | C36: ='Read Stocks'!N35 ->  | D36: FALSE | F36: 2 | G36: 33
A37: 34 | B37: ='Read Stocks'!M36 ->  | C37: ='Read Stocks'!N36 ->  | D37: FALSE | F37: 2 | G37: 34
A38: 35 | B38: ='Read Stocks'!M37 ->  | C38: ='Read Stocks'!N37 ->  | D38: FALSE | F38: 2 | G38: 35
A39: 36 | B39: ='Read Stocks'!M38 ->  | C39: ='Read Stocks'!N38 ->  | D39: FALSE | F39: 2 | G39: 36
A40: 37 | B40: ='Read Stocks'!M39 ->  | C40: ='Read Stocks'!N39 ->  | D40: FALSE | F40: 2 | G40: 37
A41: 38 | B41: ='Read Stocks'!M40 ->  | C41: ='Read Stocks'!N40 ->  | D41: FALSE | F41: 2 | G41: 38
A42: 39 | B42: ='Read Stocks'!M41 ->  | C42: ='Read Stocks'!N41 ->  | D42: FALSE | F42: 2 | G42: 39
A43: 40 | B43: ='Read Stocks'!M42 ->  | C43: ='Read Stocks'!N42 ->  | D43: FALSE | F43: 2 | G43: 40
A44: 41 | B44: ='Read Stocks'!M43 ->  | C44: ='Read Stocks'!N43 ->  | D44: FALSE | F44: =F43+D44 -> 2 | G44: 41 | I44: =INDEX(B:B,H44) -> 
A45: 42 | B45: ='Read Stocks'!M44 ->  | C45: ='Read Stocks'!N44 ->  | D45: FALSE | F45: =F44+D45 -> 2 | G45: 42
A46: 43 | B46: ='Read Stocks'!M45 ->  | C46: ='Read Stocks'!N45 ->  | D46: FALSE | F46: 2 | G46: 43
A47: 44 | B47: ='Read Stocks'!M46 ->  | C47: ='Read Stocks'!N46 ->  | D47: FALSE | F47: 2 | G47: 44
A48: 45 | B48: ='Read Stocks'!M47 ->  | C48: ='Read Stocks'!N47 ->  | D48: FALSE | F48: 2 | G48: 45
A49: 46 | B49: ='Read Stocks'!M48 ->  | C49: ='Read Stocks'!N48 ->  | D49: FALSE | F49: =F48+D49 -> 2 | G49: 45 | I49: =INDEX(B:B,H49) -> 
A50: 47 | B50: ='Read Stocks'!M49 ->  | C50: ='Read Stocks'!N49 ->  | D50: FALSE | F50: 2 | G50: 45
A51: 48 | B51: ='Read Stocks'!M50 ->  | C51: ='Read Stocks'!N50 ->  | D51: FALSE | F51: 2 | G51: 45
A52: 49 | B52: ='Read Stocks'!M51 ->  | C52: ='Read Stocks'!N51 ->  | D52: FALSE | F52: 2 | G52: 45
A53: 50 | B53: ='Read Stocks'!M52 ->  | C53: ='Read Stocks'!N52 ->  | D53: FALSE | F53: 2 | G53: 45
A54: 51 | B54: ='Read Stocks'!M53 ->  | C54: ='Read Stocks'!N53 ->  | D54: FALSE | F54: 2 | G54: 45
A55: 52 | B55: ='Read Stocks'!M54 ->  | C55: ='Read Stocks'!N54 ->  | D55: FALSE | F55: 2 | G55: 45
A56: 53 | B56: ='Read Stocks'!M55 ->  | C56: ='Read Stocks'!N55 ->  | D56: FALSE | F56: 2 | G56: 45
A57: 54 | B57: ='Read Stocks'!M56 ->  | C57: ='Read Stocks'!N56 ->  | D57: FALSE | F57: 2 | G57: 45
A58: 55 | B58: ='Read Stocks'!M57 ->  | C58: ='Read Stocks'!N57 ->  | D58: FALSE | F58: 2 | G58: 45
A59: 56 | B59: ='Read Stocks'!M58 ->  | C59: ='Read Stocks'!N58 ->  | D59: FALSE | F59: 2 | G59: 45
A60: 57 | B60: ='Read Stocks'!M59 ->  | C60: ='Read Stocks'!N59 ->  | D60: FALSE | F60: 2 | G60: 45
A61: 58 | B61: ='Read Stocks'!M60 ->  | C61: ='Read Stocks'!N60 ->  | D61: FALSE | F61: 2 | G61: 45
A62: 59 | B62: ='Read Stocks'!M61 ->  | C62: ='Read Stocks'!N61 ->  | D62: FALSE | F62: 2 | G62: 45
A63: 60 | B63: ='Read Stocks'!M62 ->  | C63: ='Read Stocks'!N62 ->  | D63: FALSE | F63: 2 | G63: 45
A64: 61 | B64: ='Read Stocks'!M63 ->  | C64: ='Read Stocks'!N63 ->  | D64: FALSE | F64: 2 | G64: 45
A65: 62 | B65: ='Read Stocks'!M64 ->  | C65: ='Read Stocks'!N64 ->  | D65: FALSE | F65: 2 | G65: 45
A66: 63 | B66: ='Read Stocks'!M65 ->  | C66: ='Read Stocks'!N65 ->  | D66: FALSE | F66: 2 | G66: 45
A67: 64 | B67: ='Read Stocks'!M66 ->  | C67: ='Read Stocks'!N66 ->  | D67: FALSE | F67: 2 | G67: 45
A68: 65 | B68: ='Read Stocks'!M67 ->  | C68: ='Read Stocks'!N67 ->  | D68: FALSE | F68: 2 | G68: 45
A69: 66 | B69: ='Read Stocks'!M68 ->  | C69: ='Read Stocks'!N68 ->  | D69: FALSE | F69: 2 | G69: 45 | H69: =MATCH(G69,F$1:F$555,0) -> 
A70: 67 | B70: ='Read Stocks'!M69 ->  | C70: ='Read Stocks'!N69 ->  | D70: FALSE | F70: 2 | G70: 45
A71: 68 | B71: ='Read Stocks'!M70 ->  | C71: ='Read Stocks'!N70 ->  | D71: FALSE | F71: 2 | G71: 45
A72: 69 | B72: ='Read Stocks'!M71 ->  | C72: ='Read Stocks'!N71 ->  | D72: FALSE | F72: 2 | G72: 45
A73: 70 | B73: ='Read Stocks'!M72 ->  | C73: ='Read Stocks'!N72 ->  | D73: FALSE | F73: 2 | G73: 45
A74: 71 | B74: ='Read Stocks'!M73 ->  | C74: ='Read Stocks'!N73 ->  | D74: FALSE | F74: 2 | G74: 45
A75: 72 | B75: ='Read Stocks'!M74 ->  | C75: ='Read Stocks'!N74 ->  | D75: FALSE | F75: 2 | G75: 45
A76: 73 | B76: ='Read Stocks'!M75 ->  | C76: ='Read Stocks'!N75 ->  | D76: FALSE | F76: 2 | G76: 45
A77: 74 | B77: ='Read Stocks'!M76 ->  | C77: ='Read Stocks'!N76 ->  | D77: FALSE | F77: 2 | G77: 45
A78: 75 | B78: ='Read Stocks'!M77 ->  | C78: ='Read Stocks'!N77 ->  | D78: FALSE | F78: 2 | G78: 45
A79: 76 | B79: ='Read Stocks'!M78 ->  | C79: ='Read Stocks'!N78 ->  | D79: FALSE | F79: 2 | G79: 45
A80: 77 | B80: ='Read Stocks'!M79 ->  | C80: ='Read Stocks'!N79 ->  | D80: FALSE | F80: 2 | G80: 45
A81: 78 | B81: ='Read Stocks'!M80 ->  | C81: ='Read Stocks'!N80 ->  | D81: FALSE | F81: 2 | G81: 45
A82: 79 | B82: ='Read Stocks'!M81 ->  | C82: ='Read Stocks'!N81 ->  | D82: FALSE | F82: 2 | G82: 45
A83: 80 | B83: ='Read Stocks'!M82 ->  | C83: ='Read Stocks'!N82 ->  | D83: FALSE | F83: 2 | G83: 45
A84: 81 | B84: ='Read Stocks'!M83 ->  | C84: ='Read Stocks'!N83 ->  | D84: FALSE | F84: 2 | G84: 45
A85: 82 | B85: ='Read Stocks'!M84 ->  | C85: ='Read Stocks'!N84 ->  | D85: FALSE | F85: 2 | G85: 45
A86: 83 | B86: ='Read Stocks'!M85 ->  | C86: ='Read Stocks'!N85 ->  | D86: FALSE | F86: 2 | G86: 45
A87: 84 | B87: ='Read Stocks'!M86 ->  | C87: ='Read Stocks'!N86 ->  | D87: FALSE | F87: 2 | G87: 45
A88: 85 | B88: ='Read Stocks'!M87 ->  | C88: ='Read Stocks'!N87 ->  | D88: FALSE | F88: 2 | G88: 45
A89: 86 | B89: ='Read Stocks'!M88 ->  | C89: ='Read Stocks'!N88 ->  | D89: FALSE | F89: 2 | G89: 45
A90: 87 | B90: ='Read Stocks'!M89 ->  | C90: ='Read Stocks'!N89 ->  | D90: FALSE | F90: 2 | G90: 45
A91: 88 | B91: ='Read Stocks'!M90 ->  | C91: ='Read Stocks'!N90 ->  | D91: FALSE | F91: 2 | G91: 45
A92: 89 | B92: ='Read Stocks'!M91 ->  | C92: ='Read Stocks'!N91 ->  | D92: FALSE | F92: 2 | G92: 45
A93: 90 | B93: ='Read Stocks'!M92 ->  | C93: ='Read Stocks'!N92 ->  | D93: FALSE | F93: 2 | G93: 45
A94: 91 | B94: ='Read Stocks'!M93 ->  | C94: ='Read Stocks'!N93 ->  | D94: FALSE | F94: 2 | G94: 45
A95: 92 | B95: ='Read Stocks'!M94 ->  | C95: ='Read Stocks'!N94 ->  | D95: FALSE | F95: 2 | G95: 45
A96: 93 | B96: ='Read Stocks'!M95 ->  | C96: ='Read Stocks'!N95 ->  | D96: FALSE | F96: 2 | G96: 45
A97: 94 | B97: ='Read Stocks'!M96 ->  | C97: ='Read Stocks'!N96 ->  | D97: FALSE | F97: 2 | G97: 45
A98: 95 | B98: ='Read Stocks'!M97 ->  | C98: ='Read Stocks'!N97 ->  | D98: FALSE | F98: 2 | G98: 45
A99: 96 | B99: ='Read Stocks'!M98 ->  | C99: ='Read Stocks'!N98 ->  | D99: FALSE | F99: 2 | G99: 45
A100: 97 | B100: ='Read Stocks'!M99 ->  | C100: ='Read Stocks'!N99 ->  | D100: FALSE | F100: 2 | G100: 45
A101: 98 | B101: ='Read Stocks'!M100 ->  | C101: ='Read Stocks'!N100 ->  | D101: FALSE | F101: 2 | G101: 45
A102: 99 | B102: ='Read Stocks'!M101 ->  | C102: ='Read Stocks'!N101 ->  | D102: FALSE | F102: 2 | G102: 45
A103: 100 | B103: ='Read Stocks'!M102 ->  | C103: ='Read Stocks'!N102 ->  | D103: FALSE | F103: 2 | G103: 45
A104: 101 | B104: ='Read Stocks'!M103 ->  | C104: ='Read Stocks'!N103 ->  | D104: FALSE | F104: 2 | G104: 45
A105: 102 | B105: ='Read Stocks'!M104 ->  | C105: ='Read Stocks'!N104 ->  | D105: FALSE | F105: 2 | G105: 45
A106: 103 | B106: ='Read Stocks'!M105 ->  | C106: ='Read Stocks'!N105 ->  | D106: FALSE | F106: 2 | G106: 45
A107: 104 | B107: ='Read Stocks'!M106 ->  | C107: ='Read Stocks'!N106 ->  | D107: FALSE | F107: 2 | G107: 45
A108: 105 | B108: ='Read Stocks'!M107 ->  | C108: ='Read Stocks'!N107 ->  | D108: FALSE | F108: 2 | G108: 45
A109: 106 | B109: ='Read Stocks'!M108 ->  | C109: ='Read Stocks'!N108 ->  | D109: FALSE | F109: 2 | G109: 45
A110: 107 | B110: ='Read Stocks'!M109 ->  | C110: ='Read Stocks'!N109 ->  | D110: FALSE | F110: 2 | G110: 45
A111: 108 | B111: ='Read Stocks'!M110 ->  | C111: ='Read Stocks'!N110 ->  | D111: FALSE | F111: 2 | G111: 45
A112: 109 | B112: ='Read Stocks'!M111 ->  | C112: ='Read Stocks'!N111 ->  | D112: FALSE | F112: 2 | G112: 45
A113: 110 | B113: ='Read Stocks'!M112 ->  | C113: ='Read Stocks'!N112 ->  | D113: FALSE | F113: =F112+D113 -> 2 | G113: 45 | I113: =INDEX(B:B,H113) -> 
A114: 111 | B114: ='Read Stocks'!M113 ->  | C114: ='Read Stocks'!N113 ->  | D114: FALSE | F114: 2 | G114: 45
A115: 112 | B115: ='Read Stocks'!M114 ->  | C115: ='Read Stocks'!N114 ->  | D115: FALSE | F115: 2 | G115: 45
A116: 113 | B116: ='Read Stocks'!M115 ->  | C116: ='Read Stocks'!N115 ->  | D116: FALSE | F116: 2 | G116: 45
A117: 114 | B117: ='Read Stocks'!M116 ->  | C117: ='Read Stocks'!N116 ->  | D117: FALSE | F117: 2 | G117: 45
A118: 115 | B118: ='Read Stocks'!M117 ->  | C118: ='Read Stocks'!N117 ->  | D118: FALSE | F118: 2 | G118: 45
A119: 116 | B119: ='Read Stocks'!M118 ->  | C119: ='Read Stocks'!N118 ->  | D119: FALSE | F119: 2 | G119: 45
A120: 117 | B120: ='Read Stocks'!M119 ->  | C120: ='Read Stocks'!N119 ->  | D120: FALSE | F120: 2 | G120: 45
A121: 118 | B121: ='Read Stocks'!M120 ->  | C121: ='Read Stocks'!N120 ->  | D121: FALSE | F121: 2 | G121: 45
A122: 119 | B122: ='Read Stocks'!M121 ->  | C122: ='Read Stocks'!N121 ->  | D122: FALSE | F122: 2 | G122: 45
A123: 120 | B123: ='Read Stocks'!M122 ->  | C123: ='Read Stocks'!N122 ->  | D123: FALSE | F123: 2 | G123: 45
A124: 121 | B124: ='Read Stocks'!M123 ->  | C124: ='Read Stocks'!N123 ->  | D124: FALSE | F124: 2 | G124: 45
A125: 122 | B125: ='Read Stocks'!M124 ->  | C125: ='Read Stocks'!N124 ->  | D125: FALSE | F125: 2 | G125: 45
A126: 123 | B126: ='Read Stocks'!M125 ->  | C126: ='Read Stocks'!N125 ->  | D126: FALSE | F126: 2 | G126: 45
A127: 124 | B127: ='Read Stocks'!M126 ->  | C127: ='Read Stocks'!N126 ->  | D127: FALSE | F127: 2 | G127: 45
A128: 125 | B128: ='Read Stocks'!M127 ->  | C128: ='Read Stocks'!N127 ->  | D128: FALSE | F128: 2 | G128: 45
A129: 126 | B129: ='Read Stocks'!M128 ->  | C129: ='Read Stocks'!N128 ->  | D129: FALSE | F129: 2 | G129: 45
A130: 127 | B130: ='Read Stocks'!M129 ->  | C130: ='Read Stocks'!N129 ->  | D130: FALSE | F130: 2 | G130: 45
A131: 128 | B131: ='Read Stocks'!M130 ->  | C131: ='Read Stocks'!N130 ->  | D131: FALSE | F131: 2 | G131: 45
A132: 129 | B132: ='Read Stocks'!M131 ->  | C132: ='Read Stocks'!N131 ->  | D132: FALSE | F132: 2 | G132: 45
A133: 130 | B133: ='Read Stocks'!M132 ->  | C133: ='Read Stocks'!N132 ->  | D133: FALSE | F133: 2 | G133: 45 | H133: =MATCH(G133,F$1:F$555,0) -> 
A134: 131 | B134: ='Read Stocks'!M133 ->  | C134: ='Read Stocks'!N133 ->  | D134: FALSE | F134: 2 | G134: 45
A135: 132 | B135: ='Read Stocks'!M134 ->  | C135: ='Read Stocks'!N134 ->  | D135: FALSE | F135: 2 | G135: 45
A136: 133 | B136: ='Read Stocks'!M135 ->  | C136: ='Read Stocks'!N135 ->  | D136: FALSE | F136: 2 | G136: 45
A137: 134 | B137: ='Read Stocks'!M136 ->  | C137: ='Read Stocks'!N136 ->  | D137: FALSE | F137: 2 | G137: 45
A138: 135 | B138: ='Read Stocks'!M137 ->  | C138: ='Read Stocks'!N137 ->  | D138: FALSE | F138: 2 | G138: 45
A139: 136 | B139: ='Read Stocks'!M138 ->  | C139: ='Read Stocks'!N138 ->  | D139: FALSE | F139: 2 | G139: 45
A140: 137 | B140: ='Read Stocks'!M139 ->  | C140: ='Read Stocks'!N139 ->  | D140: FALSE | F140: 2 | G140: 45
A141: 138 | B141: ='Read Stocks'!M140 ->  | C141: ='Read Stocks'!N140 ->  | D141: FALSE | F141: 2 | G141: 45
A142: 139 | B142: ='Read Stocks'!M141 ->  | C142: ='Read Stocks'!N141 ->  | D142: FALSE | F142: 2 | G142: 45
A143: 140 | B143: ='Read Stocks'!M142 ->  | C143: ='Read Stocks'!N142 ->  | D143: FALSE | F143: 2 | G143: 45
A144: 141 | B144: ='Read Stocks'!M143 ->  | C144: ='Read Stocks'!N143 ->  | D144: FALSE | F144: 2 | G144: 45
A145: 142 | B145: ='Read Stocks'!M144 ->  | C145: ='Read Stocks'!N144 ->  | D145: FALSE | F145: 2 | G145: 45
A146: 143 | B146: ='Read Stocks'!M145 ->  | C146: ='Read Stocks'!N145 ->  | D146: FALSE | F146: 2 | G146: 45
A147: 144 | B147: ='Read Stocks'!M146 ->  | C147: ='Read Stocks'!N146 ->  | D147: FALSE | F147: 2 | G147: 45
A148: 145 | B148: ='Read Stocks'!M147 ->  | C148: ='Read Stocks'!N147 ->  | D148: FALSE | F148: 2 | G148: 45
A149: 146 | B149: ='Read Stocks'!M148 ->  | C149: ='Read Stocks'!N148 ->  | D149: FALSE | F149: 2 | G149: 45
A150: 147 | B150: ='Read Stocks'!M149 ->  | C150: ='Read Stocks'!N149 ->  | D150: FALSE | F150: 2 | G150: 45
A151: 148 | B151: ='Read Stocks'!M150 ->  | C151: ='Read Stocks'!N150 ->  | D151: FALSE | F151: 2 | G151: 45
A152: 149 | B152: ='Read Stocks'!M151 ->  | C152: ='Read Stocks'!N151 ->  | D152: FALSE | F152: 2 | G152: 45
A153: 150 | B153: ='Read Stocks'!M152 ->  | C153: ='Read Stocks'!N152 ->  | D153: FALSE | F153: 2 | G153: 45
A154: 151 | B154: ='Read Stocks'!M153 ->  | C154: ='Read Stocks'!N153 ->  | D154: FALSE | F154: 2 | G154: 45
A155: 152 | B155: ='Read Stocks'!M154 ->  | C155: ='Read Stocks'!N154 ->  | D155: FALSE | F155: 2 | G155: 45
A156: 153 | B156: ='Read Stocks'!M155 ->  | C156: ='Read Stocks'!N155 ->  | D156: FALSE | F156: 2 | G156: 45
A157: 154 | B157: ='Read Stocks'!M156 ->  | C157: ='Read Stocks'!N156 ->  | D157: FALSE | F157: 2 | G157: 45
A158: 155 | B158: ='Read Stocks'!M157 ->  | C158: ='Read Stocks'!N157 ->  | D158: FALSE | F158: 2 | G158: 45
A159: 156 | B159: ='Read Stocks'!M158 ->  | C159: ='Read Stocks'!N158 ->  | D159: FALSE | F159: 2 | G159: 45
A160: 157 | B160: ='Read Stocks'!M159 ->  | C160: ='Read Stocks'!N159 ->  | D160: FALSE | F160: 2 | G160: 45
A161: 158 | B161: ='Read Stocks'!M160 ->  | C161: ='Read Stocks'!N160 ->  | D161: FALSE | F161: 2 | G161: 45
A162: 159 | B162: ='Read Stocks'!M161 ->  | C162: ='Read Stocks'!N161 ->  | D162: FALSE | F162: 2 | G162: 45
A163: 160 | B163: ='Read Stocks'!M162 ->  | C163: ='Read Stocks'!N162 ->  | D163: FALSE | F163: 2 | G163: 45
A164: 161 | B164: ='Read Stocks'!M163 ->  | C164: ='Read Stocks'!N163 ->  | D164: FALSE | F164: 2 | G164: 45
A165: 162 | B165: ='Read Stocks'!M164 ->  | C165: ='Read Stocks'!N164 ->  | D165: FALSE | F165: 2 | G165: 45
A166: 163 | B166: ='Read Stocks'!M165 ->  | C166: ='Read Stocks'!N165 ->  | D166: FALSE | F166: 2 | G166: 45
A167: 164 | B167: ='Read Stocks'!M166 ->  | C167: ='Read Stocks'!N166 ->  | D167: FALSE | F167: 2 | G167: 45
A168: 165 | B168: ='Read Stocks'!M167 ->  | C168: ='Read Stocks'!N167 ->  | D168: FALSE | F168: 2 | G168: 45
A169: 166 | B169: ='Read Stocks'!M168 ->  | C169: ='Read Stocks'!N168 ->  | D169: FALSE | F169: 2 | G169: 45
A170: 167 | B170: ='Read Stocks'!M169 ->  | C170: ='Read Stocks'!N169 ->  | D170: FALSE | F170: 2 | G170: 45
A171: 168 | B171: ='Read Stocks'!M170 ->  | C171: ='Read Stocks'!N170 ->  | D171: FALSE | F171: 2 | G171: 45
A172: 169 | B172: ='Read Stocks'!M171 ->  | C172: ='Read Stocks'!N171 ->  | D172: FALSE | F172: 2 | G172: 45
A173: 170 | B173: ='Read Stocks'!M172 ->  | C173: ='Read Stocks'!N172 ->  | D173: FALSE | F173: 2 | G173: 45
A174: 171 | B174: ='Read Stocks'!M173 ->  | C174: ='Read Stocks'!N173 ->  | D174: FALSE | F174: 2 | G174: 45
A175: 172 | B175: ='Read Stocks'!M174 ->  | C175: ='Read Stocks'!N174 ->  | D175: FALSE | F175: 2 | G175: 45
A176: 173 | B176: ='Read Stocks'!M175 ->  | C176: ='Read Stocks'!N175 ->  | D176: FALSE | F176: 2 | G176: 45
A177: 174 | B177: ='Read Stocks'!M176 ->  | C177: ='Read Stocks'!N176 ->  | D177: FALSE | F177: =F176+D177 -> 2 | G177: 45 | I177: =INDEX(B:B,H177) -> 
A178: 175 | B178: ='Read Stocks'!M177 -> 0 | C178: ='Read Stocks'!N177 -> 0 | D178: FALSE | F178: 2 | G178: 45
A179: 176 | B179: ='Read Stocks'!M178 -> 0 | C179: ='Read Stocks'!N178 -> 0 | D179: FALSE | F179: 2 | G179: 45
A180: 177 | B180: ='Read Stocks'!M179 -> 0 | C180: ='Read Stocks'!N179 -> 0 | D180: FALSE | F180: 2 | G180: 45
A181: 178 | B181: ='Read Stocks'!M180 -> 0 | C181: ='Read Stocks'!N180 -> 0 | D181: FALSE | F181: 2 | G181: 45
A182: 179 | B182: ='Read Stocks'!M181 -> 0 | C182: ='Read Stocks'!N181 -> 0 | D182: FALSE | F182: 2 | G182: 45
A183: 180 | B183: ='Read Stocks'!M182 -> 0 | C183: ='Read Stocks'!N182 -> 0 | D183: FALSE | F183: 2 | G183: 45
A184: 181 | B184: ='Read Stocks'!M183 -> 0 | C184: ='Read Stocks'!N183 -> 0 | D184: FALSE | F184: 2 | G184: 45
A185: 182 | B185: ='Read Stocks'!M184 -> 0 | C185: ='Read Stocks'!N184 -> 0 | D185: FALSE | F185: 2 | G185: 45
A186: 183 | B186: ='Read Stocks'!M185 -> 0 | C186: ='Read Stocks'!N185 -> 0 | D186: FALSE | F186: 2 | G186: 45
A187: 184 | B187: ='Read Stocks'!M186 -> 0 | C187: ='Read Stocks'!N186 -> 0 | D187: FALSE | F187: 2 | G187: 45
A188: 185 | B188: ='Read Stocks'!M187 -> 0 | C188: ='Read Stocks'!N187 -> 0 | D188: FALSE | F188: 2 | G188: 45
A189: 186 | B189: ='Read Stocks'!M188 -> 0 | C189: ='Read Stocks'!N188 -> 0 | D189: FALSE | F189: 2 | G189: 45
A190: 187 | B190: ='Read Stocks'!M189 -> 0 | C190: ='Read Stocks'!N189 -> 0 | D190: FALSE | F190: 2 | G190: 45
A191: 188 | B191: ='Read Stocks'!M190 -> 0 | C191: ='Read Stocks'!N190 -> 0 | D191: FALSE | F191: 2 | G191: 45
A192: 189 | B192: ='Read Stocks'!M191 -> 0 | C192: ='Read Stocks'!N191 -> 0 | D192: FALSE | F192: 2 | G192: 45
A193: 190 | B193: ='Read Stocks'!M192 -> 0 | C193: ='Read Stocks'!N192 -> 0 | D193: FALSE | F193: 2 | G193: 45
A194: 191 | B194: ='Read Stocks'!M193 -> 0 | C194: ='Read Stocks'!N193 -> 0 | D194: FALSE | F194: 2 | G194: 45
A195: 192 | B195: ='Read Stocks'!M194 -> 0 | C195: ='Read Stocks'!N194 -> 0 | D195: FALSE | F195: 2 | G195: 45
D196: FALSE | F196: 2 | G196: 45
D197: FALSE | F197: 2 | G197: 45 | H197: =MATCH(G197,F$1:F$555,0) -> 
D198: FALSE | F198: 2 | G198: 45
D199: FALSE | F199: 2 | G199: 45
D200: FALSE | F200: 2 | G200: 45
... 100 more rows

Sheet Summary
E1: Selected Start | F1: =Forms!G9 -> 2003-01-01 | G1: Index No (Frms) | H1: =Forms!J4 -> 1 | M1: Graph Code for Index etc. --> | N1: =Forms!P3 -> 3 | O1: Height | P1: =COUNT(E10:E10000)+1 -> 236 | Q1: Graph Cols | R1: =COUNTIF('Multiple Stock Graph'!D:D,TRUE)+2 -> 4 | X1: Instructions at www.edbodmer.com | AT1: Periods in Yr | AV1: =IF(E7,52,12) -> 12 | BB1: IRR's | BO1: These Are Indices Used
E2: End Date | F2: =Forms!L9 -> 2022-07-29 | G2: Col to Read | H2: =INDEX('Read Stocks'!O3:O202,Summary!H1) -> F | K2: Fin Value | L2: =LOOKUP(F2,$E$10:$E$1837,L10:L1837) -> 4.826796752 | O2: The Data Shaded in Grey is the Selection for the Graph | X2: Questions: e-mail edwardbodmer@gmail.com | AC2: =MIN(INDIRECT("'"&AC5&"'!A:A")) -> 1962-02-01 | AD2: =MIN(INDIRECT("'"&AD5&"'!A:A")) -> 1986-04-01 | BH2: Inflation and Index from Sheet Names | BO2: First two are inflation, next 5 are exchange rates with multiplication
E3: Start of Series | F3: =IFERROR(MIN(INDIRECT("'"&$B$6&"'!A:A")),start_of_date) -> 1985-01-01 | K3: IRR | L3: =(L2)^(1/($L$4-1))-1 -> 0.08846615158 | O3: This uses graph_output -- a range name with offset (Height and width above) | AI3: Exchange Rate Adjustments to Individual Stocks | AO3: Adjusted Values for Exchange Rate | AT3: Beta | AU3: =IFERROR(SLOPE(AU10:AU2000,$AU$10:$AU$2000),0) -> 1 | AV3: =IFERROR(SLOPE(AV12:AV2000,AU12:AU2000),0) -> 0.7893319741 | AW3: =IFERROR(SLOPE(AW12:AW2000,AU12:AU2000),0) -> 0.9495360688 | AX3: =IFERROR(SLOPE(AX11:AX1999,AU11:AU1999),0) -> 0 | AY3: =IFERROR(SLOPE(AY12:AY2000,AU12:AU2000),0) -> 0 | AZ3: =IFERROR(SLOPE(AZ12:AZ2000,AU12:AU2000),0) -> 0 | BA3: =IFERROR(SLOPE(BA12:BA837,AU12:AU837),0) -> 0 | BB3: =LOOKUP($F$2,$E:$E,BB:BB) -> 2.906327152 | BC3: 18.82189542 | BD3: 1 | BE3: 1 | BF3: 1 | BG3: 1 | BH3: Raw Retrieval of Inflation and Exchange Indirect
B4: Raw Date | E4: Final Start | F4: =MAX(F3,F1) -> 2003-01-01 | H4: See Right Data | K4: Yrs for IRR | L4: =(F2-F4-1)/365.25 -> 19.57015743 | O4: Use CNTL F3 to look at range | W4: Raw Values without Index, Inflation Adj from INDIRECT | AC4: Re-orded Lookup Value for Raw Value with Adjusted Date | AT4: Std Dev | AU4: =IFERROR(STDEV(AU10:AU200),0) -> 0.03854585489 | AV4: =IFERROR(STDEV(AV10:AV2000),0) -> 0.05955833333 | AW4: 0.06320718727 | AX4: 0 | AY4: 0 | AZ4: 0 | BA4: 0 | BB4: =IF(BB3<>1,(BB3)^(1/($L$4-1))-1,"") -> 0.05913428569 | BC4: =IF(BC3<>1,(BC3)^(1/($L$4-1))-1,"") -> 0.1712252251 | BH4: Retrieves first six items | BO4: Exchange Rate with Lookup
B5: Base Index | F5: Base Stock | H5: Exchange Rate | I5: Adjusted | J5: Adjusted Base | N5: Single | P5: Main | Q5: Comparators from Choose and Data to Right | V5: Code | W5: =TRANSPOSE('Multiple Stock Graph'!I4:I9) -> IBM | X5: MSFT | AC5: =W5 -> IBM | AD5: =X5 -> MSFT | AT5: Volatiltiy | AU5: =AU4*$AV$1^0.5 -> 0.1335267582 | AV5: =AV4*$AV$1^0.5 -> 0.2063161187 | AW5: 0.2189561195 | AX5: 0 | AY5: 0 | AZ5: 0 | BA5: 0
A6: Base | B6: =Forms!L4 -> S&P 500 | D6: Monthly | E6: Weekly Switch | F6: From Applied | H6: or Inflation | I6: Index | J6: For Exch or Inf | K6: Change | L6: Index | N6: Graph | P6: Item | Q6: First Comparator(Stats) | W6: =MATCH(W5,'Read Stocks'!$M:$M,0) -> 30 | X6: =MATCH(X5,'Read Stocks'!$M:$M,0) -> 31 | Y6: =MATCH(Y5,'Read Stocks'!$M:$M,0) ->  | Z6: =MATCH(Z5,'Read Stocks'!$M:$M,0) ->  | AA6: =MATCH(AA5,'Read Stocks'!$M:$M,0) ->  | AB6: =MATCH(AB5,'Read Stocks'!$M:$M,0) ->  | AI6: FALSE | AJ6: FALSE | AK6: FALSE | AL6: FALSE | AM6: FALSE | AN6: FALSE | AU6: Growth Rate | AV6: Growth Rate | BB6: Index | BH6: =BO6 -> GDP Inf | BI6: =BP6 -> CPI US | BJ6: Euro | BK6: INR | BL6: UK | BO6: =TRANSPOSE('Exchange Rates'!D13:D47) -> GDP Inf | BP6: CPI US | BQ6: Euro | BR6: INR | BS6: UK | BT6: PKR | BU6: US NOM GNP
A7: Date | B7: Raw Data | D7: Date from | E7: FALSE | F7: Date | G7: Date Selected | H7: Adjustment | I7: for Zero | J7: =B6 -> S&P 500 | K7: =B6 -> S&P 500 | L7: =K7 -> S&P 500 | M7: X-Axis | N7: =CHOOSE($N$1,B6,K7,L7) -> S&P 500 | O7: x-axis | P7: =INDEX('Read Stocks'!N3:N202,Summary!H1) -> US S&P 500 | Q7: =TRANSPOSE('Multiple Stock Graph'!J4:J9) -> IBM | R7: Microsoft | W7: =INDEX('Read Stocks'!$O:$O,Summary!W6) -> F | X7: =INDEX('Read Stocks'!$O:$O,Summary!X6) -> F | Y7: =INDEX('Read Stocks'!$O:$O,Summary!Y6) ->  | Z7: =INDEX('Read Stocks'!$O:$O,Summary!Z6) ->  | AA7: =INDEX('Read Stocks'!$O:$O,Summary!AA6) ->  | AB7: =INDEX('Read Stocks'!$O:$O,Summary!AB6) ->  | AI7: =TRANSPOSE('Multiple Stock Graph'!AA3:AA8) -> 0 | AJ7: 0 | AK7: 0 | AL7: 0 | AM7: 0 | AN7: 0 | AO7: =Q7 -> IBM | AP7: Microsoft | AU7: =K7 -> S&P 500 | AV7: =W5 -> IBM | AW7: MSFT | BB7: =AV7 -> IBM | BC7: MSFT | BO7: B | BP7: B | BQ7: B | BR7: B | BS7: B | BT7: B | BU7: B | BW7: Weekely
A8: Copied | B8: From Start | D8: Selected Start | E8: Month or Day | F8: Re-Ordered | G8: Switch | H8: ='Multiple Stock Graph'!AA2 -> 0 | J8: Absolute | K8: LN Funct | L8: Index | N8: Choose | Q8: 1 | R8: 2 | S8: 3 | T8: 4 | U8: 5 | V8: 6 | W8: 1 | X8: 2 | Y8: 3 | Z8: 4 | AA8: 5 | AB8: 6 | AI8: =IFERROR(INDEX($BO$6:$BU$6,AI7),"") ->  | AJ8: =IFERROR(INDEX($BO$6:$BU$6,AJ7),"") ->  | AO8: 1 | AP8: 2 | AQ8: 3 | AR8: 4 | AS8: 5 | AT8: 6 | BO8: =TRANSPOSE('Multiple Stock Graph'!AB16:AB22) -> Divide | BP8: Divide | BQ8: Multiply | BR8: Divide | BS8: Multiply | BT8: Divide | BU8: Divide | BW8: Date
B9: =H2 -> F | D9: =IF(E7,"Not Used","Applied") -> Applied | E9: Date | F9: =H2 -> F | L9: 1 | P9: =P7&" IRR "&TEXT(L3,"##.00%") -> US S&P 500 IRR 8.85% | Q9: =Q7&" IRR "&TEXT(BB4,"##.00%") -> IBM IRR 5.91% | R9: =R7&" IRR "&TEXT(BC4,"##.00%") -> Microsoft IRR 17.12% | S9: IRR | T9: IRR | U9: IRR | V9: IRR | BB9: 1 | BC9: 1 | BD9: 1 | BE9: 1 | BF9: 1 | BG9: 1 | BW9: =IF(E7,"Applied","Not Used") -> Not Used
A10: 1985-01-01 | B10: =IFERROR(LOOKUP($A10,INDIRECT("'"&B$6&"'!A:A"),INDIRECT("'"&B$6&"'!"&$B$9&":"&$B$9)),0) -> 179.630005 | D10: =MAX(F3,F1) -> 2003-01-01 | E10: =IF($E$7,BW10,D10) -> 2003-01-01 | F10: =LOOKUP(E10,A:A,B:B) -> 855.700012 | G10: =AND(E10>=$F$4,E10<=$F$2) -> TRUE | H10: =IF(H$8<>0,INDEX($BO10:$BU10,H$8),1) -> 1 | I10: =IF(H10,H10,IF(I11,I11,1)) -> 1 | J10: =IF(ISNUMBER(F10),F10,J11)*I10 -> 855.700012 | K10: =IFERROR(LN(B10/B9),FALSE) -> FALSE | L10: =IF($G10,(L9*(1+K10)),1) -> 1 | M10: =IF(G10,E10,NA()) -> 2003-01-01 | N10: =CHOOSE($N$1,J10,K10,L10) -> 1 | O10: =M10 -> 2003-01-01 | P10: =N10 -> 1 | Q10: =CHOOSE($N$1,AO10,AV10,BB10) -> 1 | R10: =CHOOSE($N$1,AP10,AW10,BC10) -> 1 | S10: =CHOOSE($N$1,AQ10,AX10,BD10) -> 1 | T10: =CHOOSE($N$1,AR10,AY10,BE10) -> 1 | U10: =CHOOSE($N$1,AS10,AZ10,BF10) -> 1 | V10: =CHOOSE($N$1,AT10,BA10,BG10) -> 1 | W10: =LOOKUP($A10,INDIRECT("'"&W$5&"'!A:A"),INDIRECT("'"&W$5&"'!"&W$7&":"&W$7)) -> 12.560597 | X10: =LOOKUP($A10,INDIRECT("'"&X$5&"'!A:A"),INDIRECT("'"&X$5&"'!"&X$7&":"&X$7)) ->  | Y10: =LOOKUP($A10,INDIRECT("'"&Y$5&"'!A:A"),INDIRECT("'"&Y$5&"'!"&Y$7&":"&Y$7)) ->  | AC10: =IF(ISNUMBER(LOOKUP($E10,$A:$A,W:W)),LOOKUP($E10,$A:$A,W:W),AC9) -> 44.441875 | AD10: =IF(ISNUMBER(LOOKUP($E10,$A:$A,X:X)),LOOKUP($E10,$A:$A,X:X),AD9) -> 14.884014 | AE10: =IF(ISNUMBER(LOOKUP($E10,$A:$A,Y:Y)),LOOKUP($E10,$A:$A,Y:Y),AE9) -> 0 | AF10: =IF(ISNUMBER(LOOKUP($E10,$A:$A,Z:Z)),LOOKUP($E10,$A:$A,Z:Z),AF9) -> 0 | AG10: =IF(ISNUMBER(LOOKUP($E10,$A:$A,AA:AA)),LOOKUP($E10,$A:$A,AA:AA),AG9) -> 0 | AH10: =IF(ISNUMBER(LOOKUP($E10,$A:$A,AB:AB)),LOOKUP($E10,$A:$A,AB:AB),AH9) -> 0 | AI10: =IF(AI$7,INDEX($BO10:$BU10,AI$7),1) -> 1 | AJ10: =IF(AJ$7,INDEX($BO10:$BU10,AJ$7),1) -> 1 | AK10: 1 | AL10: 1 | AM10: 1 | AN10: 1 | AO10: =IFERROR(IF(ISNUMBER(AC10)>0.1,AC10,AO11)*AI10,AO11) -> 44.441875 | AP10: 14.884014 | AQ10: 0 | AR10: 0 | AS10: 0 | AT10: 0 | AU10: =K10 -> FALSE | AV10: =IF(G10,IFERROR(LN(AO10/AO9),FALSE)) -> FALSE | AW10: =IF(G10,IFERROR(LN(AP10/AP9),FALSE)) -> FALSE | AX10: =IF(G10,IFERROR(LN(AQ10/AQ9),FALSE)) -> FALSE | AY10: =IF(G10,IFERROR(LN(AR10/AR9),FALSE)) -> FALSE | AZ10: =IF(G10,IFERROR(LN(AS10/AS9),FALSE)) -> FALSE | BA10: =IF(G10,IFERROR(LN(AT10/AT9),FALSE)) -> FALSE | BB10: 1 | BC10: 1 | BD10: 1 | BE10: 1 | BF10: 1 | BG10: 1 | BH10: =IFERROR(LOOKUP($A10,INDIRECT("'"&BO$6&"'!A:A"),INDIRECT("'"&BO$6&"'!"&BO$7&":"&BO$7)),0) -> 54.03 | BI10: =IFERROR(LOOKUP($A10,INDIRECT("'"&BP$6&"'!A:A"),INDIRECT("'"&BP$6&"'!"&BP$7&":"&BP$7)),0) -> 105.7 | BJ10: 0 | BK10: . | BL10: 1.1271 | BM10: 15.92839167 | BN10: 4255.859 | BO10: =IFERROR(IF(BO$8="Divide",1/LOOKUP($E10,$A:$A,BH:BH)*1,LOOKUP($E10,$A:$A,BH:BH)*1),BO11) -> 0.01218843318 | BP10: =IFERROR(IF(BP$8="Divide",1/LOOKUP($E10,$A:$A,BI:BI)*1,LOOKUP($E10,$A:$A,BI:BI)*1),BP11) -> 0.00547645126 | BQ10: =IFERROR(IF(BQ$8="Divide",1/LOOKUP($E10,$A:$A,BJ:BJ)*1,LOOKUP($E10,$A:$A,BJ:BJ)*1),BQ11) -> 1.0622 | BR10: =IFERROR(IF(BR$8="Divide",1/LOOKUP($E10,$A:$A,BK:BK)*1,LOOKUP($E10,$A:$A,BK:BK)*1),BR11) -> 0.02090738031 | BS10: =IFERROR(IF(BS$8="Divide",1/LOOKUP($E10,$A:$A,BL:BL)*1,LOOKUP($E10,$A:$A,BL:BL)*1),BS11) -> 1.6175 | BT10: =IFERROR(IF(BT$8="Divide",1/LOOKUP($E10,$A:$A,BM:BM)*1,LOOKUP($E10,$A:$A,BM:BM)*1),BT11) -> 0.01731541865 | BU10: =IFERROR(IF(BU$8="Divide",1/LOOKUP($E10,$A:$A,BN:BN)*1,LOOKUP($E10,$A:$A,BN:BN)*1),BU11) -> 8.914492103e-05 | BW10: =D10 -> 2003-01-01
A11: 1985-02-01 | B11: 181.179993 | D11: =IF(D10<$F$2,MIN(EOMONTH(D10,1),$F$2)) -> 2003-02-28 | E11: 2003-02-28 | F11: 841.150024 | G11: =AND(E11>=$F$4,E10<=$F$2) -> TRUE | H11: =IF(H$8<>0,INDEX($BO11:$BU11,H$8),1) -> 1 | I11: =IF(H11,H11,IF(I12,I12,1)) -> 1 | J11: =IF(ISNUMBER(F11),F11,J12)*I11 -> 841.150024 | K11: =IFERROR(LN(J11/J10),FALSE) -> -0.01714982975 | L11: =IF($G11,(L10*J11/J10),1) -> 0.9829963915 | M11: 2003-02-28 | N11: =CHOOSE($N$1,J11,K11,L11) -> 0.9829963915 | O11: =M11 -> 2003-02-28 | P11: =N11 -> 0.9829963915 | Q11: =IFERROR(CHOOSE($N$1,AO11,AV11,BB11),1) -> 0.9968033977 | R11: 0.9987356905 | S11: 1 | T11: 1 | U11: 1 | V11: 1 | W11: =LOOKUP($A11,INDIRECT("'"&W$5&"'!A:A"),INDIRECT("'"&W$5&"'!"&W$7&":"&W$7)) -> 12.341848 | Z11: =LOOKUP($A11,INDIRECT("'"&Z$5&"'!A:A"),INDIRECT("'"&Z$5&"'!"&Z$7&":"&Z$7)) ->  | AC11: 44.299812 | AD11: 14.865196 | AE11: 0 | AF11: 0 | AG11: 0 | AH11: 0 | AI11: =IF(AI$7,INDEX($BO11:$BU11,AI$7),1) -> 1 | AJ11: 1 | AK11: 1 | AL11: 1 | AM11: 1 | AN11: 1 | AO11: =IFERROR(IF(ISNUMBER(AC11)>0.1,AC11,AO12)*AI11,AO12) -> 44.299812 | AP11: =IFERROR(IF(ISNUMBER(AD11)>0.1,AD11,AP12)*AJ11,AP12) -> 14.865196 | AQ11: =IFERROR(IF(ISNUMBER(AE11)>0.1,AE11,AQ12)*AK11,AQ12) -> 0 | AR11: =IFERROR(IF(ISNUMBER(AF11)>0.1,AF11,AR12)*AL11,AR12) -> 0 | AS11: =IFERROR(IF(ISNUMBER(AG11)>0.1,AG11,AS12)*AM11,AS12) -> 0 | AT11: =IFERROR(IF(ISNUMBER(AH11)>0.1,AH11,AT12)*AN11,AT12) -> 0 | AU11: =K11 -> -0.01714982975 | AV11: -0.003201722351 | AW11: -0.001265109393 | AX11: FALSE | AY11: FALSE | AZ11: FALSE | BA11: FALSE | BB11: =IFERROR(IF($G11,BB10*AO11/AO10,1),1) -> 0.9968033977 | BC11: =IFERROR(IF($G11,BC10*AP11/AP10,1),1) -> 0.9987356905 | BD11: =IFERROR(IF($G11,BD10*AQ11/AQ10,1),1) -> 1 | BE11: =IFERROR(IF($G11,BE10*AR11/AR10,1),1) -> 1 | BF11: =IFERROR(IF($G11,BF10*AS11/AS10,1),1) -> 1 | BG11: =IFERROR(IF($G11,BG10*AT11/AT10,1),1) -> 1 | BH11: =IFERROR(LOOKUP($A11,INDIRECT("'"&BO$6&"'!A:A"),INDIRECT("'"&BO$6&"'!"&BO$7&":"&BO$7)),0) -> 54.03 | BI11: =IFERROR(LOOKUP($A11,INDIRECT("'"&BP$6&"'!A:A"),INDIRECT("'"&BP$6&"'!"&BP$7&":"&BP$7)),0) -> 106.3 | BJ11: =IFERROR(LOOKUP($A11,INDIRECT("'"&BQ$6&"'!A:A"),INDIRECT("'"&BQ$6&"'!"&BQ$7&":"&BQ$7)),0) -> 0 | BK11: =IFERROR(LOOKUP($A11,INDIRECT("'"&BR$6&"'!A:A"),INDIRECT("'"&BR$6&"'!"&BR$7&":"&BR$7)),0) -> 12.68 | BL11: =IFERROR(LOOKUP($A11,INDIRECT("'"&BS$6&"'!A:A"),INDIRECT("'"&BS$6&"'!"&BS$7&":"&BS$7)),0) -> 1.0931 | BM11: =IFERROR(LOOKUP($A11,INDIRECT("'"&BT$6&"'!A:A"),INDIRECT("'"&BT$6&"'!"&BT$7&":"&BT$7)),0) -> 15.92839167 | BN11: =IFERROR(LOOKUP($A11,INDIRECT("'"&BU$6&"'!A:A"),INDIRECT("'"&BU$6&"'!"&BU$7&":"&BU$7)),0) -> 4255.859 | BO11: 0.01218843318 | BP11: 0.005446623094 | BQ11: 1.0785 | BR11: 0.02090738031 | BS11: 1.6079 | BT11: 0.01731541865 | BU11: 8.914492103e-05 | BW11: =IF(BW10<=$F$2,BW10+7) -> 2003-01-08
A12: 1985-03-01 | B12: 180.660004 | D12: 2003-03-31 | E12: 2003-03-31 | F12: 848.179993 | G12: TRUE | H12: 1 | I12: 1 | J12: 848.179993 | K12: =IFERROR(LN(J12/J11),FALSE) -> 0.008322837467 | L12: 0.9912118512 | M12: 2003-03-31 | N12: 0.9912118512 | O12: 2003-03-31 | P12: =N12 -> 0.9912118512 | Q12: =IFERROR(CHOOSE($N$1,AO12,AV12,BB12),1) -> 1.00489248 | R12: =IFERROR(CHOOSE($N$1,AP12,AW12,BC12),1) -> 1.023507973 | S12: =IFERROR(CHOOSE($N$1,AQ12,AX12,BD12),1) -> 1 | T12: =IFERROR(CHOOSE($N$1,AR12,AY12,BE12),1) -> 1 | U12: =IFERROR(CHOOSE($N$1,AS12,AZ12,BF12),1) -> 1 | V12: =IFERROR(CHOOSE($N$1,AT12,BA12,BG12),1) -> 1 | W12: 11.792158 | AC12: 44.659306 | AD12: 15.233907 | AE12: 0 | AF12: 0 | AG12: 0 | AH12: 0 | AI12: 1 | AJ12: 1 | AK12: 1 | AL12: 1 | AM12: 1 | AN12: 1 | AO12: =IFERROR(IF(ISNUMBER(AC12)>0.1,AC12,AO13)*AI12,AO13) -> 44.659306 | AP12: =IFERROR(IF(ISNUMBER(AD12)>0.1,AD12,AP13)*AJ12,AP13) -> 15.233907 | AQ12: =IFERROR(IF(ISNUMBER(AE12)>0.1,AE12,AQ13)*AK12,AQ13) -> 0 | AR12: =IFERROR(IF(ISNUMBER(AF12)>0.1,AF12,AR13)*AL12,AR13) -> 0 | AS12: =IFERROR(IF(ISNUMBER(AG12)>0.1,AG12,AS13)*AM12,AS13) -> 0 | AT12: =IFERROR(IF(ISNUMBER(AH12)>0.1,AH12,AT13)*AN12,AT13) -> 0 | AU12: =K12 -> 0.008322837467 | AV12: 0.008082273409 | AW12: 0.02450102547 | AX12: FALSE | AY12: FALSE | AZ12: FALSE | BA12: FALSE | BB12: 1.00489248 | BC12: 1.023507973 | BD12: 1 | BE12: 1 | BF12: 1 | BG12: 1 | BH12: 54.03 | BI12: 106.8 | BJ12: 0 | BK12: 12.98 | BL12: 1.1253 | BM12: 15.92839167 | BN12: 4255.859 | BO12: 0.01218843318 | BP12: 0.005437737901 | BQ12: 1.0797 | BR12: 0.02098195552 | BS12: 1.5825 | BT12: 0.01731541865 | BU12: 8.914492103e-05 | BW12: 2003-01-15
A13: 1985-04-01 | B13: 179.830002 | D13: 2003-04-30 | E13: 2003-04-30 | F13: 916.919983 | G13: TRUE | H13: 1 | I13: 1 | J13: 916.919983 | K13: 0.07792733974 | L13: 1.07154373 | M13: 2003-04-30 | N13: =CHOOSE($N$1,J13,K13,L13) -> 1.07154373 | O13: =M13 -> 2003-04-30 | P13: =N13 -> 1.07154373 | Q13: =IFERROR(CHOOSE($N$1,AO13,AV13,BB13),1) -> 1.08779049 | R13: =IFERROR(CHOOSE($N$1,AP13,AW13,BC13),1) -> 1.081003552 | S13: =IFERROR(CHOOSE($N$1,AQ13,AX13,BD13),1) -> 1 | T13: =IFERROR(CHOOSE($N$1,AR13,AY13,BE13),1) -> 1 | U13: =IFERROR(CHOOSE($N$1,AS13,AZ13,BF13),1) -> 1 | V13: =IFERROR(CHOOSE($N$1,AT13,BA13,BG13),1) -> 1 | W13: 11.745726 | AC13: 48.343449 | AD13: 16.089672 | AE13: 0 | AF13: 0 | AG13: 0 | AH13: 0 | AI13: 1 | AJ13: 1 | AK13: 1 | AL13: 1 | AM13: 1 | AN13: 1 | AO13: 48.343449 | AP13: 16.089672 | AQ13: 0 | AR13: 0 | AS13: 0 | AT13: 0 | AU13: =K13 -> 0.07792733974 | AV13: 0.07926801485 | AW13: 0.0546539083 | AX13: FALSE | AY13: FALSE | AZ13: FALSE | BA13: FALSE | BB13: 1.08779049 | BC13: 1.081003552 | BD13: 1 | BE13: 1 | BF13: 1 | BG13: 1 | BH13: 54.378 | BI13: 107 | BJ13: 0 | BK13: 12.38 | BL13: 1.2377 | BM13: 15.92839167 | BN13: 4322.557 | BO13: 0.01214653581 | BP13: 0.005458515284 | BQ13: 1.0862 | BR13: 0.0210748156 | BS13: 1.5739 | BT13: 0.01731541865 | BU13: 8.79574701e-05 | BW13: 2003-01-22
A14: 1985-05-01 | B14: 189.550003 | D14: 2003-05-31 | E14: 2003-05-31 | F14: 963.590027 | G14: TRUE | H14: 1 | I14: 1 | J14: 963.590027 | K14: 0.04964571205 | L14: 1.126083924 | M14: 2003-05-31 | N14: 1.126083924 | O14: 2003-05-31 | P14: 1.126083924 | Q14: 1.128021646 | R14: 1.040418599 | S14: 1 | T14: 1 | U14: 1 | V14: 1 | W14: 11.943037 | AC14: 50.131397 | AD14: 15.485605 | AE14: 0 | AF14: 0 | AG14: 0 | AH14: 0 | AI14: 1 | AJ14: 1 | AK14: 1 | AL14: 1 | AM14: 1 | AN14: 1 | AO14: 50.131397 | AP14: 15.485605 | AQ14: 0 | AR14: 0 | AS14: 0 | AT14: 0 | AU14: 0.04964571205 | AV14: 0.03631677692 | AW14: -0.03826669273 | AX14: FALSE | AY14: FALSE | AZ14: FALSE | BA14: FALSE | BB14: 1.128021646 | BC14: 1.040418599 | BD14: 1 | BE14: 1 | BF14: 1 | BG14: 1 | BH14: 54.378 | BI14: 107.2 | BJ14: 0 | BK14: 12.55 | BL14: 1.2483 | BM14: 15.92839167 | BN14: 4322.557 | BO14: 0.01214653581 | BP14: 0.005467468562 | BQ14: 1.1556 | BR14: 0.02111932418 | BS14: 1.6224 | BT14: 0.01731541865 | BU14: 8.79574701e-05 | BW14: 2003-01-29
A15: 1985-06-01 | B15: 191.850006 | D15: 2003-06-30 | E15: 2003-06-30 | F15: 974.5 | G15: TRUE | H15: 1 | I15: 1 | J15: 974.5 | K15: 0.01125859799 | L15: 1.138833687 | M15: 2003-06-30 | N15: 1.138833687 | O15: 2003-06-30 | P15: 1.138833687 | Q15: 1.058976045 | R15: 1.083962633 | S15: 1 | T15: 1 | U15: 1 | V15: 1 | W15: 11.592086 | AC15: 47.062881 | AD15: 16.133715 | AE15: 0 | AF15: 0 | AG15: 0 | AH15: 0 | AI15: 1 | AJ15: 1 | AK15: 1 | AL15: 1 | AM15: 1 | AN15: 1 | AO15: 47.062881 | AP15: 16.133715 | AQ15: 0 | AR15: 0 | AS15: 0 | AT15: 0 | AU15: 0.01125859799 | AV15: -0.06316289729 | AW15: 0.04100029907 | AX15: FALSE | AY15: FALSE | AZ15: FALSE | BA15: FALSE | BB15: 1.058976045 | BC15: 1.083962633 | BD15: 1 | BE15: 1 | BF15: 1 | BG15: 1 | BH15: 54.378 | BI15: 107.5 | BJ15: 0 | BK15: 12.47 | BL15: 1.2808 | BM15: 15.92839167 | BN15: 4322.557 | BO15: 0.01214653581 | BP15: 0.00546149645 | BQ15: 1.1674 | BR15: 0.02124495432 | BS15: 1.6609 | BT15: 0.01731541865 | BU15: 8.79574701e-05 | BW15: 2003-02-05
A16: 1985-07-01 | B16: 190.919998 | D16: 2003-07-31 | E16: 2003-07-31 | F16: 990.309998 | G16: TRUE | H16: 1 | I16: 1 | J16: 990.309998 | K16: 0.01609350446 | L16: 1.157309786 | M16: 2003-07-31 | N16: 1.157309786 | O16: 2003-07-31 | P16: 1.157309786 | Q16: 1.042930884 | R16: 1.116515814 | S16: 1 | T16: 1 | U16: 1 | V16: 1 | W16: 12.306356 | AC16: 46.349804 | AD16: 16.618237 | AE16: 0 | AF16: 0 | AG16: 0 | AH16: 0 | AI16: 1 | AJ16: 1 | AK16: 1 | AL16: 1 | AM16: 1 | AN16: 1 | AO16: 46.349804 | AP16: 16.618237 | AQ16: 0 | AR16: 0 | AS16: 0 | AT16: 0 | AU16: 0.01609350446 | AV16: -0.01526753784 | AW16: 0.02958952499 | AX16: FALSE | AY16: FALSE | AZ16: FALSE | BA16: FALSE | BB16: 1.042930884 | BC16: 1.116515814 | BD16: 1 | BE16: 1 | BF16: 1 | BG16: 1 | BH16: 54.706 | BI16: 107.7 | BJ16: 0 | BK16: 12.3 | BL16: 1.3807 | BM16: 15.92839167 | BN16: 4409.267 | BO16: 0.01207787816 | BP16: 0.005443658138 | BQ16: 1.1365 | BR16: 0.02151000215 | BS16: 1.6221 | BT16: 0.01731541865 | BU16: 8.604984076e-05 | BW16: 2003-02-12
A17: 1985-08-01 | B17: 188.630005 | D17: 2003-08-31 | E17: 2003-08-31 | F17: 1008.01001 | G17: TRUE | H17: 1 | I17: 1 | J17: 1008.01001 | K17: 0.01771535573 | L17: 1.177994619 | M17: 2003-08-31 | N17: 1.177994619 | O17: 2003-08-31 | P17: 1.177994619 | Q17: 1.052686368 | R17: 1.121166374 | S17: 1 | T17: 1 | U17: 1 | V17: 1 | W17: 11.861401 | AC17: 46.783356 | AD17: 16.687456 | AE17: 0 | AF17: 0 | AG17: 0 | AH17: 0 | AI17: 1 | AJ17: 1 | AK17: 1 | AL17: 1 | AM17: 1 | AN17: 1 | AO17: 46.783356 | AP17: 16.687456 | AQ17: 0 | AR17: 0 | AS17: 0 | AT17: 0 | AU17: 0.01771535573 | AV17: 0.009310435334 | AW17: 0.004156592668 | AX17: FALSE | AY17: FALSE | AZ17: FALSE | BA17: FALSE | BB17: 1.052686368 | BC17: 1.121166374 | BD17: 1 | BE17: 1 | BF17: 1 | BG17: 1 | BH17: 54.706 | BI17: 107.9 | BJ17: 0 | BK17: 11.86 | BL17: 1.3841 | BM17: 15.92839167 | BN17: 4409.267 | BO17: 0.01207787816 | BP17: 0.005420054201 | BQ17: 1.1155 | BR17: 0.02165439584 | BS17: 1.5939 | BT17: 0.01731541865 | BU17: 8.604984076e-05 | BW17: 2003-02-19
A18: 1985-09-01 | B18: 182.080002 | D18: 2003-09-30 | E18: 2003-09-30 | F18: 995.969971 | G18: TRUE | H18: 1 | I18: 1 | J18: 995.969971 | K18: -0.01201627161 | L18: 1.163924222 | M18: 2003-09-30 | N18: 1.163924222 | O18: 2003-09-30 | P18: 1.163924222 | Q18: 1.136086765 | R18: 1.175280136 | S18: 1 | T18: 1 | U18: 1 | V18: 1 | W18: 11.703404 | AC18: 50.489826 | AD18: 17.492886 | AE18: 0 | AF18: 0 | AG18: 0 | AH18: 0 | AI18: 1 | AJ18: 1 | AK18: 1 | AL18: 1 | AM18: 1 | AN18: 1 | AO18: 50.489826 | AP18: 17.492886 | AQ18: 0 | AR18: 0 | AS18: 0 | AT18: 0 | AU18: -0.01201627161 | AV18: 0.076244352 | AW18: 0.04713698454 | AX18: FALSE | AY18: FALSE | AZ18: FALSE | BA18: FALSE | BB18: 1.136086765 | BC18: 1.175280136 | BD18: 1 | BE18: 1 | BF18: 1 | BG18: 1 | BH18: 54.706 | BI18: 108.1 | BJ18: 0 | BK18: 11.96 | BL18: 1.3642 | BM18: 15.92839167 | BN18: 4409.267 | BO18: 0.01207787816 | BP18: 0.005402485143 | BQ18: 1.1267 | BR18: 0.02188183807 | BS18: 1.6155 | BT18: 0.01731541865 | BU18: 8.604984076e-05 | BW18: 2003-02-26
A19: 1985-10-01 | B19: 189.820007 | D19: 2003-10-31 | E19: 2003-10-31 | F19: 1050.709961 | G19: TRUE | H19: 1 | I19: 1 | J19: 1050.709961 | K19: 0.05350426046 | L19: 1.227895228 | M19: 2003-10-31 | N19: 1.227895228 | O19: 2003-10-31 | P19: 1.227895228 | Q19: 1.15087849 | R19: 1.105101554 | S19: 1 | T19: 1 | U19: 1 | V19: 1 | W19: 12.270267 | AC19: 51.147198 | AD19: 16.448347 | AE19: 0 | AF19: 0 | AG19: 0 | AH19: 0 | AI19: 1 | AJ19: 1 | AK19: 1 | AL19: 1 | AM19: 1 | AN19: 1 | AO19: 51.147198 | AP19: 16.448347 | AQ19: 0 | AR19: 0 | AS19: 0 | AT19: 0 | AU19: 0.05350426046 | AV19: 0.0129358602 | AW19: -0.06156929815 | AX19: FALSE | AY19: FALSE | AZ19: FALSE | BA19: FALSE | BB19: 1.15087849 | BC19: 1.105101554 | BD19: 1 | BE19: 1 | BF19: 1 | BG19: 1 | BH19: 55.012 | BI19: 108.5 | BJ19: 0 | BK19: 11.92 | BL19: 1.4215 | BM19: 15.92839167 | BN19: 4469.698 | BO19: 0.01200393729 | BP19: 0.005408328826 | BQ19: 1.1714 | BR19: 0.02188183807 | BS19: 1.6792 | BT19: 0.01731541865 | BU19: 8.43754261e-05 | BW19: 2003-03-05
A20: 1985-11-01 | B20: 202.169998 | D20: 2003-11-30 | E20: 2003-11-30 | F20: 1058.199951 | G20: TRUE | H20: 1 | I20: 1 | J20: 1058.199951 | K20: 0.007103216169 | L20: 1.236648283 | M20: 2003-11-30 | N20: 1.236648283 | O20: 2003-11-30 | P20: 1.236648283 | Q20: 1.164511938 | R20: 1.093019934 | S20: 1 | T20: 1 | U20: 1 | V20: 1 | W20: 13.203232 | AC20: 51.753094 | AD20: 16.268524 | AE20: 0 | AF20: 0 | AG20: 0 | AH20: 0 | AI20: 1 | AJ20: 1 | AK20: 1 | AL20: 1 | AM20: 1 | AN20: 1 | AO20: 51.753094 | AP20: 16.268524 | AQ20: 0 | AR20: 0 | AS20: 0 | AT20: 0 | AU20: 0.007103216169 | AV20: 0.01177650696 | AW20: -0.01099278784 | AX20: FALSE | AY20: FALSE | AZ20: FALSE | BA20: FALSE | BB20: 1.164511938 | BC20: 1.093019934 | BD20: 1 | BE20: 1 | BF20: 1 | BG20: 1 | BH20: 55.012 | BI20: 109 | BJ20: 0 | BK20: 12.07 | BL20: 1.4396 | BM20: 15.92839167 | BN20: 4469.698 | BO20: 0.01200393729 | BP20: 0.005405405405 | BQ20: 1.171 | BR20: 0.02206044562 | BS20: 1.6897 | BT20: 0.01731541865 | BU20: 8.43754261e-05 | BW20: 2003-03-12
A21: 1985-12-01 | B21: 211.279999 | D21: 2003-12-31 | E21: 2003-12-31 | F21: 1111.920044 | G21: TRUE | H21: 1 | I21: 1 | J21: 1111.920044 | K21: 0.04951898518 | L21: 1.299427403 | M21: 2003-12-31 | N21: 1.299427403 | O21: 2003-12-31 | P21: 1.299427403 | Q21: 1.194195699 | R21: 1.163592563 | S21: 1 | T21: 1 | U21: 1 | V21: 1 | W21: 14.813436 | AC21: 53.072296 | AD21: 17.318928 | AE21: 0 | AF21: 0 | AG21: 0 | AH21: 0 | AI21: 1 | AJ21: 1 | AK21: 1 | AL21: 1 | AM21: 1 | AN21: 1 | AO21: 53.072296 | AP21: 17.318928 | AQ21: 0 | AR21: 0 | AS21: 0 | AT21: 0 | AU21: 0.04951898518 | AV21: 0.02517084172 | AW21: 0.06256780945 | AX21: FALSE | AY21: FALSE | AZ21: FALSE | BA21: FALSE | BB21: 1.194195699 | BC21: 1.163592563 | BD21: 1 | BE21: 1 | BF21: 1 | BG21: 1 | BH21: 55.012 | BI21: 109.5 | BJ21: 0 | BK21: 12.05 | BL21: 1.4447 | BM21: 15.92839167 | BN21: 4469.698 | BO21: 0.01200393729 | BP21: 0.00539083558 | BQ21: 1.2298 | BR21: 0.0218483723 | BS21: 1.7516 | BT21: 0.01731541865 | BU21: 8.43754261e-05 | BW21: 2003-03-19
A22: 1986-01-01 | B22: 211.779999 | D22: 2004-01-31 | E22: 2004-01-31 | F22: 1131.130005 | G22: TRUE | H22: 1 | I22: 1 | J22: 1131.130005 | K22: 0.01712884711 | L22: 1.321876813 | M22: 2004-01-31 | N22: 1.321876813 | O22: 2004-01-31 | P22: 1.321876813 | Q22: 1.278592071 | R22: 1.175496543 | S22: 1 | T22: 1 | U22: 1 | V22: 1 | W22: 14.432377 | AC22: 56.823029 | AD22: 17.496107 | AE22: 0 | AF22: 0 | AG22: 0 | AH22: 0 | AI22: 1 | AJ22: 1 | AK22: 1 | AL22: 1 | AM22: 1 | AN22: 1 | AO22: 56.823029 | AP22: 17.496107 | AQ22: 0 | AR22: 0 | AS22: 0 | AT22: 0 | AU22: 0.01712884711 | AV22: 0.06828662418 | AW22: 0.01017839158 | AX22: FALSE | AY22: FALSE | AZ22: FALSE | BA22: FALSE | BB22: 1.278592071 | BC22: 1.175496543 | BD22: 1 | BE22: 1 | BF22: 1 | BG22: 1 | BH22: 55.286 | BI22: 109.9 | BJ22: 0 | BK22: . | BL22: 1.4244 | BM22: 16.64750833 | BN22: 4530.053 | BO22: 0.01191966148 | BP22: 0.005367686527 | BQ22: 1.2638 | BR22: 0.02206531333 | BS22: 1.8255 | BT22: 0.01716506481 | BU22: 8.318460619e-05 | BW22: 2003-03-26
A23: 1986-02-01 | B23: 226.919998 | D23: 2004-02-29 | E23: 2004-02-29 | F23: 1144.939941 | G23: TRUE | H23: 1 | I23: 1 | J23: 1144.939941 | K23: 0.01213504488 | L23: 1.338015572 | M23: 2004-02-29 | N23: 1.338015572 | O23: 2004-02-29 | P23: 1.338015572 | Q23: 1.24341626 | R23: 1.127881027 | S23: 1 | T23: 1 | U23: 1 | V23: 1 | W23: 14.372833 | AC23: 55.25975 | AD23: 16.787397 | AE23: 0 | AF23: 0 | AG23: 0 | AH23: 0 | AI23: 1 | AJ23: 1 | AK23: 1 | AL23: 1 | AM23: 1 | AN23: 1 | AO23: 55.25975 | AP23: 16.787397 | AQ23: 0 | AR23: 0 | AS23: 0 | AT23: 0 | AU23: 0.01213504488 | AV23: -0.02789688828 | AW23: -0.04134997273 | AX23: FALSE | AY23: FALSE | AZ23: FALSE | BA23: FALSE | BB23: 1.24341626 | BC23: 1.127881027 | BD23: 1 | BE23: 1 | BF23: 1 | BG23: 1 | BH23: 55.286 | BI23: 109.7 | BJ23: 0 | BK23: 12.34 | BL23: 1.4297 | BM23: 16.64750833 | BN23: 4530.053 | BO23: 0.01191966148 | BP23: 0.005356186395 | BQ23: 1.264 | BR23: 0.02206531333 | BS23: 1.8673 | BT23: 0.01716506481 | BU23: 8.318460619e-05 | BW23: 2003-04-02
A24: 1986-03-01 | B24: 238.899994 | D24: 2004-03-31 | E24: 2004-03-31 | F24: 1126.209961 | G24: TRUE | H24: 1 | I24: 1 | J24: 1126.209961 | K24: -0.01649420377 | L24: 1.316127083 | M24: 2004-03-31 | N24: 1.316127083 | O24: 2004-03-31 | P24: 1.316127083 | Q24: 1.185289572 | R24: 1.059860196 | S24: 1 | T24: 1 | U24: 1 | V24: 1 | W24: 14.53553 | AC24: 52.676491 | AD24: 15.774974 | AE24: 0 | AF24: 0 | AG24: 0 | AH24: 0 | AI24: 1 | AJ24: 1 | AK24: 1 | AL24: 1 | AM24: 1 | AN24: 1 | AO24: 52.676491 | AP24: 15.774974 | AQ24: 0 | AR24: 0 | AS24: 0 | AT24: 0 | AU24: -0.01649420377 | AV24: -0.04787553048 | AW24: -0.06220366606 | AX24: FALSE | AY24: FALSE | AZ24: FALSE | BA24: FALSE | BB24: 1.185289572 | BC24: 1.059860196 | BD24: 1 | BE24: 1 | BF24: 1 | BG24: 1 | BH24: 55.286 | BI24: 109.1 | BJ24: 0 | BK24: 12.27 | BL24: 1.4674 | BM24: 16.64750833 | BN24: 4530.053 | BO24: 0.01191966148 | BP24: 0.005344735436 | BQ24: 1.2261 | BR24: 0.02206531333 | BS24: 1.8261 | BT24: 0.01716506481 | BU24: 8.318460619e-05 | BW24: 2003-04-09
A25: 1986-04-01 | B25: 235.520004 | D25: 2004-04-30 | E25: 2004-04-30 | F25: 1107.300049 | G25: TRUE | H25: 1 | I25: 1 | J25: 1107.300049 | K25: -0.01693331461 | L25: 1.29402832 | M25: 2004-04-30 | N25: 1.29402832 | O25: 2004-04-30 | P25: 1.29402832 | Q25: 1.137924604 | R25: 1.110875736 | S25: 1 | T25: 1 | U25: 1 | V25: 1 | W25: 14.991261 | X25: 0.070236 | AC25: 50.571503 | AD25: 16.53429 | AE25: 0 | AF25: 0 | AG25: 0 | AH25: 0 | AI25: 1 | AJ25: 1 | AK25: 1 | AL25: 1 | AM25: 1 | AN25: 1 | AO25: 50.571503 | AP25: 16.53429 | AQ25: 0 | AR25: 0 | AS25: 0 | AT25: 0 | AU25: -0.01693331461 | AV25: -0.04078102911 | AW25: 0.04701164604 | AX25: FALSE | AY25: FALSE | AZ25: FALSE | BA25: FALSE | BB25: 1.137924604 | BC25: 1.110875736 | BD25: 1 | BE25: 1 | BF25: 1 | BG25: 1 | BH25: 55.495 | BI25: 108.7 | BJ25: 0 | BK25: 12.43 | BL25: 1.4985 | BM25: 16.64750833 | BN25: 4560.834 | BO25: 0.01182466388 | BP25: 0.005336179296 | BQ25: 1.1989 | BR25: 0.02304147465 | BS25: 1.8031 | BT25: 0.01716506481 | BU25: 8.206400829e-05 | BW25: 2003-04-16
A26: 1986-05-01 | B26: 247.350006 | D26: 2004-05-31 | E26: 2004-05-31 | F26: 1120.680054 | G26: TRUE | H26: 1 | I26: 1 | J26: 1120.680054 | K26: 0.01201102814 | L26: 1.309664647 | M26: 2004-05-31 | N26: 1.309664647 | O26: 2004-05-31 | P26: 1.309664647 | Q26: 1.14334555 | R26: 1.11512721 | S26: 1 | T26: 1 | U26: 1 | V26: 1 | W26: 14.619482 | X26: 0.076225 | Z26: =LOOKUP($A26,INDIRECT("'"&Z$5&"'!A:A"),INDIRECT("'"&Z$5&"'!"&Z$7&":"&Z$7)) ->  | AC26: 50.81242 | AD26: 16.597569 | AE26: 0 | AF26: 0 | AG26: 0 | AH26: 0 | AI26: 1 | AJ26: 1 | AK26: 1 | AL26: 1 | AM26: 1 | AN26: 1 | AO26: 50.81242 | AP26: 16.597569 | AQ26: 0 | AR26: 0 | AS26: 0 | AT26: 0 | AU26: 0.01201102814 | AV26: 0.004752577062 | AW26: 0.003819832563 | AX26: FALSE | AY26: FALSE | AZ26: FALSE | BA26: FALSE | BB26: 1.14334555 | BC26: 1.11512721 | BD26: 1 | BE26: 1 | BF26: 1 | BG26: 1 | BH26: 55.495 | BI26: 109 | BJ26: 0 | BK26: 12.35 | BL26: 1.5211 | BM26: 16.64750833 | BN26: 4560.834 | BO26: 0.01182466388 | BP26: 0.005313496281 | BQ26: 1.2 | BR26: 0.02246181491 | BS26: 1.786 | BT26: 0.01716506481 | BU26: 8.206400829e-05 | BW26: 2003-04-23
A27: 1986-06-01 | B27: 250.839996 | D27: 2004-06-30 | E27: 2004-06-30 | F27: 1140.839966 | G27: TRUE | H27: 1 | I27: 1 | J27: 1140.839966 | K27: 0.01782911126 | L27: 1.333224202 | M27: 2004-06-30 | N27: 1.333224202 | O27: 2004-06-30 | P27: 1.333224202 | Q27: 1.139973325 | R27: 1.214183486 | S27: 1 | T27: 1 | U27: 1 | V27: 1 | W27: 14.158786 | X27: 0.066969 | AC27: 50.662552 | AD27: 18.071924 | AE27: 0 | AF27: 0 | AG27: 0 | AH27: 0 | AI27: 1 | AJ27: 1 | AK27: 1 | AL27: 1 | AM27: 1 | AN27: 1 | AO27: 50.662552 | AP27: 18.071924 | AQ27: 0 | AR27: 0 | AS27: 0 | AT27: 0 | AU27: 0.01782911126 | AV27: -0.002953794537 | AW27: 0.0851033349 | AX27: FALSE | AY27: FALSE | AZ27: FALSE | BA27: FALSE | BB27: 1.139973325 | BC27: 1.214183486 | BD27: 1 | BE27: 1 | BF27: 1 | BG27: 1 | BH27: 55.495 | BI27: 109.4 | BJ27: 0 | BK27: 12.77 | BL27: 1.5085 | BM27: 16.64750833 | BN27: 4560.834 | BO27: 0.01182466388 | BP27: 0.005293806247 | BQ27: 1.2146 | BR27: 0.02201188642 | BS27: 1.8279 | BT27: 0.01716506481 | BU27: 8.206400829e-05 | BW27: 2003-04-30
A28: 1986-07-01 | B28: 236.119995 | D28: 2004-07-31 | E28: 2004-07-31 | F28: 1101.719971 | G28: TRUE | H28: 1 | I28: 1 | J28: 1101.719971 | K28: -0.03489223474 | L28: 1.287507252 | M28: 2004-07-31 | N28: 1.287507252 | O28: 2004-07-31 | P28: 1.287507252 | Q28: 1.126006655 | R28: 1.211207138 | S28: 1 | T28: 1 | U28: 1 | V28: 1 | W28: 12.805729 | X28: 0.062069 | AC28: 50.041847 | AD28: 18.027624 | AE28: 0 | AF28: 0 | AG28: 0 | AH28: 0 | AI28: 1 | AJ28: 1 | AK28: 1 | AL28: 1 | AM28: 1 | AN28: 1 | AO28: 50.041847 | AP28: 18.027624 | AQ28: 0 | AR28: 0 | AS28: 0 | AT28: 0 | AU28: -0.03489223474 | AV28: -0.01232742296 | AW28: -0.002454325591 | AX28: FALSE | AY28: FALSE | AZ28: FALSE | BA28: FALSE | BB28: 1.126006655 | BC28: 1.211207138 | BD28: 1 | BE28: 1 | BF28: 1 | BG28: 1 | BH28: 55.723 | BI28: 109.5 | BJ28: 0 | BK28: 12.4 | BL28: 1.5071 | BM28: 16.64750833 | BN28: 4625.847 | BO28: 0.01174922455 | BP28: 0.005288207298 | BQ28: 1.2266 | BR28: 0.02179598954 | BS28: 1.8438 | BT28: 0.01716506481 | BU28: 8.073032527e-05 | BW28: 2003-05-07
A29: 1986-08-01 | B29: 252.929993 | D29: 2004-08-31 | E29: 2004-08-31 | F29: 1104.23999 | G29: TRUE | H29: 1 | I29: 1 | J29: 1104.23999 | K29: 0.002284737838 | L29: 1.290452232 | M29: 2004-08-31 | N29: 1.290452232 | O29: 2004-08-31 | P29: 1.290452232 | Q29: 1.0952278 | R29: 1.160616551 | S29: 1 | T29: 1 | U29: 1 | V29: 1 | W29: 13.409767 | X29: 0.062069 | AC29: 48.673977 | AD29: 17.274633 | AE29: 0 | AF29: 0 | AG29: 0 | AH29: 0 | AI29: 1 | AJ29: 1 | AK29: 1 | AL29: 1 | AM29: 1 | AN29: 1 | AO29: 48.673977 | AP29: 17.274633 | AQ29: 0 | AR29: 0 | AS29: 0 | AT29: 0 | AU29: 0.002284737838 | AV29: -0.0277150613 | AW29: -0.04266612331 | AX29: FALSE | AY29: FALSE | AZ29: FALSE | BA29: FALSE | BB29: 1.0952278 | BC29: 1.160616551 | BD29: 1 | BE29: 1 | BF29: 1 | BG29: 1 | BH29: 55.723 | BI29: 109.6 | BJ29: 0 | BK29: 12.58 | BL29: 1.4861 | BM29: 16.64750833 | BN29: 4625.847 | BO29: 0.01174922455 | BP29: 0.005285412262 | BQ29: 1.2191 | BR29: 0.02155172414 | BS29: 1.8203 | BT29: 0.01716506481 | BU29: 8.073032527e-05 | BW29: 2003-05-14
A30: 1986-09-01 | B30: 231.320007 | D30: 2004-09-30 | E30: 2004-09-30 | F30: 1114.579956 | G30: TRUE | H30: 1 | I30: 1 | J30: 1114.579956 | K30: 0.009320306381 | L30: 1.302535866 | M30: 2004-09-30 | N30: 1.302535866 | O30: 2004-09-30 | P30: 1.302535866 | Q30: 1.111154424 | R30: 1.17896382 | S30: 1 | T30: 1 | U30: 1 | V30: 1 | W30: 13.108992 | X30: 0.061524 | AC30: 49.381786 | AD30: 17.547714 | AE30: 0 | AF30: 0 | AG30: 0 | AH30: 0 | AI30: 1 | AJ30: 1 | AK30: 1 | AL30: 1 | AM30: 1 | AN30: 1 | AO30: 49.381786 | AP30: 17.547714 | AQ30: 0 | AR30: 0 | AS30: 0 | AT30: 0 | AU30: 0.009320306381 | AV30: 0.01443711766 | AW30: 0.01568456016 | AX30: FALSE | AY30: FALSE | AZ30: FALSE | BA30: FALSE | BB30: 1.111154424 | BC30: 1.17896382 | BD30: 1 | BE30: 1 | BF30: 1 | BG30: 1 | BH30: 55.723 | BI30: 110 | BJ30: 0 | BK30: . | BL30: 1.4698 | BM30: 16.64750833 | BN30: 4625.847 | BO30: 0.01174922455 | BP30: 0.005268703899 | BQ30: 1.2224 | BR30: 0.02157962883 | BS30: 1.7937 | BT30: 0.01716506481 | BU30: 8.073032527e-05 | BW30: 2003-05-21
A31: 1986-10-01 | B31: 243.979996 | D31: 2004-10-31 | E31: 2004-10-31 | F31: 1130.199951 | G31: TRUE | H31: 1 | I31: 1 | J31: 1130.199951 | K31: 0.013916952 | L31: 1.320789921 | M31: 2004-10-31 | N31: 1.320789921 | O31: 2004-10-31 | P31: 1.320789921 | Q31: 1.163121988 | R31: 1.19260819 | S31: 1 | T31: 1 | U31: 1 | V31: 1 | W31: 12.049056 | X31: 0.084392 | AC31: 51.691322 | AD31: 17.750797 | AE31: 0 | AF31: 0 | AG31: 0 | AH31: 0 | AI31: 1 | AJ31: 1 | AK31: 1 | AL31: 1 | AM31: 1 | AN31: 1 | AO31: 51.691322 | AP31: 17.750797 | AQ31: 0 | AR31: 0 | AS31: 0 | AT31: 0 | AU31: 0.013916952 | AV31: 0.04570826268 | AW31: 0.0115067313 | AX31: FALSE | AY31: FALSE | AZ31: FALSE | BA31: FALSE | BB31: 1.163121988 | BC31: 1.19260819 | BD31: 1 | BE31: 1 | BF31: 1 | BG31: 1 | BH31: 56.026 | BI31: 110.2 | BJ31: 0 | BK31: 12.8 | BL31: 1.4264 | BM31: 16.64750833 | BN31: 4669.623 | BO31: 0.01165908826 | BP31: 0.005241090147 | BQ31: 1.2507 | BR31: 0.02181025082 | BS31: 1.8077 | BT31: 0.01716506481 | BU31: 7.948081226e-05 | BW31: 2003-05-28
A32: 1986-11-01 | B32: 249.220001 | D32: 2004-11-30 | E32: 2004-11-30 | F32: 1173.819946 | G32: TRUE | H32: 1 | I32: 1 | J32: 1173.819946 | K32: 0.03786877681 | L32: 1.371765723 | M32: 2004-11-30 | N32: 1.371765723 | O32: 2004-11-30 | P32: 1.371765723 | Q32: 1.221311005 | R32: 1.143147675 | S32: 1 | T32: 1 | U32: 1 | V32: 1 | W32: 12.390186 | X32: 0.108348 | AC32: 54.277351 | AD32: 17.014626 | AE32: 0 | AF32: 0 | AG32: 0 | AH32: 0 | AI32: 1 | AJ32: 1 | AK32: 1 | AL32: 1 | AM32: 1 | AN32: 1 | AO32: 54.277351 | AP32: 17.014626 | AQ32: 0 | AR32: 0 | AS32: 0 | AT32: 0 | AU32: 0.03786877681 | AV32: 0.04881711684 | AW32: -0.04235708922 | AX32: FALSE | AY32: FALSE | AZ32: FALSE | BA32: FALSE | BB32: 1.221311005 | BC32: 1.143147675 | BD32: 1 | BE32: 1 | BF32: 1 | BG32: 1 | BH32: 56.026 | BI32: 110.4 | BJ32: 0 | BK32: 12.98 | BL32: 1.4238 | BM32: 16.64750833 | BN32: 4669.623 | BO32: 0.01165908826 | BP32: 0.00521648409 | BQ32: 1.2997 | BR32: 0.02206044562 | BS32: 1.8607 | BT32: 0.01716506481 | BU32: 7.948081226e-05 | BW32: 2003-06-04
A33: 1986-12-01 | B33: 242.169998 | D33: 2004-12-31 | E33: 2004-12-31 | F33: 1211.920044 | G33: TRUE | H33: 1 | I33: 1 | J33: 1211.920044 | K33: 0.0319425735 | L33: 1.416290788 | M33: 2004-12-31 | N33: 1.416290788 | O33: 2004-12-31 | P33: 1.416290788 | Q33: 1.280025854 | R33: 1.269807056 | S33: 1 | T33: 1 | U33: 1 | V33: 1 | W33: 11.798862 | X33: 0.105082 | AC33: 56.886749 | AD33: 18.899826 | AE33: 0 | AF33: 0 | AG33: 0 | AH33: 0 | AI33: 1 | AJ33: 1 | AK33: 1 | AL33: 1 | AM33: 1 | AN33: 1 | AO33: 56.886749 | AP33: 18.899826 | AQ33: 0 | AR33: 0 | AS33: 0 | AT33: 0 | AU33: 0.0319425735 | AV33: 0.04695540049 | AW33: 0.1050793886 | AX33: FALSE | AY33: FALSE | AZ33: FALSE | BA33: FALSE | BB33: 1.280025854 | BC33: 1.269807056 | BD33: 1 | BE33: 1 | BF33: 1 | BG33: 1 | BH33: 56.026 | BI33: 110.8 | BJ33: 0 | BK33: 13.13 | BL33: 1.4393 | BM33: 16.64750833 | BN33: 4669.623 | BO33: 0.01165908826 | BP33: 0.00521648409 | BQ33: 1.3406 | BR33: 0.02257336343 | BS33: 1.9286 | BT33: 0.01716506481 | BU33: 7.948081226e-05 | BW33: 2003-06-11
A34: 1987-01-01 | B34: 274.079987 | D34: 2005-01-31 | E34: 2005-01-31 | F34: 1181.27002 | G34: TRUE | H34: 1 | I34: 1 | J34: 1181.27002 | K34: -0.02561576734 | L34: 1.380472132 | M34: 2005-01-31 | N34: 1.380472132 | O34: 2005-01-31 | P34: 1.380472132 | Q34: 1.21302445 | R34: 1.248896971 | S34: 1 | T34: 1 | U34: 1 | V34: 1 | W34: 12.659191 | X34: 0.159256 | AC34: 53.909081 | AD34: 18.5886 | AE34: 0 | AF34: 0 | AG34: 0 | AH34: 0 | AI34: 1 | AJ34: 1 | AK34: 1 | AL34: 1 | AM34: 1 | AN34: 1 | AO34: 53.909081 | AP34: 18.5886 | AQ34: 0 | AR34: 0 | AS34: 0 | AT34: 0 | AU34: -0.02561576734 | AV34: -0.05376348937 | AW34: -0.01660422608 | AX34: FALSE | AY34: FALSE | AZ34: FALSE | BA34: FALSE | BB34: 1.21302445 | BC34: 1.248896971 | BD34: 1 | BE34: 1 | BF34: 1 | BG34: 1 | BH34: 56.382 | BI34: 111.4 | BJ34: 0 | BK34: . | BL34: 1.5054 | BM34: 17.3988 | BN34: 4736.524 | BO34: 0.01156697859 | BP34: 0.005219206681 | BQ34: 1.3123 | BR34: 0.02311070025 | BS34: 1.8797 | BT34: 0.01680263499 | BU34: 7.779459178e-05 | BW34: 2003-06-18
A35: 1987-02-01 | B35: 284.200012 | D35: 2005-02-28 | E35: 2005-02-28 | F35: 1203.599976 | G35: TRUE | H35: 1 | I35: 1 | J35: 1203.599976 | K35: 0.018726898 | L35: 1.406567675 | M35: 2005-02-28 | N35: 1.406567675 | O35: 2005-02-28 | P35: 1.406567675 | Q35: 1.202117822 | R35: 1.195671544 | S35: 1 | T35: 1 | U35: 1 | V35: 1 | W35: 13.716179 | X35: 0.167151 | AC35: 53.42437 | AD35: 17.796392 | AE35: 0 | AF35: 0 | AG35: 0 | AH35: 0 | AI35: 1 | AJ35: 1 | AK35: 1 | AL35: 1 | AM35: 1 | AN35: 1 | AO35: 53.42437 | AP35: 17.796392 | AQ35: 0 | AR35: 0 | AS35: 0 | AT35: 0 | AU35: 0.018726898 | AV35: -0.009031933485 | AW35: -0.04355274947 | AX35: FALSE | AY35: FALSE | AZ35: FALSE | BA35: FALSE | BB35: 1.202117822 | BC35: 1.195671544 | BD35: 1 | BE35: 1 | BF35: 1 | BG35: 1 | BH35: 56.382 | BI35: 111.8 | BJ35: 0 | BK35: 13.04 | BL35: 1.528 | BM35: 17.3988 | BN35: 4736.524 | BO35: 0.01156697859 | BP35: 0.005197505198 | BQ35: 1.3013 | BR35: 0.02290426019 | BS35: 1.8871 | BT35: 0.01680263499 | BU35: 7.779459178e-05 | BW35: 2003-06-25
A36: 1987-03-01 | B36: 291.700012 | D36: 2005-03-31 | E36: 2005-03-31 | F36: 1180.589966 | G36: TRUE | H36: 1 | I36: 1 | J36: 1180.589966 | K36: -0.01930276111 | L36: 1.379677398 | M36: 2005-03-31 | N36: 1.379677398 | O36: 2005-03-31 | P36: 1.379677398 | Q36: 1.188800068 | R36: 1.152167957 | S36: 1 | T36: 1 | U36: 1 | V36: 1 | W36: 14.882024 | X36: 0.210708 | AC36: 52.832504 | AD36: 17.148884 | AE36: 0 | AF36: 0 | AG36: 0 | AH36: 0 | AI36: 1 | AJ36: 1 | AK36: 1 | AL36: 1 | AM36: 1 | AN36: 1 | AO36: 52.832504 | AP36: 17.148884 | AQ36: 0 | AR36: 0 | AS36: 0 | AT36: 0 | AU36: -0.01930276111 | AV36: -0.01114040154 | AW36: -0.03706264151 | AX36: FALSE | AY36: FALSE | AZ36: FALSE | BA36: FALSE | BB36: 1.188800068 | BC36: 1.152167957 | BD36: 1 | BE36: 1 | BF36: 1 | BG36: 1 | BH36: 56.382 | BI36: 112.2 | BJ36: 0 | BK36: 13.05 | BL36: 1.5923 | BM36: 17.3988 | BN36: 4736.524 | BO36: 0.01156697859 | BP36: 0.005178663905 | BQ36: 1.3185 | BR36: 0.02294630564 | BS36: 1.9043 | BT36: 0.01680263499 | BU36: 7.779459178e-05 | BW36: 2003-07-02
A37: 1987-04-01 | B37: 288.359985 | D37: 2005-04-30 | E37: 2005-04-30 | F37: 1156.849976 | G37: TRUE | H37: 1 | I37: 1 | J37: 1156.849976 | K37: -0.02031351129 | L37: 1.351934042 | M37: 2005-04-30 | N37: 1.351934042 | O37: 2005-04-30 | P37: 1.351934042 | Q37: 0.9936588184 | R37: 1.206034474 | S37: 1 | T37: 1 | U37: 1 | V37: 1 | W37: 15.873323 | X37: 0.226497 | AC37: 44.160061 | AD37: 17.950634 | AE37: 0 | AF37: 0 | AG37: 0 | AH37: 0 | AI37: 1 | AJ37: 1 | AK37: 1 | AL37: 1 | AM37: 1 | AN37: 1 | AO37: 44.160061 | AP37: 17.950634 | AQ37: 0 | AR37: 0 | AS37: 0 | AT37: 0 | AU37: -0.02031351129 | AV37: -0.1793058241 | AW37: 0.04569233604 | AX37: FALSE | AY37: FALSE | AZ37: FALSE | BA37: FALSE | BB37: 0.9936588184 | BC37: 1.206034474 | BD37: 1 | BE37: 1 | BF37: 1 | BG37: 1 | BH37: 56.773 | BI37: 112.7 | BJ37: 0 | BK37: 12.94 | BL37: 1.6313 | BM37: 17.3988 | BN37: 4824.292 | BO37: 0.01148342941 | BP37: 0.005162622612 | BQ37: 1.2943 | BR37: 0.02292526364 | BS37: 1.8961 | BT37: 0.01680263499 | BU37: 7.694084434e-05 | BW37: 2003-07-09
A38: 1987-05-01 | B38: 290.100006 | D38: 2005-05-31 | E38: 2005-05-31 | F38: 1191.5 | G38: TRUE | H38: 1 | I38: 1 | J38: 1191.5 | K38: 0.02951224413 | L38: 1.392427233 | M38: 2005-05-31 | N38: 1.392427233 | O38: 2005-05-31 | P38: 1.392427233 | Q38: 0.9828609391 | R38: 1.229869241 | S38: 1 | T38: 1 | U38: 1 | V38: 1 | W38: 15.860939 | X38: 0.250998 | AC38: 43.680183 | AD38: 18.305391 | AE38: 0 | AF38: 0 | AG38: 0 | AH38: 0 | AI38: 1 | AJ38: 1 | AK38: 1 | AL38: 1 | AM38: 1 | AN38: 1 | AO38: 43.680183 | AP38: 18.305391 | AQ38: 0 | AR38: 0 | AS38: 0 | AT38: 0 | AU38: 0.02951224413 | AV38: -0.01092626232 | AW38: 0.01957017198 | AX38: FALSE | AY38: FALSE | AZ38: FALSE | BA38: FALSE | BB38: 0.9828609391 | BC38: 1.229869241 | BD38: 1 | BE38: 1 | BF38: 1 | BG38: 1 | BH38: 56.773 | BI38: 113 | BJ38: 0 | BK38: 12.63 | BL38: 1.6666 | BM38: 17.3988 | BN38: 4824.292 | BO38: 0.01148342941 | BP38: 0.005165289256 | BQ38: 1.2697 | BR38: 0.02299908004 | BS38: 1.8559 | BT38: 0.01680263499 | BU38: 7.694084434e-05 | BW38: 2003-07-16
A39: 1987-06-01 | B39: 304 | D39: 2005-06-30 | E39: 2005-06-30 | F39: 1191.329956 | G39: TRUE | H39: 1 | I39: 1 | J39: 1191.329956 | K39: -0.0001427244104 | L39: 1.392228514 | M39: 2005-06-30 | N39: 1.392228514 | O39: 2005-06-30 | P39: 1.392228514 | Q39: 0.967862202 | R39: 1.187862293 | S39: 1 | T39: 1 | U39: 1 | V39: 1 | W39: 16.215734 | X39: 0.222142 | AC39: 43.013611 | AD39: 17.680159 | AE39: 0 | AF39: 0 | AG39: 0 | AH39: 0 | AI39: 1 | AJ39: 1 | AK39: 1 | AL39: 1 | AM39: 1 | AN39: 1 | AO39: 43.013611 | AP39: 17.680159 | AQ39: 0 | AR39: 0 | AS39: 0 | AT39: 0 | AU39: -0.0001427244104 | AV39: -0.0153779205 | AW39: -0.03475255625 | AX39: FALSE | AY39: FALSE | AZ39: FALSE | BA39: FALSE | BB39: 0.967862202 | BC39: 1.187862293 | BD39: 1 | BE39: 1 | BF39: 1 | BG39: 1 | BH39: 56.773 | BI39: 113.5 | BJ39: 0 | BK39: 12.89 | BL39: 1.6288 | BM39: 17.3988 | BN39: 4824.292 | BO39: 0.01148342941 | BP39: 0.005162622612 | BQ39: 1.2155 | BR39: 0.02287805994 | BS39: 1.8177 | BT39: 0.01680263499 | BU39: 7.694084434e-05 | BW39: 2003-07-23
A40: 1987-07-01 | B40: 318.660004 | D40: 2005-07-31 | E40: 2005-07-31 | F40: 1234.180054 | G40: TRUE | H40: 1 | I40: 1 | J40: 1234.180054 | K40: 0.03533653255 | L40: 1.442304589 | M40: 2005-07-31 | N40: 1.442304589 | O40: 2005-07-31 | P40: 1.442304589 | Q40: 1.088648915 | R40: 1.22468482 | S40: 1 | T40: 1 | U40: 1 | V40: 1 | W40: 16.066044 | X40: 0.204719 | AC40: 48.381599 | AD40: 18.228226 | AE40: 0 | AF40: 0 | AG40: 0 | AH40: 0 | AI40: 1 | AJ40: 1 | AK40: 1 | AL40: 1 | AM40: 1 | AN40: 1 | AO40: 48.381599 | AP40: 18.228226 | AQ40: 0 | AR40: 0 | AS40: 0 | AT40: 0 | AU40: 0.03533653255 | AV40: 0.117602955 | AW40: 0.03052822145 | AX40: FALSE | AY40: FALSE | AZ40: FALSE | BA40: FALSE | BB40: 1.088648915 | BC40: 1.22468482 | BD40: 1 | BE40: 1 | BF40: 1 | BG40: 1 | BH40: 57.202 | BI40: 113.8 | BJ40: 0 | BK40: 12.87 | BL40: 1.609 | BM40: 17.3988 | BN40: 4902.321 | BO40: 0.01137993035 | BP40: 0.005130836326 | BQ40: 1.2041 | BR40: 0.02301495972 | BS40: 1.7507 | BT40: 0.01680263499 | BU40: 7.561054761e-05 | BW40: 2003-07-30
A41: 1987-08-01 | B41: 329.799988 | D41: 2005-08-31 | E41: 2005-08-31 | F41: 1220.329956 | G41: TRUE | H41: 1 | I41: 1 | J41: 1220.329956 | K41: -0.01128554778 | L41: 1.426118896 | M41: 2005-08-31 | N41: 1.426118896 | O41: 2005-08-31 | P41: 1.426118896 | Q41: 1.051604573 | R41: 1.309326973 | S41: 1 | T41: 1 | U41: 1 | V41: 1 | W41: 16.801994 | X41: 0.258621 | AC41: 46.735279 | AD41: 19.488041 | AE41: 0 | AF41: 0 | AG41: 0 | AH41: 0 | AI41: 1 | AJ41: 1 | AK41: 1 | AL41: 1 | AM41: 1 | AN41: 1 | AO41: 46.735279 | AP41: 19.488041 | AQ41: 0 | AR41: 0 | AS41: 0 | AT41: 0 | AU41: -0.01128554778 | AV41: -0.03462023704 | AW41: 0.06682972355 | AX41: FALSE | AY41: FALSE | AZ41: FALSE | BA41: FALSE | BB41: 1.051604573 | BC41: 1.309326973 | BD41: 1 | BE41: 1 | BF41: 1 | BG41: 1 | BH41: 57.202 | BI41: 114.3 | BJ41: 0 | BK41: 13.11 | BL41: 1.5996 | BM41: 17.3988 | BN41: 4902.321 | BO41: 0.01137993035 | BP41: 0.005099439062 | BQ41: 1.2295 | BR41: 0.02305741296 | BS41: 1.7944 | BT41: 0.01680263499 | BU41: 7.561054761e-05 | BW41: 2003-08-06
A42: 1987-09-01 | B42: 321.829987 | D42: 2005-09-30 | E42: 2005-09-30 | F42: 1228.810059 | G42: TRUE | H42: 1 | I42: 1 | J42: 1228.810059 | K42: 0.006924991497 | L42: 1.436029031 | M42: 2005-09-30 | N42: 1.436029031 | O42: 2005-09-30 | P42: 1.436029031 | Q42: 1.048903585 | R42: 1.234072341 | S42: 1 | T42: 1 | U42: 1 | V42: 1 | W42: 15.147182 | X42: 0.288566 | AC42: 46.615242 | AD42: 18.36795 | AE42: 0 | AF42: 0 | AG42: 0 | AH42: 0 | AI42: 1 | AJ42: 1 | AK42: 1 | AL42: 1 | AM42: 1 | AN42: 1 | AO42: 46.615242 | AP42: 18.36795 | AQ42: 0 | AR42: 0 | AS42: 0 | AT42: 0 | AU42: 0.006924991497 | AV42: -0.002571749249 | AW42: -0.05919369738 | AX42: FALSE | AY42: FALSE | AZ42: FALSE | BA42: FALSE | BB42: 1.048903585 | BC42: 1.234072341 | BD42: 1 | BE42: 1 | BF42: 1 | BG42: 1 | BH42: 57.202 | BI42: 114.7 | BJ42: 0 | BK42: 12.98 | BL42: 1.6446 | BM42: 17.3988 | BN42: 4902.321 | BO42: 0.01137993035 | BP42: 0.005030181087 | BQ42: 1.2234 | BR42: 0.02275830678 | BS42: 1.8064 | BT42: 0.01680263499 | BU42: 7.561054761e-05 | BW42: 2003-08-13
A43: 1987-10-01 | B43: 251.789993 | D43: 2005-10-31 | E43: 2005-10-31 | F43: 1207.01001 | G43: TRUE | H43: 1 | I43: 1 | J43: 1207.01001 | K43: -0.01790003404 | L43: 1.410552756 | M43: 2005-10-31 | N43: 1.410552756 | O43: 2005-10-31 | P43: 1.410552756 | Q43: 1.07060807 | R43: 1.232633885 | S43: 1 | T43: 1 | U43: 1 | V43: 1 | W43: 12.308657 | X43: 0.216697 | AC43: 47.57983 | AD43: 18.34654 | AE43: 0 | AF43: 0 | AG43: 0 | AH43: 0 | AI43: 1 | AJ43: 1 | AK43: 1 | AL43: 1 | AM43: 1 | AN43: 1 | AO43: 47.57983 | AP43: 18.34654 | AQ43: 0 | AR43: 0 | AS43: 0 | AT43: 0 | AU43: -0.01790003404 | AV43: 0.02048136274 | AW43: -0.001166297145 | AX43: FALSE | AY43: FALSE | AZ43: FALSE | BA43: FALSE | BB43: 1.07060807 | BC43: 1.232633885 | BD43: 1 | BE43: 1 | BF43: 1 | BG43: 1 | BH43: 57.658 | BI43: 115 | BJ43: 0 | BK43: 13.11 | BL43: 1.662 | BM43: 17.3988 | BN43: 5027.678 | BO43: 0.01128859288 | BP43: 0.005022601708 | BQ43: 1.2022 | BR43: 0.02275830678 | BS43: 1.7651 | BT43: 0.01680263499 | BU43: 7.474423085e-05 | BW43: 2003-08-20
A44: 1987-11-01 | B44: 230.300003 | D44: 2005-11-30 | E44: 2005-11-30 | F44: 1249.47998 | G44: TRUE | H44: 1 | I44: 1 | J44: 1249.47998 | K44: 0.03458121339 | L44: 1.4601846 | M44: 2005-11-30 | N44: 1.4601846 | O44: 2005-11-30 | P44: 1.4601846 | Q44: 1.162397446 | R44: 1.327599665 | S44: 1 | T44: 1 | U44: 1 | V44: 1 | W44: 11.128021 | X44: 0.194919 | AC44: 51.659122 | AD44: 19.760012 | AE44: 0 | AF44: 0 | AG44: 0 | AH44: 0 | AI44: 1 | AJ44: 1 | AK44: 1 | AL44: 1 | AM44: 1 | AN44: 1 | AO44: 51.659122 | AP44: 19.760012 | AQ44: 0 | AR44: 0 | AS44: 0 | AT44: 0 | AU44: 0.03458121339 | AV44: 0.08225785984 | AW44: 0.07421929874 | AX44: FALSE | AY44: FALSE | AZ44: FALSE | BA44: FALSE | BB44: 1.162397446 | BC44: 1.327599665 | BD44: 1 | BE44: 1 | BF44: 1 | BG44: 1 | BH44: 57.658 | BI44: 115.4 | BJ44: 0 | BK44: 12.99 | BL44: 1.7754 | BM44: 17.3988 | BN44: 5027.678 | BO44: 0.01128859288 | BP44: 0.005047955578 | BQ44: 1.1789 | BR44: 0.02221235007 | BS44: 1.7349 | BT44: 0.01680263499 | BU44: 7.474423085e-05 | BW44: 2003-08-27
A45: 1987-12-01 | B45: 247.080002 | D45: 2005-12-31 | E45: 2005-12-31 | F45: 1248.290039 | G45: TRUE | H45: 1 | I45: 1 | J45: 1248.290039 | K45: -0.0009528027648 | L45: 1.458793995 | M45: 2005-12-31 | N45: 1.458793995 | O45: 2005-12-31 | P45: 1.458793995 | Q45: 1.077369778 | R45: 1.25789367 | S45: 1 | T45: 1 | U45: 1 | V45: 1 | W45: 11.712102 | X45: 0.236298 | AC45: 47.880333 | AD45: 18.722507 | AE45: 0 | AF45: 0 | AG45: 0 | AH45: 0 | AI45: 1 | AJ45: 1 | AK45: 1 | AL45: 1 | AM45: 1 | AN45: 1 | AO45: 47.880333 | AP45: 18.722507 | AQ45: 0 | AR45: 0 | AS45: 0 | AT45: 0 | AU45: -0.0009528027648 | AV45: -0.07596195623 | AW45: -0.05393391658 | AX45: FALSE | AY45: FALSE | AZ45: FALSE | BA45: FALSE | BB45: 1.077369778 | BC45: 1.25789367 | BD45: 1 | BE45: 1 | BF45: 1 | BG45: 1 | BH45: 57.658 | BI45: 115.6 | BJ45: 0 | BK45: 12.94 | BL45: 1.8288 | BM45: 17.3988 | BN45: 5027.678 | BO45: 0.01128859288 | BP45: 0.005047955578 | BQ45: 1.1861 | BR45: 0.02175331738 | BS45: 1.7458 | BT45: 0.01680263499 | BU45: 7.474423085e-05 | BW45: 2003-09-03
A46: 1988-01-01 | B46: 257.070007 | D46: 2006-01-31 | E46: 2006-01-31 | F46: 1280.079956 | G46: TRUE | H46: 1 | I46: 1 | J46: 1280.079956 | K46: 0.02514789561 | L46: 1.495944768 | M46: 2006-01-31 | N46: 1.495944768 | O46: 2006-01-31 | P46: 1.495944768 | Q46: 1.065573471 | R46: 1.354099237 | S46: 1 | T46: 1 | U46: 1 | V46: 1 | W46: 11.395226 | X46: 0.242832 | AC46: 47.356083 | AD46: 20.154432 | AE46: 0 | AF46: 0 | AG46: 0 | AH46: 0 | AI46: 1 | AJ46: 1 | AK46: 1 | AL46: 1 | AM46: 1 | AN46: 1 | AO46: 47.356083 | AP46: 20.154432 | AQ46: 0 | AR46: 0 | AS46: 0 | AT46: 0 | AU46: 0.02514789561 | AV46: -0.01100955532 | AW46: 0.07369783156 | AX46: FALSE | AY46: FALSE | AZ46: FALSE | BA46: FALSE | BB46: 1.065573471 | BC46: 1.354099237 | BD46: 1 | BE46: 1 | BF46: 1 | BG46: 1 | BH46: 58.11 | BI46: 116 | BJ46: 0 | BK46: . | BL46: 1.8009 | BM46: 18.00329167 | BN46: 5098.36 | BO46: 0.01120963132 | BP46: 0.005017561465 | BQ46: 1.2126 | BR46: 0.02224694105 | BS46: 1.7686 | BT46: 0.01659163514 | BU46: 7.323350532e-05 | BW46: 2003-09-10
A47: 1988-02-01 | B47: 267.820007 | D47: 2006-02-28 | E47: 2006-02-28 | F47: 1280.660034 | G47: TRUE | H47: 1 | I47: 1 | J47: 1280.660034 | K47: 0.0004530549858 | L47: 1.496622667 | M47: 2006-02-28 | N47: 1.496622667 | O47: 2006-02-28 | P47: 1.496622667 | Q47: 1.051680628 | R47: 1.292527876 | S47: 1 | T47: 1 | U47: 1 | V47: 1 | W47: 11.914911 | X47: 0.258621 | AC47: 46.738659 | AD47: 19.238003 | AE47: 0 | AF47: 0 | AG47: 0 | AH47: 0 | AI47: 1 | AJ47: 1 | AK47: 1 | AL47: 1 | AM47: 1 | AN47: 1 | AO47: 46.738659 | AP47: 19.238003 | AQ47: 0 | AR47: 0 | AS47: 0 | AT47: 0 | AU47: 0.0004530549858 | AV47: -0.01312364216 | AW47: -0.04653656891 | AX47: FALSE | AY47: FALSE | AZ47: FALSE | BA47: FALSE | BB47: 1.051680628 | BC47: 1.292527876 | BD47: 1 | BE47: 1 | BF47: 1 | BG47: 1 | BH47: 58.11 | BI47: 116.2 | BJ47: 0 | BK47: 13.1 | BL47: 1.7582 | BM47: 18.00329167 | BN47: 5098.36 | BO47: 0.01120963132 | BP47: 0.005015045135 | BQ47: 1.194 | BR47: 0.02266032178 | BS47: 1.748 | BT47: 0.01659163514 | BU47: 7.323350532e-05 | BW47: 2003-09-17
A48: 1988-03-01 | B48: 258.890015 | D48: 2006-03-31 | E48: 2006-03-31 | F48: 1294.869995 | G48: TRUE | H48: 1 | I48: 1 | J48: 1294.869995 | K48: 0.01103470356 | L48: 1.513228908 | M48: 2006-03-31 | N48: 1.513228908 | O48: 2006-03-31 | P48: 1.513228908 | Q48: 1.083622214 | R48: 1.313317832 | S48: 1 | T48: 1 | U48: 1 | V48: 1 | W48: 11.024813 | X48: 0.246098 | AC48: 48.158203 | AD48: 19.547441 | AE48: 0 | AF48: 0 | AG48: 0 | AH48: 0 | AI48: 1 | AJ48: 1 | AK48: 1 | AL48: 1 | AM48: 1 | AN48: 1 | AO48: 48.158203 | AP48: 19.547441 | AQ48: 0 | AR48: 0 | AS48: 0 | AT48: 0 | AU48: 0.01103470356 | AV48: 0.02991984911 | AW48: 0.01595673705 | AX48: FALSE | AY48: FALSE | AZ48: FALSE | BA48: FALSE | BB48: 1.083622214 | BC48: 1.313317832 | BD48: 1 | BE48: 1 | BF48: 1 | BG48: 1 | BH48: 58.11 | BI48: 116.5 | BJ48: 0 | BK48: 13.06 | BL48: 1.833 | BM48: 18.00329167 | BN48: 5098.36 | BO48: 0.01120963132 | BP48: 0.005007511267 | BQ48: 1.2028 | BR48: 0.02254791432 | BS48: 1.7442 | BT48: 0.01659163514 | BU48: 7.323350532e-05 | BW48: 2003-09-24
A49: 1988-04-01 | B49: 261.329987 | D49: 2006-04-30 | E49: 2006-04-30 | F49: 1310.609985 | G49: TRUE | H49: 1 | I49: 1 | J49: 1310.609985 | K49: 0.01208236609 | L49: 1.531623193 | M49: 2006-04-30 | N49: 1.531623193 | O49: 2006-04-30 | P49: 1.531623193 | Q49: 1.081914163 | R49: 1.165624206 | S49: 1 | T49: 1 | U49: 1 | V49: 1 | W49: 11.613826 | X49: 0.237387 | AC49: 48.082294 | AD49: 17.349167 | AE49: 0 | AF49: 0 | AG49: 0 | AH49: 0 | AI49: 1 | AJ49: 1 | AK49: 1 | AL49: 1 | AM49: 1 | AN49: 1 | AO49: 48.082294 | AP49: 17.349167 | AQ49: 0 | AR49: 0 | AS49: 0 | AT49: 0 | AU49: 0.01208236609 | AV49: -0.001577485946 | AW49: -0.119299889 | AX49: FALSE | AY49: FALSE | AZ49: FALSE | BA49: FALSE | BB49: 1.081914163 | BC49: 1.165624206 | BD49: 1 | BE49: 1 | BF49: 1 | BG49: 1 | BH49: 58.676 | BI49: 117.2 | BJ49: 0 | BK49: 13 | BL49: 1.8782 | BM49: 18.00329167 | BN49: 5212.852 | BO49: 0.01111111111 | BP49: 0.004982561036 | BQ49: 1.2273 | BR49: 0.02248201439 | BS49: 1.768 | BT49: 0.01659163514 | BU49: 7.244866414e-05 | BW49: 2003-10-01
A50: 1988-05-01 | B50: 262.160004 | D50: 2006-05-31 | E50: 2006-05-31 | F50: 1270.089966 | G50: TRUE | H50: 1 | I50: 1 | J50: 1270.089966 | K50: -0.03140492891 | L50: 1.484270128 | M50: 2006-05-31 | N50: 1.484270128 | O50: 2006-05-31 | P50: 1.484270128 | Q50: 1.04985404 | R50: 1.093225524 | S50: 1 | T50: 1 | U50: 1 | V50: 1 | W50: 11.524199 | X50: 0.252632 | AC50: 46.657482 | AD50: 16.271584 | AE50: 0 | AF50: 0 | AG50: 0 | AH50: 0 | AI50: 1 | AJ50: 1 | AK50: 1 | AL50: 1 | AM50: 1 | AN50: 1 | AO50: 46.657482 | AP50: 16.271584 | AQ50: 0 | AR50: 0 | AS50: 0 | AT50: 0 | AU50: -0.03140492891 | AV50: -0.03008070095 | AW50: -0.06412422012 | AX50: FALSE | AY50: FALSE | AZ50: FALSE | BA50: FALSE | BB50: 1.04985404 | BC50: 1.093225524 | BD50: 1 | BE50: 1 | BF50: 1 | BG50: 1 | BH50: 58.676 | BI50: 117.5 | BJ50: 0 | BK50: 13.21 | BL50: 1.8695 | BM50: 18.00329167 | BN50: 5212.852 | BO50: 0.01111111111 | BP50: 0.004967709886 | BQ50: 1.2767 | BR50: 0.02233638597 | BS50: 1.8687 | BT50: 0.01659163514 | BU50: 7.244866414e-05 | BW50: 2003-10-08
A51: 1988-06-01 | B51: 273.5 | D51: 2006-06-30 | E51: 2006-06-30 | F51: 1270.199951 | G51: TRUE | H51: 1 | I51: 1 | J51: 1270.199951 | K51: 8.659247855e-05 | L51: 1.48439866 | M51: 2006-06-30 | N51: 1.48439866 | O51: 2006-06-30 | P51: 1.48439866 | Q51: 1.013033113 | R51: 1.128983015 | S51: 1 | T51: 1 | U51: 1 | V51: 1 | W51: 13.175928 | X51: 0.291833 | AC51: 45.021091 | AD51: 16.803799 | AE51: 0 | AF51: 0 | AG51: 0 | AH51: 0 | AI51: 1 | AJ51: 1 | AK51: 1 | AL51: 1 | AM51: 1 | AN51: 1 | AO51: 45.021091 | AP51: 16.803799 | AQ51: 0 | AR51: 0 | AS51: 0 | AT51: 0 | AU51: 8.659247855e-05 | AV51: -0.03570223143 | AW51: 0.03218471821 | AX51: FALSE | AY51: FALSE | AZ51: FALSE | BA51: FALSE | BB51: 1.013033113 | BC51: 1.128983015 | BD51: 1 | BE51: 1 | BF51: 1 | BG51: 1 | BH51: 58.676 | BI51: 118 | BJ51: 0 | BK51: 13.51 | BL51: 1.7768 | BM51: 18.00329167 | BN51: 5212.852 | BO51: 0.01111111111 | BP51: 0.004955401388 | BQ51: 1.2661 | BR51: 0.02164970773 | BS51: 1.8435 | BT51: 0.01659163514 | BU51: 7.244866414e-05 | BW51: 2003-10-15
A52: 1988-07-01 | B52: 272.019989 | D52: 2006-07-31 | E52: 2006-07-31 | F52: 1276.660034 | G52: TRUE | H52: 1 | I52: 1 | J52: 1276.660034 | K52: 0.005072989401 | L52: 1.491948131 | M52: 2006-07-31 | N52: 1.491948131 | O52: 2006-07-31 | P52: 1.491948131 | Q52: 1.020813793 | R52: 1.165808229 | S52: 1 | T52: 1 | U52: 1 | V52: 1 | W52: 13.007836 | X52: 0.259165 | AC52: 45.366879 | AD52: 17.351906 | AE52: 0 | AF52: 0 | AG52: 0 | AH52: 0 | AI52: 1 | AJ52: 1 | AK52: 1 | AL52: 1 | AM52: 1 | AN52: 1 | AO52: 45.366879 | AP52: 17.351906 | AQ52: 0 | AR52: 0 | AS52: 0 | AT52: 0 | AU52: 0.005072989401 | AV52: 0.007651232502 | AW52: 0.03209736447 | AX52: FALSE | AY52: FALSE | AZ52: FALSE | BA52: FALSE | BB52: 1.020813793 | BC52: 1.165808229 | BD52: 1 | BE52: 1 | BF52: 1 | BG52: 1 | BH52: 59.377 | BI52: 118.5 | BJ52: 0 | BK52: 14.14 | BL52: 1.7051 | BM52: 18.00329167 | BN52: 5302.996 | BO52: 0.01103411749 | BP52: 0.004928536225 | BQ52: 1.2681 | BR52: 0.02180074123 | BS52: 1.8443 | BT52: 0.01659163514 | BU52: 7.190806468e-05 | BW52: 2003-10-22
A53: 1988-08-01 | B53: 261.519989 | D53: 2006-08-31 | E53: 2006-08-31 | F53: 1303.819946 | G53: TRUE | H53: 1 | I53: 1 | J53: 1303.819946 | K53: 0.02105105654 | L53: 1.523688124 | M53: 2006-08-31 | N53: 1.523688124 | O53: 2006-08-31 | P53: 1.523688124 | Q53: 1.06775936 | R53: 1.245273083 | S53: 1 | T53: 1 | U53: 1 | V53: 1 | W53: 11.533785 | X53: 0.217786 | AC53: 47.453228 | AD53: 18.534662 | AE53: 0 | AF53: 0 | AG53: 0 | AH53: 0 | AI53: 1 | AJ53: 1 | AK53: 1 | AL53: 1 | AM53: 1 | AN53: 1 | AO53: 47.453228 | AP53: 18.534662 | AQ53: 0 | AR53: 0 | AS53: 0 | AT53: 0 | AU53: 0.02105105654 | AV53: 0.04496225089 | AW53: 0.0659402444 | AX53: FALSE | AY53: FALSE | AZ53: FALSE | BA53: FALSE | BB53: 1.06775936 | BC53: 1.245273083 | BD53: 1 | BE53: 1 | BF53: 1 | BG53: 1 | BH53: 59.377 | BI53: 119 | BJ53: 0 | BK53: 14.18 | BL53: 1.6965 | BM53: 18.00329167 | BN53: 5302.996 | BO53: 0.01103411749 | BP53: 0.004906771344 | BQ53: 1.281 | BR53: 0.02150075253 | BS53: 1.8941 | BT53: 0.01659163514 | BU53: 7.190806468e-05 | BW53: 2003-10-29
A54: 1988-09-01 | B54: 271.910004 | D54: 2006-09-30 | E54: 2006-09-30 | F54: 1335.849976 | G54: TRUE | H54: 1 | I54: 1 | J54: 1335.849976 | K54: 0.02426939965 | L54: 1.561119501 | M54: 2006-09-30 | N54: 1.561119501 | O54: 2006-09-30 | P54: 1.561119501 | Q54: 1.084860821 | R54: 1.330102619 | S54: 1 | T54: 1 | U54: 1 | V54: 1 | W54: 12.039948 | X54: 0.227586 | AC54: 48.213249 | AD54: 19.797266 | AE54: 0 | AF54: 0 | AG54: 0 | AH54: 0 | AI54: 1 | AJ54: 1 | AK54: 1 | AL54: 1 | AM54: 1 | AN54: 1 | AO54: 48.213249 | AP54: 19.797266 | AQ54: 0 | AR54: 0 | AS54: 0 | AT54: 0 | AU54: 0.02426939965 | AV54: 0.01588930656 | AW54: 0.06590124669 | AX54: FALSE | AY54: FALSE | AZ54: FALSE | BA54: FALSE | BB54: 1.084860821 | BC54: 1.330102619 | BD54: 1 | BE54: 1 | BF54: 1 | BG54: 1 | BH54: 59.377 | BI54: 119.5 | BJ54: 0 | BK54: 14.41 | BL54: 1.684 | BM54: 18.00329167 | BN54: 5302.996 | BO54: 0.01103411749 | BP54: 0.004930966469 | BQ54: 1.2722 | BR54: 0.02156101768 | BS54: 1.8839 | BT54: 0.01659163514 | BU54: 7.190806468e-05 | BW54: 2003-11-05
A55: 1988-10-01 | B55: 278.970001 | D55: 2006-10-31 | E55: 2006-10-31 | F55: 1377.939941 | G55: TRUE | H55: 1 | I55: 1 | J55: 1377.939941 | K55: 0.03102181207 | L55: 1.610307259 | M55: 2006-10-31 | N55: 1.610307259 | O55: 2006-10-31 | P55: 1.610307259 | Q55: 1.222421219 | R55: 1.39624311 | S55: 1 | T55: 1 | U55: 1 | V55: 1 | W55: 12.796515 | X55: 0.21343 | AC55: 54.326691 | AD55: 20.781702 | AE55: 0 | AF55: 0 | AG55: 0 | AH55: 0 | AI55: 1 | AJ55: 1 | AK55: 1 | AL55: 1 | AM55: 1 | AN55: 1 | AO55: 54.326691 | AP55: 20.781702 | AQ55: 0 | AR55: 0 | AS55: 0 | AT55: 0 | AU55: 0.03102181207 | AV55: 0.1193817943 | AW55: 0.04852904064 | AX55: FALSE | AY55: FALSE | AZ55: FALSE | BA55: FALSE | BB55: 1.222421219 | BC55: 1.39624311 | BD55: 1 | BE55: 1 | BF55: 1 | BG55: 1 | BH55: 59.89 | BI55: 119.9 | BJ55: 0 | BK55: 14.55 | BL55: 1.7388 | BM55: 18.00329167 | BN55: 5422.172 | BO55: 0.01099299746 | BP55: 0.004952947003 | BQ55: 1.2617 | BR55: 0.02176278564 | BS55: 1.8765 | BT55: 0.01659163514 | BU55: 7.100408366e-05 | BW55: 2003-11-12
A56: 1988-11-01 | B56: 273.700012 | D56: 2006-11-30 | E56: 2006-11-30 | F56: 1400.630005 | G56: TRUE | H56: 1 | I56: 1 | J56: 1400.630005 | K56: 0.01633255151 | L56: 1.636823636 | M56: 2006-11-30 | N56: 1.636823636 | O56: 2006-11-30 | P56: 1.636823636 | Q56: 1.21699287 | R56: 1.427854139 | S56: 1 | T56: 1 | U56: 1 | V56: 1 | W56: 12.366055 | X56: 0.205808 | AC56: 54.085445 | AD56: 21.252201 | AE56: 0 | AF56: 0 | AG56: 0 | AH56: 0 | AI56: 1 | AJ56: 1 | AK56: 1 | AL56: 1 | AM56: 1 | AN56: 1 | AO56: 54.085445 | AP56: 21.252201 | AQ56: 0 | AR56: 0 | AS56: 0 | AT56: 0 | AU56: 0.01633255151 | AV56: -0.004450542294 | AW56: 0.02238757848 | AX56: FALSE | AY56: FALSE | AZ56: FALSE | BA56: FALSE | BB56: 1.21699287 | BC56: 1.427854139 | BD56: 1 | BE56: 1 | BF56: 1 | BG56: 1 | BH56: 59.89 | BI56: 120.3 | BJ56: 0 | BK56: 14.88 | BL56: 1.8085 | BM56: 18.00329167 | BN56: 5422.172 | BO56: 0.01099299746 | BP56: 0.00495049505 | BQ56: 1.2888 | BR56: 0.02232641215 | BS56: 1.9125 | BT56: 0.01659163514 | BU56: 7.100408366e-05 | BW56: 2003-11-19
A57: 1988-12-01 | B57: 277.720001 | D57: 2006-12-31 | E57: 2006-12-31 | F57: 1418.300049 | G57: TRUE | H57: 1 | I57: 1 | J57: 1418.300049 | K57: 0.0125368669 | L57: 1.657473448 | M57: 2006-12-31 | N57: 1.657473448 | O57: 2006-12-31 | P57: 1.657473448 | Q57: 1.290410182 | R57: 1.457135689 | S57: 1 | T57: 1 | U57: 1 | V57: 1 | W57: 12.833731 | X57: 0.231942 | AC57: 57.348248 | AD57: 21.688028 | AE57: 0 | AF57: 0 | AG57: 0 | AH57: 0 | AI57: 1 | AJ57: 1 | AK57: 1 | AL57: 1 | AM57: 1 | AN57: 1 | AO57: 57.348248 | AP57: 21.688028 | AQ57: 0 | AR57: 0 | AS57: 0 | AT57: 0 | AU57: 0.0125368669 | AV57: 0.05857718301 | AW57: 0.02029993675 | AX57: FALSE | AY57: FALSE | AZ57: FALSE | BA57: FALSE | BB57: 1.290410182 | BC57: 1.457135689 | BD57: 1 | BE57: 1 | BF57: 1 | BG57: 1 | BH57: 59.89 | BI57: 120.7 | BJ57: 0 | BK57: 14.9 | BL57: 1.8258 | BM57: 18.00329167 | BN57: 5422.172 | BO57: 0.01099299746 | BP57: 0.004923682915 | BQ57: 1.3205 | BR57: 0.02247191011 | BS57: 1.9629 | BT57: 0.01659163514 | BU57: 7.100408366e-05 | BW57: 2003-11-26
A58: 1989-01-01 | B58: 297.470001 | D58: 2007-01-31 | E58: 2007-01-31 | F58: 1438.23999 | G58: TRUE | H58: 1 | I58: 1 | J58: 1438.23999 | K58: 0.01396113102 | L58: 1.680775938 | M58: 2007-01-31 | N58: 1.680775938 | O58: 2007-01-31 | P58: 1.680775938 | Q58: 1.316975713 | R58: 1.505934286 | S58: 1 | T58: 1 | U58: 1 | V58: 1 | W58: 13.755125 | X58: 0.25971 | AC58: 58.52887 | AD58: 22.414347 | AE58: 0 | AF58: 0 | AG58: 0 | AH58: 0 | AI58: 1 | AJ58: 1 | AK58: 1 | AL58: 1 | AM58: 1 | AN58: 1 | AO58: 58.52887 | AP58: 22.414347 | AQ58: 0 | AR58: 0 | AS58: 0 | AT58: 0 | AU58: 0.01396113102 | AV58: 0.02037784293 | AW58: 0.03294084167 | AX58: FALSE | AY58: FALSE | AZ58: FALSE | BA58: FALSE | BB58: 1.316975713 | BC58: 1.505934286 | BD58: 1 | BE58: 1 | BF58: 1 | BG58: 1 | BH58: 60.515 | BI58: 121.2 | BJ58: 0 | BK58: 14.99 | BL58: 1.7737 | BM58: 20.54149167 | BN58: 5533.649 | BO58: 0.0108886203 | BP58: 0.004915526674 | BQ58: 1.2993 | BR58: 0.02272210861 | BS58: 1.9587 | BT58: 0.0164640177 | BU58: 7.013314216e-05 | BW58: 2003-12-03
A59: 1989-02-01 | B59: 288.859985 | D59: 2007-02-28 | E59: 2007-02-28 | F59: 1406.819946 | G59: TRUE | H59: 1 | I59: 1 | J59: 1406.819946 | K59: -0.0220883371 | L59: 1.644057411 | M59: 2007-02-28 | N59: 1.644057411 | O59: 2007-02-28 | P59: 1.644057411 | Q59: 1.234490399 | R59: 1.374665262 | S59: 1 | T59: 1 | U59: 1 | V59: 1 | W59: 12.794243 | X59: 0.259165 | AC59: 54.863068 | AD59: 20.460537 | AE59: 0 | AF59: 0 | AG59: 0 | AH59: 0 | AI59: 1 | AJ59: 1 | AK59: 1 | AL59: 1 | AM59: 1 | AN59: 1 | AO59: 54.863068 | AP59: 20.460537 | AQ59: 0 | AR59: 0 | AS59: 0 | AT59: 0 | AU59: -0.0220883371 | AV59: -0.06467972866 | AW59: -0.09120323839 | AX59: FALSE | AY59: FALSE | AZ59: FALSE | BA59: FALSE | BB59: 1.234490399 | BC59: 1.374665262 | BD59: 1 | BE59: 1 | BF59: 1 | BG59: 1 | BH59: 60.515 | BI59: 121.6 | BJ59: 0 | BK59: 15.2 | BL59: 1.7534 | BM59: 20.54149167 | BN59: 5533.649 | BO59: 0.0108886203 | BP59: 0.00489653619 | BQ59: 1.308 | BR59: 0.02272210861 | BS59: 1.9589 | BT59: 0.0164640177 | BU59: 7.013314216e-05 | BW59: 2003-12-10
A60: 1989-03-01 | B60: 294.869995 | D60: 2007-03-31 | E60: 2007-03-31 | F60: 1420.859985 | G60: TRUE | H60: 1 | I60: 1 | J60: 1420.859985 | K60: 0.009930511743 | L60: 1.660465075 | M60: 2007-03-31 | N60: 1.660465075 | O60: 2007-03-31 | P60: 1.660465075 | Q60: 1.255796611 | R60: 1.364741259 | S60: 1 | T60: 1 | U60: 1 | V60: 1 | W60: 11.589467 | X60: 0.217241 | AC60: 55.809956 | AD60: 20.312828 | AE60: 0 | AF60: 0 | AG60: 0 | AH60: 0 | AI60: 1 | AJ60: 1 | AK60: 1 | AL60: 1 | AM60: 1 | AN60: 1 | AO60: 55.809956 | AP60: 20.312828 | AQ60: 0 | AR60: 0 | AS60: 0 | AT60: 0 | AU60: 0.009930511743 | AV60: 0.01711186829 | AW60: -0.007245398861 | AX60: FALSE | AY60: FALSE | AZ60: FALSE | BA60: FALSE | BB60: 1.255796611 | BC60: 1.364741259 | BD60: 1 | BE60: 1 | BF60: 1 | BG60: 1 | BH60: 60.515 | BI60: 122.2 | BJ60: 0 | BK60: 15.35 | BL60: 1.7134 | BM60: 20.54149167 | BN60: 5533.649 | BO60: 0.0108886203 | BP60: 0.004871205331 | BQ60: 1.3246 | BR60: 0.02267059624 | BS60: 1.9474 | BT60: 0.0164640177 | BU60: 7.013314216e-05 | BW60: 2003-12-17
A61: 1989-04-01 | B61: 309.640015 | D61: 2007-04-30 | E61: 2007-04-30 | F61: 1482.369995 | G61: TRUE | H61: 1 | I61: 1 | J61: 1482.369995 | K61: 0.04237984342 | L61: 1.732347755 | M61: 2007-04-30 | N61: 1.732347755 | O61: 2007-04-30 | P61: 1.732347755 | Q61: 1.361711876 | R61: 1.466105649 | S61: 1 | T61: 1 | U61: 1 | V61: 1 | W61: 12.120487 | X61: 0.243376 | AC61: 60.517029 | AD61: 21.821537 | AE61: 0 | AF61: 0 | AG61: 0 | AH61: 0 | AI61: 1 | AJ61: 1 | AK61: 1 | AL61: 1 | AM61: 1 | AN61: 1 | AO61: 60.517029 | AP61: 21.821537 | AQ61: 0 | AR61: 0 | AS61: 0 | AT61: 0 | AU61: 0.04237984342 | AV61: 0.08097252009 | AW61: 0.07164481024 | AX61: FALSE | AY61: FALSE | AZ61: FALSE | BA61: FALSE | BB61: 1.361711876 | BC61: 1.466105649 | BD61: 1 | BE61: 1 | BF61: 1 | BG61: 1 | BH61: 61.159 | BI61: 123.1 | BJ61: 0 | BK61: 15.63 | BL61: 1.7008 | BM61: 20.54149167 | BN61: 5634.129 | BO61: 0.01081630666 | BP61: 0.004856632217 | BQ61: 1.3513 | BR61: 0.02320185615 | BS61: 1.9879 | BT61: 0.0164640177 | BU61: 6.914062422e-05 | BW61: 2003-12-24
A62: 1989-05-01 | B62: 320.519989 | D62: 2007-05-31 | E62: 2007-05-31 | F62: 1530.619995 | G62: TRUE | H62: 1 | I62: 1 | J62: 1530.619995 | K62: 0.03203072385 | L62: 1.788734339 | M62: 2007-05-31 | N62: 1.788734339 | O62: 2007-05-31 | P62: 1.788734339 | Q62: 1.420198405 | R62: 1.502831293 | S62: 1 | T62: 1 | U62: 1 | V62: 1 | W62: 11.64257 | X62: 0.263521 | AC62: 63.11628 | AD62: 22.368162 | AE62: 0 | AF62: 0 | AG62: 0 | AH62: 0 | AI62: 1 | AJ62: 1 | AK62: 1 | AL62: 1 | AM62: 1 | AN62: 1 | AO62: 63.11628 | AP62: 22.368162 | AQ62: 0 | AR62: 0 | AS62: 0 | AT62: 0 | AU62: 0.03203072385 | AV62: 0.04205394293 | AW62: 0.02474119063 | AX62: FALSE | AY62: FALSE | AZ62: FALSE | BA62: FALSE | BB62: 1.420198405 | BC62: 1.502831293 | BD62: 1 | BE62: 1 | BF62: 1 | BG62: 1 | BH62: 61.159 | BI62: 123.7 | BJ62: 0 | BK62: 15.86 | BL62: 1.6307 | BM62: 20.54149167 | BN62: 5634.129 | BO62: 0.01081630666 | BP62: 0.004836642403 | BQ62: 1.3518 | BR62: 0.0243902439 | BS62: 1.9842 | BT62: 0.0164640177 | BU62: 6.914062422e-05 | BW62: 2003-12-31
A63: 1989-06-01 | B63: 317.980011 | D63: 2007-06-30 | E63: 2007-06-30 | F63: 1503.349976 | G63: TRUE | H63: 1 | I63: 1 | J63: 1503.349976 | K63: -0.01797694352 | L63: 1.756865671 | M63: 2007-06-30 | N63: 1.756865671 | O63: 2007-06-30 | P63: 1.756865671 | Q63: 1.407670423 | R63: 1.447764897 | S63: 1 | T63: 1 | U63: 1 | V63: 1 | W63: 12.011883 | X63: 0.230853 | AC63: 62.559513 | AD63: 21.548553 | AE63: 0 | AF63: 0 | AG63: 0 | AH63: 0 | AI63: 1 | AJ63: 1 | AK63: 1 | AL63: 1 | AM63: 1 | AN63: 1 | AO63: 62.559513 | AP63: 21.548553 | AQ63: 0 | AR63: 0 | AS63: 0 | AT63: 0 | AU63: -0.01797694352 | AV63: -0.00886042776 | AW63: -0.03732994039 | AX63: FALSE | AY63: FALSE | AZ63: FALSE | BA63: FALSE | BB63: 1.407670423 | BC63: 1.447764897 | BD63: 1 | BE63: 1 | BF63: 1 | BG63: 1 | BH63: 61.159 | BI63: 124.1 | BJ63: 0 | BK63: 16.32 | BL63: 1.553 | BM63: 20.54149167 | BN63: 5634.129 | BO63: 0.01081630666 | BP63: 0.004825463003 | BQ63: 1.3421 | BR63: 0.02483238143 | BS63: 1.9867 | BT63: 0.0164640177 | BU63: 6.914062422e-05 | BW63: 2004-01-07
A64: 1989-07-01 | B64: 346.079987 | D64: 2007-07-31 | E64: 2007-07-31 | F64: 1455.27002 | G64: TRUE | H64: 1 | I64: 1 | J64: 1455.27002 | K64: -0.03250447113 | L64: 1.700677807 | M64: 2007-07-31 | N64: 1.700677807 | O64: 2007-07-31 | P64: 1.700677807 | Q64: 1.479893479 | R64: 1.424184027 | S64: 1 | T64: 1 | U64: 1 | V64: 1 | W64: 12.347412 | X64: 0.238475 | AC64: 65.769241 | AD64: 21.197575 | AE64: 0 | AF64: 0 | AG64: 0 | AH64: 0 | AI64: 1 | AJ64: 1 | AK64: 1 | AL64: 1 | AM64: 1 | AN64: 1 | AO64: 65.769241 | AP64: 21.197575 | AQ64: 0 | AR64: 0 | AS64: 0 | AT64: 0 | AU64: -0.03250447113 | AV64: 0.05003395535 | AW64: -0.01642187978 | AX64: FALSE | AY64: FALSE | AZ64: FALSE | BA64: FALSE | BB64: 1.479893479 | BC64: 1.424184027 | BD64: 1 | BE64: 1 | BF64: 1 | BG64: 1 | BH64: 61.606 | BI64: 124.5 | BJ64: 0 | BK64: 16.49 | BL64: 1.6268 | BM64: 20.54149167 | BN64: 5719.661 | BO64: 0.01076044032 | BP64: 0.004816886076 | BQ64: 1.3726 | BR64: 0.02464268112 | BS64: 2.0355 | BT64: 0.0164640177 | BU64: 6.811176678e-05 | BW64: 2004-01-14
A65: 1989-08-01 | B65: 351.450012 | D65: 2007-08-31 | E65: 2007-08-31 | F65: 1473.98999 | G65: TRUE | H65: 1 | I65: 1 | J65: 1473.98999 | K65: 0.01278153854 | L65: 1.722554598 | M65: 2007-08-31 | N65: 1.722554598 | O65: 2007-08-31 | P65: 1.722554598 | Q65: 1.560675647 | R65: 1.411411263 | S65: 1 | T65: 1 | U65: 1 | V65: 1 | W65: 12.575572 | X65: 0.255898 | AC65: 69.359352 | AD65: 21.007465 | AE65: 0 | AF65: 0 | AG65: 0 | AH65: 0 | AI65: 1 | AJ65: 1 | AK65: 1 | AL65: 1 | AM65: 1 | AN65: 1 | AO65: 69.359352 | AP65: 21.007465 | AQ65: 0 | AR65: 0 | AS65: 0 | AT65: 0 | AU65: 0.01278153854 | AV65: 0.05314872284 | AW65: -0.009008937596 | AX65: FALSE | AY65: FALSE | AZ65: FALSE | BA65: FALSE | BB65: 1.560675647 | BC65: 1.411411263 | BD65: 1 | BE65: 1 | BF65: 1 | BG65: 1 | BH65: 61.606 | BI65: 124.5 | BJ65: 0 | BK65: 16.46 | BL65: 1.5947 | BM65: 20.54149167 | BN65: 5719.661 | BO65: 0.01076044032 | BP65: 0.00481540158 | BQ65: 1.3626 | BR65: 0.0248447205 | BS65: 2.011 | BT65: 0.0164640177 | BU65: 6.811176678e-05 | BW65: 2004-01-21
A66: 1989-09-01 | B66: 349.149994 | D66: 2007-09-30 | E66: 2007-09-30 | F66: 1526.75 | G66: TRUE | H66: 1 | I66: 1 | J66: 1526.75 | K66: 0.03516829042 | L66: 1.784211731 | M66: 2007-09-30 | N66: 1.784211731 | O66: 2007-09-30 | P66: 1.784211731 | Q66: 1.581092179 | R66: 1.452346457 | S66: 1 | T66: 1 | U66: 1 | V66: 1 | W66: 11.85588 | X66: 0.298367 | Z66: =LOOKUP($A66,INDIRECT("'"&Z$5&"'!A:A"),INDIRECT("'"&Z$5&"'!"&Z$7&":"&Z$7)) ->  | AC66: 70.266701 | AD66: 21.616745 | AE66: 0 | AF66: 0 | AG66: 0 | AH66: 0 | AI66: =IF(AI$7,INDEX($BO66:$BU66,AI$7),1) -> 1 | AJ66: 1 | AK66: 1 | AL66: 1 | AM66: 1 | AN66: 1 | AO66: 70.266701 | AP66: 21.616745 | AQ66: 0 | AR66: 0 | AS66: 0 | AT66: 0 | AU66: 0.03516829042 | AV66: 0.01299702675 | AW66: 0.02859039509 | AX66: FALSE | AY66: FALSE | AZ66: FALSE | BA66: FALSE | BB66: 1.581092179 | BC66: 1.452346457 | BD66: 1 | BE66: 1 | BF66: 1 | BG66: 1 | BH66: 61.606 | BI66: 124.8 | BJ66: 0 | BK66: 16.69 | BL66: 1.5715 | BM66: 20.54149167 | BN66: 5719.661 | BO66: 0.01076044032 | BP66: 0.004795082164 | BQ66: 1.391 | BR66: 0.0246123554 | BS66: 2.0184 | BT66: 0.0164640177 | BU66: 6.811176678e-05 | BW66: 2004-01-28
A67: 1989-10-01 | B67: 340.359985 | D67: 2007-10-31 | E67: 2007-10-31 | F67: 1549.380005 | G67: TRUE | H67: 1 | I67: 1 | J67: 1549.380005 | K67: 0.01471356102 | L67: 1.810657921 | M67: 2007-10-31 | N67: 1.810657921 | O67: 2007-10-31 | P67: 1.810657921 | Q67: 1.558543491 | R67: 1.814694141 | S67: 1 | T67: 1 | U67: 1 | V67: 1 | W67: 10.879191 | X67: 0.35608 | AC67: 69.264595 | AD67: 27.009933 | AE67: 0 | AF67: 0 | AG67: 0 | AH67: 0 | AI67: 1 | AJ67: 1 | AK67: 1 | AL67: 1 | AM67: 1 | AN67: 1 | AO67: 69.264595 | AP67: 27.009933 | AQ67: 0 | AR67: 0 | AS67: 0 | AT67: 0 | AU67: 0.01471356102 | AV67: -0.01436413563 | AW67: 0.2227364414 | AX67: FALSE | AY67: FALSE | AZ67: FALSE | BA67: FALSE | BB67: 1.558543491 | BC67: 1.814694141 | BD67: 1 | BE67: 1 | BF67: 1 | BG67: 1 | BH67: 62.045 | BI67: 125.4 | BJ67: 0 | BK67: 16.69 | BL67: 1.5874 | BM67: 20.54149167 | BN67: 5778.036 | BO67: 0.0107150128 | BP67: 0.004780343229 | BQ67: 1.4233 | BR67: 0.02518891688 | BS67: 2.0449 | BT67: 0.0164640177 | BU67: 6.722262918e-05 | BW67: 2004-02-04
A68: 1989-11-01 | B68: 345.98999 | D68: 2007-11-30 | E68: 2007-11-30 | F68: 1481.140015 | G68: TRUE | H68: 1 | I68: 1 | J68: 1481.140015 | K68: -0.04504278247 | L68: 1.730910359 | M68: 2007-11-30 | N68: 1.730910359 | O68: 2007-11-30 | P68: 1.730910359 | Q68: 1.411708642 | R68: 1.65644476 | S68: 1 | T68: 1 | U68: 1 | V68: 1 | W68: 10.594329 | X68: 0.378948 | AC68: 62.738979 | AD68: 24.654547 | AE68: 0 | AF68: 0 | AG68: 0 | AH68: 0 | AI68: 1 | AJ68: 1 | AK68: 1 | AL68: 1 | AM68: 1 | AN68: 1 | AO68: 62.738979 | AP68: 24.654547 | AQ68: 0 | AR68: 0 | AS68: 0 | AT68: 0 | AU68: -0.04504278247 | AV68: -0.09895095186 | AW68: -0.09124334129 | AX68: FALSE | AY68: FALSE | AZ68: FALSE | BA68: FALSE | BB68: 1.411708642 | BC68: 1.65644476 | BD68: 1 | BE68: 1 | BF68: 1 | BG68: 1 | BH68: 62.045 | BI68: 125.9 | BJ68: 0 | BK68: 16.89 | BL68: 1.5726 | BM68: 20.54149167 | BN68: 5778.036 | BO68: 0.0107150128 | BP68: 0.004743068006 | BQ68: 1.4683 | BR68: 0.02549719531 | BS68: 2.0701 | BT68: 0.0164640177 | BU68: 6.722262918e-05 | BW68: 2004-02-11
A69: 1989-12-01 | B69: 353.399994 | D69: 2007-12-31 | E69: 2007-12-31 | F69: 1468.359985 | G69: TRUE | H69: 1 | I69: 1 | J69: 1468.359985 | K69: -0.008665950148 | L69: 1.715975183 | M69: 2007-12-31 | N69: 1.715975183 | O69: 2007-12-31 | P69: 1.715975183 | Q69: 1.456046803 | R69: 1.760844689 | S69: 1 | T69: 1 | U69: 1 | V69: 1 | W69: 10.339617 | X69: 0.378948 | AC69: 64.70945 | AD69: 26.208437 | AE69: 0 | AF69: 0 | AG69: 0 | AH69: 0 | AI69: 1 | AJ69: 1 | AK69: 1 | AL69: 1 | AM69: 1 | AN69: 1 | AO69: 64.70945 | AP69: 26.208437 | AQ69: 0 | AR69: 0 | AS69: 0 | AT69: 0 | AU69: -0.008665950148 | AV69: 0.03092432045 | AW69: 0.06112003588 | AX69: FALSE | AY69: FALSE | AZ69: FALSE | BA69: FALSE | BB69: 1.456046803 | BC69: 1.760844689 | BD69: 1 | BE69: 1 | BF69: 1 | BG69: 1 | BH69: 62.045 | BI69: 126.3 | BJ69: 0 | BK69: 16.97 | BL69: 1.5965 | BM69: 20.54149167 | BN69: 5778.036 | BO69: 0.0107150128 | BP69: 0.004729362246 | BQ69: 1.4559 | BR69: 0.02530364372 | BS69: 2.0161 | BT69: 0.0164640177 | BU69: 6.722262918e-05 | BW69: 2004-02-18
A70: 1990-01-01 | B70: 329.079987 | D70: 2008-01-31 | E70: 2008-01-31 | F70: 1378.550049 | G70: TRUE | H70: 1 | I70: 1 | J70: 1378.550049 | K70: -0.06311386384 | L70: 1.611020252 | M70: 2008-01-31 | N70: 1.611020252 | O70: 2008-01-31 | P70: 1.611020252 | Q70: 1.442712239 | R70: 1.612458911 | S70: 1 | T70: 1 | U70: 1 | V70: 1 | W70: 10.833935 | X70: 0.402904 | AC70: 64.116837 | AD70: 23.999861 | AE70: 0 | AF70: 0 | AG70: 0 | AH70: 0 | AI70: 1 | AJ70: 1 | AK70: 1 | AL70: 1 | AM70: 1 | AN70: 1 | AO70: 64.116837 | AP70: 23.999861 | AQ70: 0 | AR70: 0 | AS70: 0 | AT70: 0 | AU70: -0.06311386384 | AV70: -0.009200252432 | AW70: -0.08803334317 | AX70: FALSE | AY70: FALSE | AZ70: FALSE | BA70: FALSE | BB70: 1.442712239 | BC70: 1.612458911 | BD70: 1 | BE70: 1 | BF70: 1 | BG70: 1 | BH70: 62.714 | BI70: 127.5 | BJ70: 0 | BK70: . | BL70: 1.6512 | BM70: 21.707375 | BN70: 5902.22 | BO70: 0.01067748652 | BP70: 0.004713112822 | BQ70: 1.4728 | BR70: 0.02556237219 | BS70: 1.9702 | BT70: 0.01420292476 | BU70: 6.730679014e-05 | BW70: 2004-02-25
A71: 1990-02-01 | B71: 331.890015 | D71: 2008-02-29 | E71: 2008-02-29 | F71: 1330.630005 | G71: TRUE | H71: 1 | I71: 1 | J71: 1330.630005 | K71: -0.03537973963 | L71: 1.555019266 | M71: 2008-02-29 | N71: 1.555019266 | O71: 2008-02-29 | P71: 1.555019266 | Q71: 1.533630726 | R71: 1.345364631 | S71: 1 | T71: 1 | U71: 1 | V71: 1 | W71: 11.410652 | X71: 0.430127 | AC71: 68.157425 | AD71: 20.024426 | AE71: 0 | AF71: 0 | AG71: 0 | AH71: 0 | AI71: 1 | AJ71: 1 | AK71: 1 | AL71: 1 | AM71: 1 | AN71: 1 | AO71: 68.157425 | AP71: 20.024426 | AQ71: 0 | AR71: 0 | AS71: 0 | AT71: 0 | AU71: -0.03537973963 | AV71: 0.06111310591 | AW71: -0.1810952103 | AX71: FALSE | AY71: FALSE | AZ71: FALSE | BA71: FALSE | BB71: 1.533630726 | BC71: 1.345364631 | BD71: 1 | BE71: 1 | BF71: 1 | BG71: 1 | BH71: 62.714 | BI71: 128 | BJ71: 0 | BK71: 16.96 | BL71: 1.6961 | BM71: 21.707375 | BN71: 5902.22 | BO71: 0.01067748652 | BP71: 0.004701744818 | BQ71: 1.4759 | BR71: 0.02556237219 | BS71: 1.9646 | BT71: 0.01420292476 | BU71: 6.730679014e-05 | BW71: 2004-03-03
A72: 1990-03-01 | B72: 339.940002 | D72: 2008-03-31 | E72: 2008-03-31 | F72: 1322.699951 | G72: TRUE | H72: 1 | I72: 1 | J72: 1322.699951 | K72: -0.005977453044 | L72: 1.545751937 | M72: 2008-03-31 | N72: 1.545751937 | O72: 2008-03-31 | P72: 1.545751937 | Q72: 1.556800855 | R72: 1.409183302 | S72: 1 | T72: 1 | U72: 1 | V72: 1 | W72: 11.802987 | X72: 0.482396 | AC72: 69.187149 | AD72: 20.974304 | AE72: 0 | AF72: 0 | AG72: 0 | AH72: 0 | AI72: 1 | AJ72: 1 | AK72: 1 | AL72: 1 | AM72: 1 | AN72: 1 | AO72: 69.187149 | AP72: 20.974304 | AQ72: 0 | AR72: 0 | AS72: 0 | AT72: 0 | AU72: -0.005977453044 | AV72: 0.01499503423 | AW72: 0.04634524107 | AX72: FALSE | AY72: FALSE | AZ72: FALSE | BA72: FALSE | BB72: 1.556800855 | BC72: 1.409183302 | BD72: 1 | BE72: 1 | BF72: 1 | BG72: 1 | BH72: 62.714 | BI72: 128.6 | BJ72: 0 | BK72: 17.07 | BL72: 1.6245 | BM72: 21.707375 | BN72: 5902.22 | BO72: 0.01067748652 | BP72: 0.004684981822 | BQ72: 1.552 | BR72: 0.02502502503 | BS72: 2.0015 | BT72: 0.01420292476 | BU72: 6.730679014e-05 | BW72: 2004-03-10
A73: 1990-04-01 | B73: 330.799988 | D73: 2008-04-30 | E73: 2008-04-30 | F73: 1385.589966 | G73: TRUE | H73: 1 | I73: 1 | J73: 1385.589966 | K73: 0.04645095217 | L73: 1.619247337 | M73: 2008-04-30 | N73: 1.619247337 | O73: 2008-04-30 | P73: 1.619247337 | Q73: 1.631977949 | R73: 1.416135459 | S73: 1 | T73: 1 | U73: 1 | V73: 1 | W73: 12.122736 | X73: 0.505264 | AC73: 72.52816 | AD73: 21.07778 | AE73: 0 | AF73: 0 | AG73: 0 | AH73: 0 | AI73: 1 | AJ73: 1 | AK73: 1 | AL73: 1 | AM73: 1 | AN73: 1 | AO73: 72.52816 | AP73: 21.07778 | AQ73: 0 | AR73: 0 | AS73: 0 | AT73: 0 | AU73: 0.04645095217 | AV73: 0.04715976296 | AW73: 0.004921335592 | AX73: FALSE | AY73: FALSE | AZ73: FALSE | BA73: FALSE | BB73: 1.631977949 | BC73: 1.416135459 | BD73: 1 | BE73: 1 | BF73: 1 | BG73: 1 | BH73: 63.416 | BI73: 128.9 | BJ73: 0 | BK73: 17.22 | BL73: 1.6372 | BM73: 21.707375 | BN73: 5991.651 | BO73: 0.01062360565 | BP73: 0.004674164026 | BQ73: 1.5754 | BR73: 0.02507522568 | BS73: 1.9816 | BT73: 0.01420292476 | BU73: 6.656367048e-05 | BW73: 2004-03-17
A74: 1990-05-01 | B74: =IFERROR(LOOKUP($A74,INDIRECT("'"&B$6&"'!A:A"),INDIRECT("'"&B$6&"'!"&$B$9&":"&$B$9)),0) -> 361.230011 | D74: 2008-05-31 | E74: =IF($E$7,BW74,D74) -> 2008-05-31 | F74: =LOOKUP(E74,A:A,B:B) -> 1400.380005 | G74: TRUE | H74: 1 | I74: 1 | J74: 1400.380005 | K74: 0.01061761476 | L74: 1.636531478 | M74: =IF(G74,E74,NA()) -> 2008-05-31 | N74: 1.636531478 | O74: 2008-05-31 | P74: 1.636531478 | Q74: 1.750015363 | R74: 1.406204267 | S74: 1 | T74: 1 | U74: 1 | V74: 1 | W74: 13.346135 | X74: 0.635935 | AC74: =IF(ISNUMBER(LOOKUP($E74,$A:$A,W:W)),LOOKUP($E74,$A:$A,W:W),AC73) -> 77.773964 | AD74: =IF(ISNUMBER(LOOKUP($E74,$A:$A,X:X)),LOOKUP($E74,$A:$A,X:X),AD73) -> 20.929964 | AE74: =IF(ISNUMBER(LOOKUP($E74,$A:$A,Y:Y)),LOOKUP($E74,$A:$A,Y:Y),AE73) -> 0 | AF74: =IF(ISNUMBER(LOOKUP($E74,$A:$A,Z:Z)),LOOKUP($E74,$A:$A,Z:Z),AF73) -> 0 | AG74: =IF(ISNUMBER(LOOKUP($E74,$A:$A,AA:AA)),LOOKUP($E74,$A:$A,AA:AA),AG73) -> 0 | AH74: =IF(ISNUMBER(LOOKUP($E74,$A:$A,AB:AB)),LOOKUP($E74,$A:$A,AB:AB),AH73) -> 0 | AI74: 1 | AJ74: 1 | AK74: 1 | AL74: 1 | AM74: 1 | AN74: 1 | AO74: 77.773964 | AP74: 20.929964 | AQ74: 0 | AR74: 0 | AS74: 0 | AT74: 0 | AU74: 0.01061761476 | AV74: =IF(G74,IFERROR(LN(AO74/AO73),FALSE)) -> 0.06983182198 | AW74: =IF(G74,IFERROR(LN(AP74/AP73),FALSE)) -> -0.007037588597 | AX74: =IF(G74,IFERROR(LN(AQ74/AQ73),FALSE)) -> FALSE | AY74: =IF(G74,IFERROR(LN(AR74/AR73),FALSE)) -> FALSE | AZ74: =IF(G74,IFERROR(LN(AS74/AS73),FALSE)) -> FALSE | BA74: =IF(G74,IFERROR(LN(AT74/AT73),FALSE)) -> FALSE | BB74: 1.750015363 | BC74: 1.406204267 | BD74: 1 | BE74: 1 | BF74: 1 | BG74: 1 | BH74: 63.416 | BI74: 129.1 | BJ74: 0 | BK74: 17.38 | BL74: 1.6774 | BM74: 21.707375 | BN74: 5991.651 | BO74: =IFERROR(IF(BO$8="Divide",1/LOOKUP($E74,$A:$A,BH:BH)*1,LOOKUP($E74,$A:$A,BH:BH)*1),BO75) -> 0.01062360565 | BP74: =IFERROR(IF(BP$8="Divide",1/LOOKUP($E74,$A:$A,BI:BI)*1,LOOKUP($E74,$A:$A,BI:BI)*1),BP75) -> 0.00464666741 | BQ74: =IFERROR(IF(BQ$8="Divide",1/LOOKUP($E74,$A:$A,BJ:BJ)*1,LOOKUP($E74,$A:$A,BJ:BJ)*1),BQ75) -> 1.5554 | BR74: =IFERROR(IF(BR$8="Divide",1/LOOKUP($E74,$A:$A,BK:BK)*1,LOOKUP($E74,$A:$A,BK:BK)*1),BR75) -> 0.02464268112 | BS74: =IFERROR(IF(BS$8="Divide",1/LOOKUP($E74,$A:$A,BL:BL)*1,LOOKUP($E74,$A:$A,BL:BL)*1),BS75) -> 1.965 | BT74: =IFERROR(IF(BT$8="Divide",1/LOOKUP($E74,$A:$A,BM:BM)*1,LOOKUP($E74,$A:$A,BM:BM)*1),BT75) -> 0.01420292476 | BU74: =IFERROR(IF(BU$8="Divide",1/LOOKUP($E74,$A:$A,BN:BN)*1,LOOKUP($E74,$A:$A,BN:BN)*1),BU75) -> 6.656367048e-05 | BW74: 2004-03-24
A75: 1990-06-01 | B75: 358.019989 | D75: =IF(D74<$F$2,MIN(EOMONTH(D74,1),$F$2)) -> 2008-06-30 | E75: 2008-06-30 | F75: 1280 | G75: =AND(E75>=$F$4,E74<=$F$2) -> TRUE | H75: =IF(H$8<>0,INDEX($BO75:$BU75,H$8),1) -> 1 | I75: =IF(H75,H75,IF(I76,I76,1)) -> 1 | J75: =IF(ISNUMBER(F75),F75,J76)*I75 -> 1280 | K75: -0.089883554 | L75: =IF($G75,(L74*J75/J74),1) -> 1.495851329 | M75: 2008-06-30 | N75: 1.495851329 | O75: 2008-06-30 | P75: 1.495851329 | Q75: 1.609188249 | R75: 1.371013088 | S75: 1 | T75: 1 | U75: 1 | V75: 1 | W75: =LOOKUP($A75,INDIRECT("'"&W$5&"'!A:A"),INDIRECT("'"&W$5&"'!"&W$7&":"&W$7)) -> 13.214449 | X75: 0.66207 | AC75: 71.515343 | AD75: 20.406178 | AE75: 0 | AF75: 0 | AG75: 0 | AH75: 0 | AI75: 1 | AJ75: 1 | AK75: 1 | AL75: 1 | AM75: 1 | AN75: 1 | AO75: 71.515343 | AP75: 20.406178 | AQ75: 0 | AR75: 0 | AS75: 0 | AT75: 0 | AU75: -0.089883554 | AV75: -0.08389470813 | AW75: -0.0253441183 | AX75: FALSE | AY75: FALSE | AZ75: FALSE | BA75: FALSE | BB75: =IFERROR(IF($G75,BB74*AO75/AO74,1),1) -> 1.609188249 | BC75: =IFERROR(IF($G75,BC74*AP75/AP74,1),1) -> 1.371013088 | BD75: =IFERROR(IF($G75,BD74*AQ75/AQ74,1),1) -> 1 | BE75: =IFERROR(IF($G75,BE74*AR75/AR74,1),1) -> 1 | BF75: =IFERROR(IF($G75,BF74*AS75/AS74,1),1) -> 1 | BG75: =IFERROR(IF($G75,BG74*AT75/AT74,1),1) -> 1 | BH75: =IFERROR(LOOKUP($A75,INDIRECT("'"&BO$6&"'!A:A"),INDIRECT("'"&BO$6&"'!"&BO$7&":"&BO$7)),0) -> 63.416 | BI75: =IFERROR(LOOKUP($A75,INDIRECT("'"&BP$6&"'!A:A"),INDIRECT("'"&BP$6&"'!"&BP$7&":"&BP$7)),0) -> 129.9 | BJ75: =IFERROR(LOOKUP($A75,INDIRECT("'"&BQ$6&"'!A:A"),INDIRECT("'"&BQ$6&"'!"&BQ$7&":"&BQ$7)),0) -> 0 | BK75: =IFERROR(LOOKUP($A75,INDIRECT("'"&BR$6&"'!A:A"),INDIRECT("'"&BR$6&"'!"&BR$7&":"&BR$7)),0) -> 17.38 | BL75: =IFERROR(LOOKUP($A75,INDIRECT("'"&BS$6&"'!A:A"),INDIRECT("'"&BS$6&"'!"&BS$7&":"&BS$7)),0) -> 1.7103 | BM75: =IFERROR(LOOKUP($A75,INDIRECT("'"&BT$6&"'!A:A"),INDIRECT("'"&BT$6&"'!"&BT$7&":"&BT$7)),0) -> 21.707375 | BN75: =IFERROR(LOOKUP($A75,INDIRECT("'"&BU$6&"'!A:A"),INDIRECT("'"&BU$6&"'!"&BU$7&":"&BU$7)),0) -> 5991.651 | BO75: 0.01062360565 | BP75: 0.00459848342 | BQ75: 1.5562 | BR75: 0.02372479241 | BS75: 1.9664 | BT75: 0.01420292476 | BU75: 6.656367048e-05 | BW75: =IF(BW74<=$F$2,BW74+7) -> 2004-03-31
A76: 1990-07-01 | B76: 356.149994 | D76: 2008-07-31 | E76: 2008-07-31 | F76: 1267.380005 | G76: TRUE | H76: 1 | I76: 1 | J76: 1267.380005 | K76: =IFERROR(LN(J76/J75),FALSE) -> -0.009908296541 | L76: 1.481103175 | M76: 2008-07-31 | N76: 1.481103175 | O76: 2008-07-31 | P76: 1.481103175 | Q76: 1.737483871 | R76: 1.281805231 | S76: 1 | T76: 1 | U76: 1 | V76: 1 | W76: 12.539662 | X76: 0.579311 | AC76: 77.217041 | AD76: 19.078407 | AE76: 0 | AF76: 0 | AG76: 0 | AH76: 0 | AI76: 1 | AJ76: 1 | AK76: 1 | AL76: 1 | AM76: 1 | AN76: 1 | AO76: =IFERROR(IF(ISNUMBER(AC76)>0.1,AC76,AO77)*AI76,AO77) -> 77.217041 | AP76: =IFERROR(IF(ISNUMBER(AD76)>0.1,AD76,AP77)*AJ76,AP77) -> 19.078407 | AQ76: =IFERROR(IF(ISNUMBER(AE76)>0.1,AE76,AQ77)*AK76,AQ77) -> 0 | AR76: =IFERROR(IF(ISNUMBER(AF76)>0.1,AF76,AR77)*AL76,AR77) -> 0 | AS76: =IFERROR(IF(ISNUMBER(AG76)>0.1,AG76,AS77)*AM76,AS77) -> 0 | AT76: =IFERROR(IF(ISNUMBER(AH76)>0.1,AH76,AT77)*AN76,AT77) -> 0 | AU76: -0.009908296541 | AV76: 0.07670815692 | AW76: -0.06728052617 | AX76: FALSE | AY76: FALSE | AZ76: FALSE | BA76: FALSE | BB76: 1.737483871 | BC76: 1.281805231 | BD76: 1 | BE76: 1 | BF76: 1 | BG76: 1 | BH76: 63.96 | BI76: 130.5 | BJ76: 0 | BK76: 17.43 | BL76: 1.8098 | BM76: 21.707375 | BN76: 6042.253 | BO76: 0.01054407423 | BP76: 0.004565876466 | BQ76: 1.5759 | BR76: 0.0231320842 | BS76: 1.9888 | BT76: 0.01420292476 | BU76: 6.633177962e-05 | BW76: 2004-04-07
A77: 1990-08-01 | B77: 322.559998 | D77: 2008-08-31 | E77: 2008-08-31 | F77: 1282.829956 | G77: TRUE | H77: 1 | I77: 1 | J77: 1282.829956 | K77: 0.01211675922 | L77: 1.499158511 | M77: 2008-08-31 | N77: =CHOOSE($N$1,J77,K77,L77) -> 1.499158511 | O77: =M77 -> 2008-08-31 | P77: =N77 -> 1.499158511 | Q77: =IFERROR(CHOOSE($N$1,AO77,AV77,BB77),1) -> 1.65263259 | R77: =IFERROR(CHOOSE($N$1,AP77,AW77,BC77),1) -> 1.360048909 | S77: =IFERROR(CHOOSE($N$1,AQ77,AX77,BD77),1) -> 1 | T77: =IFERROR(CHOOSE($N$1,AR77,AY77,BE77),1) -> 1 | U77: =IFERROR(CHOOSE($N$1,AS77,AZ77,BF77),1) -> 1 | V77: =IFERROR(CHOOSE($N$1,AT77,BA77,BG77),1) -> 1 | W77: 11.457207 | X77: 0.535753 | AC77: 73.446091 | AD77: 20.242987 | AE77: 0 | AF77: 0 | AG77: 0 | AH77: 0 | AI77: 1 | AJ77: 1 | AK77: 1 | AL77: 1 | AM77: 1 | AN77: 1 | AO77: 73.446091 | AP77: 20.242987 | AQ77: 0 | AR77: 0 | AS77: 0 | AT77: 0 | AU77: =K77 -> 0.01211675922 | AV77: -0.05006848969 | AW77: 0.05925124061 | AX77: FALSE | AY77: FALSE | AZ77: FALSE | BA77: FALSE | BB77: 1.65263259 | BC77: 1.360048909 | BD77: 1 | BE77: 1 | BF77: 1 | BG77: 1 | BH77: 63.96 | BI77: 131.6 | BJ77: 0 | BK77: 17.37 | BL77: 1.9013 | BM77: 21.707375 | BN77: 6042.253 | BO77: 0.01054407423 | BP77: 0.004572682793 | BQ77: 1.4955 | BR77: 0.02366303833 | BS77: 1.8865 | BT77: 0.01420292476 | BU77: 6.633177962e-05 | BW77: 2004-04-14
A78: 1990-09-01 | B78: 306.049988 | D78: 2008-09-30 | E78: 2008-09-30 | F78: 1166.359985 | G78: TRUE | H78: 1 | I78: 1 | J78: 1166.359985 | K78: -0.09518076534 | L78: 1.36304776 | M78: 2008-09-30 | N78: 1.36304776 | O78: 2008-09-30 | P78: 1.36304776 | Q78: 1.594058509 | R78: 1.335452251 | S78: 1 | T78: 1 | U78: 1 | V78: 1 | W78: 12.098683 | X78: 0.54882 | AC78: 70.842949 | AD78: 19.87689 | AE78: 0 | AF78: 0 | AG78: 0 | AH78: 0 | AI78: 1 | AJ78: 1 | AK78: 1 | AL78: 1 | AM78: 1 | AN78: 1 | AO78: 70.842949 | AP78: 19.87689 | AQ78: 0 | AR78: 0 | AS78: 0 | AT78: 0 | AU78: -0.09518076534 | AV78: -0.03608624025 | AW78: -0.01825066222 | AX78: FALSE | AY78: FALSE | AZ78: FALSE | BA78: FALSE | BB78: 1.594058509 | BC78: 1.335452251 | BD78: 1 | BE78: 1 | BF78: 1 | BG78: 1 | BH78: 63.96 | BI78: 132.5 | BJ78: 0 | BK78: 17.52 | BL78: 1.8794 | BM78: 21.707375 | BN78: 6042.253 | BO78: 0.01054407423 | BP78: 0.004568776071 | BQ78: 1.4342 | BR78: 0.02151925974 | BS78: 1.7973 | BT78: 0.01420292476 | BU78: 6.633177962e-05 | BW78: 2004-04-21
A79: 1990-10-01 | B79: 304 | D79: 2008-10-31 | E79: 2008-10-31 | F79: 968.75 | G79: TRUE | H79: 1 | I79: 1 | J79: 968.75 | K79: -0.1856364736 | L79: 1.132114043 | M79: 2008-10-31 | N79: 1.132114043 | O79: 2008-10-31 | P79: 1.132114043 | Q79: 1.267096359 | R79: 1.117296718 | S79: 1 | T79: 1 | U79: 1 | V79: 1 | W79: 11.999161 | X79: 0.555354 | AC79: 56.312138 | AD79: 16.62986 | AE79: 0 | AF79: 0 | AG79: 0 | AH79: 0 | AI79: 1 | AJ79: 1 | AK79: 1 | AL79: 1 | AM79: 1 | AN79: 1 | AO79: 56.312138 | AP79: 16.62986 | AQ79: 0 | AR79: 0 | AS79: 0 | AT79: 0 | AU79: -0.1856364736 | AV79: -0.2295553341 | AW79: -0.1783578757 | AX79: FALSE | AY79: FALSE | AZ79: FALSE | BA79: FALSE | BB79: 1.267096359 | BC79: 1.117296718 | BD79: 1 | BE79: 1 | BF79: 1 | BG79: 1 | BH79: 64.436 | BI79: 133.4 | BJ79: 0 | BK79: 18.06 | BL79: 1.9456 | BM79: 21.707375 | BN79: 6055.22 | BO79: 0.0105191185 | BP79: 0.004608401115 | BQ79: 1.3266 | BR79: 0.02151925974 | BS79: 1.6862 | BT79: 0.01420292476 | BU79: 6.800860336e-05 | BW79: 2004-04-28
A80: 1990-11-01 | B80: 322.220001 | D80: 2008-11-30 | E80: 2008-11-30 | F80: 896.23999 | G80: TRUE | H80: 1 | I80: 1 | J80: 896.23999 | K80: -0.07779835757 | L80: 1.047376391 | M80: 2008-11-30 | N80: 1.047376391 | O80: 2008-11-30 | P80: 1.047376391 | Q80: 1.112133905 | R80: 1.011721233 | S80: 1 | T80: 1 | U80: 1 | V80: 1 | W80: 12.923271 | X80: 0.629401 | AC80: 49.425316 | AD80: 15.058473 | AE80: 0 | AF80: 0 | AG80: 0 | AH80: 0 | AI80: 1 | AJ80: 1 | AK80: 1 | AL80: 1 | AM80: 1 | AN80: 1 | AO80: 49.425316 | AP80: 15.058473 | AQ80: 0 | AR80: 0 | AS80: 0 | AT80: 0 | AU80: -0.07779835757 | AV80: -0.1304473444 | AW80: -0.09925905184 | AX80: FALSE | AY80: FALSE | AZ80: FALSE | BA80: FALSE | BB80: 1.112133905 | BC80: 1.011721233 | BD80: 1 | BE80: 1 | BF80: 1 | BG80: 1 | BH80: 64.436 | BI80: 133.7 | BJ80: 0 | BK80: 18.1 | BL80: 1.9642 | BM80: 21.707375 | BN80: 6055.22 | BO80: 0.0105191185 | BP80: 0.004691465755 | BQ80: 1.2744 | BR80: 0.02024291498 | BS80: 1.5327 | BT80: 0.01420292476 | BU80: 6.800860336e-05 | BW80: 2004-05-05
A81: 1990-12-01 | B81: 330.220001 | D81: 2008-12-31 | E81: 2008-12-31 | F81: 903.25 | G81: TRUE | H81: 1 | I81: 1 | J81: 903.25 | K81: 0.007791146935 | L81: 1.055568526 | M81: 2008-12-31 | N81: 1.055568526 | O81: 2008-12-31 | P81: 1.055568526 | Q81: 1.153436483 | R81: 0.9792827392 | S81: 1 | T81: 1 | U81: 1 | V81: 1 | W81: 12.997304 | X81: 0.655536 | AC81: 51.26088 | AD81: 14.575658 | AE81: 0 | AF81: 0 | AG81: 0 | AH81: 0 | AI81: 1 | AJ81: 1 | AK81: 1 | AL81: 1 | AM81: 1 | AN81: 1 | AO81: 51.26088 | AP81: 14.575658 | AQ81: 0 | AR81: 0 | AS81: 0 | AT81: 0 | AU81: 0.007791146935 | AV81: 0.03646512561 | AW81: -0.03258794579 | AX81: FALSE | AY81: FALSE | AZ81: FALSE | BA81: FALSE | BB81: 1.153436483 | BC81: 0.9792827392 | BD81: 1 | BE81: 1 | BF81: 1 | BG81: 1 | BH81: 64.436 | BI81: 134.2 | BJ81: 0 | BK81: 18.17 | BL81: 1.9219 | BM81: 21.707375 | BN81: 6055.22 | BO81: 0.0105191185 | BP81: 0.004730413722 | BQ81: 1.3511 | BR81: 0.02002402883 | BS81: 1.4854 | BT81: 0.01420292476 | BU81: 6.800860336e-05 | BW81: 2004-05-12
A82: 1991-01-01 | B82: 343.929993 | D82: 2009-01-31 | E82: 2009-01-31 | F82: 825.880005 | G82: TRUE | H82: 1 | I82: 1 | J82: 825.880005 | K82: -0.08954987946 | L82: 0.9651513304 | M82: 2009-01-31 | N82: 0.9651513304 | O82: 2009-01-31 | P82: 0.9651513304 | Q82: 1.256089218 | R82: 0.8614064056 | S82: 1 | T82: 1 | U82: 1 | V82: 1 | W82: 14.578829 | X82: 0.854809 | AC82: 55.82296 | AD82: 12.821185 | AE82: 0 | AF82: 0 | AG82: 0 | AH82: 0 | AI82: 1 | AJ82: 1 | AK82: 1 | AL82: 1 | AM82: 1 | AN82: 1 | AO82: 55.82296 | AP82: 12.821185 | AQ82: 0 | AR82: 0 | AS82: 0 | AT82: 0 | AU82: -0.08954987946 | AV82: 0.08525736612 | AW82: -0.1282539961 | AX82: FALSE | AY82: FALSE | AZ82: FALSE | BA82: FALSE | BB82: 1.256089218 | BC82: 0.8614064056 | BD82: 1 | BE82: 1 | BF82: 1 | BG82: 1 | BH82: 65.067 | BI82: 134.7 | BJ82: 0 | BK82: . | BL82: 1.9346 | BM82: 23.80076667 | BN82: 6074.636 | BO82: 0.01052432171 | BP82: 0.004718472347 | BQ82: 1.3244 | BR82: 0.0204792136 | BS82: 1.4462 | BT82: 0.01223797102 | BU82: 6.872104568e-05 | BW82: 2004-05-19
A83: 1991-02-01 | B83: 367.070007 | D83: 2009-02-28 | E83: 2009-02-28 | F83: 735.090027 | G83: TRUE | H83: 1 | I83: 1 | J83: 735.090027 | K83: -0.1164565131 | L83: 0.8590510888 | M83: 2009-02-28 | N83: 0.8590510888 | O83: 2009-02-28 | P83: 0.8590510888 | Q83: 1.261297459 | R83: 0.8135504979 | S83: 1 | T83: 1 | U83: 1 | V83: 1 | W83: 14.808868 | X83: 0.903812 | AC83: 56.054424 | AD83: 12.108897 | AE83: 0 | AF83: 0 | AG83: 0 | AH83: 0 | AI83: 1 | AJ83: 1 | AK83: 1 | AL83: 1 | AM83: 1 | AN83: 1 | AO83: 56.054424 | AP83: 12.108897 | AQ83: 0 | AR83: 0 | AS83: 0 | AT83: 0 | AU83: -0.1164565131 | AV83: 0.00413782164 | AW83: -0.05715840925 | AX83: FALSE | AY83: FALSE | AZ83: FALSE | BA83: FALSE | BB83: 1.261297459 | BC83: 0.8135504979 | BD83: 1 | BE83: 1 | BF83: 1 | BG83: 1 | BH83: 65.067 | BI83: 134.8 | BJ83: 0 | BK83: 18.6 | BL83: 1.9641 | BM83: 23.80076667 | BN83: 6074.636 | BO83: 0.01052432171 | BP83: 0.004701346936 | BQ83: 1.2797 | BR83: 0.0204792136 | BS83: 1.4422 | BT83: 0.01223797102 | BU83: 6.872104568e-05 | BW83: 2004-05-26
A84: 1991-03-01 | B84: 375.220001 | D84: 2009-03-31 | E84: 2009-03-31 | F84: 797.869995 | G84: TRUE | H84: 1 | I84: 1 | J84: 797.869995 | K84: 0.08195269322 | L84: 0.9324178846 | M84: 2009-03-31 | N84: 0.9324178846 | O84: 2009-03-31 | P84: 0.9324178846 | Q84: 1.33512875 | R84: 0.9317270865 | S84: 1 | T84: 1 | U84: 1 | V84: 1 | W84: 13.224063 | X84: 0.924501 | AC84: 59.335625 | AD84: 13.867839 | AE84: 0 | AF84: 0 | AG84: 0 | AH84: 0 | AI84: 1 | AJ84: 1 | AK84: 1 | AL84: 1 | AM84: 1 | AN84: 1 | AO84: 59.335625 | AP84: 13.867839 | AQ84: 0 | AR84: 0 | AS84: 0 | AT84: 0 | AU84: 0.08195269322 | AV84: 0.05688680854 | AW84: 0.1356319466 | AX84: FALSE | AY84: FALSE | AZ84: FALSE | BA84: FALSE | BB84: 1.33512875 | BC84: 0.9317270865 | BD84: 1 | BE84: 1 | BF84: 1 | BG84: 1 | BH84: 65.067 | BI84: 134.8 | BJ84: 0 | BK84: 19.08 | BL84: 1.8214 | BM84: 23.80076667 | BN84: 6074.636 | BO84: 0.01052432171 | BP84: 0.004705993082 | BQ84: 1.305 | BR84: 0.01965408805 | BS84: 1.417 | BT84: 0.01223797102 | BU84: 6.872104568e-05 | BW84: 2004-06-02
A85: 1991-04-01 | B85: 375.339996 | D85: 2009-04-30 | E85: 2009-04-30 | F85: 872.809998 | G85: TRUE | H85: 1 | I85: 1 | J85: 872.809998 | K85: 0.0897722189 | L85: 1.019995309 | M85: 2009-04-30 | N85: 1.019995309 | O85: 2009-04-30 | P85: 1.019995309 | Q85: 1.422216997 | R85: 1.027588055 | S85: 1 | T85: 1 | U85: 1 | V85: 1 | W85: 11.961173 | X85: 0.862433 | AC85: 63.20599 | AD85: 15.294635 | AE85: 0 | AF85: 0 | AG85: 0 | AH85: 0 | AI85: 1 | AJ85: 1 | AK85: 1 | AL85: 1 | AM85: 1 | AN85: 1 | AO85: 63.20599 | AP85: 15.294635 | AQ85: 0 | AR85: 0 | AS85: 0 | AT85: 0 | AU85: 0.0897722189 | AV85: 0.06318919067 | AW85: 0.09792969502 | AX85: FALSE | AY85: FALSE | AZ85: FALSE | BA85: FALSE | BB85: 1.422216997 | BC85: 1.027588055 | BD85: 1 | BE85: 1 | BF85: 1 | BG85: 1 | BH85: 65.545 | BI85: 135.1 | BJ85: 0 | BK85: 19.61 | BL85: 1.7497 | BM85: 23.80076667 | BN85: 6155.42 | BO85: 0.01054274027 | BP85: 0.004701258527 | BQ85: 1.3199 | BR85: 0.01980982567 | BS85: 1.4712 | BT85: 0.01223797102 | BU85: 6.894649276e-05 | BW85: 2004-06-09
A86: 1991-05-01 | B86: 389.829987 | D86: 2009-05-31 | E86: 2009-05-31 | F86: 919.140015 | G86: TRUE | H86: 1 | I86: 1 | J86: 919.140015 | K86: 0.05172057703 | L86: 1.074138135 | M86: 2009-05-31 | N86: 1.074138135 | O86: 2009-05-31 | P86: 1.074138135 | Q86: 1.464521355 | R86: 1.059541196 | S86: 1 | T86: 1 | U86: 1 | V86: 1 | W86: 12.324069 | X86: 0.956081 | AC86: 65.086075 | AD86: 15.770226 | AE86: 0 | AF86: 0 | AG86: 0 | AH86: 0 | AI86: 1 | AJ86: 1 | AK86: 1 | AL86: 1 | AM86: 1 | AN86: 1 | AO86: 65.086075 | AP86: 15.770226 | AQ86: 0 | AR86: 0 | AS86: 0 | AT86: 0 | AU86: 0.05172057703 | AV86: 0.0293115495 | AW86: 0.03062161857 | AX86: FALSE | AY86: FALSE | AZ86: FALSE | BA86: FALSE | BB86: 1.464521355 | BC86: 1.059541196 | BD86: 1 | BE86: 1 | BF86: 1 | BG86: 1 | BH86: 65.545 | BI86: 135.6 | BJ86: 0 | BK86: 20.2 | BL86: 1.7238 | BM86: 23.80076667 | BN86: 6155.42 | BO86: 0.01054274027 | BP86: 0.004694350818 | BQ86: 1.3646 | BR86: 0.02014098691 | BS86: 1.5418 | BT86: 0.01223797102 | BU86: 6.894649276e-05 | BW86: 2004-06-16
A87: 1991-06-01 | B87: 371.160004 | D87: 2009-06-30 | E87: 2009-06-30 | F87: 919.320007 | G87: TRUE | H87: 1 | I87: 1 | J87: 919.320007 | K87: 0.0001958073588 | L87: 1.07434848 | M87: 2009-06-30 | N87: 1.07434848 | O87: 2009-06-30 | P87: 1.07434848 | Q87: 1.446406075 | R87: 1.213271501 | S87: 1 | T87: 1 | U87: 1 | V87: 1 | W87: 11.412173 | X87: 0.8902 | AC87: 64.280998 | AD87: 18.05835 | AE87: 0 | AF87: 0 | AG87: 0 | AH87: 0 | AI87: 1 | AJ87: 1 | AK87: 1 | AL87: 1 | AM87: 1 | AN87: 1 | AO87: 64.280998 | AP87: 18.05835 | AQ87: 0 | AR87: 0 | AS87: 0 | AT87: 0 | AU87: 0.0001958073588 | AV87: -0.01244655807 | AW87: 0.1354844498 | AX87: FALSE | AY87: FALSE | AZ87: FALSE | BA87: FALSE | BB87: 1.446406075 | BC87: 1.213271501 | BD87: 1 | BE87: 1 | BF87: 1 | BG87: 1 | BH87: 65.545 | BI87: 136 | BJ87: 0 | BK87: 20.89 | BL87: 1.6497 | BM87: 23.80076667 | BN87: 6155.42 | BO87: 0.01054274027 | BP87: 0.004655710229 | BQ87: 1.4014 | BR87: 0.02137665669 | BS87: 1.6369 | BT87: 0.01223797102 | BU87: 6.894649276e-05 | BW87: 2004-06-23
A88: 1991-07-01 | B88: 387.809998 | D88: 2009-07-31 | E88: 2009-07-31 | F88: 987.47998 | G88: TRUE | H88: 1 | I88: 1 | J88: 987.47998 | K88: 0.07152194922 | L88: 1.154002531 | M88: 2009-07-31 | N88: 1.154002531 | O88: 2009-07-31 | P88: 1.154002531 | Q88: 1.633544287 | R88: 1.200511166 | S88: 1 | T88: 1 | U88: 1 | V88: 1 | W88: 11.896872 | X88: 0.960436 | AC88: 72.597771 | AD88: 17.868425 | AE88: 0 | AF88: 0 | AG88: 0 | AH88: 0 | AI88: 1 | AJ88: 1 | AK88: 1 | AL88: 1 | AM88: 1 | AN88: 1 | AO88: 72.597771 | AP88: 17.868425 | AQ88: 0 | AR88: 0 | AS88: 0 | AT88: 0 | AU88: 0.07152194922 | AV88: 0.1216701523 | AW88: -0.01057299294 | AX88: FALSE | AY88: FALSE | AZ88: FALSE | BA88: FALSE | BB88: 1.633544287 | BC88: 1.200511166 | BD88: 1 | BE88: 1 | BF88: 1 | BG88: 1 | BH88: 66.057 | BI88: 136.2 | BJ88: 0 | BK88: 23.09 | BL88: 1.6513 | BM88: 23.80076667 | BN88: 6231.047 | BO88: 0.01053141521 | BP88: 0.004657097883 | BQ88: 1.4092 | BR88: 0.02094240838 | BS88: 1.6378 | BT88: 0.01223797102 | BU88: 6.834659405e-05 | BW88: 2004-06-30
A89: 1991-08-01 | B89: 395.429993 | D89: 2009-08-31 | E89: 2009-08-31 | F89: 1020.619995 | G89: TRUE | H89: 1 | I89: 1 | J89: 1020.619995 | K89: 0.0330093367 | L89: 1.192731075 | M89: 2009-08-31 | N89: 1.192731075 | O89: 2009-08-31 | P89: 1.192731075 | Q89: 1.63520657 | R89: 1.258188819 | S89: 1 | T89: 1 | U89: 1 | V89: 1 | W89: 11.382794 | X89: 1.113975 | AC89: 72.671646 | AD89: 18.7269 | AE89: 0 | AF89: 0 | AG89: 0 | AH89: 0 | AI89: 1 | AJ89: 1 | AK89: 1 | AL89: 1 | AM89: 1 | AN89: 1 | AO89: 72.671646 | AP89: 18.7269 | AQ89: 0 | AR89: 0 | AS89: 0 | AT89: 0 | AU89: 0.0330093367 | AV89: 0.001017075829 | AW89: 0.04692580414 | AX89: FALSE | AY89: FALSE | AZ89: FALSE | BA89: FALSE | BB89: 1.63520657 | BC89: 1.258188819 | BD89: 1 | BE89: 1 | BF89: 1 | BG89: 1 | BH89: 66.057 | BI89: 136.6 | BJ89: 0 | BK89: 25.74 | BL89: 1.6841 | BM89: 23.80076667 | BN89: 6231.047 | BO89: 0.01053141521 | BP89: 0.00464155585 | BQ89: 1.4266 | BR89: 0.02087246921 | BS89: 1.6532 | BT89: 0.01223797102 | BU89: 6.834659405e-05 | BW89: 2004-07-07
A90: 1991-09-01 | B90: 387.859985 | D90: 2009-09-30 | E90: 2009-09-30 | F90: 1057.079956 | G90: TRUE | H90: 1 | I90: 1 | J90: 1057.079956 | K90: 0.03510006743 | L90: 1.235339419 | M90: 2009-09-30 | N90: 1.235339419 | O90: 2009-09-30 | P90: 1.235339419 | Q90: 1.664543136 | R90: 1.320185267 | S90: 1 | T90: 1 | U90: 1 | V90: 1 | W90: 12.323562 | X90: 1.162977 | AC90: 73.975418 | AD90: 19.649656 | AE90: 0 | AF90: 0 | AG90: 0 | AH90: 0 | AI90: 1 | AJ90: 1 | AK90: 1 | AL90: 1 | AM90: 1 | AN90: 1 | AO90: 73.975418 | AP90: 19.649656 | AQ90: 0 | AR90: 0 | AS90: 0 | AT90: 0 | AU90: 0.03510006743 | AV90: 0.01778155412 | AW90: 0.04809883892 | AX90: FALSE | AY90: FALSE | AZ90: FALSE | BA90: FALSE | BB90: 1.664543136 | BC90: 1.320185267 | BD90: 1 | BE90: 1 | BF90: 1 | BG90: 1 | BH90: 66.057 | BI90: 137 | BJ90: 0 | BK90: 25.82 | BL90: 1.7265 | BM90: 23.80076667 | BN90: 6231.047 | BO90: 0.01053141521 | BP90: 0.0046326108 | BQ90: 1.4575 | BR90: 0.02038735984 | BS90: 1.6323 | BT90: 0.01223797102 | BU90: 6.834659405e-05 | BW90: 2004-07-14
A91: 1991-10-01 | B91: 392.450012 | D91: 2009-10-31 | E91: 2009-10-31 | F91: 1036.189941 | G91: TRUE | H91: 1 | I91: 1 | J91: 1036.189941 | K91: -0.01995988054 | L91: 1.210926641 | M91: 2009-10-31 | N91: 1.210926641 | O91: 2009-10-31 | P91: 1.210926641 | Q91: 1.678458818 | R91: 1.423356965 | S91: 1 | T91: 1 | U91: 1 | V91: 1 | W91: 11.68434 | X91: 1.226679 | AC91: 74.593857 | AD91: 21.185265 | AE91: 0 | AF91: 0 | AG91: 0 | AH91: 0 | AI91: 1 | AJ91: 1 | AK91: 1 | AL91: 1 | AM91: 1 | AN91: 1 | AO91: 74.593857 | AP91: 21.185265 | AQ91: 0 | AR91: 0 | AS91: 0 | AT91: 0 | AU91: -0.01995988054 | AV91: 0.008325309147 | AW91: 0.07524606105 | AX91: FALSE | AY91: FALSE | AZ91: FALSE | BA91: FALSE | BB91: 1.678458818 | BC91: 1.423356965 | BD91: 1 | BE91: 1 | BF91: 1 | BG91: 1 | BH91: 66.449 | BI91: 137.2 | BJ91: 0 | BK91: 25.77 | BL91: 1.7231 | BM91: 23.80076667 | BN91: 6297.761 | BO91: 0.01049681422 | BP91: 0.004618745641 | BQ91: 1.4821 | BR91: 0.02095557418 | BS91: 1.6212 | BT91: 0.01223797102 | BU91: 6.744750645e-05 | BW91: 2004-07-21
A92: 1991-11-01 | B92: 375.220001 | D92: 2009-11-30 | E92: 2009-11-30 | F92: 1095.630005 | G92: TRUE | H92: 1 | I92: 1 | J92: 1095.630005 | K92: 0.05577907709 | L92: 1.280390312 | M92: 2009-11-30 | N92: 1.280390312 | O92: 2009-11-30 | P92: 1.280390312 | Q92: 1.758340214 | R92: 1.509589953 | S92: 1 | T92: 1 | U92: 1 | V92: 1 | W92: 11.00053 | X92: 1.270781 | AC92: 78.143936 | AD92: 22.468758 | AE92: 0 | AF92: 0 | AG92: 0 | AH92: 0 | AI92: 1 | AJ92: 1 | AK92: 1 | AL92: 1 | AM92: 1 | AN92: 1 | AO92: 78.143936 | AP92: 22.468758 | AQ92: 0 | AR92: 0 | AS92: 0 | AT92: 0 | AU92: 0.05577907709 | AV92: 0.04649430151 | AW92: 0.05881991812 | AX92: FALSE | AY92: FALSE | AZ92: FALSE | BA92: FALSE | BB92: 1.758340214 | BC92: 1.509589953 | BD92: 1 | BE92: 1 | BF92: 1 | BG92: 1 | BH92: 66.449 | BI92: 137.8 | BJ92: 0 | BK92: 25.85 | BL92: 1.7796 | BM92: 23.80076667 | BN92: 6297.761 | BO92: 0.01049681422 | BP92: 0.00460333097 | BQ92: 1.4908 | BR92: 0.02132196162 | BS92: 1.6599 | BT92: 0.01223797102 | BU92: 6.744750645e-05 | BW92: 2004-07-28
A93: 1991-12-01 | B93: 417.089996 | D93: 2009-12-31 | E93: 2009-12-31 | F93: 1115.099976 | G93: TRUE | H93: 1 | I93: 1 | J93: 1115.099976 | K93: 0.01761452061 | L93: 1.303143579 | M93: 2009-12-31 | N93: 1.303143579 | O93: 2009-12-31 | P93: 1.303143579 | Q93: 1.829835307 | R93: 1.571427976 | S93: 1 | T93: 1 | U93: 1 | V93: 1 | W93: 10.716096 | X93: 1.453721 | AC93: 81.321312 | AD93: 23.389156 | AE93: 0 | AF93: 0 | AG93: 0 | AH93: 0 | AI93: 1 | AJ93: 1 | AK93: 1 | AL93: 1 | AM93: 1 | AN93: 1 | AO93: 81.321312 | AP93: 23.389156 | AQ93: 0 | AR93: 0 | AS93: 0 | AT93: 0 | AU93: 0.01761452061 | AV93: 0.03985566294 | AW93: 0.04014668518 | AX93: FALSE | AY93: FALSE | AZ93: FALSE | BA93: FALSE | BB93: 1.829835307 | BC93: 1.571427976 | BD93: 1 | BE93: 1 | BF93: 1 | BG93: 1 | BH93: 66.449 | BI93: 138.2 | BJ93: 0 | BK93: 25.8 | BL93: 1.8272 | BM93: 23.80076667 | BN93: 6297.761 | BO93: 0.01049681422 | BP93: 0.004600937671 | BQ93: 1.4579 | BR93: 0.02164033759 | BS93: 1.6226 | BT93: 0.01223797102 | BU93: 6.744750645e-05 | BW93: 2004-08-04
A94: 1992-01-01 | B94: 408.779999 | D94: 2010-01-31 | E94: 2010-01-31 | F94: 1073.869995 | G94: TRUE | H94: 1 | I94: 1 | J94: 1073.869995 | K94: -0.03767512419 | L94: 1.254960827 | M94: 2010-01-31 | N94: 1.254960827 | O94: 2010-01-31 | P94: 1.254960827 | Q94: 1.710874822 | R94: 1.452848808 | S94: 1 | T94: 1 | U94: 1 | V94: 1 | W94: 10.836503 | X94: 1.571325 | AC94: 76.034485 | AD94: 21.624222 | AE94: 0 | AF94: 0 | AG94: 0 | AH94: 0 | AI94: 1 | AJ94: 1 | AK94: 1 | AL94: 1 | AM94: 1 | AN94: 1 | AO94: 76.034485 | AP94: 21.624222 | AQ94: 0 | AR94: 0 | AS94: 0 | AT94: 0 | AU94: -0.03767512419 | AV94: -0.06722113505 | AW94: -0.07845842086 | AX94: FALSE | AY94: FALSE | AZ94: FALSE | BA94: FALSE | BB94: 1.710874822 | BC94: 1.452848808 | BD94: 1 | BE94: 1 | BF94: 1 | BG94: 1 | BH94: 66.696 | BI94: 138.3 | BJ94: 0 | BK94: . | BL94: 1.809 | BM94: 25.08279167 | BN94: 6395.836 | BO94: 0.01046835417 | BP94: 0.00459795483 | BQ94: 1.4266 | BR94: 0.02161227577 | BS94: 1.6158 | BT94: 0.01173794112 | BU94: 6.680519392e-05 | BW94: 2004-08-11
A95: 1992-02-01 | B95: 412.700012 | D95: 2010-02-28 | E95: 2010-02-28 | F95: 1104.48999 | G95: TRUE | H95: 1 | I95: 1 | J95: 1104.48999 | K95: 0.02811473964 | L95: 1.29074439 | M95: 2010-02-28 | N95: 1.29074439 | O95: 2010-02-28 | P95: 1.29074439 | Q95: 1.77755367 | R95: 1.478111281 | S95: 1 | T95: 1 | U95: 1 | V95: 1 | W95: 10.460238 | X95: 1.613794 | AC95: 78.997818 | AD95: 22.000229 | AE95: 0 | AF95: 0 | AG95: 0 | AH95: 0 | AI95: 1 | AJ95: 1 | AK95: 1 | AL95: 1 | AM95: 1 | AN95: 1 | AO95: 78.997818 | AP95: 22.000229 | AQ95: 0 | AR95: 0 | AS95: 0 | AT95: 0 | AU95: 0.02811473964 | AV95: 0.03823324446 | AW95: 0.0172387871 | AX95: FALSE | AY95: FALSE | AZ95: FALSE | BA95: FALSE | BB95: 1.77755367 | BC95: 1.478111281 | BD95: 1 | BE95: 1 | BF95: 1 | BG95: 1 | BH95: 66.696 | BI95: 138.6 | BJ95: 0 | BK95: 25.95 | BL95: 1.7778 | BM95: 25.08279167 | BN95: 6395.836 | BO95: 0.01046835417 | BP95: 0.004602335225 | BQ95: 1.368 | BR95: 0.02161227577 | BS95: 1.5618 | BT95: 0.01173794112 | BU95: 6.680519392e-05 | BW95: 2004-08-18
A96: 1992-03-01 | B96: 403.690002 | D96: 2010-03-31 | E96: 2010-03-31 | F96: 1169.430054 | G96: TRUE | H96: 1 | I96: 1 | J96: 1169.430054 | K96: 0.05713281588 | L96: 1.366635547 | M96: 2010-03-31 | N96: 1.366635547 | O96: 2010-03-31 | P96: 1.366635547 | Q96: 1.800809642 | R96: 1.517137917 | S96: 1 | T96: 1 | U96: 1 | V96: 1 | W96: 10.188975 | X96: 1.548459 | AC96: 80.031357 | AD96: 22.581102 | AE96: 0 | AF96: 0 | AG96: 0 | AH96: 0 | AI96: 1 | AJ96: 1 | AK96: 1 | AL96: 1 | AM96: 1 | AN96: 1 | AO96: 80.031357 | AP96: 22.581102 | AQ96: 0 | AR96: 0 | AS96: 0 | AT96: 0 | AU96: 0.05713281588 | AV96: 0.01299828854 | AW96: 0.02606049939 | AX96: FALSE | AY96: FALSE | AZ96: FALSE | BA96: FALSE | BB96: 1.800809642 | BC96: 1.517137917 | BD96: 1 | BE96: 1 | BF96: 1 | BG96: 1 | BH96: 66.696 | BI96: 139.1 | BJ96: 0 | BK96: 26.2 | BL96: 1.7238 | BM96: 25.08279167 | BN96: 6395.836 | BO96: 0.01046835417 | BP96: 0.004600810663 | BQ96: 1.357 | BR96: 0.02173440556 | BS96: 1.5058 | BT96: 0.01173794112 | BU96: 6.680519392e-05 | BW96: 2004-08-25
A97: 1992-04-01 | B97: 414.950012 | D97: 2010-04-30 | E97: 2010-04-30 | F97: 1186.689941 | G97: TRUE | H97: 1 | I97: 1 | J97: 1186.689941 | K97: 0.01465137242 | L97: 1.386806035 | M97: 2010-04-30 | N97: 1.386806035 | O97: 2010-04-30 | P97: 1.386806035 | Q97: 1.811340633 | R97: 1.581883825 | S97: 1 | T97: 1 | U97: 1 | V97: 1 | W97: 11.073652 | X97: 1.440654 | AC97: 80.499374 | AD97: 23.544781 | AE97: 0 | AF97: 0 | AG97: 0 | AH97: 0 | AI97: 1 | AJ97: 1 | AK97: 1 | AL97: 1 | AM97: 1 | AN97: 1 | AO97: 80.499374 | AP97: 23.544781 | AQ97: 0 | AR97: 0 | AS97: 0 | AT97: 0 | AU97: 0.01465137242 | AV97: 0.00583088762 | AW97: 0.04179082053 | AX97: FALSE | AY97: FALSE | AZ97: FALSE | BA97: FALSE | BB97: 1.811340633 | BC97: 1.581883825 | BD97: 1 | BE97: 1 | BF97: 1 | BG97: 1 | BH97: 67.097 | BI97: 139.4 | BJ97: 0 | BK97: 29 | BL97: 1.7566 | BM97: 25.08279167 | BN97: 6502.819 | BO97: 0.01041753479 | BP97: 0.004599752533 | BQ97: 1.3417 | BR97: 0.02232641215 | BS97: 1.5332 | BT97: 0.01173794112 | BU97: 6.584568511e-05 | BW97: 2004-09-01
A98: 1992-05-01 | B98: 415.350006 | D98: 2010-05-31 | E98: 2010-05-31 | F98: 1089.410034 | G98: TRUE | H98: 1 | I98: 1 | J98: 1089.410034 | K98: -0.08553157271 | L98: 1.273121443 | M98: 2010-05-31 | N98: 1.273121443 | O98: 2010-05-31 | P98: 1.273121443 | Q98: 1.758825702 | R98: 1.336365446 | S98: 1 | T98: 1 | U98: 1 | V98: 1 | W98: 11.073652 | X98: 1.581126 | AC98: 78.165512 | AD98: 19.890482 | AE98: 0 | AF98: 0 | AG98: 0 | AH98: 0 | AI98: 1 | AJ98: 1 | AK98: 1 | AL98: 1 | AM98: 1 | AN98: 1 | AO98: 78.165512 | AP98: 19.890482 | AQ98: 0 | AR98: 0 | AS98: 0 | AT98: 0 | AU98: -0.08553157271 | AV98: -0.02942088074 | AW98: -0.1686628565 | AX98: FALSE | AY98: FALSE | AZ98: FALSE | BA98: FALSE | BB98: 1.758825702 | BC98: 1.336365446 | BD98: 1 | BE98: 1 | BF98: 1 | BG98: 1 | BH98: 67.097 | BI98: 139.7 | BJ98: 0 | BK98: 28.4 | BL98: 1.8095 | BM98: 25.08279167 | BN98: 6502.819 | BO98: 0.01041753479 | BP98: 0.004602144599 | BQ98: 1.2563 | BR98: 0.02262443439 | BS98: 1.4669 | BT98: 0.01173794112 | BU98: 6.584568511e-05 | BW98: 2004-09-08
A99: 1992-06-01 | B99: 408.140015 | D99: 2010-06-30 | E99: 2010-06-30 | F99: 1030.709961 | G99: TRUE | H99: 1 | I99: 1 | J99: 1030.709961 | K99: -0.05538844918 | L99: 1.204522551 | M99: 2010-06-30 | N99: 1.204522551 | O99: 2010-06-30 | P99: 1.204522551 | Q99: 1.742719338 | R99: 1.197229726 | S99: 1 | T99: 1 | U99: 1 | V99: 1 | W99: 12.099862 | X99: 1.372052 | AC99: 77.449715 | AD99: 17.819584 | AE99: 0 | AF99: 0 | AG99: 0 | AH99: 0 | AI99: 1 | AJ99: 1 | AK99: 1 | AL99: 1 | AM99: 1 | AN99: 1 | AO99: 77.449715 | AP99: 17.819584 | AQ99: 0 | AR99: 0 | AS99: 0 | AT99: 0 | AU99: -0.05538844918 | AV99: -0.009199640191 | AW99: -0.1099432486 | AX99: FALSE | AY99: FALSE | AZ99: FALSE | BA99: FALSE | BB99: 1.742719338 | BC99: 1.197229726 | BD99: 1 | BE99: 1 | BF99: 1 | BG99: 1 | BH99: 67.097 | BI99: 140.1 | BJ99: 0 | BK99: 28.7 | BL99: 1.8551 | BM99: 25.08279167 | BN99: 6502.819 | BO99: 0.01041753479 | BP99: 0.004604072763 | BQ99: 1.2223 | BR99: 0.0212404418 | BS99: 1.4768 | BT99: 0.01173794112 | BU99: 6.584568511e-05 | BW99: 2004-09-15
A100: 1992-07-01 | B100: 424.209991 | D100: 2010-07-31 | E100: 2010-07-31 | F100: 1101.599976 | G100: TRUE | H100: 1 | I100: 1 | J100: 1101.599976 | K100: 0.06651579933 | L100: 1.287367022 | M100: 2010-07-31 | N100: 1.287367022 | O100: 2010-07-31 | P100: 1.287367022 | Q100: 1.812157115 | R100: 1.342916098 | S100: 1 | T100: 1 | U100: 1 | V100: 1 | W100: 11.713529 | X100: 1.425954 | AC100: 80.53566 | AD100: 19.987982 | AE100: 0 | AF100: 0 | AG100: 0 | AH100: 0 | AI100: 1 | AJ100: 1 | AK100: 1 | AL100: 1 | AM100: 1 | AN100: 1 | AO100: 80.53566 | AP100: 19.987982 | AQ100: 0 | AR100: 0 | AS100: 0 | AT100: 0 | AU100: 0.06651579933 | AV100: 0.03907118064 | AW100: 0.1148331157 | AX100: FALSE | AY100: FALSE | AZ100: FALSE | BA100: FALSE | BB100: 1.812157115 | BC100: 1.342916098 | BD100: 1 | BE100: 1 | BF100: 1 | BG100: 1 | BH100: 67.425 | BI100: 140.5 | BJ100: 0 | BK100: 28.65 | BL100: 1.9177 | BM100: 25.08279167 | BN100: 6595.851 | BO100: 0.01038615733 | BP100: 0.004595482641 | BQ100: 1.2811 | BR100: 0.02146383344 | BS100: 1.5304 | BT100: 0.01173794112 | BU100: 6.51902764e-05 | BW100: 2004-09-22
A101: 1992-08-01 | B101: 414.029999 | D101: 2010-08-31 | E101: 2010-08-31 | F101: 1049.329956 | G101: TRUE | H101: 1 | I101: 1 | J101: 1049.329956 | K101: -0.04861182332 | L101: 1.226282507 | M101: 2010-08-31 | N101: 1.226282507 | O101: 2010-08-31 | P101: 1.226282507 | Q101: 1.737779313 | R101: 1.221163592 | S101: 1 | T101: 1 | U101: 1 | V101: 1 | W101: 10.709075 | X101: 1.460255 | AC101: 77.230171 | AD101: 18.175816 | AE101: 0 | AF101: 0 | AG101: 0 | AH101: 0 | AI101: 1 | AJ101: 1 | AK101: 1 | AL101: 1 | AM101: 1 | AN101: 1 | AO101: 77.230171 | AP101: 18.175816 | AQ101: 0 | AR101: 0 | AS101: 0 | AT101: 0 | AU101: -0.04861182332 | AV101: -0.04190987096 | AW101: -0.09503927369 | AX101: FALSE | AY101: FALSE | AZ101: FALSE | BA101: FALSE | BB101: 1.737779313 | BC101: 1.221163592 | BD101: 1 | BE101: 1 | BF101: 1 | BG101: 1 | BH101: 67.425 | BI101: 140.8 | BJ101: 0 | BK101: 28.48 | BL101: 1.9434 | BM101: 25.08279167 | BN101: 6595.851 | BO101: 0.01038615733 | BP101: 0.00458877677 | BQ101: 1.2903 | BR101: 0.02157497303 | BS101: 1.5661 | BT101: 0.01173794112 | BU101: 6.51902764e-05 | BW101: 2004-09-29
A102: 1992-09-01 | B102: 417.799988 | D102: 2010-09-30 | E102: 2010-09-30 | F102: 1141.199951 | G102: TRUE | H102: 1 | I102: 1 | J102: 1141.199951 | K102: 0.08392847409 | L102: 1.333644893 | M102: 2010-09-30 | N102: 1.333644893 | O102: 2010-09-30 | P102: 1.333644893 | Q102: 1.902548396 | R102: 1.281032791 | S102: 1 | T102: 1 | U102: 1 | V102: 1 | W102: 10.116374 | X102: 1.577859 | AC102: 84.552818 | AD102: 19.06691 | AE102: 0 | AF102: 0 | AG102: 0 | AH102: 0 | AI102: 1 | AJ102: 1 | AK102: 1 | AL102: 1 | AM102: 1 | AN102: 1 | AO102: 84.552818 | AP102: 19.06691 | AQ102: 0 | AR102: 0 | AS102: 0 | AT102: 0 | AU102: 0.08392847409 | AV102: 0.09058620744 | AW102: 0.04786245263 | AX102: FALSE | AY102: FALSE | AZ102: FALSE | BA102: FALSE | BB102: 1.902548396 | BC102: 1.281032791 | BD102: 1 | BE102: 1 | BF102: 1 | BG102: 1 | BH102: 67.425 | BI102: 141.1 | BJ102: 0 | BK102: 28.48 | BL102: 1.8465 | BM102: 25.08279167 | BN102: 6595.851 | BO102: 0.01038615733 | BP102: 0.004581376704 | BQ102: 1.3103 | BR102: 0.02139495079 | BS102: 1.5591 | BT102: 0.01173794112 | BU102: 6.51902764e-05 | BW102: 2004-10-06
A103: 1992-10-01 | B103: 418.679993 | D103: 2010-10-31 | E103: 2010-10-31 | F103: 1183.26001 | G103: TRUE | H103: 1 | I103: 1 | J103: 1183.26001 | K103: 0.0361930521 | L103: 1.382797702 | M103: 2010-10-31 | N103: 1.382797702 | O103: 2010-10-31 | P103: 1.382797702 | Q103: 2.036722393 | R103: 1.39506453 | S103: 1 | T103: 1 | U103: 1 | V103: 1 | W103: 8.378111 | X103: 1.739566 | AC103: 90.515762 | AD103: 20.76416 | AE103: 0 | AF103: 0 | AG103: 0 | AH103: 0 | AI103: 1 | AJ103: 1 | AK103: 1 | AL103: 1 | AM103: 1 | AN103: 1 | AO103: 90.515762 | AP103: 20.76416 | AQ103: 0 | AR103: 0 | AS103: 0 | AT103: 0 | AU103: 0.0361930521 | AV103: 0.06814759711 | AW103: 0.08527405171 | AX103: FALSE | AY103: FALSE | AZ103: FALSE | BA103: FALSE | BB103: 2.036722393 | BC103: 1.39506453 | BD103: 1 | BE103: 1 | BF103: 1 | BG103: 1 | BH103: 67.889 | BI103: 141.7 | BJ103: 0 | BK103: 28.48 | BL103: 1.6529 | BM103: 25.08279167 | BN103: 6711.112 | BO103: 0.01032567168 | BP103: 0.004565480403 | BQ103: 1.3901 | BR103: 0.02251745102 | BS103: 1.5867 | BT103: 0.01173794112 | BU103: 6.442144613e-05 | BW103: 2004-10-13
